Workbook

Sheet Accueil
E3: BF Manufacturiers Poids-Lourd
E4: Actualisation au 04/04/2024
B26: Profil Plus France - 19b Avenue Léon Gambetta - 92120 MONTROUGE
B27: Version : 1.0 - YB - Février 2024

Sheet Tutoriel
D3: Tutoriel
C7: Vous trouverez ici comment utiliser le fichier de synthèse des BF
C8: et toutes les astuces disponibles
C10: Entrer les remises
C12: Nous vous invitons à entrer les remises en premier,
C13: ainsi les tarifs affichés correspondront au prix qui vous sera facturé.
C15: Sur l'onglet "Accueil", cliquer sur
C16: Par manufacturier, vous pourrez alors entrer les remises négociées.
C18: Vous avez ensuite intérêt à enregistrer le fichier.
C19: Cela vous évitera d'entrer à nouveau les remises lors de la prochaine utilisation.
C21: Si vous souhaitez ré-initialiser les remises, il vous suffit de cliquer sur le bouton :
C22: Toutes les remises seront alors remises à 0.
C24: Retour à l'accueil
C26: Sur chaque onglet figure le bouton suivant :
C27: En cliquant dessus, vous retournez à l'accueil.
C29: Trouver les pneumatiques disponibles dans la dimension voulue
C31: Depuis l'accueil, cliquer sur
C33: Entrer les caractéristiques du pneumatique dans le tableau suivant :
C36: Toutes les informations ne sont pas indispensables.
C37: Vous pouvez par exemple n'entrer que le diamètre.
C39: Cliquez ensuite sur
C40: L'ensemble des pneumatiques correspondants aux caractéristiques saisies s'affichent en dessous.
C42: Pour supprimer le filtre, et afficher tous les pneumatiques, cliquer sur
C44: Consulter le barème d'un manufacturier
C46: Depuis l'accueil cliquer sur
C47: Pour accéder au barème de l'un des manufacturiers, cliquer sur son logo
C48: Depuis l'onglet présentant le barème d'un manufacturier, vous pouvez :
C49: Consulter les tarifs,
C50: Revenir à l'accueil en cliquant sur le bouton
C51: Consulter le barème d'un autre manufacturier
C52: en cliquant sur le bouton
C54: Modifier la remise en cliquant sur le bouton

Sheet Index
D3: Index Poids-Lourd
D7: ABREVIATION | F7: DEFINITION
D9: CAI | F9: Code Article International
D10: EAN | F10: European Article Number (code Barre)
D11: BF | F11: Barème de Facturation
D12: TD | F12: Tarif de distribution
D13: IC | F13: Indice de Charge
D14: IV | F14: Indice de Vitesse
D15: Bruit. | F15: Classe de Bruit
D16: Conso. | F16: Efficacité Energetique
D17: PL | F17: Poids Lourd
D18: TT/TL | F18: Tube Type / TubeLess

Sheet Remises
B2: POIDS-LOURD - Remises
B6: POIDS-LOURD NEUF | L6: POIDS-LOURD RECHAPE
E8: 0.48 | J8: 0.36 | O8: 0.24 | T8: 0.21
E10: 0.29 | J10: 0.285 | O10: 0.3 | T10: 0.13
E12: 0.32 | J12: 0.29 | O12: 0.17
E14: 0.43 | J14: 0.415

Sheet Manufacturiers
B2: BF Manufacturiers Poids-Lourd
B3: Actualisation au 04/04/2024
B6: POIDS-LOURD NEUF | J6: POIDS-LOURD RECHAPE

Sheet Pneus par dim.
F2: BF Manufacturiers Poids-Lourd
F3: Actualisation au 04/04/2024
B4: Largeur | C4: Hauteur | D4: Diamètre | E4: Ind. Chg | F4: Ind. Vit
A7: REFERENCES PNEUMATIQUES
A8: Manufacturier | B8: Largeur | C8: Hauteur | D8: Diam. | E8: IC | F8: IV | G8: Désignation | H8: Profil | I8: Prix BF ou TD | J8: Prix remisé | K8: CAI | L8: EAN/Gencode | M8: Type Rechapage | N8: Catégorie
A9: BFGOODRICH | B9: 13 | C9: 90 | D9: 22.5 | E9: 156/150 | F9: K | G9: PN BFG 13 R22.5 156K CROSS CTRL D2 VG | H9: BF CROSS CONTROL D | I9: 1131 | J9: =I9*(1-VLOOKUP(A9,Datas_Remises,4,0)) -> 588.12 | K9: 425791 | L9: 3528704257911 | M9: Neuf | N9: POIDS LOURDS
A10: BFGOODRICH | B10: 385 | C10: 65 | D10: 22.5 | E10: 158 | F10: K | G10: PN BFG 385/65R22.5 158K CROSS CONTROL S | H10: BF CROS C S | I10: 1193 | J10: 620.36 | K10: 929228 | L10: 3528709292283 | M10: Neuf | N10: POIDS LOURDS
A11: BFGOODRICH | B11: 245 | C11: 70 | D11: 19.5 | E11: 136/134 | F11: M | G11: PN BFG 245/70R19.5 136/134M ROUTE CONT D | H11: BF ROUTE CONTRÔLE | I11: 713 | J11: 370.76 | K11: 514320 | L11: 3528705143206 | M11: Neuf | N11: POIDS LOURDS
A12: BFGOODRICH | B12: 245 | C12: 70 | D12: 17.5 | E12: 136/134 | F12: M | G12: PN BFG 245/70R17.5 136/134M ROUTE CONT D | H12: BF ROUT C D | I12: 709 | J12: 368.68 | K12: 870944 | L12: 3528708709447 | M12: Neuf | N12: POIDS LOURDS
A13: BFGOODRICH | B13: 13 | D13: 22.5 | E13: 156/150 | F13: K | G13: PN BFG 13 R22.5 156K CROSS CTRL S2 VG | H13: BF CROSS CONTROL S | I13: 1131 | J13: 588.12 | K13: 487756 | L13: 3528704877560 | M13: Neuf | N13: POIDS LOURDS
A14: BFGOODRICH | B14: 385 | C14: 65 | D14: 22.5 | E14: 158 | F14: K | G14: PN BFG 385/65R22.5 158K CROSS CONTROL T | H14: BF CROS C T | I14: 1092 | J14: 567.84 | K14: 829690 | L14: 3528708296909 | M14: Neuf | N14: POIDS LOURDS
A15: BFGOODRICH | B15: 11 | D15: 22.5 | E15: 148/145 | F15: L | G15: PN BFG 11.00 R22.5 148/145L ROUT C S2 | H15: BF ROUT C S2 | I15: 920 | J15: 478.4 | K15: 775446 | L15: 3528707754462 | M15: Neuf | N15: POIDS LOURDS
A16: BFGOODRICH | B16: 205 | C16: 75 | D16: 17.5 | E16: 124/122 | F16: M | G16: PN BFG 205/75R17.5 124/122M ROUTE CONT D | H16: BF ROUT C D | I16: 517 | J16: 268.84 | K16: 465545 | L16: 3528704655458 | M16: Neuf | N16: POIDS LOURDS
A17: BFGOODRICH | B17: 285 | C17: 70 | D17: 19.5 | E17: 146/144 | F17: L | G17: PN BFG 285/70R19.5 146/144L ROUTE CONT D | H17: BF ROUT C D | I17: 838 | J17: 435.76 | K17: 922022 | L17: 3528709220224 | M17: Neuf | N17: POIDS LOURDS
A18: BFGOODRICH | B18: 295 | C18: 60 | D18: 22.5 | E18: 150/147 | F18: K | G18: PN BFG 295/60R22.5 150/147K ROUTE CONT D | H18: BF ROUT C D | I18: 1089 | J18: 566.28 | K18: 640269 | L18: 3528706402692 | M18: Neuf | N18: POIDS LOURDS
A19: BFGOODRICH | B19: 265 | C19: 70 | D19: 19.5 | E19: 140/138 | F19: M | G19: PN BFG 265/70R19.5 140/138M ROUTE CONT D | H19: BF ROUT C D | I19: 725 | J19: 377 | K19: 204085 | L19: 3528702040850 | M19: Neuf | N19: POIDS LOURDS
A20: BFGOODRICH | B20: 315 | C20: 60 | D20: 22.5 | E20: 152/148 | F20: L | G20: PN BFG 315/60R22.5 152/148L ROUTE CONT D | H20: BF ROUT C D | I20: 1165 | J20: 605.8 | K20: 727819 | L20: 3528707278197 | M20: Neuf | N20: POIDS LOURDS
A21: BFGOODRICH | B21: 205 | C21: 75 | D21: 17.5 | E21: 124/122 | F21: M | G21: PN BFG 205/75R17.5 124/122M ROUTE CONT S | H21: BF ROUT C S | I21: 517 | J21: 268.84 | K21: 614228 | L21: 3528706142284 | M21: Neuf | N21: POIDS LOURDS
A22: BFGOODRICH | B22: 225 | C22: 75 | D22: 17.5 | E22: 129/127 | F22: M | G22: PN BFG 225/75R17.5 129/127M ROUTE CONT D | H22: BF ROUT C D | I22: 593 | J22: 308.36 | K22: 679547 | L22: 3528706795473 | M22: Neuf | N22: POIDS LOURDS
A23: BFGOODRICH | B23: 215 | C23: 75 | D23: 17.5 | E23: 126/124 | F23: M | G23: PN BFG 215/75R17.5 126/124M ROUTE CONT D | H23: BF ROUT C D | I23: 529 | J23: 275.08 | K23: 198312 | L23: 3528701983127 | M23: Neuf | N23: POIDS LOURDS
A24: BFGOODRICH | B24: 295 | C24: 80 | D24: 22.5 | E24: 152/148 | F24: M | G24: PN BFG 295/80R22.5 152/148M ROUTE CONT D | H24: BF ROUT C D | I24: 1067 | J24: 554.84 | K24: 146722 | L24: 3528701467221 | M24: Neuf | N24: POIDS LOURDS
A25: BFGOODRICH | B25: 245 | C25: 70 | D25: 17.5 | E25: 143/141 | F25: J | G25: PN BFG 245/70R17.5 143/141J ROUTE CONT T | H25: BF ROUT C T | I25: 731 | J25: 380.12 | K25: 905050 | L25: 3528709050500 | M25: Neuf | N25: POIDS LOURDS
A26: BFGOODRICH | B26: 235 | C26: 75 | D26: 17.5 | E26: 143/141 | F26: J | G26: PN BFG 235/75R17.5 143/141J ROUTE CONT T | H26: BF ROUT C T | I26: 654 | J26: 340.08 | K26: 853105 | L26: 3528708531055 | M26: Neuf | N26: POIDS LOURDS
A27: BFGOODRICH | B27: 295 | C27: 80 | D27: 22.5 | E27: 152/149 | F27: M | G27: PN BFG 295/80R22.5 152/149M ROUT C S2 VM | H27: BF ROUT C S2 | I27: 1067 | J27: 554.84 | K27: 401019 | L27: 3528704010196 | M27: Neuf | N27: POIDS LOURDS
A28: BFGOODRICH | B28: 265 | C28: 70 | D28: 19.5 | E28: 143/141 | F28: J | G28: PN BFG 265/70R19.5 143/141J ROUTE CONT T | H28: BF ROUT C T | I28: 722 | J28: 375.44 | K28: 397877 | L28: 3528703978770 | M28: Neuf | N28: POIDS LOURDS
A29: BFGOODRICH | B29: 385 | C29: 65 | D29: 22.5 | E29: 162 | F29: K | G29: PN BFG 385/65R22.5 162K ROUTE CONTROL S | H29: BF ROUT C S | I29: 1165 | J29: 605.8 | K29: 410923 | L29: 3528704109234 | M29: Neuf | N29: POIDS LOURDS
A30: BFGOODRICH | B30: 315 | C30: 70 | D30: 22.5 | E30: 156/150 | F30: L | G30: PN BFG 315/70R22.5 156/150L ROUT C S2 VM | H30: BF ROUT C S2 | I30: 1089 | J30: 566.28 | K30: 261138 | L30: 3528702611388 | M30: Neuf | N30: POIDS LOURDS
A31: BFGOODRICH | B31: 265 | C31: 70 | D31: 19.5 | E31: 140/138 | F31: M | G31: PN BFG 265/70R19.5 140/138M ROUTE CONT S | H31: BF ROUT C S | I31: 725 | J31: 377 | K31: 520276 | L31: 3528705202767 | M31: Neuf | N31: POIDS LOURDS
A32: BFGOODRICH | B32: 215 | C32: 75 | D32: 17.5 | E32: 135/133 | F32: J | G32: PN BFG 215/75R17.5 135/133J ROUTE CONT T | H32: BF ROUT C T | I32: 569 | J32: 295.88 | K32: 957621 | L32: 3528709576215 | M32: Neuf | N32: POIDS LOURDS
A33: BFGOODRICH | B33: 435 | C33: 50 | D33: 19.5 | E33: 160 | F33: K | G33: PN BFG 435/50R19.5 160K ROUT C T | H33: BF ROUT C T | I33: 1388 | J33: 721.76 | K33: 728353 | L33: 3528707283535 | M33: Neuf | N33: POIDS LOURDS
A34: BFGOODRICH | B34: 8.25 | D34: 15 | E34: 143/141 | F34: G | G34: PN BFG 8.25 R15 143/141G ROUTE CONTROL T | H34: BF ROUT C T | I34: 725 | J34: 377 | K34: 188237 | L34: 3528701882376 | M34: Neuf | N34: POIDS LOURDS
A35: BFGOODRICH | B35: 315 | C35: 80 | D35: 22.5 | E35: 156/150 | F35: L | G35: PN BFG 315/80R22.5 156/150L ROUT C D2 | H35: BF ROUT C D2 | I35: 1089 | J35: 566.28 | K35: 669210 | L35: 3528706692109 | M35: Neuf | N35: POIDS LOURDS
A36: BFGOODRICH | B36: 315 | C36: 80 | D36: 22.5 | E36: 156/150 | F36: L | G36: PN BFG 315/80R22.5 156/150L ROUT C S2 | H36: BF ROUT C S2 | I36: 1089 | J36: 566.28 | K36: 410561 | L36: 3528704105618 | M36: Neuf | N36: POIDS LOURDS
A37: BFGOODRICH | B37: 285 | C37: 70 | D37: 19.5 | E37: 150/148 | F37: J | G37: PN BFG 285/70R19.5 150/148J ROUTE CONT T | H37: BF ROUT C T | I37: 905 | J37: 470.6 | K37: 559461 | L37: 3528705594619 | M37: Neuf | N37: POIDS LOURDS
A38: BFGOODRICH | B38: 11 | C38: 90 | D38: 22.5 | E38: 148/145 | F38: L | G38: PN BFG 11 R22.5 148/145L ROUT CONTR S VG | H38: BF ROUT C S | I38: 920 | J38: 478.4 | K38: 907751 | L38: 3528709077514 | M38: Neuf | N38: POIDS LOURDS
A39: BFGOODRICH | B39: 385 | C39: 65 | D39: 22.5 | E39: 160 | F39: K | G39: PN BFG 385/65R22.5 160K ROUTE CONTROL T | H39: BF ROUT C T | I39: 1092 | J39: 567.84 | K39: 743370 | L39: 3528707433701 | M39: Neuf | N39: POIDS LOURDS
A40: BFGOODRICH | B40: 385 | C40: 55 | D40: 22.5 | E40: 160 | F40: K | G40: PN BFG 385/55R22.5 160K ROUTE CONTROL T | H40: BF ROUT C T | I40: 1147 | J40: 596.44 | K40: 460307 | L40: 3528704603077 | M40: Neuf | N40: POIDS LOURDS
A41: BFGOODRICH | B41: 235 | C41: 75 | D41: 17.5 | E41: 132/130 | F41: M | G41: PN BFG 235/75R17.5 132/130M ROUTE CONT S | H41: BF ROUT C S | I41: 630 | J41: 327.6 | K41: 056738 | L41: 3528700567380 | M41: Neuf | N41: POIDS LOURDS
A42: BFGOODRICH | B42: 225 | C42: 75 | D42: 17.5 | E42: 129/127 | F42: M | G42: PN BFG 225/75R17.5 129/127M ROUTE CONT S | H42: BF ROUT C S | I42: 593 | J42: 308.36 | K42: 141889 | L42: 3528701418896 | M42: Neuf | N42: POIDS LOURDS
A43: BFGOODRICH | B43: 275 | C43: 70 | D43: 22.5 | E43: 148/145 | F43: M | G43: PN BFG 275/70R22.5 148/145M ROUTE CONT S | H43: BF ROUT C S | I43: 1034 | J43: 537.68 | K43: 900960 | L43: 3528709009607 | M43: Neuf | N43: POIDS LOURDS
A44: BFGOODRICH | B44: 245 | C44: 70 | D44: 17.5 | E44: 136/134 | F44: M | G44: PN BFG 245/70R17.5 136/134M ROUTE CONT S | H44: BF ROUT C S | I44: 709 | J44: 368.68 | K44: 112597 | L44: 3528701125978 | M44: Neuf | N44: POIDS LOURDS
A45: BFGOODRICH | B45: 315 | C45: 80 | D45: 22.5 | E45: 156/150 | F45: K | G45: PN BFG 315/80R22.5 156K CROSS CTRL D2 VM | H45: BF CROSS CONTROL D | I45: 1110 | J45: 577.2 | K45: 873233 | L45: 3528708732339 | M45: Neuf | N45: POIDS LOURDS
A46: BFGOODRICH | B46: 315 | C46: 80 | D46: 22.5 | E46: 156/150 | F46: K | G46: PN BFG 315/80R22.5 156K CROSS CTRL S2 VM | H46: BF CROSS CONTROL S | I46: 1110 | J46: 577.2 | K46: 363888 | L46: 3528703638889 | M46: Neuf | N46: POIDS LOURDS
A47: BFGOODRICH | B47: 215 | C47: 75 | D47: 17.5 | E47: 126/124 | F47: M | G47: PN BFG 215/75R17.5 126/124M ROUTE CONT S | H47: BF ROUT C S | I47: 529 | J47: 275.08 | K47: 901831 | L47: 3528709018319 | M47: Neuf | N47: POIDS LOURDS
A48: BFGOODRICH | B48: 235 | C48: 75 | D48: 17.5 | E48: 132/130 | F48: M | G48: PN BFG 235/75R17.5 132/130M ROUTE CONT D | H48: BF ROUT C D | I48: 630 | J48: 327.6 | K48: 873447 | L48: 3528708734470 | M48: Neuf | N48: POIDS LOURDS
A49: BFGOODRICH | B49: 315 | C49: 60 | D49: 22.5 | E49: 154/148 | F49: L | G49: PN BFG 315/60R22.5 154/148L ROUTE CONT S | H49: BF ROUT C S | I49: 1165 | J49: 605.8 | K49: 615923 | L49: 3528706159237 | M49: Neuf | N49: POIDS LOURDS
A50: BFGOODRICH | B50: 295 | C50: 80 | D50: 22.5 | E50: 152/148 | F50: M | G50: PN BFG 295/80R22.5 152/148M ROUTE CONT S | H50: BF ROUT C S | I50: 1067 | J50: 554.84 | K50: 831378 | L50: 3528708313781 | M50: Neuf | N50: POIDS LOURDS
A51: BFGOODRICH | B51: 315 | C51: 70 | D51: 22.5 | E51: 154/150 | F51: L | G51: PN BFG 315/70R22.5 154/150L ROUT C D2 VM | H51: BF ROUT C D2 | I51: 1089 | J51: 566.28 | K51: 943946 | L51: 3528709439466 | M51: Neuf | N51: POIDS LOURDS
A52: BFGOODRICH | B52: 385 | C52: 55 | D52: 22.5 | E52: 160 | F52: K | G52: PN BFG 385/55R22.5 160K ROUTE CONTROL S | H52: BF ROUT C S | I52: 1196 | J52: 621.92 | K52: 522244 | L52: 3528705222444 | M52: Neuf | N52: POIDS LOURDS
A53: BFGOODRICH | B53: 245 | C53: 70 | D53: 19.5 | E53: 136/134 | F53: M | G53: PN BFG 245/70R19.5 136/134M ROUT C S VM | H53: BF ROUT C S | I53: 713 | J53: 370.76 | K53: 840765 | L53: 3528708407657 | M53: Neuf | N53: POIDS LOURDS
A54: BFGOODRICH | B54: 285 | C54: 70 | D54: 19.5 | E54: 146/144 | F54: L | G54: PN BFG 285/70R19.5 146/144L ROUTE CONT S | H54: BF ROUT C S | I54: 838 | J54: 435.76 | K54: 279040 | L54: 3528702790403 | M54: Neuf | N54: POIDS LOURDS
A55: BRIDGESTONE | B55: 445 | C55: 65 | D55: 22.5 | E55: 169 | F55: K | G55: PN BRI 445/65R22.5 169K V-STEEL MIX M844 | H55: BS VSTEEL MIX M844 | I55: 1449 | J55: 927.36 | K55: 25946 | L55: 3286342594613 | M55: Neuf | N55: POIDS LOURDS
A56: BRIDGESTONE | B56: 315 | C56: 70 | D56: 22.5 | E56: 154 | F56: L | G56: PN BRI 315/70R22.5 154L/152M ECOPIA DRIV | H56: BS ECOPIA DRIVE | I56: 1202 | J56: 769.28 | K56: 19879 | L56: 3286341987911 | M56: Neuf | N56: POIDS LOURDS
A57: BRIDGESTONE | B57: 315 | C57: 70 | D57: 22.5 | E57: 156/150 | F57: L | G57: PN BRI 315/70R22.5 156L154M EC H-ST 002 | H57: BS ECOPIA H-STEER | I57: 1145 | J57: 732.8 | K57: 13506 | L57: 3286341350616 | M57: Neuf | N57: POIDS LOURDS
A58: BRIDGESTONE | B58: 315 | C58: 80 | D58: 22.5 | E58: 156/150 | F58: L | G58: PN BRI 315/80R22.5 156L154M EC H-ST 002 | H58: BS ECOPIA H-STEER | I58: 1153 | J58: 737.92 | K58: 13508 | L58: 3286341350814 | M58: Neuf | N58: POIDS LOURDS
A59: BRIDGESTONE | B59: 385 | C59: 55 | D59: 22.5 | E59: 160 | F59: K | G59: PN BRI 385/55R22.5 160K158L EC H-ST 002 | H59: BS ECOPIA H-STEER | I59: 1193 | J59: 763.52 | K59: 13498 | L59: 3286341349818 | M59: Neuf | N59: POIDS LOURDS
A60: BRIDGESTONE | B60: 315 | C60: 80 | D60: 22.5 | E60: 156 | F60: L | G60: PN BRI 315/80R22.5 156M ECOP H-DR 002 | H60: BS ECOPIA H-DRIVE | I60: 1153 | J60: 737.92 | K60: 13502 | L60: 3286341350210 | M60: Neuf | N60: POIDS LOURDS
A61: BRIDGESTONE | B61: 435 | C61: 50 | D61: 19.5 | E61: 160 | F61: J | G61: PN BRI 435/50R19.5 160J R166 FS2 | H61: BS R166 | I61: 1141 | J61: 730.24 | K61: 23729 | L61: 3286342372914 | M61: Neuf | N61: POIDS LOURDS
A62: BRIDGESTONE | B62: 315 | C62: 70 | D62: 22.5 | E62: 156 | F62: L | G62: PN BRI 315/70R22.5 156L/154M R-STEER 002 | H62: BS DUR R-STEER 002 | I62: 1148 | J62: 734.72 | K62: 16944 | L62: 3286341694413 | M62: Neuf | N62: POIDS LOURDS
A63: BRIDGESTONE | B63: 315 | C63: 70 | D63: 22.5 | E63: 154 | F63: L | G63: PN BRI 315/70R22.5 154M ECOP H-DR 002 | H63: BS ECOPIA H-DRIVE | I63: 1145 | J63: 732.8 | K63: 13511 | L63: 3286341351118 | M63: Neuf | N63: POIDS LOURDS
A64: BRIDGESTONE | B64: 385 | C64: 55 | D64: 22.5 | E64: 160 | F64: K | G64: PN BRI 385/55R22.5 160K R-TRAILER 002 | H64: BS R-TRAILER 002 | I64: 1157 | J64: 740.48 | K64: 10850 | L64: 3286341085013 | M64: Neuf | N64: POIDS LOURDS
A65: BRIDGESTONE | B65: 445 | C65: 45 | D65: 19.5 | E65: 160 | F65: J | G65: PN BRI 445/45R19.5 160J ECOP H-TR 002 | H65: BS ECOPIA H-TRAILE | I65: 1342 | J65: 858.88 | K65: 10862 | L65: 3286341086218 | M65: Neuf | N65: POIDS LOURDS
A66: BRIDGESTONE | B66: 265 | C66: 70 | D66: 19.5 | E66: 140 | F66: M | G66: PN BRI 265/70R19.5 140M M788 | H66: BS M788 | I66: 669 | J66: 428.16 | K66: 25945 | L66: 3286342594514 | M66: Neuf | N66: POIDS LOURDS
A67: BRIDGESTONE | B67: 315 | C67: 80 | D67: 22.5 | E67: 158 | F67: G | G67: PN BRI 315/80R22.5 158G V-STEEL L355 EVO | H67: BS L355 EVO | I67: 1134 | J67: 725.76 | K67: 25915 | L67: 3286342591513 | M67: Neuf | N67: POIDS LOURDS
A68: BRIDGESTONE | B68: 295 | C68: 80 | D68: 22.5 | E68: 154 | F68: M | G68: PN BRI 295/80R22.5 154M W958 EVO | H68: BS W958 EVO | I68: 1052 | J68: 673.28 | K68: 23782 | L68: 3286342378213 | M68: Neuf | N68: POIDS LOURDS
A69: BRIDGESTONE | B69: 225 | C69: 75 | D69: 17.5 | E69: 129 | F69: M | G69: PN BRI 225/75R17.5 129M M788 | H69: BS M788 | I69: 525 | J69: 336 | K69: 25944 | L69: 3286342594415 | M69: Neuf | N69: POIDS LOURDS
A70: BRIDGESTONE | B70: 385 | C70: 55 | D70: 22.5 | E70: 160 | F70: K | G70: PN BRI 385/55R22.5 160K158L DURAV RS002 | H70: BS DURAVIS RS 002 | I70: 1191 | J70: 762.24 | K70: 16940 | L70: 3286341694017 | M70: Neuf | N70: POIDS LOURDS
A71: BRIDGESTONE | B71: 295 | C71: 80 | D71: 22.5 | E71: 152 | F71: M | G71: PN BRI 295/80R22.5 152M NORDIC-DRIVE 00 | H71: BS NORDIC-DRIVE 00 | I71: 1052 | J71: 673.28 | K71: 25938 | L71: 3286342593814 | M71: Neuf | N71: POIDS LOURDS
A72: BRIDGESTONE | B72: 315 | C72: 80 | D72: 22.5 | E72: 156 | F72: L | G72: PN BRI 315/80R22.5 156L NORDIC-DRIVE 00 | H72: BS NORDIC-DRIVE 00 | I72: 1112 | J72: 711.68 | K72: 25939 | L72: 3286342593913 | M72: Neuf | N72: POIDS LOURDS
A73: BRIDGESTONE | B73: 425 | C73: 65 | D73: 22.5 | E73: 165 | F73: K | G73: PN BRI 425/65R22.5 165K V-STEEL RIB R164 | H73: BS R164 | I73: 1403 | J73: =I73*(1-VLOOKUP(A73,Datas_Remises,4,0)) -> 897.92 | K73: 25947 | L73: 3286342594712 | M73: Neuf | N73: POIDS LOURDS
A74: BRIDGESTONE | B74: 385 | C74: 55 | D74: 22.5 | E74: 160 | F74: K | G74: PN BRI 385/55R22.5 160K158L EC H-TR 002 | H74: BS ECOPIA H-TRAILE | I74: 1165 | J74: 745.6 | K74: 13499 | L74: 3286341349917 | M74: Neuf | N74: POIDS LOURDS
A75: BRIDGESTONE | B75: 275 | C75: 70 | D75: 22.5 | E75: 152 | F75: F | G75: PN BRI 275/70R22.5 150J/152F W958 EVO | H75: BS W958 EVO | I75: 1024 | J75: 655.36 | K75: 27835 | L75: 3286342783512 | M75: Neuf | N75: POIDS LOURDS
A76: BRIDGESTONE | B76: 315 | C76: 60 | D76: 22.5 | E76: 154 | F76: L | G76: PN BRI 315/60R22.5 154L U-AP 002 | H76: BS U-AP002 | I76: 1178 | J76: 753.92 | K76: 16815 | L76: 3286341681512 | M76: Neuf | N76: POIDS LOURDS
A77: BRIDGESTONE | B77: 10 | D77: 17.5 | E77: 134 | F77: L | G77: PN BRI 10 R17.5 134/132L VSR R180 | H77: BS R180 | I77: 648 | J77: 414.72 | K77: 19673 | L77: 3286341967319 | M77: Neuf | N77: POIDS LOURDS
A78: BRIDGESTONE | B78: 315 | C78: 80 | D78: 22.5 | E78: 156 | F78: L | G78: PN BRI 315/80R22.5 156L/154M R-STEER 001 | H78: BS RW-STEER 001 | I78: 1123 | J78: 718.72 | K78: 23767 | L78: 3286342376714 | M78: Neuf | N78: POIDS LOURDS
A79: BRIDGESTONE | B79: 295 | C79: 80 | D79: 22.5 | E79: 154 | F79: M | G79: PN BRI 295/80R22.5 154M/149M R-STEER 001 | H79: BS RW-STEER 001 | I79: 1050 | J79: 672 | K79: 23772 | L79: 3286342377216 | M79: Neuf | N79: POIDS LOURDS
A80: BRIDGESTONE | B80: 295 | C80: 60 | D80: 22.5 | E80: 150/147 | F80: L | G80: PN BRI 295/60R22.5 150L ECO H-DRIVE002 | H80: BS ECOPIA H-DRIVE | I80: 1120 | J80: 716.8 | K80: 16884 | L80: 3286341688412 | M80: Neuf | N80: POIDS LOURDS
A81: BRIDGESTONE | B81: 385 | C81: 65 | D81: 22.5 | E81: 164 | F81: G | G81: PN BRI 385/65R22.5 164G M748E | H81: BS M748 EVO | I81: 1153 | J81: 737.92 | K81: 25916 | L81: 3286342591612 | M81: Neuf | N81: POIDS LOURDS
A82: BRIDGESTONE | B82: 245 | C82: 70 | D82: 19.5 | E82: 141/140 | F82: J | G82: PN BRI 245/70R19.5 141/140J R-TR 001 | H82: BS R-TRAILER 001 | I82: 729 | J82: 466.56 | K82: 13560 | L82: 3286341356014 | M82: Neuf | N82: POIDS LOURDS
A83: BRIDGESTONE | B83: 385 | C83: 65 | D83: 22.5 | E83: 164 | F83: K | G83: PN BRI 385/65R22.5 164K W958 EVO | H83: BS W958 EVO | I83: 1281 | J83: 819.84 | K83: 25926 | L83: 3286342592619 | M83: Neuf | N83: POIDS LOURDS
A84: BRIDGESTONE | B84: 11 | D84: 22.5 | E84: 148 | F84: K | G84: PN BRI 11 R22.5 148K M840 | H84: BS M840 EVO | I84: 803 | J84: 513.92 | K84: 25917 | L84: 3286342591711 | M84: Neuf | N84: POIDS LOURDS
A85: BRIDGESTONE | B85: 11 | D85: 22.5 | E85: 148/145 | F85: L | G85: PN BRI 11R22.5 148/145 L R 187 | H85: BS R 187 | I85: 724 | J85: 463.36 | K85: 9945 | L85: 3286340994514 | M85: Neuf | N85: POIDS LOURDS
A86: BRIDGESTONE | B86: 385 | C86: 65 | D86: 22.5 | E86: 164 | F86: K | G86: PN BRI 385/65R22.5 164K D-TR 002 EVO | H86: BS R-TRAILER 002 E | I86: 1183 | J86: 757.12 | K86: 17008 | L86: 3286341700817 | M86: Neuf | N86: POIDS LOURDS
A87: BRIDGESTONE | B87: 9.5 | D87: 17.5 | E87: 143/141 | F87: J | G87: PN BRI 9.5 R17.5 143/141J R168 | H87: BS R168 | I87: 604 | J87: 386.56 | K87: 23253 | L87: 3286342325316 | M87: Neuf | N87: POIDS LOURDS
A88: BRIDGESTONE | B88: 315 | C88: 60 | D88: 22.5 | E88: 152/148 | F88: L | G88: PN BRI 315/60R22.5 152/148L D-DR 002 | H88: BS DURAVIS R-DRIVE | I88: 1178 | J88: 753.92 | K88: 16952 | L88: 3286341695212 | M88: Neuf | N88: POIDS LOURDS
A89: BRIDGESTONE | B89: 255 | C89: 70 | D89: 22.5 | E89: 140 | F89: M | G89: PN BRI LT255/70R22.5 140M140L VSRIB R294 | H89: BS V-STEEL RIB R29 | I89: 922 | J89: 590.08 | K89: 16355 | L89: 3286341635515 | M89: Neuf | N89: POIDS LOURDS
A90: BRIDGESTONE | B90: 295 | C90: 80 | D90: 22.5 | E90: 154/149 | F90: M | G90: PN BRI 295/80R22.5 154/149M EC H-ST 002 | H90: BS ECOPIA H-STEER | I90: 1097 | J90: 702.08 | K90: 13504 | L90: 3286341350418 | M90: Neuf | N90: POIDS LOURDS
A91: BRIDGESTONE | B91: 315 | C91: 80 | D91: 22.5 | E91: 156 | F91: L | G91: PN BRI 315/80R22.5 156L V-STEEL W958 | H91: BS W958 | I91: 1073 | J91: 686.72 | K91: 25930 | L91: 3286342593012 | M91: Neuf | N91: POIDS LOURDS
A92: BRIDGESTONE | B92: 275 | C92: 70 | D92: 22.5 | E92: 148 | F92: K | G92: PN BRI 275/70R22.5 148K M840 | H92: BS M840 EVO | I92: 945 | J92: 604.8 | K92: 25920 | L92: 3286342592015 | M92: Neuf | N92: POIDS LOURDS
A93: BRIDGESTONE | B93: 315 | C93: 80 | D93: 22.5 | E93: 156/150 | F93: L | G93: PN BRI 315/80R22.5 156L154M RW-DRI 001 | H93: BS RWD001 | I93: 1124 | J93: 719.36 | K93: 10846 | L93: 3286341084610 | M93: Neuf | N93: POIDS LOURDS
A94: BRIDGESTONE | B94: 275 | C94: 70 | D94: 22.5 | E94: 148 | F94: M | G94: PN BRI 275/70R22.5 148M NORDIC-DRIVE 00 | H94: BS NORDIC-DRIVE 00 | I94: 967 | J94: 618.88 | K94: 25937 | L94: 3286342593715 | M94: Neuf | N94: POIDS LOURDS
A95: BRIDGESTONE | B95: 13 | D95: 22.5 | E95: 158 | F95: G | G95: PN BRI 13 R22.5 158G V-STEEL MIX M840 | H95: BS M840 EVO | I95: 1134 | J95: 725.76 | K95: 25919 | L95: 3286342591919 | M95: Neuf | N95: POIDS LOURDS
A96: BRIDGESTONE | B96: 385 | C96: 65 | D96: 22.5 | E96: 164 | F96: K | G96: PN BRI 385/65R22.5 164K158L EC H-ST 002 | H96: BS ECOPIA H-STEER | I96: 1240 | J96: 793.6 | K96: 13561 | L96: 3286341356113 | M96: Neuf | N96: POIDS LOURDS
A97: BRIDGESTONE | B97: 315 | C97: 60 | D97: 22.5 | E97: 152/148 | F97: L | G97: PN BRI 315/60R22.5 152/148L ECOP H-D 002 | H97: BS ECOPIA H-DRIVE | I97: 1177 | J97: 753.28 | K97: 16883 | L97: 3286341688313 | M97: Neuf | N97: POIDS LOURDS
A98: BRIDGESTONE | B98: 12 | D98: 22.5 | E98: 152 | F98: K | G98: PN BRI 12 R22.5 152K M840 | H98: BS M840 EVO | I98: 1030 | J98: 659.2 | K98: 25918 | L98: 3286342591810 | M98: Neuf | N98: POIDS LOURDS
A99: BRIDGESTONE | B99: 13 | D99: 22.5 | E99: 158 | F99: G | G99: PN BRI 13 R22.5 158G V-STEEL LUG L355 | H99: BS L355 EVO | I99: 1107 | J99: 708.48 | K99: 25914 | L99: 3286342591414 | M99: Neuf | N99: POIDS LOURDS
A100: BRIDGESTONE | B100: 13 | D100: 22.5 | E100: 158 | F100: G | G100: PN BRI 13 R22.5 158G/156K L317EVO | H100: BS L317EVO | I100: 1077 | J100: 689.28 | K100: 23080 | L100: 3286342308012 | M100: Neuf | N100: POIDS LOURDS
A101: BRIDGESTONE | B101: 295 | C101: 80 | D101: 22.5 | E101: 152 | F101: K | G101: PN BRI 295/80R22.5 152K150L M-STEER 001 | H101: BS MS001 | I101: 1077 | J101: 689.28 | K101: 9348 | L101: 3286340934817 | M101: Neuf | N101: POIDS LOURDS
A102: BRIDGESTONE | B102: 315 | C102: 45 | D102: 22.5 | E102: 147/145 | F102: L | G102: PN BRI 315/45R22.5 147/145L M749E | H102: BS M749 ECOPIA | I102: 1170 | J102: 748.8 | K102: 26829 | L102: 3286342682914 | M102: Neuf | N102: POIDS LOURDS
A103: BRIDGESTONE | B103: 275 | C103: 70 | D103: 22.5 | E103: 148/145 | F103: K | G103: PN BRI 275/70R22.5 148/145K R297 | H103: BS V-STEEL RIB R29 | I103: 942 | J103: 602.88 | K103: 19253 | L103: 3286341925319 | M103: Neuf | N103: POIDS LOURDS
A104: BRIDGESTONE | B104: 295 | C104: 80 | D104: 22.5 | E104: 152 | F104: K | G104: PN BRI 295/80R22.5 152K150L M-DRIVE 001 | H104: BS MD1 | I104: 1077 | J104: 689.28 | K104: 9350 | L104: 3286340935012 | M104: Neuf | N104: POIDS LOURDS
A105: BRIDGESTONE | B105: 315 | C105: 70 | D105: 22.5 | E105: 156 | F105: L | G105: PN BRI 315/70R22.5 156L/154M ECOPIA STEE | H105: BS ECOPIA STEER | I105: 1202 | J105: 769.28 | K105: 19913 | L105: 3286341991314 | M105: Neuf | N105: POIDS LOURDS
A106: BRIDGESTONE | B106: 12 | D106: 22.5 | E106: 152/148 | F106: L | G106: PN BRI 12 R22.5 152/148L VSR R297 | H106: BS V-STEEL RIB R29 | I106: 1041 | J106: 666.24 | K106: 19252 | L106: 3286341925210 | M106: Neuf | N106: POIDS LOURDS
A107: BRIDGESTONE | B107: 295 | C107: 60 | D107: 22.5 | E107: 150/147 | F107: L | G107: PN BRI 295/60R22.5 150/147L R249 ECOPIA | H107: BS V-STEE RIB R249 | I107: 1093 | J107: 699.52 | K107: 19339 | L107: 3286341933918 | M107: Neuf | N107: POIDS LOURDS
A108: BRIDGESTONE | B108: 245 | C108: 70 | D108: 17.5 | E108: 146/146 | G108: PN BRI 245/70R17.5 143J146F R-TR 001 | H108: BS R-TRAILER 001 | I108: 673 | J108: 430.72 | K108: 10861 | L108: 3286341086119 | M108: Neuf | N108: POIDS LOURDS
A109: BRIDGESTONE | B109: 285 | C109: 70 | D109: 19.5 | E109: 150/148 | F109: J | G109: PN BRI 285/70R19.5 150/148J R-TR 001 | H109: BS R-TRAILER 001 | I109: 939 | J109: 600.96 | K109: 10860 | L109: 3286341086010 | M109: Neuf | N109: POIDS LOURDS
A110: BRIDGESTONE | B110: 315 | C110: 80 | D110: 22.5 | E110: 158 | F110: G | G110: PN BRI 315/80R22.5 158G/156K M840 EVO EV | H110: BS M840 EVO | I110: 1134 | J110: 725.76 | K110: 32634 | L110: 3286343263419 | M110: Neuf | N110: POIDS LOURDS
A111: BRIDGESTONE | B111: 355 | C111: 50 | D111: 22.5 | E111: 156 | F111: L | G111: PN BRI 355/50R22.5 156L ECOHS2 | H111: BS ECOHS2 | I111: 1271 | J111: 813.44 | K111: 17009 | L111: 3286341700916 | M111: Neuf | N111: POIDS LOURDS
A112: BRIDGESTONE | B112: 275 | C112: 70 | D112: 22.5 | E112: 152 | F112: E | G112: PN BRI 275/70R22.5 150J152E RWD001 | H112: BS RWD001 | I112: 984 | J112: 629.76 | K112: 10828 | L112: 3286341082814 | M112: Neuf | N112: POIDS LOURDS
A113: BRIDGESTONE | B113: 315 | C113: 60 | D113: 22.5 | E113: 154/148 | F113: L | G113: PN BRI 315/60R22.5 154/148L D R-STEER002 | H113: BS DUR R-STEER 002 | I113: 1178 | J113: 753.92 | K113: 16937 | L113: 3286341693713 | M113: Neuf | N113: POIDS LOURDS
A114: BRIDGESTONE | B114: 295 | C114: 60 | D114: 22.5 | E114: 150/147 | F114: L | G114: PN BRI 295/60R22.5 150/147L DUR R-DR 002 | H114: BS DURAVIS R-DRIVE | I114: 1125 | J114: 720 | K114: 16951 | L114: 3286341695113 | M114: Neuf | N114: POIDS LOURDS
A115: BRIDGESTONE | B115: 265 | C115: 70 | D115: 19.5 | E115: 143 | F115: J | G115: PN BRI 265/70R19.5 143J V-STEEL M852 | H115: BS V-STEEL MIX M85 | I115: 742 | J115: 474.88 | K115: 25922 | L115: 3286342592213 | M115: Neuf | N115: POIDS LOURDS
A116: BRIDGESTONE | B116: 275 | C116: 70 | D116: 22.5 | E116: 152 | F116: J | G116: PN BRI 275/70R22.5 152J/150K U-AP 002 | H116: BS U-AP 002 | I116: 986 | J116: 631.04 | K116: 30606 | L116: 3286343060612 | M116: Neuf | N116: POIDS LOURDS
A117: BRIDGESTONE | B117: 315 | C117: 80 | D117: 22.5 | E117: 158 | F117: G | G117: PN BRI 315/80R22.5 158G/156K V-STEEL LUG | H117: BS L355 EVO | I117: 1134 | J117: 725.76 | K117: 28529 | L117: 3286342852911 | M117: Neuf | N117: POIDS LOURDS
A118: BRIDGESTONE | B118: 315 | C118: 80 | D118: 22.5 | E118: 156 | F118: L | G118: PN BRI 315/80R22.5 156L/154M RD1+ | H118: BS RD1+ | I118: 1154 | J118: 738.56 | K118: 25719 | L118: 3286342571911 | M118: Neuf | N118: POIDS LOURDS
A119: BRIDGESTONE | B119: 265 | C119: 70 | D119: 19.5 | E119: 140/138 | F119: M | G119: PN BRI 265/70R19.5 140/138M U-AP 002 | H119: BS U-AP 002 | I119: 771 | J119: 493.44 | K119: 23811 | L119: 3286342381114 | M119: Neuf | N119: POIDS LOURDS
A120: BRIDGESTONE | B120: 295 | C120: 80 | D120: 22.5 | E120: 154/149 | F120: M | G120: PN BRI 295/80R22.5 154/149M COACH-AP 001 | H120: BS COACH-AP 001 | I120: 1030 | J120: 659.2 | K120: 16926 | L120: 3286341692617 | M120: Neuf | N120: POIDS LOURDS
A121: BRIDGESTONE | B121: 225 | C121: 75 | D121: 17.5 | E121: 129/127 | F121: M | G121: PN BRI 225/75R17.5 129/127M R-DRIVE 002 | H121: BS R-DRIVE 002 | I121: 543 | J121: 347.52 | K121: 10374 | L121: 3286341037418 | M121: Neuf | N121: POIDS LOURDS
A122: BRIDGESTONE | B122: 425 | C122: 65 | D122: 22.5 | E122: 165 | F122: K | G122: PN BRI 425/65R22.5 165K V-STEEL MIX M748 | H122: BS M748 | I122: 1538 | J122: 984.32 | K122: 25942 | L122: 3286342594217 | M122: Neuf | N122: POIDS LOURDS
A123: BRIDGESTONE | B123: 265 | C123: 70 | D123: 17.5 | E123: 138/136 | F123: M | G123: PN BRI 265/70R17.5 138/136M -RDRIVE 2 | H123: BS R-DRIVE 002 | I123: 705 | J123: 451.2 | K123: 13469 | L123: 3286341346916 | M123: Neuf | N123: POIDS LOURDS
A124: BRIDGESTONE | B124: 215 | C124: 75 | D124: 17.5 | E124: 128/126 | F124: M | G124: PN BRI 215/75R17.5 128/126M R-STEER 002 | H124: BS R-STEER 002 | I124: 495 | J124: 316.8 | K124: 10378 | L124: 3286341037814 | M124: Neuf | N124: POIDS LOURDS
A125: BRIDGESTONE | B125: 215 | C125: 75 | D125: 17.5 | E125: 126/124 | F125: M | G125: PN BRI 215/75R17.5 126/124M R-DRIVE 002 | H125: BS R-DRIVE 002 | I125: 495 | J125: 316.8 | K125: 10370 | L125: 3286341037012 | M125: Neuf | N125: POIDS LOURDS
A126: BRIDGESTONE | B126: 13 | D126: 22.5 | E126: 156/150 | F126: K | G126: PN BRI 13R22.5 156/150 K MD1 TL | H126: BS MD1 | I126: 1104 | J126: 706.56 | K126: 8690 | L126: 3286340869010 | M126: Neuf | N126: POIDS LOURDS
A127: BRIDGESTONE | B127: 315 | C127: 80 | D127: 22.5 | E127: 156/150 | F127: K | G127: PN BRI 315/80R22.5 156/150 K MD1 TL | H127: BS MD1 | I127: 1132 | J127: 724.48 | K127: 8692 | L127: 3286340869218 | M127: Neuf | N127: POIDS LOURDS
A128: BRIDGESTONE | B128: 315 | C128: 80 | D128: 22.5 | E128: 156/150 | F128: K | G128: PN BRI 315/80R22.5 156/150 K MS1 TL | H128: BS MS001 | I128: 1132 | J128: 724.48 | K128: 8698 | L128: 3286340869812 | M128: Neuf | N128: POIDS LOURDS
A129: BRIDGESTONE | B129: 385 | C129: 65 | D129: 22.5 | E129: 164 | F129: K | G129: PN BRI 385/65R22.5 164K/158L RW-ST 001 E | H129: BS RIGHT WEEL STEE | I129: 1281 | J129: 819.84 | K129: 13477 | L129: 3286341347715 | M129: Neuf | N129: POIDS LOURDS
A130: BRIDGESTONE | B130: 385 | C130: 65 | D130: 22.5 | E130: 160 | F130: K | G130: PN BRI 385/65R22.5 160K/158L RW-ST 001 | H130: BS RW-STEER 001 | I130: 1220 | J130: 780.8 | K130: 13478 | L130: 3286341347814 | M130: Neuf | N130: POIDS LOURDS
A131: BRIDGESTONE | B131: 495 | C131: 45 | D131: 22.5 | E131: 169 | F131: M | G131: PN BRI 495/45R22.5 169M GREATEC M709 EC | H131: BS GREATEC M709 EC | I131: 2231 | J131: 1427.84 | K131: 25941 | L131: 3286342594118 | M131: Neuf | N131: POIDS LOURDS
A132: BRIDGESTONE | B132: 265 | C132: 70 | D132: 19.5 | E132: 143/141 | F132: K | G132: PN BRI 265/70R19.5 143/141K R-TRAIL 001 | H132: BS R-TRAILER 001 | I132: 742 | J132: 474.88 | K132: 10380 | L132: 3286341038019 | M132: Neuf | N132: POIDS LOURDS
A133: BRIDGESTONE | B133: 315 | C133: 80 | D133: 22.5 | E133: 154/150 | F133: M | G133: PN BRI 315/80R22.5 154/150M R184 | H133: BS R184 | I133: 881 | J133: 563.84 | K133: 28292 | L133: 3286342829210 | M133: Neuf | N133: POIDS LOURDS
A134: BRIDGESTONE | B134: 315 | C134: 60 | D134: 22.5 | E134: 154/148 | F134: L | G134: PN BRI 315/60R22.5 154/148L ECOP HS 002 | H134: BS ECOPIA H-STEER | I134: 1177 | J134: 753.28 | K134: 16882 | L134: 3286341688214 | M134: Neuf | N134: POIDS LOURDS
A135: BRIDGESTONE | B135: 205 | C135: 75 | D135: 17.5 | E135: 124/122 | F135: M | G135: PN BRI 205/75R17.5 124/122M R-STEER 002 | H135: BS R-STEER 002 | I135: 479 | J135: 306.56 | K135: 13465 | L135: 3286341346510 | M135: Neuf | N135: POIDS LOURDS
A136: BRIDGESTONE | B136: 205 | C136: 75 | D136: 17.5 | E136: 124/122 | F136: M | G136: PN BRI 205/75R17.5 124/122M R-DRIVE 002 | H136: BS R-DRIVE 002 | I136: 479 | J136: 306.56 | K136: 13467 | L136: 3286341346718 | M136: Neuf | N136: POIDS LOURDS
A137: BRIDGESTONE | B137: 385 | C137: 65 | D137: 22.5 | E137: 160 | F137: K | G137: PN BRI 385/65R22.5 160K ECOPIA H-STEER | H137: BS ECOPIA H-STEER | I137: 1183 | J137: =I137*(1-VLOOKUP(A137,Datas_Remises,4,0)) -> 757.12 | K137: 13500 | L137: 3286341350012 | M137: Neuf | N137: POIDS LOURDS
A138: BRIDGESTONE | B138: 265 | C138: 70 | D138: 17.5 | E138: 138/136 | F138: M | G138: PN BRI 265/70R17.5 138/136M R-ST 002 | H138: BS R-STEER 002 | I138: 705 | J138: 451.2 | K138: 13463 | L138: 3286341346312 | M138: Neuf | N138: POIDS LOURDS
A139: BRIDGESTONE | B139: 245 | C139: 70 | D139: 19.5 | E139: 136/134 | F139: M | G139: PN BRI 245/70R19.5 136/134M R-ST 002 | H139: BS R-STEER 002 | I139: 674 | J139: 431.36 | K139: 13464 | L139: 3286341346411 | M139: Neuf | N139: POIDS LOURDS
A140: BRIDGESTONE | B140: 245 | C140: 70 | D140: 19.5 | E140: 136/134 | F140: M | G140: PN BRI 245/70R19.5 136/134M R-DR 002 | H140: BS R-DRIVE 002 | I140: 674 | J140: 431.36 | K140: 13466 | L140: 3286341346619 | M140: Neuf | N140: POIDS LOURDS
A141: BRIDGESTONE | B141: 295 | C141: 80 | D141: 22.5 | E141: 152/148 | F141: M | G141: PN BRI 295/80R22.5 152/148M ECOP HD002 | H141: BS ECOPIA H-DRIVE | I141: 1097 | J141: 702.08 | K141: 13513 | L141: 3286341351316 | M141: Neuf | N141: POIDS LOURDS
A142: BRIDGESTONE | B142: 235 | C142: 75 | D142: 17.5 | E142: 144 | F142: F | G142: PN BRI 235/75R17.5 143J144F R-TRAIL 001 | H142: BS R-TRAILER 001 | I142: 625 | J142: 400 | K142: 10386 | L142: 3286341038613 | M142: Neuf | N142: POIDS LOURDS
A143: BRIDGESTONE | B143: 445 | C143: 65 | D143: 22.5 | E143: 169 | F143: K | G143: PN BRI 445/65R22.5 169K V-STEEL MIX M748 | H143: BS M748 | I143: 1449 | J143: 927.36 | K143: 25943 | L143: 3286342594316 | M143: Neuf | N143: POIDS LOURDS
A144: BRIDGESTONE | B144: 385 | C144: 55 | D144: 22.5 | E144: 160 | F144: K | G144: PN BRI 385/55R22.5 160K/158L RW-ST 001 | H144: BS RW-STEER 001 | I144: 1239 | J144: 792.96 | K144: 13479 | L144: 3286341347913 | M144: Neuf | N144: POIDS LOURDS
A145: BRIDGESTONE | B145: 305 | C145: 70 | D145: 22.5 | E145: 152 | F145: L | G145: PN BRI 305/70R22.5 150M/148L R249 ECOPIA | H145: BS V-STEE RIB R249 | I145: 989 | J145: 632.96 | K145: 19658 | L145: 3286341965810 | M145: Neuf | N145: POIDS LOURDS
A146: BRIDGESTONE | B146: 215 | C146: 75 | D146: 17.5 | E146: 136/134 | F146: K | G146: PN BRI 215/75R17.5 136/134K R-TRAILER 00 | H146: BS R-TRAILER 001 | I146: 606 | J146: 387.84 | K146: 23832 | L146: 3286342383217 | M146: Neuf | N146: POIDS LOURDS
A147: BRIDGESTONE | B147: 315 | C147: 80 | D147: 22.5 | E147: 156 | F147: L | G147: PN BRI 315/80R22.5 156L154M R-STEER 002 | H147: BS R-STEER 002 | I147: 1154 | J147: 738.56 | K147: 16947 | L147: 3286341694710 | M147: Neuf | N147: POIDS LOURDS
A148: BRIDGESTONE | B148: 295 | C148: 80 | D148: 22.5 | E148: 154/149 | F148: M | G148: PN BRI 295/80R22.5 154/149M R-STEER 002 | H148: BS DUR R-STEER 002 | I148: 1119 | J148: 716.16 | K148: 16943 | L148: 3286341694314 | M148: Neuf | N148: POIDS LOURDS
A149: BRIDGESTONE | B149: 10 | D149: 22.5 | E149: 144/142 | F149: K | G149: PN BRI 10 R22.5 144/142K VSM MB840 | H149: BS M840 EVO | I149: 875 | J149: 560 | K149: 19540 | L149: 3286341954012 | M149: Neuf | N149: POIDS LOURDS
A150: BRIDGESTONE | B150: 13 | D150: 22.5 | E150: 156/150 | F150: K | G150: PN BRI 13R22.5 156/150K M-STEER 001 | H150: BS MS001 | I150: 1132 | J150: 724.48 | K150: 8696 | L150: 3286340869614 | M150: Neuf | N150: POIDS LOURDS
A151: BRIDGESTONE | B151: 385 | C151: 65 | D151: 22.5 | E151: 160 | F151: K | G151: PN BRI 385/65R22.5 160K/158 R-STEER 002 | H151: BS DUR R-STEER 002 | I151: 1172 | J151: 750.08 | K151: 16939 | L151: 3286341693911 | M151: Neuf | N151: POIDS LOURDS
A152: BRIDGESTONE | B152: 295 | C152: 80 | D152: 22.5 | E152: 152/148 | F152: M | G152: PN BRI 295/80R22.5 152/148M R-DRIVE 002 | H152: BS DURAVIS R-DRIVE | I152: 1119 | J152: 716.16 | K152: 16950 | L152: 3286341695014 | M152: Neuf | N152: POIDS LOURDS
A153: BRIDGESTONE | B153: 385 | C153: 65 | D153: 22.5 | E153: 160 | F153: K | G153: PN BRI 385/65R22.5 160K/158L R179+ | H153: BS R179+ | I153: 1004 | J153: 642.56 | K153: 26196 | L153: 3286342619613 | M153: Neuf | N153: POIDS LOURDS
A154: BRIDGESTONE | B154: 315 | C154: 70 | D154: 22.5 | E154: 154 | F154: L | G154: PN BRI 315/70R22.5 154L152M R-DRIVE 002 | H154: BS R-DRIVE 002 | I154: 1148 | J154: 734.72 | K154: 16953 | L154: 3286341695311 | M154: Neuf | N154: POIDS LOURDS
A155: BRIDGESTONE | B155: 315 | C155: 80 | D155: 22.5 | E155: 156 | F155: L | G155: PN BRI 315/80R22.5 156L154M R-DRIVE 002 | H155: BS R-DRIVE 002 | I155: 1154 | J155: 738.56 | K155: 16954 | L155: 3286341695410 | M155: Neuf | N155: POIDS LOURDS
A156: BRIDGESTONE | B156: 275 | C156: 70 | D156: 22.5 | E156: 148/145 | F156: L | G156: PN BRI 275/70R22.5 148/145L VSR R184 | H156: BS R184 | I156: 957 | J156: 612.48 | K156: 9943 | L156: 3286340994316 | M156: Neuf | N156: POIDS LOURDS
A157: BRIDGESTONE | B157: 265 | C157: 70 | D157: 19.5 | E157: 140/138 | F157: M | G157: PN BRI 265/70R19.5 140/138M R-DRIVE 002 | H157: BS R-DRIVE 002 | I157: 690 | J157: 441.6 | K157: 10371 | L157: 3286341037111 | M157: Neuf | N157: POIDS LOURDS
A158: BRIDGESTONE | B158: 215 | C158: 75 | D158: 17.5 | E158: 126/124 | F158: M | G158: PN BRI 215/75R17.5 126/124M V-STEEL MIX | H158: BS M788 | I158: 481 | J158: 307.84 | K158: 13254 | L158: 3286341325416 | M158: Neuf | N158: POIDS LOURDS
A159: BRIDGESTONE | B159: 285 | C159: 70 | D159: 19.5 | E159: 146/144 | F159: M | G159: PN BRI 285/70R19.5 146/144M V-ST M788 | H159: BS M788 | I159: 769 | J159: 492.16 | K159: 13255 | L159: 3286341325515 | M159: Neuf | N159: POIDS LOURDS
A160: BRIDGESTONE | B160: 275 | C160: 70 | D160: 22.5 | E160: 148/145 | F160: M | G160: PN BRI 275/70R22.5 148/145M VSR R249 ECO | H160: BS V-STEE RIB R249 | I160: 996 | J160: 637.44 | K160: 19348 | L160: 3286341934816 | M160: Neuf | N160: POIDS LOURDS
A161: BRIDGESTONE | B161: 315 | C161: 70 | D161: 22.5 | E161: 156 | F161: L | G161: PN BRI 315/70R22.5 156L W958 EVO | H161: BS W958 EVO | I161: 1095 | J161: 700.8 | K161: 25924 | L161: 3286342592411 | M161: Neuf | N161: POIDS LOURDS
A162: BRIDGESTONE | B162: 265 | C162: 70 | D162: 19.5 | E162: 140/138 | F162: M | G162: PN BRI 265/70R19.5 140/138M R-STEER 002 | H162: BS R-STEER 002 | I162: 690 | J162: 441.6 | K162: 10379 | L162: 3286341037913 | M162: Neuf | N162: POIDS LOURDS
A163: BRIDGESTONE | B163: 215 | C163: 75 | D163: 17.5 | E163: 128/126 | F163: M | G163: PN BRI 215/75R17.5 128/126M U-AP 002 | H163: BS U-AP 002 | I163: 505 | J163: 323.2 | K163: 23813 | L163: 3286342381312 | M163: Neuf | N163: POIDS LOURDS
A164: BRIDGESTONE | B164: 205 | C164: 65 | D164: 17.5 | E164: 133 | F164: F | G164: PN BRI 205/65R17.5 132J/133F R-TRAILER 0 | H164: BS R-TRAILER 001 | I164: 577 | J164: 369.28 | K164: 32538 | L164: 3286343253816 | M164: Neuf | N164: POIDS LOURDS
A165: BRIDGESTONE | B165: 385 | C165: 65 | D165: 22.5 | E165: 164 | F165: K | G165: PN BRI 385/65R22.5 164K158L R-ST 002 EVO | H165: BS R-STEER 002 EV | I165: 1207 | J165: 772.48 | K165: 16933 | L165: 3286341693317 | M165: Neuf | N165: POIDS LOURDS
A166: BRIDGESTONE | B166: 385 | C166: 65 | D166: 22.5 | E166: 160 | F166: K | G166: PN BRI 385/65R22.5 160K MT1+ | H166: BS MT1+ | I166: 1130 | J166: 723.2 | K166: 23728 | L166: 3286342372815 | M166: Neuf | N166: POIDS LOURDS
A167: BRIDGESTONE | B167: 385 | C167: 65 | D167: 22.5 | E167: 160 | F167: K | G167: PN BRI 385/65R22.5 160K/158L R179 | H167: BS R179 | I167: 1004 | J167: 642.56 | K167: 17982 | L167: 3286341798210 | M167: Neuf | N167: POIDS LOURDS
A168: BRIDGESTONE | B168: 385 | C168: 55 | D168: 22.5 | E168: 160 | F168: K | G168: PN BRI 385/55R22.5 160K VSTEEL STUD W958 | H168: BS W958 | I168: 1239 | J168: 792.96 | K168: 16838 | L168: 3286341683813 | M168: Neuf | N168: POIDS LOURDS
A169: BRIDGESTONE | B169: 235 | C169: 75 | D169: 17.5 | E169: 132/130 | F169: M | G169: PN BRI 235/75R17.5 132/130M R-DRIVE 002 | H169: BS R-DRIVE 002 | I169: 590 | J169: 377.6 | K169: 13263 | L169: 3286341326314 | M169: Neuf | N169: POIDS LOURDS
A170: BRIDGESTONE | B170: 455 | C170: 45 | D170: 22.5 | E170: 166 | F170: J | G170: PN BRI 455/45R22.5 166J VSTEEL RIB R173 | H170: BS R173 | I170: 1899 | J170: 1215.36 | K170: 25949 | L170: 3286342594910 | M170: Neuf | N170: POIDS LOURDS
A171: BRIDGESTONE | B171: 315 | C171: 70 | D171: 22.5 | E171: 154 | F171: L | G171: PN BRI 315/70R22.5 154L/152M DURAVIS R-D | H171: BS DURAVIS R-DRIVE | I171: 1148 | J171: 734.72 | K171: 32579 | L171: 3286343257913 | M171: Neuf | N171: POIDS LOURDS
A172: BRIDGESTONE | B172: 315 | C172: 70 | D172: 22.5 | E172: 156 | F172: L | G172: PN BRI 315/70R22.5 156L/154M DUR R-STEER | H172: BS DUR R-STEER 002 | I172: 1148 | J172: 734.72 | K172: 32578 | L172: 3286343257814 | M172: Neuf | N172: POIDS LOURDS
A173: BRIDGESTONE | B173: 385 | C173: 65 | D173: 22.5 | E173: 160 | F173: K | G173: PN BRI 385/65R22.5 160K/158L RT002 | H173: BS R-TRAILER 002 | I173: 1149 | J173: 735.36 | K173: 28548 | L173: 3286342854816 | M173: Neuf | N173: POIDS LOURDS
A174: BRIDGESTONE | B174: 385 | C174: 65 | D174: 22.5 | E174: 160 | F174: K | G174: PN BRI 385/65R22.5 160K ECOP H-TRAIL 002 | H174: BS ECOPIA H-TRAILE | I174: 1122 | J174: 718.08 | K174: 13496 | L174: 3286341349610 | M174: Neuf | N174: POIDS LOURDS
A175: BRIDGESTONE | B175: 315 | C175: 70 | D175: 22.5 | E175: 154 | F175: L | G175: PN BRI 315/70R22.5 152M/154L NORDIC-DRIV | H175: BS NORDIC-DRIVE 00 | I175: 1112 | J175: 711.68 | K175: 16879 | L175: 3286341687910 | M175: Neuf | N175: POIDS LOURDS
A176: BRIDGESTONE | B176: 305 | C176: 70 | D176: 22.5 | E176: 154 | F176: E | G176: PN BRI 305/70R22.5 152J/154E R192 | H176: BS R192 | I176: 1008 | J176: 645.12 | K176: 25952 | L176: 3286342595214 | M176: Neuf | N176: POIDS LOURDS
A177: BRIDGESTONE | B177: 315 | C177: 80 | D177: 22.5 | E177: 156 | F177: L | G177: PN BRI 315/80R22.5 156L/154M DUR R-STEER | H177: BS DUR R-STEER 002 | I177: 1154 | J177: 738.56 | K177: 32580 | L177: 3286343258019 | M177: Neuf | N177: POIDS LOURDS
A178: BRIDGESTONE | B178: 385 | C178: 65 | D178: 22.5 | E178: 160 | F178: K | G178: PN BRI 385/65R22.5 160K158L M-STEER 001 | H178: BS MST001 | I178: 1152 | J178: 737.28 | K178: 10348 | L178: 3286341034813 | M178: Neuf | N178: POIDS LOURDS
A179: BRIDGESTONE | B179: 295 | C179: 80 | D179: 22.5 | E179: 152/148 | F179: M | G179: PN BRI 295/80R22.5 152/148M RW-DRI 001 | H179: BS RWD001 | I179: 1062 | J179: 679.68 | K179: 10830 | L179: 3286341083019 | M179: Neuf | N179: POIDS LOURDS
A180: BRIDGESTONE | B180: 315 | C180: 80 | D180: 22.5 | E180: 156 | F180: L | G180: PN BRI 315/80R22.5 156L/154M DURAVIS R-D | H180: BS DURAVIS R-DRIVE | I180: 1154 | J180: 738.56 | K180: 32581 | L180: 3286343258118 | M180: Neuf | N180: POIDS LOURDS
A181: BRIDGESTONE | B181: 245 | C181: 70 | D181: 17.5 | E181: 136/134 | F181: M | G181: PN BRI 245/70R17.5 136/134M R-STEER 002 | H181: BS R-STEER 002 | I181: 639 | J181: 408.96 | K181: 10376 | L181: 3286341037616 | M181: Neuf | N181: POIDS LOURDS
A182: BRIDGESTONE | B182: 285 | C182: 70 | D182: 19.5 | E182: 146/144 | F182: M | G182: PN BRI 285/70R19.5 146/144M R-STEER 002 | H182: BS R-STEER 002 | I182: 796 | J182: 509.44 | K182: 10375 | L182: 3286341037517 | M182: Neuf | N182: POIDS LOURDS
A183: BRIDGESTONE | B183: 305 | C183: 70 | D183: 22.5 | E183: 152 | F183: M | G183: PN BRI 305/70R22.5 152M/150M DURAVIS R-D | H183: BS DURAVIS R-DRIVE | I183: 1042 | J183: 666.88 | K183: 23766 | L183: 3286342376615 | M183: Neuf | N183: POIDS LOURDS
A184: BRIDGESTONE | B184: 225 | C184: 75 | D184: 17.5 | E184: 129/127 | F184: M | G184: PN BRI 225/75R17.5 129/127M R-STEER 002 | H184: BS R-STEER 002 | I184: 543 | J184: 347.52 | K184: 10377 | L184: 3286341037715 | M184: Neuf | N184: POIDS LOURDS
A185: BRIDGESTONE | B185: 385 | C185: 65 | D185: 22.5 | E185: 160 | F185: K | G185: PN BRI 385/65R22.5 160K158L R-TRAIL 002 | H185: BS R-TRAILER 002 | I185: 1149 | J185: 735.36 | K185: 10852 | L185: 3286341085211 | M185: Neuf | N185: POIDS LOURDS
A186: BRIDGESTONE | B186: 245 | C186: 70 | D186: 17.5 | E186: 136/134 | F186: M | G186: PN BRI 245/70R17.5 136/134M R-DRIVE 002 | H186: BS R-DRIVE 002 | I186: 639 | J186: 408.96 | K186: 10373 | L186: 3286341037319 | M186: Neuf | N186: POIDS LOURDS
A187: BRIDGESTONE | B187: 315 | C187: 60 | D187: 22.5 | E187: 152/148 | F187: L | G187: PN BRI 315/60R22.5 152/148L RWD001 | H187: BS RWD001 | I187: 1145 | J187: 732.8 | K187: 16832 | L187: 3286341683219 | M187: Neuf | N187: POIDS LOURDS
A188: BRIDGESTONE | B188: 235 | C188: 75 | D188: 17.5 | E188: 132/130 | F188: M | G188: PN BRI 235/75R17.5 132/130M R-STEER 002 | H188: BS R-STEER 002 | I188: 590 | J188: 377.6 | K188: 13261 | L188: 3286341326116 | M188: Neuf | N188: POIDS LOURDS
A189: BRIDGESTONE | B189: 315 | C189: 70 | D189: 22.5 | E189: 152 | F189: M | G189: PN BRI 315/70R22.5 152M W958 | H189: BS W958 | I189: 1042 | J189: 666.88 | K189: 25929 | L189: 3286342592916 | M189: Neuf | N189: POIDS LOURDS
A190: BRIDGESTONE | B190: 315 | C190: 70 | D190: 22.5 | E190: 154/150 | F190: L | G190: PN BRI 315/70R22.5 154L152M RW-DRI 001 | H190: BS RWD001 | I190: 1093 | J190: 699.52 | K190: 10839 | L190: 3286341083910 | M190: Neuf | N190: POIDS LOURDS
A191: BRIDGESTONE | B191: 445 | C191: 65 | D191: 22.5 | E191: 169 | F191: K | G191: PN BRI 445/65R22.5 169K V-STEEL RIB R164 | H191: BS R164 | I191: 1433 | J191: 917.12 | K191: 25948 | L191: 3286342594811 | M191: Neuf | N191: POIDS LOURDS
A192: BRIDGESTONE | B192: 285 | C192: 70 | D192: 19.5 | E192: 146/144 | F192: M | G192: PN BRI 285/70R19.5 146/144M R-DRIVE 002 | H192: BS R-DRIVE 002 | I192: 796 | J192: 509.44 | K192: 10372 | L192: 3286341037210 | M192: Neuf | N192: POIDS LOURDS
A193: CONTINENTAL | B193: 295 | C193: 80 | D193: 22.5 | E193: 154/149 | F193: M | G193: PN CON IT295/80R22.5 154/149M ECOREG HS3 | H193: CO ECOREGION HS3 | I193: 1014 | J193: 719.94 | K193: 05653030000 | L193: 4019238052589 | M193: Neuf | N193: POIDS LOURDS
A194: CONTINENTAL | B194: 11 | D194: 22.5 | E194: 148 | F194: L | G194: PN CON 11 R22.5 148/145L HDR | H194: CO HDR | I194: 731 | J194: 519.01 | K194: 05223310000 | L194: 4019238011098 | M194: Neuf | N194: POIDS LOURDS
A195: CONTINENTAL | B195: 265 | C195: 70 | D195: 19.5 | E195: 140/138 | F195: M | G195: PN CON IT265/70R19.5 140/138M URBAN HA3 | H195: CO URBAN HA3 | I195: 617 | J195: 438.07 | K195: 05651510000 | L195: 4019238021318 | M195: Neuf | N195: POIDS LOURDS
A196: CONTINENTAL | B196: 315 | C196: 80 | D196: 22.5 | E196: 156 | F196: L | G196: PN CON IT 315/80R22.5 156/150L ECORHS3+ | H196: CO HS3+ ECOREGION | I196: 1056 | J196: 749.76 | K196: 05654410000 | L196: 4019238080193 | M196: Neuf | N196: POIDS LOURDS
A197: CONTINENTAL | B197: 265 | C197: 70 | D197: 17.5 | E197: 139 | F197: M | G197: PN CON 265/70R17.5 139/136M LCS | H197: CO LCS | I197: 683 | J197: 484.93 | K197: 04960160000 | L197: 4019238061604 | M197: Neuf | N197: POIDS LOURDS
A198: CONTINENTAL | B198: 295 | C198: 80 | D198: 22.5 | E198: 154 | F198: K | G198: PN CON 295/80R22.5 154/149K CROSS TRAC H | H198: CO HS3 C CROSSTRAC | I198: 968 | J198: 687.28 | K198: 05155960000 | L198: 4019238084580 | M198: Neuf | N198: POIDS LOURDS
A199: CONTINENTAL | B199: 245 | C199: 70 | D199: 19.5 | E199: 136/134 | F199: M | G199: PN CON IT 245/70R19.5 136/134M HYB HD3 | H199: CO HYBRID HD3 | I199: 627 | J199: 445.17 | K199: 05653130000 | L199: 4019238052510 | M199: Neuf | N199: POIDS LOURDS
A200: CONTINENTAL | B200: 315 | C200: 80 | D200: 22.5 | E200: 156/150 | F200: K | G200: PN CON IT 315/80R22.5 156/150K HS3 CR TR | H200: CO HS3 C CROSSTRAC | I200: 1027 | J200: 729.17 | K200: 05654090000 | L200: 4019238072105 | M200: Neuf | N200: POIDS LOURDS
A201: CONTINENTAL | B201: 315 | C201: 70 | D201: 22.5 | E201: 156 | F201: L | G201: PN CON 315/70R22.5 156L/154M ECOREG HS3 | H201: CO ECOREGION HS3 | I201: 1064 | J201: =I201*(1-VLOOKUP(A201,Datas_Remises,4,0)) -> 755.44 | K201: 05653010000 | L201: 4019238052596 | M201: Neuf | N201: POIDS LOURDS
A202: CONTINENTAL | B202: 315 | C202: 80 | D202: 22.5 | E202: 156 | F202: L | G202: PN CON 315/80R22.5 156/150L HYBRID HD5 | H202: CO HYBRID HD5 | I202: 1002 | J202: 711.42 | K202: 05224890000 | L202: 4019238071191 | M202: Neuf | N202: POIDS LOURDS
A203: CONTINENTAL | B203: 245 | C203: 70 | D203: 19.5 | E203: 136/134 | F203: M | G203: PN CON IT245/70R19.5 136/134M URBAN HA3 | H203: CO URBAN HA3 | I203: 617 | J203: 438.07 | K203: 05651500000 | L203: 4019238021325 | M203: Neuf | N203: POIDS LOURDS
... 3570 more rows

Sheet BFG
D2: Remise
D3: =Remises!E8 -> 0.48
A5: Actualisation au 04/04/2024
A7: REFERENCES PNEUMATIQUES | Q7: TARIFS
A8: CAI | B8: EAN | C8: Désignation | D8: Appellation | E8: Catégorie | F8: Profil | G8: Largeur | H8: Hauteur | I8: Structure | J8: Diamètre | K8: IC | L8: IV | M8: Conso. | N8: Frein. | O8: Bruit. | P8: Décibels. | Q8: Prix BF | R8: Prix Remisé
A9: 056738 | B9: 3528700567380 | C9: PN BFG 235/75R17.5 132/130M ROUTE CONT S | D9: 23575175ROUTCSVG132M | E9: POIDS LOURDS | F9: BF ROUT C S | G9: 235 | H9: 75 | I9: R | J9: 17.5 | K9: 132/130 | L9: M | M9: C | N9: B | O9: A | P9: 68 | Q9: 630 | R9: =Q9*(1-$D$3) -> 327.6
A10: 112597 | B10: 3528701125978 | C10: PN BFG 245/70R17.5 136/134M ROUTE CONT S | D10: 24570175ROUTCSVG136M | E10: POIDS LOURDS | F10: BF ROUT C S | G10: 245 | H10: 70 | I10: R | J10: 17.5 | K10: 136/134 | L10: M | M10: C | N10: B | O10: A | P10: 68 | Q10: 709 | R10: =Q10*(1-$D$3) -> 368.68
A11: 141889 | B11: 3528701418896 | C11: PN BFG 225/75R17.5 129/127M ROUTE CONT S | D11: 22575175ROUTCSVG129M | E11: POIDS LOURDS | F11: BF ROUT C S | G11: 225 | H11: 75 | I11: R | J11: 17.5 | K11: 129/127 | L11: M | M11: D | N11: B | O11: A | P11: 68 | Q11: 593 | R11: 308.36
A12: 146722 | B12: 3528701467221 | C12: PN BFG 295/80R22.5 152/148M ROUTE CONT D | D12: 29580225ROUTCDVM152M | E12: POIDS LOURDS | F12: BF ROUT C D | G12: 295 | H12: 80 | I12: R | J12: 22.5 | K12: 152/148 | L12: M | M12: D | N12: C | O12: A | P12: 73 | Q12: 1067 | R12: 554.84
A13: 188237 | B13: 3528701882376 | C13: PN BFG 8.25 R15 143/141G ROUTE CONTROL T | D13: 82515ROUTCTVGTT143G | E13: POIDS LOURDS | F13: BF ROUT C T | G13: 8.25 | I13: R | J13: 15 | K13: 143/141 | L13: G | M13: D | N13: C | O13: A | P13: 69 | Q13: 725 | R13: 377
A14: 198312 | B14: 3528701983127 | C14: PN BFG 215/75R17.5 126/124M ROUTE CONT D | D14: 21575175ROUTCDVG126M | E14: POIDS LOURDS | F14: BF ROUT C D | G14: 215 | H14: 75 | I14: R | J14: 17.5 | K14: 126/124 | L14: M | M14: D | N14: B | O14: A | P14: 69 | Q14: 529 | R14: 275.08
A15: 204085 | B15: 3528702040850 | C15: PN BFG 265/70R19.5 140/138M ROUTE CONT D | D15: 26570195ROUTCDVG140M | E15: POIDS LOURDS | F15: BF ROUT C D | G15: 265 | H15: 70 | I15: R | J15: 19.5 | K15: 140/138 | L15: M | M15: D | N15: C | O15: A | P15: 70 | Q15: 725 | R15: 377
A16: 261138 | B16: 3528702611388 | C16: PN BFG 315/70R22.5 156/150L ROUT C S2 VM | D16: 31570225ROUTCSVM156L | E16: POIDS LOURDS | F16: BF ROUT C S2 | G16: 315 | H16: 70 | I16: R | J16: 22.5 | K16: 156/150 | L16: L | M16: C | N16: C | O16: A | P16: 72 | Q16: 1089 | R16: 566.28
A17: 279040 | B17: 3528702790403 | C17: PN BFG 285/70R19.5 146/144L ROUTE CONT S | D17: 28570195ROUTCSVG146L | E17: POIDS LOURDS | F17: BF ROUT C S | G17: 285 | H17: 70 | I17: R | J17: 19.5 | K17: 146/144 | L17: L | M17: C | N17: B | O17: A | P17: 70 | Q17: 838 | R17: 435.76
A18: 363888 | B18: 3528703638889 | C18: PN BFG 315/80R22.5 156K CROSS CTRL S2 VM | D18: 31580225CROSS2VM156K | E18: POIDS LOURDS | F18: BF CROSS CONTROL S | G18: 315 | H18: 80 | I18: R | J18: 22.5 | K18: 156/150 | L18: K | M18: C | N18: B | O18: A | P18: 70 | Q18: 1110 | R18: 577.2
A19: 397877 | B19: 3528703978770 | C19: PN BFG 265/70R19.5 143/141J ROUTE CONT T | D19: 26570195ROUTCTVG143J | E19: POIDS LOURDS | F19: BF ROUT C T | G19: 265 | H19: 70 | I19: R | J19: 19.5 | K19: 143/141 | L19: J | M19: C | N19: B | O19: A | P19: 68 | Q19: 722 | R19: 375.44
A20: 401019 | B20: 3528704010196 | C20: PN BFG 295/80R22.5 152/149M ROUT C S2 VM | D20: 29580225ROUTCSV152M | E20: POIDS LOURDS | F20: BF ROUT C S2 | G20: 295 | H20: 80 | I20: R | J20: 22.5 | K20: 152/149 | L20: M | M20: C | N20: C | P20: 72 | Q20: 1067 | R20: 554.84
A21: 410561 | B21: 3528704105618 | C21: PN BFG 315/80R22.5 156/150L ROUT C S2 | D21: 31580225ROUTCS2156L | E21: POIDS LOURDS | F21: BF ROUT C S2 | G21: 315 | H21: 80 | I21: R | J21: 22.5 | K21: 156/150 | L21: L | M21: C | N21: C | O21: A | P21: 72 | Q21: 1089 | R21: 566.28
A22: 410923 | B22: 3528704109234 | C22: PN BFG 385/65R22.5 162K ROUTE CONTROL S | D22: 38565225ROUTCSVG162K | E22: POIDS LOURDS | F22: BF ROUT C S | G22: 385 | H22: 65 | I22: R | J22: 22.5 | K22: 162 | L22: K | M22: C | N22: B | O22: B | P22: 70 | Q22: 1165 | R22: 605.8
A23: 425791 | B23: 3528704257911 | C23: PN BFG 13 R22.5 156K CROSS CTRL D2 VG | D23: 13225CROSD2VG156K | E23: POIDS LOURDS | F23: BF CROSS CONTROL D | G23: 13 | H23: 90 | I23: R | J23: 22.5 | K23: 156/150 | L23: K | M23: D | N23: B | O23: B | P23: 73 | Q23: 1131 | R23: 588.12
A24: 460307 | B24: 3528704603077 | C24: PN BFG 385/55R22.5 160K ROUTE CONTROL T | D24: 38555225ROUTCTVM160K | E24: POIDS LOURDS | F24: BF ROUT C T | G24: 385 | H24: 55 | I24: R | J24: 22.5 | K24: 160 | L24: K | M24: B | N24: B | O24: B | P24: 71 | Q24: 1147 | R24: 596.44
A25: 465545 | B25: 3528704655458 | C25: PN BFG 205/75R17.5 124/122M ROUTE CONT D | D25: 20575175ROUTCDVG124M | E25: POIDS LOURDS | F25: BF ROUT C D | G25: 205 | H25: 75 | I25: R | J25: 17.5 | K25: 124/122 | L25: M | M25: E | N25: B | O25: A | P25: 69 | Q25: 517 | R25: 268.84
A26: 487756 | B26: 3528704877560 | C26: PN BFG 13 R22.5 156K CROSS CTRL S2 VG | D26: 13225CROSS2VG156K | E26: POIDS LOURDS | F26: BF CROSS CONTROL S | G26: 13 | I26: R | J26: 22.5 | K26: 156/150 | L26: K | M26: D | N26: B | O26: A | P26: 70 | Q26: 1131 | R26: 588.12
A27: 514320 | B27: 3528705143206 | C27: PN BFG 245/70R19.5 136/134M ROUTE CONT D | D27: 24570195CONTRDVM136M | E27: POIDS LOURDS | F27: BF ROUTE CONTRÔLE | G27: 245 | H27: 70 | I27: R | J27: 19.5 | K27: 136/134 | L27: M | M27: D | N27: C | O27: B | P27: 74 | Q27: 713 | R27: 370.76
A28: 520276 | B28: 3528705202767 | C28: PN BFG 265/70R19.5 140/138M ROUTE CONT S | D28: 26570195ROUTCSVM140M | E28: POIDS LOURDS | F28: BF ROUT C S | G28: 265 | H28: 70 | I28: R | J28: 19.5 | K28: 140/138 | L28: M | M28: D | N28: B | O28: A | P28: 68 | Q28: 725 | R28: 377
A29: 522244 | B29: 3528705222444 | C29: PN BFG 385/55R22.5 160K ROUTE CONTROL S | D29: 38555225ROUTCSVG160K | E29: POIDS LOURDS | F29: BF ROUT C S | G29: 385 | H29: 55 | I29: R | J29: 22.5 | K29: 160 | L29: K | M29: C | N29: B | O29: B | P29: 71 | Q29: 1196 | R29: 621.92
A30: 559461 | B30: 3528705594619 | C30: PN BFG 285/70R19.5 150/148J ROUTE CONT T | D30: 28570195ROUTCTVG150J | E30: POIDS LOURDS | F30: BF ROUT C T | G30: 285 | H30: 70 | I30: R | J30: 19.5 | K30: 150/148 | L30: J | M30: C | N30: B | O30: A | P30: 69 | Q30: 905 | R30: 470.6
A31: 614228 | B31: 3528706142284 | C31: PN BFG 205/75R17.5 124/122M ROUTE CONT S | D31: 20575175ROUTCSVG124M | E31: POIDS LOURDS | F31: BF ROUT C S | G31: 205 | H31: 75 | I31: R | J31: 17.5 | K31: 124/122 | L31: M | M31: D | N31: B | O31: A | P31: 68 | Q31: 517 | R31: 268.84
A32: 615923 | B32: 3528706159237 | C32: PN BFG 315/60R22.5 154/148L ROUTE CONT S | D32: 31560225ROUTCSVG154L | E32: POIDS LOURDS | F32: BF ROUT C S | G32: 315 | H32: 60 | I32: R | J32: 22.5 | K32: 154/148 | L32: L | M32: C | N32: B | O32: B | P32: 71 | Q32: 1165 | R32: 605.8
A33: 640269 | B33: 3528706402692 | C33: PN BFG 295/60R22.5 150/147K ROUTE CONT D | D33: 29560225ROUTCDVG150K | E33: POIDS LOURDS | F33: BF ROUT C D | G33: 295 | H33: 60 | I33: R | J33: 22.5 | K33: 150/147 | L33: K | M33: D | N33: C | O33: B | P33: 74 | Q33: 1089 | R33: 566.28
A34: 669210 | B34: 3528706692109 | C34: PN BFG 315/80R22.5 156/150L ROUT C D2 | D34: 31580225ROUTCD2156L | E34: POIDS LOURDS | F34: BF ROUT C D2 | G34: 315 | H34: 80 | I34: R | J34: 22.5 | K34: 156/150 | L34: L | M34: D | N34: C | O34: B | P34: 76 | Q34: 1089 | R34: 566.28
A35: 679547 | B35: 3528706795473 | C35: PN BFG 225/75R17.5 129/127M ROUTE CONT D | D35: 22575175ROUTCDVG129M | E35: POIDS LOURDS | F35: BF ROUT C D | G35: 225 | H35: 75 | I35: R | J35: 17.5 | K35: 129/127 | L35: M | M35: E | N35: B | O35: A | P35: 70 | Q35: 593 | R35: 308.36
A36: 727819 | B36: 3528707278197 | C36: PN BFG 315/60R22.5 152/148L ROUTE CONT D | D36: 31560225ROUTCDVG152L | E36: POIDS LOURDS | F36: BF ROUT C D | G36: 315 | H36: 60 | I36: R | J36: 22.5 | K36: 152/148 | L36: L | M36: D | N36: C | O36: A | P36: 73 | Q36: 1165 | R36: 605.8
A37: 728353 | B37: 3528707283535 | C37: PN BFG 435/50R19.5 160K ROUT C T | D37: 43550195ROUTCT160K | E37: POIDS LOURDS | F37: BF ROUT C T | G37: 435 | H37: 50 | I37: R | J37: 19.5 | K37: 160 | L37: K | M37: B | N37: B | O37: B | P37: 71 | Q37: 1388 | R37: 721.76
A38: 743370 | B38: 3528707433701 | C38: PN BFG 385/65R22.5 160K ROUTE CONTROL T | D38: 38565225ROUTCTVM160K | E38: POIDS LOURDS | F38: BF ROUT C T | G38: 385 | H38: 65 | I38: R | J38: 22.5 | K38: 160 | L38: K | M38: B | N38: B | O38: B | P38: 72 | Q38: 1092 | R38: 567.84
A39: 775446 | B39: 3528707754462 | C39: PN BFG 11.00 R22.5 148/145L ROUT C S2 | D39: 1100225ROUTCS2148L | E39: POIDS LOURDS | F39: BF ROUT C S2 | G39: 11 | I39: R | J39: 22.5 | K39: 148/145 | L39: L | M39: D | N39: B | O39: A | P39: 70 | Q39: 920 | R39: 478.4
A40: 829690 | B40: 3528708296909 | C40: PN BFG 385/65R22.5 158K CROSS CONTROL T | D40: 38565225CROSCTVG158K | E40: POIDS LOURDS | F40: BF CROS C T | G40: 385 | H40: 65 | I40: R | J40: 22.5 | K40: 158 | L40: K | M40: C | N40: B | O40: B | P40: 71 | Q40: 1092 | R40: 567.84
A41: 831378 | B41: 3528708313781 | C41: PN BFG 295/80R22.5 152/148M ROUTE CONT S | D41: 29580225ROUTCSVM152M | E41: POIDS LOURDS | F41: BF ROUT C S | G41: 295 | H41: 80 | I41: R | J41: 22.5 | K41: 152/148 | L41: M | M41: C | N41: C | O41: A | P41: 70 | Q41: 1067 | R41: 554.84
A42: 840765 | B42: 3528708407657 | C42: PN BFG 245/70R19.5 136/134M ROUT C S VM | D42: 24570195ROUTCS136M | E42: POIDS LOURDS | F42: BF ROUT C S | G42: 245 | H42: 70 | I42: R | J42: 19.5 | K42: 136/134 | L42: M | M42: C | N42: B | O42: A | P42: 69 | Q42: 713 | R42: 370.76
A43: 853105 | B43: 3528708531055 | C43: PN BFG 235/75R17.5 143/141J ROUTE CONT T | D43: 23575175ROUTCTVG143J | E43: POIDS LOURDS | F43: BF ROUT C T | G43: 235 | H43: 75 | I43: R | J43: 17.5 | K43: 143/141 | L43: J | M43: D | N43: B | O43: A | P43: 67 | Q43: 654 | R43: 340.08
A44: 870944 | B44: 3528708709447 | C44: PN BFG 245/70R17.5 136/134M ROUTE CONT D | D44: 24570175ROUTCDVG136M | E44: POIDS LOURDS | F44: BF ROUT C D | G44: 245 | H44: 70 | I44: R | J44: 17.5 | K44: 136/134 | L44: M | M44: D | N44: B | O44: A | P44: 69 | Q44: 709 | R44: 368.68
A45: 873233 | B45: 3528708732339 | C45: PN BFG 315/80R22.5 156K CROSS CTRL D2 VM | D45: 31580225CROSD2VM156K | E45: POIDS LOURDS | F45: BF CROSS CONTROL D | G45: 315 | H45: 80 | I45: R | J45: 22.5 | K45: 156/150 | L45: K | M45: D | N45: B | O45: B | P45: 72 | Q45: 1110 | R45: 577.2
A46: 873447 | B46: 3528708734470 | C46: PN BFG 235/75R17.5 132/130M ROUTE CONT D | D46: 23575175ROUTCDVG132M | E46: POIDS LOURDS | F46: BF ROUT C D | G46: 235 | H46: 75 | I46: R | J46: 17.5 | K46: 132/130 | L46: M | M46: D | N46: B | O46: A | P46: 69 | Q46: 630 | R46: 327.6
A47: 900960 | B47: 3528709009607 | C47: PN BFG 275/70R22.5 148/145M ROUTE CONT S | D47: 27570225ROUTCSVG148M | E47: POIDS LOURDS | F47: BF ROUT C S | G47: 275 | H47: 70 | I47: R | J47: 22.5 | K47: 148/145 | L47: M | M47: C | N47: B | O47: A | P47: 70 | Q47: 1034 | R47: 537.68
A48: 901831 | B48: 3528709018319 | C48: PN BFG 215/75R17.5 126/124M ROUTE CONT S | D48: 21575175ROUTCSVG126M | E48: POIDS LOURDS | F48: BF ROUT C S | G48: 215 | H48: 75 | I48: R | J48: 17.5 | K48: 126/124 | L48: M | M48: D | N48: B | O48: A | P48: 67 | Q48: 529 | R48: 275.08
A49: 905050 | B49: 3528709050500 | C49: PN BFG 245/70R17.5 143/141J ROUTE CONT T | D49: 24570175ROUTCTVG143J | E49: POIDS LOURDS | F49: BF ROUT C T | G49: 245 | H49: 70 | I49: R | J49: 17.5 | K49: 143/141 | L49: J | M49: D | N49: B | O49: A | P49: 67 | Q49: 731 | R49: 380.12
A50: 907751 | B50: 3528709077514 | C50: PN BFG 11 R22.5 148/145L ROUT CONTR S VG | D50: 11225ROUTCSVG148GO | E50: POIDS LOURDS | F50: BF ROUT C S | G50: 11 | H50: 90 | I50: R | J50: 22.5 | K50: 148/145 | L50: L | M50: C | N50: C | O50: A | P50: 69 | Q50: 920 | R50: 478.4
A51: 922022 | B51: 3528709220224 | C51: PN BFG 285/70R19.5 146/144L ROUTE CONT D | D51: 28570195ROUTCDVG146L | E51: POIDS LOURDS | F51: BF ROUT C D | G51: 285 | H51: 70 | I51: R | J51: 19.5 | K51: 146/144 | L51: L | M51: C | N51: C | O51: A | P51: 73 | Q51: 838 | R51: 435.76
A52: 929228 | B52: 3528709292283 | C52: PN BFG 385/65R22.5 158K CROSS CONTROL S | D52: 38565225CROSCSLR158K | E52: POIDS LOURDS | F52: BF CROS C S | G52: 385 | H52: 65 | I52: R | J52: 22.5 | K52: 158 | L52: K | M52: C | N52: B | O52: B | P52: 72 | Q52: 1193 | R52: 620.36
A53: 943946 | B53: 3528709439466 | C53: PN BFG 315/70R22.5 154/150L ROUT C D2 VM | D53: 31570225ROUTCDVM154L | E53: POIDS LOURDS | F53: BF ROUT C D2 | G53: 315 | H53: 70 | I53: R | J53: 22.5 | K53: 154/150 | L53: L | M53: D | N53: C | O53: B | P53: 76 | Q53: 1089 | R53: 566.28
A54: 957621 | B54: 3528709576215 | C54: PN BFG 215/75R17.5 135/133J ROUTE CONT T | D54: 21575175ROUTCTVG135J | E54: POIDS LOURDS | F54: BF ROUT C T | G54: 215 | H54: 75 | I54: R | J54: 17.5 | K54: 135/133 | L54: J | M54: D | N54: B | O54: A | P54: 67 | Q54: 569 | R54: 295.88

Sheet BRI
D2: Remise
D3: =Remises!J8 -> 0.36
A5: Actualisation au 04/04/2024
A7: REFERENCES PNEUMATIQUES | Q7: TARIFS
A8: CAI | B8: EAN | C8: Désignation | D8: Appellation | E8: Catégorie | F8: Profil | G8: Largeur | H8: Hauteur | I8: Structure | J8: Diamètre | K8: IC | L8: IV | M8: Conso. | N8: Frein. | O8: Bruit. | P8: Décibels. | Q8: Prix BF | R8: Prix Remisé
A9: 10348 | B9: 3286341034813 | C9: PN BRI 385/65R22.5 160K158L M-STEER 001 | D9: 38565225MST001160K | E9: POIDS LOURDS | F9: BS MST001 | G9: 385 | H9: 65 | I9: R | J9: 22.5 | K9: 160 | L9: K | M9: C | N9: B | O9: A | P9: 71 | Q9: 1152 | R9: =Q9*(1-$D$3) -> 737.28
A10: 10370 | B10: 3286341037012 | C10: PN BRI 215/75R17.5 126/124M R-DRIVE 002 | D10: 21575175RD2126M | E10: POIDS LOURDS | F10: BS R-DRIVE 002 | G10: 215 | H10: 75 | I10: R | J10: 17.5 | K10: 126/124 | L10: M | M10: C | N10: C | O10: A | P10: 72 | Q10: 495 | R10: =Q10*(1-$D$3) -> 316.8
A11: 10371 | B11: 3286341037111 | C11: PN BRI 265/70R19.5 140/138M R-DRIVE 002 | D11: 26570195RD2140M | E11: POIDS LOURDS | F11: BS R-DRIVE 002 | G11: 265 | H11: 70 | I11: R | J11: 19.5 | K11: 140/138 | L11: M | M11: C | N11: B | O11: B | P11: 74 | Q11: 690 | R11: 441.6
A12: 10372 | B12: 3286341037210 | C12: PN BRI 285/70R19.5 146/144M R-DRIVE 002 | D12: 28570195RD2145M | E12: POIDS LOURDS | F12: BS R-DRIVE 002 | G12: 285 | H12: 70 | I12: R | J12: 19.5 | K12: 146/144 | L12: M | M12: C | N12: C | O12: B | P12: 74 | Q12: 796 | R12: 509.44
A13: 10373 | B13: 3286341037319 | C13: PN BRI 245/70R17.5 136/134M R-DRIVE 002 | D13: 24570175RD2136M | E13: POIDS LOURDS | F13: BS R-DRIVE 002 | G13: 245 | H13: 70 | I13: R | J13: 17.5 | K13: 136/134 | L13: M | M13: C | N13: B | O13: B | P13: 74 | Q13: 639 | R13: 408.96
A14: 10374 | B14: 3286341037418 | C14: PN BRI 225/75R17.5 129/127M R-DRIVE 002 | D14: 22575175RD2129M | E14: POIDS LOURDS | F14: BS R-DRIVE 002 | G14: 225 | H14: 75 | I14: R | J14: 17.5 | K14: 129/127 | L14: M | M14: C | N14: B | O14: B | P14: 74 | Q14: 543 | R14: 347.52
A15: 10375 | B15: 3286341037517 | C15: PN BRI 285/70R19.5 146/144M R-STEER 002 | D15: 28570195RS2145M | E15: POIDS LOURDS | F15: BS R-STEER 002 | G15: 285 | H15: 70 | I15: R | J15: 19.5 | K15: 146/144 | L15: M | M15: C | N15: C | O15: A | P15: 68 | Q15: 796 | R15: 509.44
A16: 10376 | B16: 3286341037616 | C16: PN BRI 245/70R17.5 136/134M R-STEER 002 | D16: 24570175RS2136M | E16: POIDS LOURDS | F16: BS R-STEER 002 | G16: 245 | H16: 70 | I16: R | J16: 17.5 | K16: 136/134 | L16: M | M16: C | N16: B | O16: A | P16: 69 | Q16: 639 | R16: 408.96
A17: 10377 | B17: 3286341037715 | C17: PN BRI 225/75R17.5 129/127M R-STEER 002 | D17: 22575175RS2129M | E17: POIDS LOURDS | F17: BS R-STEER 002 | G17: 225 | H17: 75 | I17: R | J17: 17.5 | K17: 129/127 | L17: M | M17: C | N17: B | O17: A | P17: 70 | Q17: 543 | R17: 347.52
A18: 10378 | B18: 3286341037814 | C18: PN BRI 215/75R17.5 128/126M R-STEER 002 | D18: 21575175RS2128M | E18: POIDS LOURDS | F18: BS R-STEER 002 | G18: 215 | H18: 75 | I18: R | J18: 17.5 | K18: 128/126 | L18: M | M18: C | N18: C | O18: A | P18: 68 | Q18: 495 | R18: 316.8
A19: 10379 | B19: 3286341037913 | C19: PN BRI 265/70R19.5 140/138M R-STEER 002 | D19: 26570195RS2140M | E19: POIDS LOURDS | F19: BS R-STEER 002 | G19: 265 | H19: 70 | I19: R | J19: 19.5 | K19: 140/138 | L19: M | M19: C | N19: B | O19: A | P19: 70 | Q19: 690 | R19: 441.6
A20: 10380 | B20: 3286341038019 | C20: PN BRI 265/70R19.5 143/141K R-TRAIL 001 | D20: 26570195RTRAILER143K | E20: POIDS LOURDS | F20: BS R-TRAILER 001 | G20: 265 | H20: 70 | I20: R | J20: 19.5 | K20: 143/141 | L20: K | M20: C | N20: B | O20: A | P20: 69 | Q20: 742 | R20: 474.88
A21: 10386 | B21: 3286341038613 | C21: PN BRI 235/75R17.5 143J144F R-TRAIL 001 | D21: 23575175RT1143J | E21: POIDS LOURDS | F21: BS R-TRAILER 001 | G21: 235 | H21: 75 | I21: R | J21: 17.5 | K21: 144 | L21: F | M21: C | N21: B | O21: A | P21: 68 | Q21: 625 | R21: 400
A22: 10828 | B22: 3286341082814 | C22: PN BRI 275/70R22.5 150J152E RWD001 | D22: 27570225RWD001150J | E22: POIDS LOURDS | F22: BS RWD001 | G22: 275 | H22: 70 | I22: R | J22: 22.5 | K22: 152 | L22: E | M22: E | N22: C | O22: B | P22: 74 | Q22: 984 | R22: 629.76
A23: 10830 | B23: 3286341083019 | C23: PN BRI 295/80R22.5 152/148M RW-DRI 001 | D23: 29580225RWD001152M | E23: POIDS LOURDS | F23: BS RWD001 | G23: 295 | H23: 80 | I23: R | J23: 22.5 | K23: 152/148 | L23: M | M23: E | N23: B | O23: A | P23: 73 | Q23: 1062 | R23: 679.68
A24: 10839 | B24: 3286341083910 | C24: PN BRI 315/70R22.5 154L152M RW-DRI 001 | D24: 31570225RWD001154L | E24: POIDS LOURDS | F24: BS RWD001 | G24: 315 | H24: 70 | I24: R | J24: 22.5 | K24: 154/150 | L24: L | M24: E | N24: B | O24: B | P24: 74 | Q24: 1093 | R24: 699.52
A25: 10846 | B25: 3286341084610 | C25: PN BRI 315/80R22.5 156L154M RW-DRI 001 | D25: 31580225RWD001156L | E25: POIDS LOURDS | F25: BS RWD001 | G25: 315 | H25: 80 | I25: R | J25: 22.5 | K25: 156/150 | L25: L | M25: E | N25: B | O25: A | P25: 73 | Q25: 1124 | R25: 719.36
A26: 10850 | B26: 3286341085013 | C26: PN BRI 385/55R22.5 160K R-TRAILER 002 | D26: 38555225DURT002160K | E26: POIDS LOURDS | F26: BS R-TRAILER 002 | G26: 385 | H26: 55 | I26: R | J26: 22.5 | K26: 160 | L26: K | M26: B | N26: B | O26: A | P26: 70 | Q26: 1157 | R26: 740.48
A27: 10852 | B27: 3286341085211 | C27: PN BRI 385/65R22.5 160K158L R-TRAIL 002 | D27: 38565225RTRAILER160L | E27: POIDS LOURDS | F27: BS R-TRAILER 002 | G27: 385 | H27: 65 | I27: R | J27: 22.5 | K27: 160 | L27: K | M27: B | N27: B | O27: A | P27: 70 | Q27: 1149 | R27: 735.36
A28: 10860 | B28: 3286341086010 | C28: PN BRI 285/70R19.5 150/148J R-TR 001 | D28: 28570195RT001152K | E28: POIDS LOURDS | F28: BS R-TRAILER 001 | G28: 285 | H28: 70 | I28: R | J28: 19.5 | K28: 150/148 | L28: J | M28: C | N28: B | O28: A | P28: 69 | Q28: 939 | R28: 600.96
A29: 10861 | B29: 3286341086119 | C29: PN BRI 245/70R17.5 143J146F R-TR 001 | D29: 24570175RT1143J | E29: POIDS LOURDS | F29: BS R-TRAILER 001 | G29: 245 | H29: 70 | I29: R | J29: 17.5 | K29: 146/146 | M29: C | N29: B | O29: A | P29: 69 | Q29: 673 | R29: 430.72
A30: 10862 | B30: 3286341086218 | C30: PN BRI 445/45R19.5 160J ECOP H-TR 002 | D30: 44545195ECOHT002160J | E30: POIDS LOURDS | F30: BS ECOPIA H-TRAILE | G30: 445 | H30: 45 | I30: R | J30: 19.5 | K30: 160 | L30: J | M30: B | N30: A | O30: B | P30: 72 | Q30: 1342 | R30: 858.88
A31: 13254 | B31: 3286341325416 | C31: PN BRI 215/75R17.5 126/124M V-STEEL MIX | D31: 21575175M788126M | E31: POIDS LOURDS | F31: BS M788 | G31: 215 | H31: 75 | I31: R | J31: 17.5 | K31: 126/124 | L31: M | M31: E | N31: C | O31: A | P31: 71 | Q31: 481 | R31: 307.84
A32: 13255 | B32: 3286341325515 | C32: PN BRI 285/70R19.5 146/144M V-ST M788 | D32: 28570195M788146M | E32: POIDS LOURDS | F32: BS M788 | G32: 285 | H32: 70 | I32: R | J32: 19.5 | K32: 146/144 | L32: M | M32: D | N32: C | O32: B | P32: 74 | Q32: 769 | R32: 492.16
A33: 13261 | B33: 3286341326116 | C33: PN BRI 235/75R17.5 132/130M R-STEER 002 | D33: 23575175RS2132M | E33: POIDS LOURDS | F33: BS R-STEER 002 | G33: 235 | H33: 75 | I33: R | J33: 17.5 | K33: 132/130 | L33: M | M33: C | N33: B | O33: A | P33: 70 | Q33: 590 | R33: 377.6
A34: 13263 | B34: 3286341326314 | C34: PN BRI 235/75R17.5 132/130M R-DRIVE 002 | D34: 23575175RD2132M | E34: POIDS LOURDS | F34: BS R-DRIVE 002 | G34: 235 | H34: 75 | I34: R | J34: 17.5 | K34: 132/130 | L34: M | M34: C | N34: B | O34: B | P34: 74 | Q34: 590 | R34: 377.6
A35: 13463 | B35: 3286341346312 | C35: PN BRI 265/70R17.5 138/136M R-ST 002 | D35: 26570175RS2138M | E35: POIDS LOURDS | F35: BS R-STEER 002 | G35: 265 | H35: 70 | I35: R | J35: 17.5 | K35: 138/136 | L35: M | M35: C | N35: B | O35: A | P35: 70 | Q35: 705 | R35: 451.2
A36: 13464 | B36: 3286341346411 | C36: PN BRI 245/70R19.5 136/134M R-ST 002 | D36: 24570195RS2136M | E36: POIDS LOURDS | F36: BS R-STEER 002 | G36: 245 | H36: 70 | I36: R | J36: 19.5 | K36: 136/134 | L36: M | M36: C | N36: B | O36: A | P36: 69 | Q36: 674 | R36: 431.36
A37: 13465 | B37: 3286341346510 | C37: PN BRI 205/75R17.5 124/122M R-STEER 002 | D37: 20575175RS2124M | E37: POIDS LOURDS | F37: BS R-STEER 002 | G37: 205 | H37: 75 | I37: R | J37: 17.5 | K37: 124/122 | L37: M | M37: C | N37: B | O37: A | P37: 69 | Q37: 479 | R37: 306.56
A38: 13466 | B38: 3286341346619 | C38: PN BRI 245/70R19.5 136/134M R-DR 002 | D38: 24570195RD2136M | E38: POIDS LOURDS | F38: BS R-DRIVE 002 | G38: 245 | H38: 70 | I38: R | J38: 19.5 | K38: 136/134 | L38: M | M38: C | N38: B | O38: B | P38: 74 | Q38: 674 | R38: 431.36
A39: 13467 | B39: 3286341346718 | C39: PN BRI 205/75R17.5 124/122M R-DRIVE 002 | D39: 20575175RD2124M | E39: POIDS LOURDS | F39: BS R-DRIVE 002 | G39: 205 | H39: 75 | I39: R | J39: 17.5 | K39: 124/122 | L39: M | M39: C | N39: B | O39: A | P39: 71 | Q39: 479 | R39: 306.56
A40: 13469 | B40: 3286341346916 | C40: PN BRI 265/70R17.5 138/136M -RDRIVE 2 | D40: 26570175RD2138M | E40: POIDS LOURDS | F40: BS R-DRIVE 002 | G40: 265 | H40: 70 | I40: R | J40: 17.5 | K40: 138/136 | L40: M | M40: C | N40: B | O40: B | P40: 75 | Q40: 705 | R40: 451.2
A41: 13477 | B41: 3286341347715 | C41: PN BRI 385/65R22.5 164K/158L RW-ST 001 E | D41: 38565225RWS1EVO164K | E41: POIDS LOURDS | F41: BS RIGHT WEEL STEE | G41: 385 | H41: 65 | I41: R | J41: 22.5 | K41: 164 | L41: K | M41: C | N41: C | O41: B | P41: 72 | Q41: 1281 | R41: 819.84
A42: 13478 | B42: 3286341347814 | C42: PN BRI 385/65R22.5 160K/158L RW-ST 001 | D42: 38565225RWS1160K | E42: POIDS LOURDS | F42: BS RW-STEER 001 | G42: 385 | H42: 65 | I42: R | J42: 22.5 | K42: 160 | L42: K | M42: C | N42: C | O42: B | P42: 72 | Q42: 1220 | R42: 780.8
A43: 13479 | B43: 3286341347913 | C43: PN BRI 385/55R22.5 160K/158L RW-ST 001 | D43: 38555225RWS1160K | E43: POIDS LOURDS | F43: BS RW-STEER 001 | G43: 385 | H43: 55 | I43: R | J43: 22.5 | K43: 160 | L43: K | M43: C | N43: B | O43: B | P43: 73 | Q43: 1239 | R43: 792.96
A44: 13496 | B44: 3286341349610 | C44: PN BRI 385/65R22.5 160K ECOP H-TRAIL 002 | D44: 38565225ECOHT2160K | E44: POIDS LOURDS | F44: BS ECOPIA H-TRAILE | G44: 385 | H44: 65 | I44: R | J44: 22.5 | K44: 160 | L44: K | M44: A | N44: B | O44: A | P44: 68 | Q44: 1122 | R44: 718.08
A45: 13498 | B45: 3286341349818 | C45: PN BRI 385/55R22.5 160K158L EC H-ST 002 | D45: 38555225ECOHS002160K | E45: POIDS LOURDS | F45: BS ECOPIA H-STEER | G45: 385 | H45: 55 | I45: R | J45: 22.5 | K45: 160 | L45: K | M45: A | N45: B | O45: A | P45: 71 | Q45: 1193 | R45: 763.52
A46: 13499 | B46: 3286341349917 | C46: PN BRI 385/55R22.5 160K158L EC H-TR 002 | D46: 38555225ECOHT002160K | E46: POIDS LOURDS | F46: BS ECOPIA H-TRAILE | G46: 385 | H46: 55 | I46: R | J46: 22.5 | K46: 160 | L46: K | M46: A | N46: B | O46: A | P46: 68 | Q46: 1165 | R46: 745.6
A47: 13500 | B47: 3286341350012 | C47: PN BRI 385/65R22.5 160K ECOPIA H-STEER | D47: 38565225ECOPIAHS160K | E47: POIDS LOURDS | F47: BS ECOPIA H-STEER | G47: 385 | H47: 65 | I47: R | J47: 22.5 | K47: 160 | L47: K | M47: A | N47: B | O47: B | P47: 72 | Q47: 1183 | R47: 757.12
A48: 13502 | B48: 3286341350210 | C48: PN BRI 315/80R22.5 156M ECOP H-DR 002 | D48: 31580225ECOHD2M156L | E48: POIDS LOURDS | F48: BS ECOPIA H-DRIVE | G48: 315 | H48: 80 | I48: R | J48: 22.5 | K48: 156 | L48: L | M48: A | N48: B | O48: A | P48: 70 | Q48: 1153 | R48: 737.92
A49: 13504 | B49: 3286341350418 | C49: PN BRI 295/80R22.5 154/149M EC H-ST 002 | D49: 29580225ECOHS2154M | E49: POIDS LOURDS | F49: BS ECOPIA H-STEER | G49: 295 | H49: 80 | I49: R | J49: 22.5 | K49: 154/149 | L49: M | M49: B | N49: B | O49: A | P49: 71 | Q49: 1097 | R49: 702.08
A50: 13506 | B50: 3286341350616 | C50: PN BRI 315/70R22.5 156L154M EC H-ST 002 | D50: 31570225ECOHS002156L | E50: POIDS LOURDS | F50: BS ECOPIA H-STEER | G50: 315 | H50: 70 | I50: R | J50: 22.5 | K50: 156/150 | L50: L | M50: A | N50: B | O50: A | P50: 68 | Q50: 1145 | R50: 732.8
A51: 13508 | B51: 3286341350814 | C51: PN BRI 315/80R22.5 156L154M EC H-ST 002 | D51: 31580225ECOHS002156L | E51: POIDS LOURDS | F51: BS ECOPIA H-STEER | G51: 315 | H51: 80 | I51: R | J51: 22.5 | K51: 156/150 | L51: L | M51: B | N51: B | O51: A | P51: 69 | Q51: 1153 | R51: 737.92
A52: 13511 | B52: 3286341351118 | C52: PN BRI 315/70R22.5 154M ECOP H-DR 002 | D52: 31570225ECOHD2154L | E52: POIDS LOURDS | F52: BS ECOPIA H-DRIVE | G52: 315 | H52: 70 | I52: R | J52: 22.5 | K52: 154 | L52: L | M52: A | N52: B | O52: A | P52: 72 | Q52: 1145 | R52: 732.8
A53: 13513 | B53: 3286341351316 | C53: PN BRI 295/80R22.5 152/148M ECOP HD002 | D53: 29580225HD2152M | E53: POIDS LOURDS | F53: BS ECOPIA H-DRIVE | G53: 295 | H53: 80 | I53: R | J53: 22.5 | K53: 152/148 | L53: M | M53: B | N53: B | O53: A | P53: 72 | Q53: 1097 | R53: 702.08
A54: 13560 | B54: 3286341356014 | C54: PN BRI 245/70R19.5 141/140J R-TR 001 | D54: 24570195RT1141K | E54: POIDS LOURDS | F54: BS R-TRAILER 001 | G54: 245 | H54: 70 | I54: R | J54: 19.5 | K54: 141/140 | L54: J | M54: C | N54: B | O54: A | P54: 69 | Q54: 729 | R54: 466.56
A55: 13561 | B55: 3286341356113 | C55: PN BRI 385/65R22.5 164K158L EC H-ST 002 | D55: 38565225ECOHS2E164K | E55: POIDS LOURDS | F55: BS ECOPIA H-STEER | G55: 385 | H55: 65 | I55: R | J55: 22.5 | K55: 164 | L55: K | M55: A | N55: B | O55: B | P55: 72 | Q55: 1240 | R55: 793.6
A56: 16355 | B56: 3286341635515 | C56: PN BRI LT255/70R22.5 140M140L VSRIB R294 | D56: 25570225VSTEELRI140M | E56: POIDS LOURDS | F56: BS V-STEEL RIB R29 | G56: 255 | H56: 70 | I56: R | J56: 22.5 | K56: 140 | L56: M | M56: D | N56: C | O56: A | P56: 70 | Q56: 922 | R56: 590.08
A57: 16815 | B57: 3286341681512 | C57: PN BRI 315/60R22.5 154L U-AP 002 | D57: 31560225UAP002154L | E57: POIDS LOURDS | F57: BS U-AP002 | G57: 315 | H57: 60 | I57: R | J57: 22.5 | K57: 154 | L57: L | M57: C | N57: C | O57: A | P57: 70 | Q57: 1178 | R57: 753.92
A58: 16832 | B58: 3286341683219 | C58: PN BRI 315/60R22.5 152/148L RWD001 | D58: 31560225RWD001152L | E58: POIDS LOURDS | F58: BS RWD001 | G58: 315 | H58: 60 | I58: R | J58: 22.5 | K58: 152/148 | L58: L | M58: E | N58: C | O58: A | P58: 73 | Q58: 1145 | R58: 732.8
A59: 16838 | B59: 3286341683813 | C59: PN BRI 385/55R22.5 160K VSTEEL STUD W958 | D59: 38555225W958160K | E59: POIDS LOURDS | F59: BS W958 | G59: 385 | H59: 55 | I59: R | J59: 22.5 | K59: 160 | L59: K | M59: C | N59: C | O59: B | P59: 72 | Q59: 1239 | R59: 792.96
A60: 16879 | B60: 3286341687910 | C60: PN BRI 315/70R22.5 152M/154L NORDIC-DRIV | D60: 31570225NORDICDR152M | E60: POIDS LOURDS | F60: BS NORDIC-DRIVE 00 | G60: 315 | H60: 70 | I60: R | J60: 22.5 | K60: 154 | L60: L | M60: E | N60: C | O60: B | P60: 75 | Q60: 1112 | R60: 711.68
A61: 16882 | B61: 3286341688214 | C61: PN BRI 315/60R22.5 154/148L ECOP HS 002 | D61: 31560225HS002154L | E61: POIDS LOURDS | F61: BS ECOPIA H-STEER | G61: 315 | H61: 60 | I61: R | J61: 22.5 | K61: 154/148 | L61: L | M61: B | N61: B | O61: B | P61: 72 | Q61: 1177 | R61: 753.28
A62: 16883 | B62: 3286341688313 | C62: PN BRI 315/60R22.5 152/148L ECOP H-D 002 | D62: 31560225ECOHD2152L | E62: POIDS LOURDS | F62: BS ECOPIA H-DRIVE | G62: 315 | H62: 60 | I62: R | J62: 22.5 | K62: 152/148 | L62: L | M62: B | N62: B | O62: B | P62: 75 | Q62: 1177 | R62: 753.28
A63: 16884 | B63: 3286341688412 | C63: PN BRI 295/60R22.5 150L ECO H-DRIVE002 | D63: 29560225ECOHD002150L | E63: POIDS LOURDS | F63: BS ECOPIA H-DRIVE | G63: 295 | H63: 60 | I63: R | J63: 22.5 | K63: 150/147 | L63: L | M63: B | N63: C | O63: B | P63: 75 | Q63: 1120 | R63: 716.8
A64: 16926 | B64: 3286341692617 | C64: PN BRI 295/80R22.5 154/149M COACH-AP 001 | D64: 29580225CAP001154M | E64: POIDS LOURDS | F64: BS COACH-AP 001 | G64: 295 | H64: 80 | I64: R | J64: 22.5 | K64: 154/149 | L64: M | M64: B | N64: B | O64: A | P64: 69 | Q64: 1030 | R64: 659.2
A65: 16933 | B65: 3286341693317 | C65: PN BRI 385/65R22.5 164K158L R-ST 002 EVO | D65: 38565225RS002E164K | E65: POIDS LOURDS | F65: BS R-STEER 002 EV | G65: 385 | H65: 65 | I65: R | J65: 22.5 | K65: 164 | L65: K | M65: B | N65: B | O65: A | P65: 71 | Q65: 1207 | R65: 772.48
A66: 16937 | B66: 3286341693713 | C66: PN BRI 315/60R22.5 154/148L D R-STEER002 | D66: 31560225DURS2154L | E66: POIDS LOURDS | F66: BS DUR R-STEER 002 | G66: 315 | H66: 60 | I66: R | J66: 22.5 | K66: 154/148 | L66: L | M66: C | N66: B | O66: A | P66: 70 | Q66: 1178 | R66: 753.92
A67: 16939 | B67: 3286341693911 | C67: PN BRI 385/65R22.5 160K/158 R-STEER 002 | D67: 38565225RS2160K | E67: POIDS LOURDS | F67: BS DUR R-STEER 002 | G67: 385 | H67: 65 | I67: R | J67: 22.5 | K67: 160 | L67: K | M67: B | N67: B | O67: A | P67: 69 | Q67: 1172 | R67: 750.08
A68: 16940 | B68: 3286341694017 | C68: PN BRI 385/55R22.5 160K158L DURAV RS002 | D68: 38555225DURS2160K | E68: POIDS LOURDS | F68: BS DURAVIS RS 002 | G68: 385 | H68: 55 | I68: R | J68: 22.5 | K68: 160 | L68: K | M68: B | N68: B | O68: B | P68: 72 | Q68: 1191 | R68: 762.24
A69: 16943 | B69: 3286341694314 | C69: PN BRI 295/80R22.5 154/149M R-STEER 002 | D69: 29580225RS2154M | E69: POIDS LOURDS | F69: BS DUR R-STEER 002 | G69: 295 | H69: 80 | I69: R | J69: 22.5 | K69: 154/149 | L69: M | M69: B | N69: B | O69: A | P69: 70 | Q69: 1119 | R69: 716.16
A70: 16944 | B70: 3286341694413 | C70: PN BRI 315/70R22.5 156L/154M R-STEER 002 | D70: 31570225DURS002156L | E70: POIDS LOURDS | F70: BS DUR R-STEER 002 | G70: 315 | H70: 70 | I70: R | J70: 22.5 | K70: 156 | L70: L | M70: B | N70: B | O70: A | P70: 71 | Q70: 1148 | R70: 734.72
A71: 16947 | B71: 3286341694710 | C71: PN BRI 315/80R22.5 156L154M R-STEER 002 | D71: 31580225RS002156L | E71: POIDS LOURDS | F71: BS R-STEER 002 | G71: 315 | H71: 80 | I71: R | J71: 22.5 | K71: 156 | L71: L | M71: B | N71: A | O71: A | P71: 71 | Q71: 1154 | R71: 738.56
A72: 16950 | B72: 3286341695014 | C72: PN BRI 295/80R22.5 152/148M R-DRIVE 002 | D72: 29580225RD2152M | E72: POIDS LOURDS | F72: BS DURAVIS R-DRIVE | G72: 295 | H72: 80 | I72: R | J72: 22.5 | K72: 152/148 | L72: M | M72: C | N72: B | O72: B | P72: 75 | Q72: 1119 | R72: 716.16
A73: 16951 | B73: 3286341695113 | C73: PN BRI 295/60R22.5 150/147L DUR R-DR 002 | D73: 29560225DURD002150L | E73: POIDS LOURDS | F73: BS DURAVIS R-DRIVE | G73: 295 | H73: 60 | I73: R | J73: 22.5 | K73: 150/147 | L73: L | M73: C | N73: B | O73: B | P73: 76 | Q73: 1125 | R73: 720
A74: 16952 | B74: 3286341695212 | C74: PN BRI 315/60R22.5 152/148L D-DR 002 | D74: 31560225DURD2152L | E74: POIDS LOURDS | F74: BS DURAVIS R-DRIVE | G74: 315 | H74: 60 | I74: R | J74: 22.5 | K74: 152/148 | L74: L | M74: C | N74: B | O74: B | P74: 74 | Q74: 1178 | R74: =Q74*(1-$D$3) -> 753.92
A75: 16953 | B75: 3286341695311 | C75: PN BRI 315/70R22.5 154L152M R-DRIVE 002 | D75: 31570225RD002154L | E75: POIDS LOURDS | F75: BS R-DRIVE 002 | G75: 315 | H75: 70 | I75: R | J75: 22.5 | K75: 154 | L75: L | M75: C | N75: B | O75: B | P75: 75 | Q75: 1148 | R75: 734.72
A76: 16954 | B76: 3286341695410 | C76: PN BRI 315/80R22.5 156L154M R-DRIVE 002 | D76: 31580225RD002156L | E76: POIDS LOURDS | F76: BS R-DRIVE 002 | G76: 315 | H76: 80 | I76: R | J76: 22.5 | K76: 156 | L76: L | M76: C | N76: B | O76: B | P76: 75 | Q76: 1154 | R76: 738.56
A77: 17008 | B77: 3286341700817 | C77: PN BRI 385/65R22.5 164K D-TR 002 EVO | D77: 38565225DURT2E164K | E77: POIDS LOURDS | F77: BS R-TRAILER 002 E | G77: 385 | H77: 65 | I77: R | J77: 22.5 | K77: 164 | L77: K | M77: B | N77: B | O77: A | P77: 70 | Q77: 1183 | R77: 757.12
A78: 17009 | B78: 3286341700916 | C78: PN BRI 355/50R22.5 156L ECOHS2 | D78: 35550225ECOHS2156L | E78: POIDS LOURDS | F78: BS ECOHS2 | G78: 355 | H78: 50 | I78: R | J78: 22.5 | K78: 156 | L78: L | M78: C | N78: B | O78: A | P78: 70 | Q78: 1271 | R78: 813.44
A79: 17982 | B79: 3286341798210 | C79: PN BRI 385/65R22.5 160K/158L R179 | D79: 38565225R179160K | E79: POIDS LOURDS | F79: BS R179 | G79: 385 | H79: 65 | I79: R | J79: 22.5 | K79: 160 | L79: K | M79: C | N79: C | O79: B | P79: 71 | Q79: 1004 | R79: 642.56
A80: 19252 | B80: 3286341925210 | C80: PN BRI 12 R22.5 152/148L VSR R297 | D80: 12225R297152L | E80: POIDS LOURDS | F80: BS V-STEEL RIB R29 | G80: 12 | I80: R | J80: 22.5 | K80: 152/148 | L80: L | M80: D | N80: B | O80: B | P80: 72 | Q80: 1041 | R80: 666.24
A81: 19253 | B81: 3286341925319 | C81: PN BRI 275/70R22.5 148/145K R297 | D81: 27570225R297148145K | E81: POIDS LOURDS | F81: BS V-STEEL RIB R29 | G81: 275 | H81: 70 | I81: R | J81: 22.5 | K81: 148/145 | L81: K | M81: D | N81: C | O81: B | P81: 72 | Q81: 942 | R81: 602.88
A82: 19339 | B82: 3286341933918 | C82: PN BRI 295/60R22.5 150/147L R249 ECOPIA | D82: 29560225R249ECO150L | E82: POIDS LOURDS | F82: BS V-STEE RIB R249 | G82: 295 | H82: 60 | I82: R | J82: 22.5 | K82: 150/147 | L82: L | M82: D | N82: C | O82: A | P82: 70 | Q82: 1093 | R82: 699.52
A83: 19348 | B83: 3286341934816 | C83: PN BRI 275/70R22.5 148/145M VSR R249 ECO | D83: 27570225R249ECO148M | E83: POIDS LOURDS | F83: BS V-STEE RIB R249 | G83: 275 | H83: 70 | I83: R | J83: 22.5 | K83: 148/145 | L83: M | M83: C | N83: C | O83: B | P83: 72 | Q83: 996 | R83: 637.44
A84: 19540 | B84: 3286341954012 | C84: PN BRI 10 R22.5 144/142K VSM MB840 | D84: 10225M840144K | E84: POIDS LOURDS | F84: BS M840 EVO | G84: 10 | I84: R | J84: 22.5 | K84: 144/142 | L84: K | M84: D | N84: B | O84: B | P84: 72 | Q84: 875 | R84: 560
A85: 19658 | B85: 3286341965810 | C85: PN BRI 305/70R22.5 150M/148L R249 ECOPIA | D85: 30570225R249EC150M | E85: POIDS LOURDS | F85: BS V-STEE RIB R249 | G85: 305 | H85: 70 | I85: R | J85: 22.5 | K85: 152 | L85: L | M85: D | N85: C | O85: A | P85: 69 | Q85: 989 | R85: 632.96
A86: 19673 | B86: 3286341967319 | C86: PN BRI 10 R17.5 134/132L VSR R180 | D86: 10175VSTEELRIBR1134L | E86: POIDS LOURDS | F86: BS R180 | G86: 10 | I86: R | J86: 17.5 | K86: 134 | L86: L | M86: D | N86: D | O86: A | P86: 67 | Q86: 648 | R86: 414.72
A87: 19879 | B87: 3286341987911 | C87: PN BRI 315/70R22.5 154L/152M ECOPIA DRIV | D87: 31570225ECOPIADR154L | E87: POIDS LOURDS | F87: BS ECOPIA DRIVE | G87: 315 | H87: 70 | I87: R | J87: 22.5 | K87: 154 | L87: L | M87: A | N87: B | O87: A | P87: 71 | Q87: 1202 | R87: 769.28
A88: 19913 | B88: 3286341991314 | C88: PN BRI 315/70R22.5 156L/154M ECOPIA STEE | D88: 31570225ECOPIAST156L | E88: POIDS LOURDS | F88: BS ECOPIA STEER | G88: 315 | H88: 70 | I88: R | J88: 22.5 | K88: 156 | L88: L | M88: A | N88: B | O88: A | P88: 68 | Q88: 1202 | R88: 769.28
A89: 23080 | B89: 3286342308012 | C89: PN BRI 13 R22.5 158G/156K L317EVO | D89: 13225L317EVO158G2 | E89: POIDS LOURDS | F89: BS L317EVO | G89: 13 | I89: R | J89: 22.5 | K89: 158 | L89: G | M89: E | N89: B | O89: A | P89: 73 | Q89: 1077 | R89: 689.28
A90: 23253 | B90: 3286342325316 | C90: PN BRI 9.5 R17.5 143/141J R168 | D90: 95175R168143J2 | E90: POIDS LOURDS | F90: BS R168 | G90: 9.5 | I90: R | J90: 17.5 | K90: 143/141 | L90: J | M90: D | N90: C | O90: B | P90: 71 | Q90: 604 | R90: 386.56
A91: 23728 | B91: 3286342372815 | C91: PN BRI 385/65R22.5 160K MT1+ | D91: 38565225MT1+160K | E91: POIDS LOURDS | F91: BS MT1+ | G91: 385 | H91: 65 | I91: R | J91: 22.5 | K91: 160 | L91: K | M91: C | N91: B | O91: B | P91: 73 | Q91: 1130 | R91: 723.2
A92: 23729 | B92: 3286342372914 | C92: PN BRI 435/50R19.5 160J R166 FS2 | D92: 43550195R166FS160J | E92: POIDS LOURDS | F92: BS R166 | G92: 435 | H92: 50 | I92: R | J92: 19.5 | K92: 160 | L92: J | M92: D | N92: C | O92: B | P92: 73 | Q92: 1141 | R92: 730.24
A93: 23766 | B93: 3286342376615 | C93: PN BRI 305/70R22.5 152M/150M DURAVIS R-D | D93: 30570225DURAVISR152M | E93: POIDS LOURDS | F93: BS DURAVIS R-DRIVE | G93: 305 | H93: 70 | I93: R | J93: 22.5 | K93: 152 | L93: M | M93: C | N93: B | O93: B | P93: 74 | Q93: 1042 | R93: 666.88
A94: 23767 | B94: 3286342376714 | C94: PN BRI 315/80R22.5 156L/154M R-STEER 001 | D94: 31580225RSTEER00156L | E94: POIDS LOURDS | F94: BS RW-STEER 001 | G94: 315 | H94: 80 | I94: R | J94: 22.5 | K94: 156 | L94: L | M94: C | N94: C | O94: A | P94: 71 | Q94: 1123 | R94: 718.72
A95: 23772 | B95: 3286342377216 | C95: PN BRI 295/80R22.5 154M/149M R-STEER 001 | D95: 29580225RSTEER00154M | E95: POIDS LOURDS | F95: BS RW-STEER 001 | G95: 295 | H95: 80 | I95: R | J95: 22.5 | K95: 154 | L95: M | M95: C | N95: C | O95: A | P95: 71 | Q95: 1050 | R95: 672
A96: 23782 | B96: 3286342378213 | C96: PN BRI 295/80R22.5 154M W958 EVO | D96: 29580225W958EVO154M | E96: POIDS LOURDS | F96: BS W958 EVO | G96: 295 | H96: 80 | I96: R | J96: 22.5 | K96: 154 | L96: M | M96: D | N96: C | O96: A | P96: 70 | Q96: 1052 | R96: 673.28
A97: 23811 | B97: 3286342381114 | C97: PN BRI 265/70R19.5 140/138M U-AP 002 | D97: 26570195UAP002140M | E97: POIDS LOURDS | F97: BS U-AP 002 | G97: 265 | H97: 70 | I97: R | J97: 19.5 | K97: 140/138 | L97: M | M97: C | N97: C | O97: A | P97: 69 | Q97: 771 | R97: 493.44
A98: 23813 | B98: 3286342381312 | C98: PN BRI 215/75R17.5 128/126M U-AP 002 | D98: 21575175UAP002128M | E98: POIDS LOURDS | F98: BS U-AP 002 | G98: 215 | H98: 75 | I98: R | J98: 17.5 | K98: 128/126 | L98: M | M98: C | N98: C | O98: A | P98: 67 | Q98: 505 | R98: 323.2
A99: 23832 | B99: 3286342383217 | C99: PN BRI 215/75R17.5 136/134K R-TRAILER 00 | D99: 21575175RTRAILER136K | E99: POIDS LOURDS | F99: BS R-TRAILER 001 | G99: 215 | H99: 75 | I99: R | J99: 17.5 | K99: 136/134 | L99: K | M99: C | N99: C | O99: A | P99: 69 | Q99: 606 | R99: 387.84
A100: 25719 | B100: 3286342571911 | C100: PN BRI 315/80R22.5 156L/154M RD1+ | D100: 31580225RDRIVE00156L | E100: POIDS LOURDS | F100: BS RD1+ | G100: 315 | H100: 80 | I100: R | J100: 22.5 | K100: 156 | L100: L | M100: C | N100: C | O100: 1 | P100: 73 | Q100: 1154 | R100: 738.56
A101: 25914 | B101: 3286342591414 | C101: PN BRI 13 R22.5 158G V-STEEL LUG L355 | D101: 13225VSTEELUGL35158G | E101: POIDS LOURDS | F101: BS L355 EVO | G101: 13 | I101: R | J101: 22.5 | K101: 158 | L101: G | M101: E | N101: B | O101: B | P101: 75 | Q101: 1107 | R101: 708.48
A102: 25915 | B102: 3286342591513 | C102: PN BRI 315/80R22.5 158G V-STEEL L355 EVO | D102: 31580225L355EVO158G | E102: POIDS LOURDS | F102: BS L355 EVO | G102: 315 | H102: 80 | I102: R | J102: 22.5 | K102: 158 | L102: G | M102: E | N102: B | O102: B | P102: 74 | Q102: 1134 | R102: 725.76
A103: 25916 | B103: 3286342591612 | C103: PN BRI 385/65R22.5 164G M748E | D103: 38565225M748E164G2 | E103: POIDS LOURDS | F103: BS M748 EVO | G103: 385 | H103: 65 | I103: R | J103: 22.5 | K103: 164 | L103: G | M103: D | N103: B | O103: B | P103: 72 | Q103: 1153 | R103: 737.92
A104: 25917 | B104: 3286342591711 | C104: PN BRI 11 R22.5 148K M840 | D104: 11225M840148K | E104: POIDS LOURDS | F104: BS M840 EVO | G104: 11 | I104: R | J104: 22.5 | K104: 148 | L104: K | M104: D | N104: C | O104: A | P104: 70 | Q104: 803 | R104: 513.92
A105: 25918 | B105: 3286342591810 | C105: PN BRI 12 R22.5 152K M840 | D105: 12225M840152K | E105: POIDS LOURDS | F105: BS M840 EVO | G105: 12 | I105: R | J105: 22.5 | K105: 152 | L105: K | M105: D | N105: C | O105: B | P105: 73 | Q105: 1030 | R105: 659.2
A106: 25919 | B106: 3286342591919 | C106: PN BRI 13 R22.5 158G V-STEEL MIX M840 | D106: 13225M840EVO158G | E106: POIDS LOURDS | F106: BS M840 EVO | G106: 13 | I106: R | J106: 22.5 | K106: 158 | L106: G | M106: D | N106: B | O106: B | P106: 72 | Q106: 1134 | R106: 725.76
A107: 25920 | B107: 3286342592015 | C107: PN BRI 275/70R22.5 148K M840 | D107: 27570225M840148K | E107: POIDS LOURDS | F107: BS M840 EVO | G107: 275 | H107: 70 | I107: R | J107: 22.5 | K107: 148 | L107: K | M107: D | N107: C | O107: A | P107: 69 | Q107: 945 | R107: 604.8
A108: 25922 | B108: 3286342592213 | C108: PN BRI 265/70R19.5 143J V-STEEL M852 | D108: 26570195M852143J | E108: POIDS LOURDS | F108: BS V-STEEL MIX M85 | G108: 265 | H108: 70 | I108: R | J108: 19.5 | K108: 143 | L108: J | M108: E | N108: C | O108: B | P108: 73 | Q108: 742 | R108: 474.88
A109: 25924 | B109: 3286342592411 | C109: PN BRI 315/70R22.5 156L W958 EVO | D109: 31570225W958EVO156L | E109: POIDS LOURDS | F109: BS W958 EVO | G109: 315 | H109: 70 | I109: R | J109: 22.5 | K109: 156 | L109: L | M109: D | N109: C | O109: B | P109: 74 | Q109: 1095 | R109: 700.8
A110: 25926 | B110: 3286342592619 | C110: PN BRI 385/65R22.5 164K W958 EVO | D110: 38565225W958EVO164K | E110: POIDS LOURDS | F110: BS W958 EVO | G110: 385 | H110: 65 | I110: R | J110: 22.5 | K110: 164 | L110: K | M110: D | N110: C | O110: A | P110: 71 | Q110: 1281 | R110: 819.84
A111: 25929 | B111: 3286342592916 | C111: PN BRI 315/70R22.5 152M W958 | D111: 31570225W958152M | E111: POIDS LOURDS | F111: BS W958 | G111: 315 | H111: 70 | I111: R | J111: 22.5 | K111: 152 | L111: M | M111: D | N111: C | O111: B | P111: 74 | Q111: 1042 | R111: 666.88
A112: 25930 | B112: 3286342593012 | C112: PN BRI 315/80R22.5 156L V-STEEL W958 | D112: 31580225W958156L | E112: POIDS LOURDS | F112: BS W958 | G112: 315 | H112: 80 | I112: R | J112: 22.5 | K112: 156 | L112: L | M112: D | N112: C | O112: B | P112: 72 | Q112: 1073 | R112: 686.72
A113: 25937 | B113: 3286342593715 | C113: PN BRI 275/70R22.5 148M NORDIC-DRIVE 00 | D113: 27570225NODRIV00148M | E113: POIDS LOURDS | F113: BS NORDIC-DRIVE 00 | G113: 275 | H113: 70 | I113: R | J113: 22.5 | K113: 148 | L113: M | M113: E | N113: C | O113: B | P113: 75 | Q113: 967 | R113: 618.88
A114: 25938 | B114: 3286342593814 | C114: PN BRI 295/80R22.5 152M NORDIC-DRIVE 00 | D114: 29580225NORDICDR152M | E114: POIDS LOURDS | F114: BS NORDIC-DRIVE 00 | G114: 295 | H114: 80 | I114: R | J114: 22.5 | K114: 152 | L114: M | M114: E | N114: C | O114: B | P114: 75 | Q114: 1052 | R114: 673.28
A115: 25939 | B115: 3286342593913 | C115: PN BRI 315/80R22.5 156L NORDIC-DRIVE 00 | D115: 31580225NORDICDR156L | E115: POIDS LOURDS | F115: BS NORDIC-DRIVE 00 | G115: 315 | H115: 80 | I115: R | J115: 22.5 | K115: 156 | L115: L | M115: E | N115: C | O115: B | P115: 75 | Q115: 1112 | R115: 711.68
A116: 25941 | B116: 3286342594118 | C116: PN BRI 495/45R22.5 169M GREATEC M709 EC | D116: 49545225GREATECM169M | E116: POIDS LOURDS | F116: BS GREATEC M709 EC | G116: 495 | H116: 45 | I116: R | J116: 22.5 | K116: 169 | L116: M | M116: C | N116: D | O116: B | P116: 73 | Q116: 2231 | R116: 1427.84
A117: 25942 | B117: 3286342594217 | C117: PN BRI 425/65R22.5 165K V-STEEL MIX M748 | D117: 42565225M748165K | E117: POIDS LOURDS | F117: BS M748 | G117: 425 | H117: 65 | I117: R | J117: 22.5 | K117: 165 | L117: K | M117: D | N117: D | O117: A | P117: 70 | Q117: 1538 | R117: 984.32
A118: 25943 | B118: 3286342594316 | C118: PN BRI 445/65R22.5 169K V-STEEL MIX M748 | D118: 44565225M748169K | E118: POIDS LOURDS | F118: BS M748 | G118: 445 | H118: 65 | I118: R | J118: 22.5 | K118: 169 | L118: K | M118: C | N118: D | O118: B | P118: 71 | Q118: 1449 | R118: 927.36
A119: 25944 | B119: 3286342594415 | C119: PN BRI 225/75R17.5 129M M788 | D119: 22575175M788129M | E119: POIDS LOURDS | F119: BS M788 | G119: 225 | H119: 75 | I119: R | J119: 17.5 | K119: 129 | L119: M | M119: E | N119: C | O119: A | P119: 70 | Q119: 525 | R119: 336
A120: 25945 | B120: 3286342594514 | C120: PN BRI 265/70R19.5 140M M788 | D120: 26570195M788140M | E120: POIDS LOURDS | F120: BS M788 | G120: 265 | H120: 70 | I120: R | J120: 19.5 | K120: 140 | L120: M | M120: E | N120: D | O120: A | P120: 71 | Q120: 669 | R120: 428.16
A121: 25946 | B121: 3286342594613 | C121: PN BRI 445/65R22.5 169K V-STEEL MIX M844 | D121: 44565225M844169K | E121: POIDS LOURDS | F121: BS VSTEEL MIX M844 | G121: 445 | H121: 65 | I121: R | J121: 22.5 | K121: 169 | L121: K | M121: C | N121: D | O121: B | P121: 71 | Q121: 1449 | R121: 927.36
A122: 25947 | B122: 3286342594712 | C122: PN BRI 425/65R22.5 165K V-STEEL RIB R164 | D122: 42565225R164165K | E122: POIDS LOURDS | F122: BS R164 | G122: 425 | H122: 65 | I122: R | J122: 22.5 | K122: 165 | L122: K | M122: C | N122: D | O122: A | P122: 70 | Q122: 1403 | R122: 897.92
A123: 25948 | B123: 3286342594811 | C123: PN BRI 445/65R22.5 169K V-STEEL RIB R164 | D123: 44565225R164169K | E123: POIDS LOURDS | F123: BS R164 | G123: 445 | H123: 65 | I123: R | J123: 22.5 | K123: 169 | L123: K | M123: C | N123: C | O123: A | P123: 70 | Q123: 1433 | R123: 917.12
A124: 25949 | B124: 3286342594910 | C124: PN BRI 455/45R22.5 166J VSTEEL RIB R173 | D124: 45545225R173166J | E124: POIDS LOURDS | F124: BS R173 | G124: 455 | H124: 45 | I124: R | J124: 22.5 | K124: 166 | L124: J | M124: D | N124: C | O124: A | P124: 72 | Q124: 1899 | R124: 1215.36
A125: 25952 | B125: 3286342595214 | C125: PN BRI 305/70R22.5 152J/154E R192 | D125: 30570225R192152J | E125: POIDS LOURDS | F125: BS R192 | G125: 305 | H125: 70 | I125: R | J125: 22.5 | K125: 154 | L125: E | M125: D | N125: D | O125: A | P125: 70 | Q125: 1008 | R125: 645.12
A126: 26196 | B126: 3286342619613 | C126: PN BRI 385/65R22.5 160K/158L R179+ | D126: 38565225R179+160K | E126: POIDS LOURDS | F126: BS R179+ | G126: 385 | H126: 65 | I126: R | J126: 22.5 | K126: 160 | L126: K | M126: C | N126: B | O126: A | P126: 69 | Q126: 1004 | R126: 642.56
A127: 26829 | B127: 3286342682914 | C127: PN BRI 315/45R22.5 147/145L M749E | D127: 31545225M749E147L | E127: POIDS LOURDS | F127: BS M749 ECOPIA | G127: 315 | H127: 45 | I127: R | J127: 22.5 | K127: 147/145 | L127: L | M127: E | N127: D | O127: B | P127: 76 | Q127: 1170 | R127: 748.8
A128: 27835 | B128: 3286342783512 | C128: PN BRI 275/70R22.5 150J/152F W958 EVO | D128: 27570225W958EVO150J | E128: POIDS LOURDS | F128: BS W958 EVO | G128: 275 | H128: 70 | I128: R | J128: 22.5 | K128: 152 | L128: F | M128: D | N128: C | O128: A | P128: 71 | Q128: 1024 | R128: 655.36
A129: 28292 | B129: 3286342829210 | C129: PN BRI 315/80R22.5 154/150M R184 | D129: 31580225R184154M2 | E129: POIDS LOURDS | F129: BS R184 | G129: 315 | H129: 80 | I129: R | J129: 22.5 | K129: 154/150 | L129: M | M129: C | N129: B | O129: A | P129: 69 | Q129: 881 | R129: 563.84
A130: 28529 | B130: 3286342852911 | C130: PN BRI 315/80R22.5 158G/156K V-STEEL LUG | D130: 31580225L355EVO158G2 | E130: POIDS LOURDS | F130: BS L355 EVO | G130: 315 | H130: 80 | I130: R | J130: 22.5 | K130: 158 | L130: G | M130: E | N130: B | O130: A | P130: 73 | Q130: 1134 | R130: 725.76
A131: 28548 | B131: 3286342854816 | C131: PN BRI 385/65R22.5 160K/158L RT002 | D131: 38565225RT002160K | E131: POIDS LOURDS | F131: BS R-TRAILER 002 | G131: 385 | H131: 65 | I131: R | J131: 22.5 | K131: 160 | L131: K | M131: B | N131: B | O131: A | P131: 70 | Q131: 1149 | R131: 735.36
A132: 30606 | B132: 3286343060612 | C132: PN BRI 275/70R22.5 152J/150K U-AP 002 | D132: 27570225UAP002152J2 | E132: POIDS LOURDS | F132: BS U-AP 002 | G132: 275 | H132: 70 | I132: R | J132: 22.5 | K132: 152 | L132: J | M132: B | N132: B | P132: 69 | Q132: 986 | R132: 631.04
A133: 32538 | B133: 3286343253816 | C133: PN BRI 205/65R17.5 132J/133F R-TRAILER 0 | D133: 20565175TRAILER132J | E133: POIDS LOURDS | F133: BS R-TRAILER 001 | G133: 205 | H133: 65 | I133: R | J133: 17.5 | K133: 133 | L133: F | M133: C | N133: C | O133: A | P133: 69 | Q133: 577 | R133: 369.28
A134: 32578 | B134: 3286343257814 | C134: PN BRI 315/70R22.5 156L/154M DUR R-STEER | D134: 31570225DURSTEE156L | E134: POIDS LOURDS | F134: BS DUR R-STEER 002 | G134: 315 | H134: 70 | I134: R | J134: 22.5 | K134: 156 | L134: L | M134: C | N134: C | O134: A | P134: 71 | Q134: 1148 | R134: 734.72
A135: 32579 | B135: 3286343257913 | C135: PN BRI 315/70R22.5 154L/152M DURAVIS R-D | D135: 31570225DURAVISR154L | E135: POIDS LOURDS | F135: BS DURAVIS R-DRIVE | G135: 315 | H135: 70 | I135: R | J135: 22.5 | K135: 154 | L135: L | M135: D | N135: C | O135: A | P135: 73 | Q135: 1148 | R135: 734.72
A136: 32580 | B136: 3286343258019 | C136: PN BRI 315/80R22.5 156L/154M DUR R-STEER | D136: 31580225DURSTEE156L | E136: POIDS LOURDS | F136: BS DUR R-STEER 002 | G136: 315 | H136: 80 | I136: R | J136: 22.5 | K136: 156 | L136: L | M136: C | N136: C | O136: A | P136: 71 | Q136: 1154 | R136: 738.56
A137: 32581 | B137: 3286343258118 | C137: PN BRI 315/80R22.5 156L/154M DURAVIS R-D | D137: 31580225DURAVISR156L | E137: POIDS LOURDS | F137: BS DURAVIS R-DRIVE | G137: 315 | H137: 80 | I137: R | J137: 22.5 | K137: 156 | L137: L | M137: D | N137: C | O137: B | P137: 75 | Q137: 1154 | R137: 738.56
A138: 32634 | B138: 3286343263419 | C138: PN BRI 315/80R22.5 158G/156K M840 EVO EV | D138: 31580225M840EVEV158G | E138: POIDS LOURDS | F138: BS M840 EVO | G138: 315 | H138: 80 | I138: R | J138: 22.5 | K138: 158 | L138: G | M138: C | N138: C | O138: A | P138: 69 | Q138: 1134 | R138: =Q138*(1-$D$3) -> 725.76
A139: 8690 | B139: 3286340869010 | C139: PN BRI 13R22.5 156/150 K MD1 TL | D139: 13225MD1TLK156150 | E139: POIDS LOURDS | F139: BS MD1 | G139: 13 | I139: R | J139: 22.5 | K139: 156/150 | L139: K | M139: D | N139: B | O139: A | P139: 73 | Q139: 1104 | R139: 706.56
A140: 8692 | B140: 3286340869218 | C140: PN BRI 315/80R22.5 156/150 K MD1 TL | D140: 31580225MD1TLK156150 | E140: POIDS LOURDS | F140: BS MD1 | G140: 315 | H140: 80 | I140: R | J140: 22.5 | K140: 156/150 | L140: K | M140: D | N140: B | O140: A | P140: 72 | Q140: 1132 | R140: 724.48
A141: 8696 | B141: 3286340869614 | C141: PN BRI 13R22.5 156/150K M-STEER 001 | D141: 13225MS1156K | E141: POIDS LOURDS | F141: BS MS001 | G141: 13 | I141: R | J141: 22.5 | K141: 156/150 | L141: K | M141: C | N141: B | O141: A | P141: 70 | Q141: 1132 | R141: 724.48
A142: 8698 | B142: 3286340869812 | C142: PN BRI 315/80R22.5 156/150 K MS1 TL | D142: 31580225MS1TLK156150 | E142: POIDS LOURDS | F142: BS MS001 | G142: 315 | H142: 80 | I142: R | J142: 22.5 | K142: 156/150 | L142: K | M142: C | N142: B | O142: A | P142: 69 | Q142: 1132 | R142: 724.48
A143: 9348 | B143: 3286340934817 | C143: PN BRI 295/80R22.5 152K150L M-STEER 001 | D143: 29580225MS001152K | E143: POIDS LOURDS | F143: BS MS001 | G143: 295 | H143: 80 | I143: R | J143: 22.5 | K143: 152 | L143: K | M143: C | N143: B | O143: A | P143: 68 | Q143: 1077 | R143: 689.28
A144: 9350 | B144: 3286340935012 | C144: PN BRI 295/80R22.5 152K150L M-DRIVE 001 | D144: 29580225MD001152K | E144: POIDS LOURDS | F144: BS MD1 | G144: 295 | H144: 80 | I144: R | J144: 22.5 | K144: 152 | L144: K | M144: D | N144: B | O144: A | P144: 71 | Q144: 1077 | R144: 689.28
A145: 9943 | B145: 3286340994316 | C145: PN BRI 275/70R22.5 148/145L VSR R184 | D145: 27570225R184148L | E145: POIDS LOURDS | F145: BS R184 | G145: 275 | H145: 70 | I145: R | J145: 22.5 | K145: 148/145 | L145: L | M145: D | N145: C | O145: B | P145: 72 | Q145: 957 | R145: 612.48
A146: 9945 | B146: 3286340994514 | C146: PN BRI 11R22.5 148/145 L R 187 | D146: 11225R187L148145BR | E146: POIDS LOURDS | F146: BS R 187 | G146: 11 | I146: R | J146: 22.5 | K146: 148/145 | L146: L | M146: D | N146: B | O146: A | P146: 68 | Q146: 724 | R146: 463.36

Sheet CON
D2: Remise
D3: =Remises!E10 -> 0.29
A5: Actualisation au 04/04/2024
A7: REFERENCES PNEUMATIQUES | Q7: TARIFS
A8: CAI | B8: EAN | C8: Désignation | D8: Appellation | E8: Catégorie | F8: Profil | G8: Largeur | H8: Hauteur | I8: Structure | J8: Diamètre | K8: IC | L8: IV | M8: Conso. | N8: Frein. | O8: Bruit. | P8: Décibels. | Q8: Prix BF | R8: Prix Remisé
A9: 04121100000 | B9: 4019238031935 | C9: PN CON 10.00 R20 146/143K HSR TT | D9: 100020HSRTT146KCO | E9: POIDS LOURDS | F9: CO HSR | G9: 10 | I9: R | J9: 20 | K9: 146 | L9: K | M9: D | N9: C | O9: B | P9: 73 | Q9: 842 | R9: =Q9*(1-$D$3) -> 597.82
A10: 04121700000 | B10: 4019238042931 | C10: PN CON 9.5 R17.5 129/127L LSR1 | D10: 95175LLSR1129 | E10: POIDS LOURDS | F10: CO LSR1 | G10: 9.5 | I10: R | J10: 17.5 | K10: 129 | L10: L | M10: D | N10: C | O10: A | P10: 70 | Q10: 551 | R10: =Q10*(1-$D$3) -> 391.21
A11: 04121760000 | B11: 4019238061451 | C11: PN CON 7.00 R16 117/116L HYB LS3 TT | D11: 70016HYBLS3TT117L | E11: POIDS LOURDS | F11: CO HYBR LS3 | G11: 7 | I11: R | J11: 16 | K11: 117/116 | L11: L | P11: 0 | Q11: 396 | R11: 281.16
A12: 04121780000 | B12: 4019238069280 | C12: PN CON 7.50 R16 121/120L LSR+ TT | D12: 75016LSR+TT121L | E12: POIDS LOURDS | F12: CO LSR+ | G12: 7.5 | I12: R | J12: 16 | K12: 121 | L12: L | M12: D | N12: C | O12: A | P12: 65 | Q12: 371 | R12: 263.41
A13: 04121810000 | B13: 4019238072013 | C13: PN CON 7.50 R16 116/114N HSO+S TT | D13: 75016HSO+STT116N | E13: POIDS LOURDS | F13: CO HSO+ SAND | G13: 7.5 | I13: R | J13: 16 | K13: 116 | L13: N | P13: 0 | Q13: 397 | R13: 281.87
A14: 04121890000 | B14: 4019238110012 | C14: PN CON 215/75R17.5 126/124M CONTI HYBRID | D14: 21575175CONTIHYB126M | E14: POIDS LOURDS | F14: CO HYBR LS3 | G14: 215 | H14: 75 | I14: R | J14: 17.5 | K14: 126 | L14: M | M14: D | N14: C | O14: A | P14: 71 | Q14: 397 | R14: 281.87
A15: 04121900000 | B15: 4019238100013 | C15: PN CON 205/75R17.5 124/122M CONTI HYBRID | D15: 20575175CONTIHYB124M | E15: POIDS LOURDS | F15: CO HYBR LS3 | G15: 205 | H15: 75 | I15: R | J15: 17.5 | K15: 124 | L15: M | M15: C | N15: C | O15: A | P15: 71 | Q15: 439 | R15: 311.69
A16: 04121910000 | B16: 4019238120035 | C16: PN CON 245/70R17.5 136/134M CONTI HYBRID | D16: 24570175CONTIHYB136M | E16: POIDS LOURDS | F16: CO HYBR LS3 | G16: 245 | H16: 70 | I16: R | J16: 17.5 | K16: 136 | L16: M | M16: C | N16: C | O16: A | P16: 71 | Q16: 558 | R16: 396.18
A17: 04121920000 | B17: 4019238120028 | C17: PN CON 235/75R17.5 132/130M CONTI HYBRID | D17: 23575175CONTIHYB132M | E17: POIDS LOURDS | F17: CO HYBR LS3 | G17: 235 | H17: 75 | I17: R | J17: 17.5 | K17: 132 | L17: M | M17: C | N17: C | O17: A | P17: 71 | Q17: 526 | R17: 373.46
A18: 04121930000 | B18: 4019238130034 | C18: PN CON 265/70R17.5 139/136M CONTI HYBRID | D18: 26570175CONTIHYB139M | E18: POIDS LOURDS | F18: CO HYBR LS3 | G18: 265 | H18: 70 | I18: R | J18: 17.5 | K18: 139/136 | L18: M | M18: C | N18: C | O18: A | P18: 71 | Q18: 657 | R18: 466.47
A19: 04121940000 | B19: 4019238120011 | C19: PN CON 225/75R17.5 129/127M CONTI HYBRID | D19: 22575175CONTIHYB129M | E19: POIDS LOURDS | F19: CO HYBR LS3 | G19: 225 | H19: 75 | I19: R | J19: 17.5 | K19: 129/127 | L19: M | M19: C | N19: C | O19: A | P19: 71 | Q19: 470 | R19: 333.7
A20: 04121950000 | B20: 4019238100006 | C20: PN CON 10 R17.5 134/132L LSR1 | D20: 10175LSR1134L1 | E20: POIDS LOURDS | F20: CO LSR1 | G20: 10 | I20: R | J20: 17.5 | K20: 134/132 | L20: L | M20: D | N20: C | O20: A | P20: 70 | Q20: 641 | R20: 455.11
A21: 04121990000 | B21: 4019238401431 | C21: PN CON 205/75R17.5 124/122M HYB LS3+ | D21: 20575175HYBLS3+124M | E21: POIDS LOURDS | F21: CO HYB LS3+ | G21: 205 | H21: 75 | I21: R | J21: 17.5 | K21: 124/122 | L21: M | P21: 0 | Q21: 439 | R21: 311.69
A22: 04130020000 | B22: 4019238540321 | C22: PN CON 235/75R17.5 132/130M SCAND LS3 | D22: 23575175CSS3M132130 | E22: POIDS LOURDS | F22: CO CONTI SCAND LS3 | G22: 235 | H22: 75 | I22: R | J22: 17.5 | K22: 132 | L22: M | M22: C | N22: C | O22: B | P22: 73 | Q22: 594 | R22: 421.74
A23: 04130030000 | B23: 4019238540338 | C23: PN CON 215/75R17.5 126/124M SCAND LS3 | D23: 21575175CSS3M126124 | E23: POIDS LOURDS | F23: CO CONTI SCAND LS3 | G23: 215 | H23: 75 | I23: R | J23: 17.5 | K23: 126 | L23: M | M23: D | N23: C | O23: B | P23: 73 | Q23: 429 | R23: 304.59
A24: 04140650000 | B24: 4019238199147 | C24: PN CON 205/70R15 124/122 J HTR TT | D24: 2057015HTRTTJ124122 | E24: POIDS LOURDS | F24: CO HTR | G24: 205 | H24: 70 | I24: R | J24: 15 | K24: 124 | L24: K | M24: D | N24: C | O24: A | P24: 70 | Q24: 572 | R24: 406.12
A25: 04150080000 | B25: 4019238061567 | C25: PN CON 9.5 R17.5 129L/131M LSC | D25: 95175LSC129L | E25: POIDS LOURDS | F25: CO LSC | G25: 9.5 | I25: R | J25: 17.5 | K25: 131 | M25: D | N25: C | O25: A | P25: 71 | Q25: 573 | R25: 406.83
A26: 04220740000 | B26: 4019238012613 | C26: PN CON 10 R17.5 134/132L LDR1 3PM | D26: 10175LDR13P134L | E26: POIDS LOURDS | F26: CO LDR1 | G26: 10 | I26: R | J26: 17.5 | K26: 134 | L26: L | M26: D | N26: C | O26: B | P26: 74 | Q26: 641 | R26: 455.11
A27: 04221580000 | B27: 4019238041309 | C27: PN CON 225/75R17.5 129/127M HYB LD3 | D27: 22575175HYBLD3129M | E27: POIDS LOURDS | F27: CO CONTI HYBR LD3 | G27: 225 | H27: 75 | I27: R | J27: 17.5 | K27: 129 | L27: M | M27: D | N27: C | O27: B | P27: 76 | Q27: 470 | R27: 333.7
A28: 04221590000 | B28: 4019238041293 | C28: PN CON 215/75R17.5 126/124M HYB LD3 | D28: 21575175HYBLD3126M | E28: POIDS LOURDS | F28: CO CONTI HYBR LD3 | G28: 215 | H28: 75 | I28: R | J28: 17.5 | K28: 126 | L28: M | M28: D | N28: C | O28: B | P28: 74 | Q28: 397 | R28: 281.87
A29: 04221610000 | B29: 4019238041279 | C29: PN CON 245/70R17.5 136/134M HYB LD3 | D29: 24570175HYBLD3136M | E29: POIDS LOURDS | F29: CO CONTI HYBR LD3 | G29: 245 | H29: 70 | I29: R | J29: 17.5 | K29: 136 | L29: M | M29: D | N29: C | O29: B | P29: 76 | Q29: 558 | R29: 396.18
A30: 04221620000 | B30: 4019238041262 | C30: PN CON 205/75R17.5 124/122M HYB LD3 | D30: 20575175HYBLD3124M | E30: POIDS LOURDS | F30: CO CONTI HYBR LD3 | G30: 205 | H30: 75 | I30: R | J30: 17.5 | K30: 124 | L30: M | M30: D | N30: C | O30: B | P30: 74 | Q30: 439 | R30: 311.69
A31: 04221630000 | B31: 4019238041255 | C31: PN CON 265/70R17.5 139/136M HYB LD3 | D31: 26570175HYBLD3139M | E31: POIDS LOURDS | F31: CO CONTI HYBR LD3 | G31: 265 | H31: 70 | I31: R | J31: 17.5 | K31: 139 | L31: M | M31: D | N31: C | O31: B | P31: 76 | Q31: 657 | R31: 466.47
A32: 04221640000 | B32: 4019238041248 | C32: PN CON 235/75R17.5 132/130M HYB LD3 | D32: 23575175HYBLD3132M | E32: POIDS LOURDS | F32: CO CONTI HYBR LD3 | G32: 235 | H32: 75 | I32: R | J32: 17.5 | K32: 132 | L32: M | M32: D | N32: C | O32: B | P32: 76 | Q32: 526 | R32: 373.46
A33: 04221660000 | B33: 4019238049541 | C33: PN CON 9.5 R17.5 129/127L LDR1 | D33: 95175LDR1129LCO | E33: POIDS LOURDS | F33: CO LDR1 | G33: 9.5 | I33: R | J33: 17.5 | K33: 129 | L33: L | M33: E | N33: C | O33: B | P33: 74 | Q33: 551 | R33: 391.21
A34: 04221680000 | B34: 4019238061444 | C34: PN CON 7.50 R16 121/120L HYB LD3 TT | D34: 75016HYBLD3TT121L | E34: POIDS LOURDS | F34: CO LDR+ | G34: 7.5 | I34: R | J34: 16 | K34: 121 | L34: L | M34: E | N34: C | O34: A | P34: 70 | Q34: 371 | R34: 263.41
A35: 04221760000 | B35: 4019238401448 | C35: PN CON 205/75R17.5 124/122M HYB LD3+ | D35: 20575175HYBLD3+124M | E35: POIDS LOURDS | F35: CO HYB LD3+ | G35: 205 | H35: 75 | I35: R | J35: 17.5 | K35: 124/122 | L35: M | P35: 0 | Q35: 439 | R35: 311.69
A36: 04230000000 | B36: 4019238540192 | C36: PN CON 215/75R17.5 126/124M SCAND LD3 | D36: 21575175CSD3M126124 | E36: POIDS LOURDS | F36: CO SCANDINAV LD3 | G36: 215 | H36: 75 | I36: R | J36: 17.5 | K36: 126 | L36: M | M36: D | N36: C | O36: B | P36: 75 | Q36: 429 | R36: 304.59
A37: 04230010000 | B37: 4019238540383 | C37: PN CON 235/75R17.5 132/130M SCAND LD3 | D37: 23575175CSD3M132130 | E37: POIDS LOURDS | F37: CO SCANDINAV LD3 | G37: 235 | H37: 75 | I37: R | J37: 17.5 | K37: 132 | L37: M | M37: D | N37: C | O37: B | P37: 75 | Q37: 594 | R37: 421.74
A38: 04230040000 | B38: 4019238401103 | C38: PN CON 215/75R17.5 135/133M SCANDI LD3 | D38: 21575175CONTISCA135M | E38: POIDS LOURDS | F38: CO SCANDINAV LD3 | G38: 215 | H38: 75 | I38: R | J38: 17.5 | K38: 135/133 | L38: M | P38: 0 | Q38: 429 | R38: 304.59
A39: 04650180000 | B39: 4019238052633 | C39: PN CON IT 265/70R17.5 139/136M HYB LD3 | D39: 26570175HYBLD3139MIT | E39: POIDS LOURDS | F39: CO CONTI HYBR LD3 | G39: 265 | H39: 70 | I39: R | J39: 17.5 | K39: 139/136 | L39: M | M39: D | N39: C | O39: B | P39: 76 | Q39: 702 | R39: 498.42
A40: 04650190000 | B40: 4019238052626 | C40: PN CON IT 265/70R17.5 139/136M HYB LS3 | D40: 26570175HYBLS3139MIT | E40: POIDS LOURDS | F40: CO HYBR LS3 | G40: 265 | H40: 70 | I40: R | J40: 17.5 | K40: 139/136 | L40: M | M40: C | N40: B | O40: A | P40: 71 | Q40: 702 | R40: 498.42
A41: 04650220000 | B41: 4019238075465 | C41: PN CON IT 205/65R17.5 132/130J HTR2 | D41: 20565175HTR2132J2 | E41: POIDS LOURDS | F41: CO HTR2 | G41: 205 | H41: 65 | I41: R | J41: 17.5 | K41: 132 | L41: J | M41: D | N41: C | O41: A | P41: 70 | Q41: 576 | R41: 408.96
A42: 04920050000 | B42: 4019238540178 | C42: PN CON 215/75R17.5 135/133K SCAN HT3 | D42: 21575175CST3K135133 | E42: POIDS LOURDS | F42: CO SCAND HT3 | G42: 215 | H42: 75 | I42: R | J42: 17.5 | K42: 135 | L42: K | M42: D | N42: C | O42: B | P42: 72 | Q42: 486 | R42: 345.06
A43: 04920580000 | B43: 4019238037029 | C43: PN CON 7.50 R15 135/133G HTR TT | D43: 75015HTRTT135G | E43: POIDS LOURDS | F43: CO HTR+ | G43: 7.5 | I43: R | J43: 15 | K43: 135 | L43: G | M43: D | N43: C | O43: A | P43: 71 | Q43: 496 | R43: 352.16
A44: 04920620000 | B44: 4019238042955 | C44: PN CON 8.25 R15 143/141G HTR+ FRT TT | D44: 82515HTR+FRTT143G | E44: POIDS LOURDS | F44: CO HTR+ | G44: 8.25 | I44: R | J44: 15 | K44: 143 | L44: G | M44: D | N44: C | O44: A | P44: 71 | Q44: 601 | R44: 426.71
A45: 04920910000 | B45: 4019238071825 | C45: PN CON 205/65R17.5 132/130J HTR2 + | D45: 20565175HTR2+132J | E45: POIDS LOURDS | F45: CO HTR2 + | G45: 205 | H45: 65 | I45: R | J45: 17.5 | K45: 132 | L45: J | M45: D | N45: C | P45: 70 | Q45: 481 | R45: 341.51
A46: 04920920000 | B46: 4019238071832 | C46: PN CON 215/75R17.5 135/133K HTR2 + | D46: 21575175HTR2+135K | E46: POIDS LOURDS | F46: CO HTR2 + | G46: 215 | H46: 75 | I46: R | J46: 17.5 | K46: 135 | L46: K | M46: C | N46: C | P46: 71 | Q46: 450 | R46: 319.5
A47: 04920930000 | B47: 4019238071849 | C47: PN CON 235/75R17.5 143/141K HTR2 + | D47: 23575175HTR2+143K | E47: POIDS LOURDS | F47: CO HTR2 + | G47: 235 | H47: 75 | I47: R | J47: 17.5 | K47: 143 | L47: K | M47: C | N47: C | P47: 71 | Q47: 522 | R47: 370.62
A48: 04920940000 | B48: 4019238071856 | C48: PN CON 245/70R17.5 143/141L HTR2 + | D48: 24570175HTR2+143L | E48: POIDS LOURDS | F48: CO HTR2 + | G48: 245 | H48: 70 | I48: R | J48: 17.5 | K48: 143 | L48: L | M48: C | N48: C | P48: 71 | Q48: 570 | R48: 404.7
A49: 04920960000 | B49: 4019238084443 | C49: PN CON 7.50 R15 135/133G HTR+ TT | D49: 75015HTR+TT135G | E49: POIDS LOURDS | F49: CO HTR+ | G49: 7.5 | I49: R | J49: 15 | K49: 135/133 | L49: G | P49: 0 | Q49: 496 | R49: 352.16
A50: 04960060000 | B50: 4019238792928 | C50: PN CON 325/85R16 140K SOT HA3 | D50: 3258516SOTHA3140K | E50: POIDS LOURDS | F50: CO SOT HA3 | G50: 325 | H50: 85 | I50: R | J50: 16 | K50: 140 | L50: K | P50: 0 | Q50: 1497 | R50: 1062.87
A51: 04960160000 | B51: 4019238061604 | C51: PN CON 265/70R17.5 139/136M LCS | D51: 26570175LCS139M | E51: POIDS LOURDS | F51: CO LCS | G51: 265 | H51: 70 | I51: R | J51: 17.5 | K51: 139 | L51: M | M51: D | N51: C | O51: A | P51: 74 | Q51: 683 | R51: 484.93
A52: 05110450000 | B52: 4019238545678 | C52: PN CON 315/60R22.5 152/148 L HSL2+ ECO | D52: 31560225HSL2L152148 | E52: POIDS LOURDS | F52: CO HSL2+ ECO+ | G52: 315 | H52: 60 | I52: R | J52: 22.5 | K52: 152 | L52: L | M52: C | N52: B | O52: A | P52: 70 | Q52: 1042 | R52: 739.82
A53: 05110480000 | B53: 4019238545722 | C53: PN CON 295/80R22.5 152/148 M HSL2+ ECO+ | D53: 29580225HSL2M152148 | E53: POIDS LOURDS | F53: CO HSL2+ ECO+ | G53: 295 | H53: 80 | I53: R | J53: 22.5 | K53: 152 | L53: M | M53: C | N53: B | O53: A | P53: 70 | Q53: 941 | R53: 668.11
A54: 05111010000 | B54: 4019238630527 | C54: PN CON 12R22.5 152/148L HYBRID HS3 | D54: 12225CHS3L152148 | E54: POIDS LOURDS | F54: CO CONT HYBRID HS3 | G54: 12 | I54: R | J54: 22.5 | K54: 152 | L54: L | M54: C | N54: B | O54: A | P54: 70 | Q54: 899 | R54: 638.29
A55: 05111020000 | B55: 4019238630534 | C55: PN CON 275/70R22.5 148/145M HYBRID HS3 | D55: 27570225CHS3M148145 | E55: POIDS LOURDS | F55: CO CONT HYBRID HS3 | G55: 275 | H55: 70 | I55: R | J55: 22.5 | K55: 148 | L55: M | M55: C | N55: B | O55: A | P55: 69 | Q55: 848 | R55: 602.08
A56: 05111060000 | B56: 4019238630565 | C56: PN CON 315/80R22.5 156/150L HYBRID HS3 | D56: 31580225CHS3L156150 | E56: POIDS LOURDS | F56: CO CONT HYBRID HS3 | G56: 315 | H56: 80 | I56: R | J56: 22.5 | K56: 156 | L56: L | M56: C | N56: B | O56: A | P56: 69 | Q56: 768 | R56: 545.28
A57: 05111700000 | B57: 4019238030242 | C57: PN CON 355/50R22.5 XL 156K ECOPLUS HS3 | D57: 35550225CES3156KXL | E57: POIDS LOURDS | F57: CO CONTI ECO+ HS3 | G57: 355 | H57: 50 | I57: R | J57: 22.5 | K57: 156 | L57: K | M57: C | N57: C | O57: A | P57: 70 | Q57: 1132 | R57: 803.72
A58: 05112080000 | B58: 4019238043914 | C58: PN CON 315/70R22.5 156L154M ECOPLUS HS3 | D58: 31570225ECO+HS3+156L | E58: POIDS LOURDS | F58: CO CONTI ECO+ HS3 | G58: 315 | H58: 70 | I58: R | J58: 22.5 | K58: 156 | L58: L | M58: B | N58: B | O58: A | P58: 71 | Q58: 991 | R58: 703.61
A59: 05112090000 | B59: 4019238043921 | C59: PN CON 385/55R22.5 160K158L ECOPLUS HS3 | D59: 38555225ECO+HS3+160K | E59: POIDS LOURDS | F59: CO CONTI ECO+ HS3 | G59: 385 | H59: 55 | I59: R | J59: 22.5 | K59: 160 | L59: K | M59: B | N59: B | O59: A | P59: 71 | Q59: 1061 | R59: 753.31
A60: 05112110000 | B60: 4019238059229 | C60: PN CON 385/65R22.5 160K158L ECOPLUS HS3 | D60: 38565225ECO+HS3+160K | E60: POIDS LOURDS | F60: CO CONTI ECO+ HS3 | G60: 385 | H60: 65 | I60: R | J60: 22.5 | K60: 160 | L60: K | M60: B | N60: B | O60: A | P60: 70 | Q60: 1052 | R60: 746.92
A61: 05112170000 | B61: 4019238062168 | C61: PN CON 315/80R22.5 156L154M ECOPLUS HS3 | D61: 31580225ECO+HS3+156L | E61: POIDS LOURDS | F61: CO CONTI ECO+ HS3 | G61: 315 | H61: 80 | I61: R | J61: 22.5 | K61: 156 | L61: L | M61: B | N61: B | O61: A | P61: 70 | Q61: 1002 | R61: 711.42
A62: 05112180000 | B62: 4019238062182 | C62: PN CON 315/60R22.5 154/150L ECOPLUS HS3 | D62: 31560225ECO+HS3+154L | E62: POIDS LOURDS | F62: CO CONTI ECO+ HS3 | G62: 315 | H62: 60 | I62: R | J62: 22.5 | K62: 154 | L62: L | M62: C | N62: C | O62: A | P62: 70 | Q62: 1083 | R62: 768.93
A63: 05112190000 | B63: 4019238062175 | C63: PN CON 315/60R22.5 154/150L CONTI ECOPLU | D63: 31560225CONTIECO154L | E63: POIDS LOURDS | F63: CO ECOPLUS HS3+ | G63: 315 | H63: 60 | I63: R | J63: 22.5 | K63: 154 | L63: L | M63: B | N63: C | O63: A | P63: 70 | Q63: 1083 | R63: 768.93
A64: 05112580000 | B64: 4019238130096 | C64: PN CON 295/60R22.5 150/147L ECOPLUSHS3 | D64: 29560225ECOPLUH150L | E64: POIDS LOURDS | F64: CO CONTI ECO+ HS3 | G64: 295 | H64: 60 | I64: R | J64: 22.5 | K64: 150/147 | L64: L | M64: C | N64: C | O64: A | P64: 69 | Q64: 988 | R64: 701.48
A65: 05120390000 | B65: 4019238489927 | C65: PN CON 315/80R22.5 156/150 L HSR2 ED | D65: 31580225HSR2EL156150 | E65: POIDS LOURDS | F65: CO HSR2 ED | G65: 315 | H65: 80 | I65: R | J65: 22.5 | K65: 156 | L65: L | M65: D | N65: C | O65: B | P65: 73 | Q65: 972 | R65: 690.12
A66: 05122460000 | B66: 4019238732504 | C66: PN CON 255/70R22.5 140/137M HSR2 SA | D66: 25570225HSR2SA140M | E66: POIDS LOURDS | F66: HSR2 SA | G66: 255 | H66: 70 | I66: R | J66: 22.5 | K66: 140 | L66: M | M66: C | N66: C | O66: 1 | P66: 69 | Q66: 519 | R66: 368.49
A67: 05123590000 | B67: 4019238820126 | C67: PN CON 315/70R22.5 154/150L CLP S M+S | D67: 31570225CLPSM+154L | E67: POIDS LOURDS | F67: CO LIGHTPRO S | G67: 315 | H67: 70 | I67: R | J67: 22.5 | K67: 154 | L67: L | M67: B | N67: B | O67: A | P67: 69 | Q67: 1058 | R67: 751.18
A68: 05125750000 | B68: 4019238035759 | C68: PN CON 295/80R22.5 154/149M ECOR HS3 | D68: 29580225ECORHS3154M | E68: POIDS LOURDS | F68: CO ECOREGION HS3 | G68: 295 | H68: 80 | I68: R | J68: 22.5 | K68: 154 | L68: M | M68: C | N68: B | O68: A | P68: 70 | Q68: 969 | R68: 687.99
A69: 05125800000 | B69: 4019238037005 | C69: PN CON 11 R22.5 148/145L HSR | D69: 11225HSR148L | E69: POIDS LOURDS | F69: CO HSR | G69: 11 | I69: R | J69: 22.5 | K69: 148 | L69: L | M69: C | N69: C | O69: A | P69: 70 | Q69: 731 | R69: 519.01
A70: 05126270000 | B70: 4019238046120 | C70: PN CON 315/70R22.5 156/150L CONT HYB HS5 | D70: 31570225CONTHYBH156L | E70: POIDS LOURDS | F70: CO CONTI HYB HS5 | G70: 315 | H70: 70 | I70: R | J70: 22.5 | K70: 156 | L70: L | M70: C | N70: B | P70: 70 | Q70: 991 | R70: 703.61
A71: 05127000000 | B71: 4019238066265 | C71: PN CON 385/55R22.5 160K CONT HYB HS5 | D71: 38555225CONTHYBH160K | E71: POIDS LOURDS | F71: CO CONTI HYB HS5 | G71: 385 | H71: 55 | I71: R | J71: 22.5 | K71: 160 | L71: K | M71: C | N71: B | P71: 73 | Q71: 1082 | R71: 768.22
A72: 05127050000 | B72: 4019238067811 | C72: PN CON 315/80R22.5 156/150L CONT HYB HS5 | D72: 31580225CONTHYBH156L | E72: POIDS LOURDS | F72: CO CONTI HYB HS5 | G72: 315 | H72: 80 | I72: R | J72: 22.5 | K72: 156 | L72: L | M72: C | N72: B | P72: 71 | Q72: 1002 | R72: 711.42
A73: 05127060000 | B73: 4019238067804 | C73: PN CON 385/65R22.5 164K CONT HYB HS5 | D73: 38565225CONTHYBH164K | E73: POIDS LOURDS | F73: CO CONTI HYB HS5 | G73: 385 | H73: 65 | I73: R | J73: 22.5 | K73: 164 | L73: K | M73: C | N73: B | P73: 71 | Q73: 1041 | R73: 739.11
A74: 05127080000 | B74: 4019238068955 | C74: PN CON 315/70R22.5 156/150L ECORHS3+ | D74: 31570225ECOHS3+156L | E74: POIDS LOURDS | F74: CO HS3+ ECOREGION | G74: 315 | H74: 70 | I74: R | J74: 22.5 | K74: 156 | L74: L | M74: B | N74: B | O74: A | P74: 70 | Q74: 1001 | R74: =Q74*(1-$D$3) -> 710.71
A75: 05127090000 | B75: 4019238069013 | C75: PN CON 315/80R22.5 156/150L ECORHS3+ | D75: 31580225ECOHS3+156L | E75: POIDS LOURDS | F75: CO HS3+ ECOREGION | G75: 315 | H75: 80 | I75: R | J75: 22.5 | K75: 156 | L75: L | M75: B | N75: B | O75: A | P75: 70 | Q75: 1011 | R75: 717.81
A76: 05127100000 | B76: 4019238068962 | C76: PN CON 385/55R22.5 160K ECORHS3+ | D76: 38555225ECOHS3+160K | E76: POIDS LOURDS | F76: CO HS3+ ECOREGION | G76: 385 | H76: 55 | I76: R | J76: 22.5 | K76: 160 | L76: K | M76: B | N76: B | O76: A | P76: 71 | Q76: 1093 | R76: 776.03
A77: 05127110000 | B77: 4019238068979 | C77: PN CON 385/65R22.5 164K ECORHS3+ | D77: 38565225ECOHS3+164K | E77: POIDS LOURDS | F77: CO HS3+ ECOREGION | G77: 385 | H77: 65 | I77: R | J77: 22.5 | K77: 164 | L77: K | M77: B | N77: B | O77: A | P77: 71 | Q77: 1052 | R77: 746.92
A78: 05127940000 | B78: 4019238083781 | C78: PN CON 295/80R22.5 154/149M CONT HYB HS5 | D78: 29580225CONTHYBH154M | E78: POIDS LOURDS | F78: CO CONTI HYB HS5 | G78: 295 | H78: 80 | I78: R | J78: 22.5 | K78: 154/149 | L78: M | M78: C | N78: B | P78: 70 | Q78: 978 | R78: 694.38
A79: 05128250000 | B79: 4019238090383 | C79: PN CON 275/70R22.5 148/145M CONT HYB HS5 | D79: 27570225CONTHYBH148M | E79: POIDS LOURDS | F79: CO CONTI HYB HS5 | G79: 275 | H79: 70 | I79: R | J79: 22.5 | K79: 148/145 | L79: M | P79: 0 | Q79: 873 | R79: 619.83
A80: 05128300000 | B80: 4019238094084 | C80: PN CON 315/80R22.5 158/150L HSR2 | D80: 31580225HSR2158L | E80: POIDS LOURDS | F80: CO HSR2 | G80: 315 | H80: 80 | I80: R | J80: 22.5 | K80: 158 | L80: L | M80: C | N80: C | O80: B | P80: 73 | Q80: 944 | R80: 670.24
A81: 05128570000 | B81: 4019238098785 | C81: PN CON 12 R22.5 152/148L CHS3 | D81: 12225CHS3152L | E81: POIDS LOURDS | F81: CO CONT HYBRID HS3 | G81: 12 | I81: R | J81: 22.5 | K81: 152 | L81: L | M81: C | N81: C | O81: A | P81: 70 | Q81: 899 | R81: 638.29
A82: 05128630000 | B82: 4019238130164 | C82: PN CON 285/70R19.5 146/144M CHS3 | D82: 28570195CHS3146M1 | E82: POIDS LOURDS | F82: CO CONT HYBRID HS3 | G82: 285 | H82: 70 | I82: R | J82: 19.5 | K82: 146/144 | L82: M | M82: C | N82: C | O82: A | P82: 69 | Q82: 723 | R82: 513.33
A83: 05128650000 | B83: 4019238130157 | C83: PN CON 265/70R19.5 140/138M CHS3 | D83: 26570195CHS3140M2 | E83: POIDS LOURDS | F83: CO CONT HYBRID HS3 | G83: 265 | H83: 70 | I83: R | J83: 19.5 | K83: 140/138 | L83: M | M83: C | N83: C | O83: A | P83: 69 | Q83: 576 | R83: 408.96
A84: 05128660000 | B84: 4019238130126 | C84: PN CON 245/70R19.5 136/134M CHS3 | D84: 24570195CHS3136M1 | E84: POIDS LOURDS | F84: CO CONT HYBRID HS3 | G84: 245 | H84: 70 | I84: R | J84: 19.5 | K84: 136/134 | L84: M | M84: C | N84: C | O84: A | P84: 69 | Q84: 582 | R84: 413.22
A85: 05128670000 | B85: 4019238130119 | C85: PN CON 305/70R19.5 148/145M CHS3 | D85: 30570195CHS3148M2 | E85: POIDS LOURDS | F85: CO CONT HYBRID HS3 | G85: 305 | H85: 70 | I85: R | J85: 19.5 | K85: 148/145 | L85: M | M85: C | N85: C | O85: A | P85: 70 | Q85: 889 | R85: 631.19
A86: 05128690000 | B86: 4019238130195 | C86: PN CON 315/80R22.5 156/150L COACH HA3 | D86: 31580225CONTICOA156L | E86: POIDS LOURDS | F86: CO COACH HA3 | G86: 315 | H86: 80 | I86: R | J86: 22.5 | K86: 156/150 | L86: L | M86: B | N86: B | O86: A | P86: 71 | Q86: 1012 | R86: 718.52
A87: 05128700000 | B87: 4019238296334 | C87: PN CON 295/80R22.5 154/149M COACH HA3 | D87: 29580225CONTICOA154M | E87: POIDS LOURDS | F87: CO COACH HA3 | G87: 295 | H87: 80 | I87: R | J87: 22.5 | K87: 154/149 | L87: M | M87: B | N87: B | O87: A | P87: 70 | Q87: 960 | R87: 681.6
A88: 05128920000 | B88: 4019238401318 | C88: PN CON 265/70R19.5 140/138M CHS3+ | D88: 26570195CHS3+140M | E88: POIDS LOURDS | F88: CO CONTHYBRID HS3+ | G88: 265 | H88: 70 | I88: R | J88: 19.5 | K88: 140/138 | L88: M | P88: 0 | Q88: 576 | R88: 408.96
A89: 05128930000 | B89: 4019238401325 | C89: PN CON 265/70R19.5 140/138M HYB HD3+ | D89: 26570195HYBHD3+140M | E89: POIDS LOURDS | F89: CO HYB HD3+ | G89: 265 | H89: 70 | I89: R | J89: 19.5 | K89: 140/138 | L89: M | P89: 0 | Q89: 576 | R89: 408.96
A90: 05128950000 | B90: 4019238401332 | C90: PN CON 225/70R19.5 130/128N CHS3+ | D90: 22570195CHS3+130N | E90: POIDS LOURDS | F90: CO CONTHYBRID HS3+ | G90: 225 | H90: 70 | I90: R | J90: 19.5 | K90: 130/128 | L90: N | P90: 0 | Q90: 569 | R90: 403.99
A91: 05130110000 | B91: 4019238518542 | C91: PN CON 315/60R22.5 154/150 L HSW2 SCAN | D91: 31560225HSW2SL154150 | E91: POIDS LOURDS | F91: CO HDW2 SCANDI | G91: 315 | H91: 60 | I91: R | J91: 22.5 | K91: 154 | L91: L | M91: C | N91: C | O91: B | P91: 73 | Q91: 1063 | R91: 754.73
A92: 05130160000 | B92: 4019238540826 | C92: PN CON 265/70R19.5 140M SCAND HD3 EU | D92: 26570195CSD3M140138 | E92: POIDS LOURDS | F92: CO SCAND HD3 | G92: 265 | H92: 70 | I92: R | J92: 19.5 | K92: 140 | L92: M | M92: D | N92: C | O92: B | P92: 75 | Q92: 611 | R92: 433.81
A93: 05130210000 | B93: 4019238560060 | C93: PN CON 265/70R19.5 140M SCAND HS3 LRH | D93: 26570195CSS3M140138 | E93: POIDS LOURDS | F93: CO SCANDINAV HS3 | G93: 265 | H93: 70 | I93: R | J93: 19.5 | K93: 140 | L93: M | M93: C | N93: C | O93: B | P93: 73 | Q93: 611 | R93: 433.81
A94: 05130310000 | B94: 4019238033137 | C94: PN CON 315/70R22.5 156/150L SC HS3 | D94: 31570225SCHS3156L | E94: POIDS LOURDS | F94: CO SCANDINAV HS3 | G94: 315 | H94: 70 | I94: R | J94: 22.5 | K94: 156 | L94: L | M94: C | N94: B | O94: B | P94: 72 | Q94: 1000 | R94: 710
A95: 05130320000 | B95: 4019238033144 | C95: PN CON 315/80R22.5 156/150L SC HS3 | D95: 31580225SCHS3156L | E95: POIDS LOURDS | F95: CO SCANDINAV HS3 | G95: 315 | H95: 80 | I95: R | J95: 22.5 | K95: 156 | L95: L | M95: C | N95: B | O95: B | P95: 72 | Q95: 1032 | R95: 732.72
A96: 05130330000 | B96: 4019238033151 | C96: PN CON 385/65R22.5 164K SC HS3 | D96: 38565225SCHS3164K | E96: POIDS LOURDS | F96: CO SCANDINAV HS3 | G96: 385 | H96: 65 | I96: R | J96: 22.5 | K96: 164 | L96: K | M96: C | N96: B | O96: B | P96: 74 | Q96: 1052 | R96: 746.92
A97: 05130460000 | B97: 4019238043433 | C97: PN CON 285/70R19.5 146/144M SC HS3 | D97: 28570195SCHS3146M | E97: POIDS LOURDS | F97: CO SCANDINAV HS3 | G97: 285 | H97: 70 | I97: R | J97: 19.5 | K97: 146 | L97: M | M97: D | N97: C | O97: B | P97: 72 | Q97: 752 | R97: 533.92
A98: 05130470000 | B98: 4019238046946 | C98: PN CON 385/55R22.5 160K SC HS3 | D98: 38555225SCHS3160K | E98: POIDS LOURDS | F98: CO SCANDINAV HS3 | G98: 385 | H98: 55 | I98: R | J98: 22.5 | K98: 160 | L98: K | M98: C | N98: B | O98: B | P98: 73 | Q98: 1093 | R98: 776.03
A99: 05130570000 | B99: 4019238067415 | C99: PN CON 295/80R22.5 154/149M CSS3 | D99: 29580225CSS3154M | E99: POIDS LOURDS | F99: CO CSS3 | G99: 295 | H99: 80 | I99: R | J99: 22.5 | K99: 154 | L99: M | M99: C | N99: B | O99: B | P99: 72 | Q99: 988 | R99: 701.48
A100: 05130610000 | B100: 4019238072624 | C100: PN CON 295/80R22.5 154/149M HSW2+ COACH | D100: 29580225HSW2+COA154M | E100: POIDS LOURDS | F100: CO HSW2 + COACH | G100: 295 | H100: 80 | I100: R | J100: 22.5 | K100: 154 | L100: M | M100: C | N100: C | O100: B | P100: 73 | Q100: 959 | R100: 680.89
A101: 05130620000 | B101: 4019238072617 | C101: PN CON 315/80R22.5 156/150L HSW2 + COACH | D101: 31580225HSW2+COA156L | E101: POIDS LOURDS | F101: CO HSW2 + COACH | G101: 315 | H101: 80 | I101: R | J101: 22.5 | K101: 156 | L101: L | M101: C | N101: C | O101: B | P101: 73 | Q101: 992 | R101: 704.32
A102: 05130720000 | B102: 4019238094220 | C102: PN CON 355/50R22.5 156L HDW2SCA | D102: 35550225HDW2SCA156L | E102: POIDS LOURDS | F102: CO HDW2 SCANDI | G102: 355 | H102: 50 | I102: R | J102: 22.5 | K102: 156 | L102: L | M102: C | N102: C | O102: B | P102: 73 | Q102: 1110 | R102: 788.1
A103: 05140960000 | B103: 4019238021103 | C103: PN CON 305/70R22.5 152K154E URB HA3 3PM | D103: 30570225URBH3P152K | E103: POIDS LOURDS | F103: CO URBAN HA3 | G103: 305 | H103: 70 | I103: R | J103: 22.5 | K103: 154/150 | M103: C | N103: C | O103: A | P103: 71 | Q103: 979 | R103: 695.09
A104: 05141140000 | B104: 4019238034240 | C104: PN CON 295/80R22.5 154/149M CR HA3 | D104: 29580225CRHA3154M | E104: POIDS LOURDS | F104: CO COACH HA3 | G104: 295 | H104: 80 | I104: R | J104: 22.5 | K104: 154 | L104: M | M104: C | N104: B | O104: A | P104: 71 | Q104: 960 | R104: 681.6
A105: 05141220000 | B105: 4019238060713 | C105: PN CON 315/60R22.5 156/150J CUA3MS | D105: 31560225CUA3MS156J | E105: POIDS LOURDS | F105: CO URBAN HA3 | G105: 315 | H105: 60 | I105: R | J105: 22.5 | K105: 156 | L105: J | M105: C | N105: C | O105: A | P105: 71 | Q105: 1063 | R105: 754.73
A106: 05141490000 | B106: 4019238089493 | C106: PN CON 275/70R22.5 152/148J URBAN HA5 | D106: 27570225URBANHA5152J | E106: POIDS LOURDS | F106: CO URBAN HA5 | G106: 275 | H106: 70 | I106: R | J106: 22.5 | K106: 152/148 | L106: J | P106: 0 | Q106: 882 | R106: 626.22
A107: 05153270000 | B107: 4019238662450 | C107: PN CON 13R22.5 156/150K CROSSTR HS3 | D107: 13225CXA3K156150 | E107: POIDS LOURDS | F107: CO HS3 C CROSSTRAC | G107: 13 | I107: R | J107: 22.5 | K107: 156 | L107: K | M107: D | N107: B | O107: A | P107: 70 | Q107: 979 | R107: 695.09
A108: 05153280000 | B108: 4019238662443 | C108: PN CON 385/65R22.5 160K/158L HS3 CROSS T | D108: 38565225HS3CROSS160K | E108: POIDS LOURDS | F108: CO HS3 C CROSSTRAC | G108: 385 | H108: 65 | I108: R | J108: 22.5 | K108: 160 | L108: K | M108: C | N108: B | O108: B | P108: 72 | Q108: 1010 | R108: 717.1
A109: 05153350000 | B109: 4019238669138 | C109: PN CON 385/65R22.5 164K HS3 CROSS TRAC | D109: 38565225HS3CROSS164K | E109: POIDS LOURDS | F109: CO HS3 C CROSSTRAC | G109: 385 | H109: 65 | I109: R | J109: 22.5 | K109: 164 | L109: K | M109: C | N109: B | O109: B | P109: 72 | Q109: 1019 | R109: 723.49
A110: 05155060000 | B110: 4019238023008 | C110: PN CON 395/85R20 168/166J HCS | D110: 3958520HCS168JCO | E110: POIDS LOURDS | F110: CO HCS | G110: 395 | H110: 85 | I110: R | J110: 20 | K110: 168 | L110: J | P110: 0 | Q110: 2223 | R110: 1578.33
A111: 05155290000 | B111: 4019238030662 | C111: PN CON 12 R22.5 152/148K HSC1 ED | D111: 12225HSC1ED152KCO | E111: POIDS LOURDS | F111: CO HSC1 ED | G111: 12 | I111: R | J111: 22.5 | K111: 152 | L111: K | M111: D | N111: C | O111: B | P111: 73 | Q111: 935 | R111: 663.85
A112: 05155300000 | B112: 4019238030754 | C112: PN CON 315/80R22.5 156/150K HSC1 ED | D112: 31580225HSC1ED156KCO | E112: POIDS LOURDS | F112: CO HSC1 ED | G112: 315 | H112: 80 | I112: R | J112: 22.5 | K112: 156 | L112: K | M112: D | N112: C | O112: B | P112: 73 | Q112: 982 | R112: 697.22
A113: 05155400000 | B113: 4019238033250 | C113: PN CON 315/80R22.5 156/150K CROSSTR HS3 | D113: 31580225CROSTHS3156K | E113: POIDS LOURDS | F113: CO HS3 C CROSSTRAC | G113: 315 | H113: 80 | I113: R | J113: 22.5 | K113: 156 | L113: K | M113: C | N113: B | O113: B | P113: 72 | Q113: 982 | R113: 697.22
A114: 05155500000 | B114: 4019238032857 | C114: PN CON 325/95R24 162/160K HSC1 TT | D114: 3259524HSC1TT162K | E114: POIDS LOURDS | F114: CO HSC1 | G114: 325 | H114: 95 | I114: R | J114: 24 | K114: 162 | L114: K | M114: D | N114: D | O114: B | P114: 73 | Q114: 1246 | R114: 884.66
A115: 05155580000 | B115: 4019238036992 | C115: PN CON 11 R22.5 148/145K HSC1 | D115: 11225HSC1148K | E115: POIDS LOURDS | F115: CO HSC1 | G115: 11 | I115: R | J115: 22.5 | K115: 148 | L115: K | M115: D | N115: C | O115: B | P115: 73 | Q115: 761 | R115: 540.31
A116: 05155930000 | B116: 4019238064865 | C116: PN CON 12.00 R20 154/151K HSC TT | D116: 120020HSCTT154K | E116: POIDS LOURDS | F116: CO HSC | G116: 12 | I116: R | J116: 20 | K116: 154 | L116: K | M116: D | N116: D | O116: B | P116: 71 | Q116: 1000 | R116: 710
A117: 05155950000 | B117: 4019238072235 | C117: PN CON 13 R22.5 156/150K HSC1ED | D117: 13225HSC1ED156K2 | E117: POIDS LOURDS | F117: CO HSC1 ED | G117: 13 | I117: R | J117: 22.5 | K117: 156 | L117: K | M117: D | N117: C | O117: B | P117: 73 | Q117: 979 | R117: 695.09
A118: 05155960000 | B118: 4019238084580 | C118: PN CON 295/80R22.5 154/149K CROSS TRAC H | D118: 29580225CROSSTRA154K | E118: POIDS LOURDS | F118: CO HS3 C CROSSTRAC | G118: 295 | H118: 80 | I118: R | J118: 22.5 | K118: 154 | L118: K | M118: C | N118: B | O118: B | P118: 72 | Q118: 968 | R118: 687.28
A119: 05160250000 | B119: 4019238545081 | C119: PN CON 14.00R20 160/157 K HSO SAND | D119: 140020HSOSAK160157 | E119: POIDS LOURDS | F119: CO HSO SAND | G119: 14 | I119: R | J119: 20 | K119: 160 | L119: K | P119: 0 | Q119: 1721 | R119: 1221.91
A120: 05160260000 | B120: 4019238545098 | C120: PN CON 14.00R20 160/157 K HSO SAND TT | D120: 140020HSOSATTK160157 | E120: POIDS LOURDS | F120: CO HSO SAND | G120: 14 | I120: R | J120: 20 | K120: 160 | L120: K | P120: 0 | Q120: 1721 | R120: 1221.91
A121: 05160440000 | B121: 4019238000368 | C121: PN CON 13R22.5 149/146J HSO | D121: 13225HSO149J | E121: POIDS LOURDS | F121: CO HSO | G121: 13 | I121: R | J121: 22.5 | K121: 149 | L121: J | P121: 0 | Q121: 938 | R121: 665.98
A122: 05160520000 | C122: PN CON 16.00/100R20 172/169G CONTI URBAN | D122: 160010020CONTIUR172G | E122: POIDS LOURDS | F122: CO SOT HA3 | G122: 16 | H122: 100 | I122: R | J122: 20 | K122: 172/169 | L122: G | P122: 0 | Q122: 1914 | R122: 1358.94
A123: 05160540000 | B123: 4019238032628 | C123: PN CON 365/85R20 164J HCS POR | D123: 3658520HCSPO164J | E123: POIDS LOURDS | F123: CO HCS | G123: 365 | H123: 85 | I123: R | J123: 20 | K123: 164 | L123: J | P123: 0 | Q123: 1930 | R123: 1370.3
A124: 05160560000 | B124: 4019238032840 | C124: PN CON 325/95R24 162/160K HCS POR TT | D124: 3259524HCSPOTT162K | E124: POIDS LOURDS | F124: CO HCS | G124: 325 | H124: 95 | I124: R | J124: 24 | K124: 162 | L124: K | P124: 0 | Q124: 1294 | R124: 918.74
A125: 05160580000 | B125: 4019238055436 | C125: PN CON 14.00 R20 164/160K HCS POR | D125: 140020HCSPO164K | E125: POIDS LOURDS | F125: CO HCS | G125: 14 | I125: R | J125: 20 | K125: 166 | L125: G | P125: 0 | Q125: 1721 | R125: 1221.91
A126: 05160660000 | B126: 4019238060928 | C126: PN CON 445/65R22.5 169K HCS | D126: 44565225HCS169K2 | E126: POIDS LOURDS | F126: CO HCS | G126: 445 | H126: 65 | I126: R | J126: 22.5 | K126: 169 | L126: K | P126: 0 | Q126: 1506 | R126: 1069.26
A127: 05160770000 | B127: 4019238190878 | C127: PN CON 14.00/100R20 164/160K HCS | D127: 140010020HCS164K | E127: POIDS LOURDS | F127: CO HCS | G127: 14 | H127: 100 | I127: R | J127: 20 | K127: 164/160 | L127: K | P127: 0 | Q127: 1721 | R127: 1221.91
A128: 05210730000 | B128: 4019238630664 | C128: PN CON 295/80R22.5 154/149M COACH HD3 | D128: 29580225CCD3M154149 | E128: POIDS LOURDS | F128: CO CONTI COACH HD3 | G128: 295 | H128: 80 | I128: R | J128: 22.5 | K128: 154 | L128: M | M128: C | N128: B | O128: A | P128: 73 | Q128: 960 | R128: 681.6
A129: 05211630000 | B129: 4019238043907 | C129: PN CON 315/70R22.5 154L152M ECOPLUS HD3 | D129: 31570225ECO+HD3+154L | E129: POIDS LOURDS | F129: CO CO ECOPLUS HD3+ | G129: 315 | H129: 70 | I129: R | J129: 22.5 | K129: 154 | L129: L | M129: B | N129: C | O129: A | P129: 73 | Q129: 991 | R129: 703.61
A130: 05211840000 | B130: 4019238062151 | C130: PN CON 315/80R22.5 156L154M ECOPLUS HD3 | D130: 31580225ECO+HD3+156L | E130: POIDS LOURDS | F130: CO CO ECOPLUS HD3+ | G130: 315 | H130: 80 | I130: R | J130: 22.5 | K130: 156 | L130: L | M130: B | N130: C | O130: A | P130: 73 | Q130: 1002 | R130: 711.42
A131: 05211850000 | B131: 4019238062144 | C131: PN CON 315/60R22.5 152/148L ECOPLUS HD3 | D131: 31560225ECO+HD3+152L | E131: POIDS LOURDS | F131: CO CO ECOPLUS HD3+ | G131: 315 | H131: 60 | I131: R | J131: 22.5 | K131: 152 | L131: L | M131: B | N131: C | O131: A | P131: 73 | Q131: 1083 | R131: 768.93
A132: 05211860000 | B132: 4019238062205 | C132: PN CON 295/55R22.5 147/145K ECOPLUS HD3 | D132: 29555225ECO+HD3+147K | E132: POIDS LOURDS | F132: CO CO ECOPLUS HD3+ | G132: 295 | H132: 55 | I132: R | J132: 22.5 | K132: 147 | L132: K | M132: C | N132: C | O132: A | P132: 73 | Q132: 1159 | R132: 822.89
A133: 05211880000 | B133: 4019238062199 | C133: PN CON 295/60R22.5 150/147L ECOPLUS HD3 | D133: 29560225ECO+HD3+150L | E133: POIDS LOURDS | F133: CO CO ECOPLUS HD3+ | G133: 295 | H133: 60 | I133: R | J133: 22.5 | K133: 150 | L133: L | M133: C | N133: C | O133: A | P133: 73 | Q133: 988 | R133: 701.48
A134: 05212160000 | B134: 4019238089707 | C134: PN CON 315/70R22.5 154/150L EFFICIENTPRO | D134: 31570225EFFICIEN154L | E134: POIDS LOURDS | F134: CO EFFICIENTPRO D+ | G134: 315 | H134: 70 | I134: R | J134: 22.5 | K134: 154/150 | L134: L | M134: A | N134: C | O134: A | P134: 73 | Q134: 1058 | R134: 751.18
A135: 05220870000 | B135: 4019238560008 | C135: PN CON 305/70R19.5 148/145M HYBRID HD3 | D135: 30570195HYBHD3148M | E135: POIDS LOURDS | F135: CO HYBRID HD3 | G135: 305 | H135: 70 | I135: R | J135: 19.5 | K135: 148 | L135: M | M135: C | N135: C | O135: B | P135: 76 | Q135: 889 | R135: 631.19
A136: 05220880000 | B136: 4019238560046 | C136: PN CON 285/70R19.5 146/138M HYBRID HD3 | D136: 28570195CHD3M145143 | E136: POIDS LOURDS | F136: CO HYBRID HD3 | G136: 285 | H136: 70 | I136: R | J136: 19.5 | K136: 146 | L136: M | M136: C | N136: C | O136: B | P136: 74 | Q136: 723 | R136: 513.33
A137: 05220900000 | B137: 4019238560107 | C137: PN CON 245/70R19.5 136/134M HYBRID HD3 | D137: 24570195CHD3M136134 | E137: POIDS LOURDS | F137: CO HYBRID HD3 | G137: 245 | H137: 70 | I137: R | J137: 19.5 | K137: 136 | L137: M | M137: D | N137: C | O137: B | P137: 74 | Q137: 582 | R137: 413.22
A138: 05221420000 | B138: 4019238636390 | C138: PN CON 295/80R22.5 152/148 M HDR2 +ED | D138: 29580225HDR2M1521482 | E138: POIDS LOURDS | F138: CO HDR2+ ED | G138: 295 | H138: 80 | I138: R | J138: 22.5 | K138: 152 | L138: M | M138: E | N138: C | O138: B | P138: 76 | Q138: 950 | R138: =Q138*(1-$D$3) -> 674.5
A139: 05221430000 | B139: 4019238630701 | C139: PN CON 315/80R22.5 156/150 L HDR2 +ED | D139: 31580225HDR2+EL15615 | E139: POIDS LOURDS | F139: CO HDR2+ ED | G139: 315 | H139: 80 | I139: R | J139: 22.5 | K139: 156 | L139: L | M139: D | N139: C | O139: B | P139: 76 | Q139: 972 | R139: 690.12
A140: 05223040000 | B140: 4019238820140 | C140: PN CON 315/70R22.5 154/150L CLP D M+S | D140: 31570225CLPDM+154L | E140: POIDS LOURDS | F140: CO LIGHTPRO D | G140: 315 | H140: 70 | I140: R | J140: 22.5 | K140: 154 | L140: L | M140: C | N140: B | O140: A | P140: 73 | Q140: 1058 | R140: 751.18
A141: 05223310000 | B141: 4019238011098 | C141: PN CON 11 R22.5 148/145L HDR | D141: 11225HDR148L | E141: POIDS LOURDS | F141: CO HDR | G141: 11 | I141: R | J141: 22.5 | K141: 148 | L141: L | M141: E | N141: C | O141: B | P141: 75 | Q141: 731 | R141: 519.01
A142: 05223460000 | B142: 4019238011272 | C142: PN CON 305/70R22.5 150/148M HDR | D142: 30570225HDR150148M | E142: POIDS LOURDS | F142: CO HDR | G142: 305 | H142: 70 | I142: R | J142: 22.5 | K142: 150 | L142: M | M142: D | N142: C | O142: B | P142: 75 | Q142: 932 | R142: 661.72
A143: 05224100000 | B143: 4019238035711 | C143: PN CON 295/80R22.5 152/148M ECOR HD3 | D143: 29580225ECORHD3152M | E143: POIDS LOURDS | F143: CO ECOREGION HD3 | G143: 295 | H143: 80 | I143: R | J143: 22.5 | K143: 152 | L143: M | M143: C | N143: C | O143: A | P143: 73 | Q143: 969 | R143: 687.99
A144: 05224440000 | B144: 4019238046137 | C144: PN CON 315/70R22.5 154/150L HYBRID HD5 | D144: 31570225HYBRIDHD154L | E144: POIDS LOURDS | F144: CO HYBRID HD5 | G144: 315 | H144: 70 | I144: R | J144: 22.5 | K144: 154 | L144: L | M144: C | N144: C | P144: 76 | Q144: 991 | R144: 703.61
A145: 05224850000 | B145: 4019238068993 | C145: PN CON 315/70R22.5 154/150L CONTI ECOREG | D145: 31570225CONTIECO154L | E145: POIDS LOURDS | F145: CO HD3+ ECOREGION | G145: 315 | H145: 70 | I145: R | J145: 22.5 | K145: 154 | L145: L | M145: C | N145: C | O145: A | P145: 73 | Q145: 1001 | R145: 710.71
A146: 05224860000 | B146: 4019238069006 | C146: PN CON 315/80R22.5 156/150L CONTI ECOREG | D146: 31580225CONTECO156L | E146: POIDS LOURDS | F146: CO HD3+ ECOREGION | G146: 315 | H146: 80 | I146: R | J146: 22.5 | K146: 156 | L146: L | M146: C | N146: C | O146: A | P146: 73 | Q146: 1011 | R146: 717.81
A147: 05224890000 | B147: 4019238071191 | C147: PN CON 315/80R22.5 156/150L HYBRID HD5 | D147: 31580225HYBRIDHD156L | E147: POIDS LOURDS | F147: CO HYBRID HD5 | G147: 315 | H147: 80 | I147: R | J147: 22.5 | K147: 156 | L147: L | M147: C | N147: C | P147: 75 | Q147: 1002 | R147: 711.42
A148: 05225540000 | B148: 4019238090819 | C148: PN CON 265/70R19.5 140/138M CONTI HYBRID | D148: 26570195CONTIHYB140M | E148: POIDS LOURDS | F148: CO HYBRID HD3 | G148: 265 | H148: 70 | I148: R | J148: 19.5 | K148: 140 | L148: M | M148: D | N148: C | O148: B | P148: 76 | Q148: 576 | R148: 408.96
A149: 05225570000 | B149: 4019238083613 | C149: PN CON 295/60R22.5 150/147L CONTI HYBRID | D149: 29560225CONTIHYB150L | E149: POIDS LOURDS | F149: CO HYBRID HD3 | G149: 295 | H149: 60 | I149: R | J149: 22.5 | K149: 150 | L149: L | M149: D | N149: C | P149: 73 | Q149: 960 | R149: 681.6
A150: 05225580000 | B150: 4019238084573 | C150: PN CON 295/80R22.5 152/148M HYBRID HD5 | D150: 29580225HYBRIDHD152M | E150: POIDS LOURDS | F150: CO HYBRID HD5 | G150: 295 | H150: 80 | I150: R | J150: 22.5 | K150: 152/148 | L150: M | M150: D | N150: B | P150: 76 | Q150: 978 | R150: 694.38
A151: 05225620000 | B151: 4019238090390 | C151: PN CON 275/70R22.5 148/145M HYBRID HD5 | D151: 27570225HYBRIDHD148M | E151: POIDS LOURDS | F151: CO HYBRID HD5 | G151: 275 | H151: 70 | I151: R | J151: 22.5 | K151: 148/145 | L151: M | P151: 0 | Q151: 873 | R151: 619.83
A152: 05225860000 | B152: 4019238098778 | C152: PN CON 295/55R22.5 147/145K CHD3 | D152: 29555225CHD3147K | E152: POIDS LOURDS | F152: CO HYBRID HD3 | G152: 295 | H152: 55 | I152: R | J152: 22.5 | K152: 147/145 | L152: K | M152: C | N152: C | O152: A | P152: 73 | Q152: 1125 | R152: 798.75
A153: 05225890000 | B153: 4019238130140 | C153: PN CON 315/60R22.5 152/148L CHD3 | D153: 31560225CHD3152L | E153: POIDS LOURDS | F153: CO HYBRID HD3 | G153: 315 | H153: 60 | I153: R | J153: 22.5 | K153: 152/148 | L153: L | M153: C | N153: C | O153: A | P153: 73 | Q153: 1052 | R153: 746.92
A154: 05225910000 | B154: 4019238130102 | C154: PN CON 275/70R22.5 148/145M CHD3 | D154: 27570225CHD3148M | E154: POIDS LOURDS | F154: CO HYBRID HD3 | G154: 275 | H154: 70 | I154: R | J154: 22.5 | K154: 148/145 | L154: M | M154: D | N154: C | O154: A | P154: 73 | Q154: 848 | R154: 602.08
A155: 05225960000 | B155: 4019238401349 | C155: PN CON 225/70R19.5 130/128N HYB HD3+ | D155: 22570195HYBHD3+130N | E155: POIDS LOURDS | F155: CO HYB HD3+ | G155: 225 | H155: 70 | I155: R | J155: 19.5 | K155: 130/128 | L155: N | P155: 0 | Q155: 569 | R155: 403.99
A156: 05230310000 | B156: 4019238630770 | C156: PN CON 275/70R22.5 148/145 M HDW2 SCAN | D156: 27570225HDW2SM148141 | E156: POIDS LOURDS | F156: CO HDW2 SC | G156: 275 | H156: 70 | I156: R | J156: 22.5 | K156: 148 | L156: M | M156: E | N156: C | O156: B | P156: 75 | Q156: 848 | R156: 602.08
A157: 05230320000 | B157: 4019238630978 | C157: PN CON 315/60R22.5 152/148 L HDW2 SCAN | D157: 31560225HDW2SL152141 | E157: POIDS LOURDS | F157: CO HDW2 SC | G157: 315 | H157: 60 | I157: R | J157: 22.5 | K157: 152 | L157: L | M157: D | N157: C | O157: B | P157: 75 | Q157: 1052 | R157: 746.92
A158: 05230330000 | B158: 4019238630961 | C158: PN CON 295/60R22.5 150/147 L HDW2 SCAN | D158: 29560225HDW2SL150141 | E158: POIDS LOURDS | F158: CO HDW2 SC | G158: 295 | H158: 60 | I158: R | J158: 22.5 | K158: 150 | L158: L | M158: D | N158: C | O158: B | P158: 75 | Q158: 959 | R158: 680.89
A159: 05230480000 | B159: 4019238011128 | C159: PN CON 13 R22.5 154/150K HDW | D159: 13225HDW16154K | E159: POIDS LOURDS | F159: CO HDW | G159: 13 | I159: R | J159: 22.5 | K159: 154 | L159: K | M159: E | N159: C | O159: B | P159: 74 | Q159: 903 | R159: 641.13
A160: 05230500000 | B160: 4019238033274 | C160: PN CON 295/80R22.5 152/148M SC HD3 | D160: 29580225SCHD3152M | E160: POIDS LOURDS | F160: CO SCAND HD3 | G160: 295 | H160: 80 | I160: R | J160: 22.5 | K160: 152 | L160: M | M160: D | N160: B | O160: B | P160: 75 | Q160: 988 | R160: 701.48
A161: 05230580000 | B161: 4019238043440 | C161: PN CON 285/70R19.5 146/144M SC HD3 | D161: 28570195SCHD3146M | E161: POIDS LOURDS | F161: CO SCAND HD3 | G161: 285 | H161: 70 | I161: R | J161: 19.5 | K161: 146 | L161: M | M161: D | N161: C | O161: B | P161: 75 | Q161: 752 | R161: 533.92
A162: 05230740000 | B162: 4019238074710 | C162: PN CON 254/85R22.5 144/142K RMS | D162: 25485225RMS144K | E162: POIDS LOURDS | F162: CO RMS | G162: 254 | H162: 85 | I162: R | J162: 22.5 | K162: 144 | L162: K | M162: D | N162: C | O162: B | P162: 74 | Q162: 938 | R162: 665.98
A163: 05230810000 | B163: 4019238400960 | C163: PN CON 295/80R22.5 154/149M HDW2CO | D163: 29580225HDW2CO154M | E163: POIDS LOURDS | F163: CO HDW2 COACH | G163: 295 | H163: 80 | I163: R | J163: 22.5 | K163: 154/149 | L163: M | M163: D | N163: C | O163: B | P163: 76 | Q163: 950 | R163: 674.5
A164: 05230850000 | B164: 4019238289237 | C164: PN CON 315/70R22.5 154/150L SCHD3 | D164: 31570225SCHD3154L2 | E164: POIDS LOURDS | F164: CO SCAND HD3 | G164: 315 | H164: 70 | I164: R | J164: 22.5 | K164: 154/150 | L164: L | M164: D | N164: C | P164: 76 | Q164: 1000 | R164: 710
A165: 05230860000 | B165: 4019238290356 | C165: PN CON 295/80R22.5 152/148M SCHD3 | D165: 29580225SCHD3152M2 | E165: POIDS LOURDS | F165: CO SCAND HD3 | G165: 295 | H165: 80 | I165: R | J165: 22.5 | K165: 152/148 | L165: M | P165: 0 | Q165: 988 | R165: 701.48
A166: 05250780000 | B166: 4019238659962 | C166: PN CON 315/80R22.5 156/150K CROSSTR HD3 | D166: 31580225CXDL156150 | E166: POIDS LOURDS | F166: CO HD3 CCROSSTRAC | G166: 315 | H166: 80 | I166: R | J166: 22.5 | K166: 156 | L166: K | M166: D | N166: B | O166: B | P166: 76 | Q166: 982 | R166: 697.22
A167: 05251350000 | B167: 4019238006070 | C167: PN CON 13R22.5 156/150G HDC1 ED | D167: 13225HDC1ED156G150 | E167: POIDS LOURDS | F167: CO HDC1 ED | G167: 13 | I167: R | J167: 22.5 | K167: 156 | L167: G | M167: E | N167: C | O167: B | P167: 74 | Q167: 979 | R167: 695.09
A168: 05251450000 | B168: 4019238000344 | C168: PN CON 12R22.5 152/148K HDC1 | D168: 12225HDC1152K | E168: POIDS LOURDS | F168: CO HDC1 | G168: 12 | I168: R | J168: 22.5 | K168: 152 | L168: K | M168: E | N168: C | O168: B | P168: 74 | Q168: 899 | R168: 638.29
A169: 05251470000 | B169: 4019238000382 | C169: PN CON 315/80R22.5 156/150K HDC1 | D169: 31580225HDC1156K | E169: POIDS LOURDS | F169: CO HDC1 | G169: 315 | H169: 80 | I169: R | J169: 22.5 | K169: 156 | L169: K | M169: D | N169: C | O169: B | P169: 74 | Q169: 944 | R169: 670.24
A170: 05251500000 | B170: 4019238000320 | C170: PN CON 12.00R20 154/150K HDC TT | D170: 120020HDCTT154K150 | E170: POIDS LOURDS | F170: CO HDC | G170: 12 | I170: R | J170: 20 | K170: 154 | L170: K | M170: E | N170: C | O170: B | P170: 76 | Q170: 1000 | R170: 710
A171: 05251650000 | B171: 4019238011234 | C171: PN CON 385/55R22.5 158/160K HDC | D171: 38555225HDC158K | E171: POIDS LOURDS | F171: CO HDC | G171: 385 | H171: 55 | I171: R | J171: 22.5 | K171: 160 | L171: J | M171: D | N171: C | O171: B | P171: 76 | Q171: 1009 | R171: 716.39
A172: 05251860000 | B172: 4019238032574 | C172: PN CON 315/80R22.5 156/150K HDC1 ED | D172: 31580225HDC1ED156KCO | E172: POIDS LOURDS | F172: CO HDC1 ED | G172: 315 | H172: 80 | I172: R | J172: 22.5 | K172: 156 | L172: K | M172: D | N172: C | O172: B | P172: 74 | Q172: 982 | R172: 697.22
A173: 05252140000 | B173: 4019238074765 | C173: PN CON 2385/65R22.5 162K HDC | D173: 238565225HDC162K | E173: POIDS LOURDS | F173: CO HDC | G173: 2385 | H173: 65 | I173: R | J173: 22.5 | K173: 162 | L173: K | M173: D | N173: C | O173: B | P173: 75 | Q173: 971 | R173: 689.41
A174: 05252200000 | B174: 4019238130188 | C174: PN CON 13 R22.5 156/150K CROSSTRACHD3 | D174: 1385225CROSSTRAC156K | E174: POIDS LOURDS | F174: CO HD3 CCROSSTRAC | G174: 13 | I174: R | J174: 22.5 | K174: 156/150 | L174: K | M174: E | N174: C | O174: B | P174: 75 | Q174: 979 | R174: 695.09
A175: 05252210000 | B175: 4019238130171 | C175: PN CON 295/80R22.5 152/148K CROSSTRACHD3 | D175: 29580225CROSSTRA152K | E175: POIDS LOURDS | F175: CO HD3 CCROSSTRAC | G175: 295 | H175: 80 | I175: R | J175: 22.5 | K175: 152/148 | L175: K | M175: D | N175: C | O175: B | P175: 76 | Q175: 968 | R175: 687.28
A176: 05310860000 | B176: 4019238066753 | C176: PN CON 385/55R22.5 160K CONTI ECOPLUS H | D176: 38555225CONTECO160K | E176: POIDS LOURDS | F176: CO ECOPLUS HT3+ | G176: 385 | H176: 55 | I176: R | J176: 22.5 | K176: 160 | L176: K | M176: A | N176: C | O176: A | P176: 70 | Q176: 989 | R176: 702.19
A177: 05310870000 | B177: 4019238066746 | C177: PN CON 385/65R22.5 160K CONTI ECOPLUS H | D177: 38565225CONTIECO160K | E177: POIDS LOURDS | F177: CO ECOPLUS HT3+ | G177: 385 | H177: 65 | I177: R | J177: 22.5 | K177: 160 | L177: K | M177: A | N177: C | O177: A | P177: 70 | Q177: 944 | R177: 670.24
A178: 05320410000 | B178: 4019238560015 | C178: PN CON 285/70R19.5 150/148K SCA HT3 LRJ | D178: 28570195CST3K150148 | E178: POIDS LOURDS | F178: CO SCAND HT3 | G178: 285 | H178: 70 | I178: R | J178: 19.5 | K178: 150 | L178: K | M178: C | N178: C | O178: B | P178: 72 | Q178: 752 | R178: 533.92
A179: 05321560000 | B179: 4019238013986 | C179: PN CON 265/70R19.5 143/141K HT3 SCAND | D179: 26570195CST3143FRK | E179: POIDS LOURDS | F179: CO SCAND HT3 | G179: 265 | H179: 70 | I179: R | J179: 19.5 | K179: 143 | L179: K | M179: D | N179: C | O179: B | P179: 72 | Q179: 622 | R179: 441.62
A180: 05321880000 | B180: 4019238031928 | C180: PN CON 385/65R22.5 160K HTC1 ED | D180: 38565225HTC1ED160K | E180: POIDS LOURDS | F180: CO HTC1 | G180: 385 | H180: 65 | I180: R | J180: 22.5 | K180: 160 | L180: K | M180: D | N180: B | O180: B | P180: 73 | Q180: 935 | R180: 663.85
A181: 05321890000 | B181: 4019238032581 | C181: PN CON 425/65R22.5 165K HTR2 FRT | D181: 42565225HTR2FR165K | E181: POIDS LOURDS | F181: CO HTR2 | G181: 425 | H181: 65 | I181: R | J181: 22.5 | K181: 165 | L181: K | M181: B | N181: C | O181: B | P181: 73 | Q181: 1280 | R181: 908.8
A182: 05321910000 | B182: 4019238035520 | C182: PN CON 315/80R22.5 156/150K HTR | D182: 31580225HTR156K | E182: POIDS LOURDS | F182: CO HTR | G182: 315 | H182: 80 | I182: R | J182: 22.5 | K182: 156 | L182: K | M182: C | N182: C | O182: B | P182: 72 | Q182: 708 | R182: 502.68
A183: 05321940000 | B183: 4019238036978 | C183: PN CON 445/65R22.5 169K HTR2 FRT | D183: 44565225HTR2FR169K | E183: POIDS LOURDS | F183: CO HTR2 | G183: 445 | H183: 65 | I183: R | J183: 22.5 | K183: 169 | L183: K | M183: C | N183: C | O183: B | P183: 73 | Q183: 1381 | R183: 980.51
A184: 05321980000 | B184: 4019238038002 | C184: PN CON 385/65R22.5 160 K CHT3 SR | D184: 38565225CHT3SRED160K | E184: POIDS LOURDS | F184: CO HYBRID HT3 | G184: 385 | H184: 65 | I184: R | J184: 22.5 | K184: 160 | L184: K | M184: C | N184: B | O184: B | P184: 72 | Q184: 944 | R184: 670.24
A185: 05322290000 | B185: 4019238048155 | C185: PN CON 385/55R22.5 160K/158L HYB HT3 SR | D185: 38555225HYBHT3SR160K | E185: POIDS LOURDS | F185: CO HYBRID HT3 SR | G185: 385 | H185: 55 | I185: R | J185: 22.5 | K185: 160 | L185: K | M185: C | N185: B | O185: B | P185: 71 | Q185: 989 | R185: 702.19
A186: 05322380000 | B186: 4019238062885 | C186: PN CON 385/55R19.5 156J CHT3+ | D186: 38555195CHT3+156J | E186: POIDS LOURDS | F186: CO CHT3+ | G186: 385 | H186: 55 | I186: R | J186: 19.5 | K186: 156 | L186: J | M186: B | N186: C | O186: A | P186: 70 | Q186: 1158 | R186: 822.18
A187: 05322390000 | B187: 4019238062892 | C187: PN CON 385/55R22.5 160K CHT3+ | D187: 38555225CHT3+160K | E187: POIDS LOURDS | F187: CO CHT3+ | G187: 385 | H187: 55 | I187: R | J187: 22.5 | K187: 160 | L187: K | M187: B | N187: C | O187: A | P187: 70 | Q187: 961 | R187: 682.31
A188: 05322760000 | B188: 4019238071283 | C188: PN CON 445/45R19.5 160J CHT3+ | D188: 44545195CHT3+160J | E188: POIDS LOURDS | F188: CO CHT3+ | G188: 445 | H188: 45 | I188: R | J188: 19.5 | K188: 160 | L188: J | M188: B | N188: C | P188: 73 | Q188: 1129 | R188: 801.59
A189: 05322770000 | B189: 4019238071276 | C189: PN CON 435/50R19.5 160J CHT3+ | D189: 43550195CHT3+160J | E189: POIDS LOURDS | F189: CO CHT3+ | G189: 435 | H189: 50 | I189: R | J189: 19.5 | K189: 160 | L189: J | M189: B | N189: C | P189: 73 | Q189: 1032 | R189: 732.72
A190: 05322780000 | B190: 4019238071269 | C190: PN CON 265/70R19.5 143/141K CHT3+ | D190: 26570195CHT3+143K | E190: POIDS LOURDS | F190: CO CHT3+ | G190: 265 | H190: 70 | I190: R | J190: 19.5 | K190: 143 | L190: K | M190: C | N190: C | O190: B | P190: 73 | Q190: 598 | R190: 424.58
A191: 05322790000 | B191: 4019238071252 | C191: PN CON 285/70R19.5 150/148K CHT3+ | D191: 28570195CHT3+150K | E191: POIDS LOURDS | F191: CO CHT3+ | G191: 285 | H191: 70 | I191: R | J191: 19.5 | K191: 150 | L191: K | M191: C | N191: C | O191: B | P191: 73 | Q191: 723 | R191: 513.33
A192: 05322960000 | B192: 4019238130041 | C192: PN CON 385/65R22.5 164K CHT3+ | D192: 38565225CHT3+164K1 | E192: POIDS LOURDS | F192: CO CHT3+ | G192: 385 | H192: 65 | I192: R | J192: 22.5 | K192: 164 | L192: K | M192: B | N192: C | O192: A | P192: 70 | Q192: 926 | R192: 657.46
A193: 05323010000 | B193: 4019238401417 | C193: PN CON 275/70R22.5 150/148J CHT3+ | D193: 27570225CHT3+150J | E193: POIDS LOURDS | F193: CO CHT3+ | G193: 275 | H193: 70 | I193: R | J193: 22.5 | K193: 150/148 | L193: J | P193: 0 | Q193: 839 | R193: 595.69
A194: 05330020000 | B194: 4019238540307 | C194: PN CON 235/75R17.5 143/141K SCAN HT3 | D194: 23575175CST3K143141 | E194: POIDS LOURDS | F194: CO SCAND HT3 | G194: 235 | H194: 75 | I194: R | J194: 17.5 | K194: 144/144 | M194: D | N194: C | O194: B | P194: 72 | Q194: 605 | R194: 429.55
A195: 05330030000 | B195: 4019238540345 | C195: PN CON 245/70R17.5 143/141L SCA HT3 | D195: 24570175CST3L143141 | E195: POIDS LOURDS | F195: CO SCAND HT3 | G195: 245 | H195: 70 | I195: R | J195: 17.5 | K195: 146/146 | M195: D | N195: C | O195: B | P195: 72 | Q195: 629 | R195: 446.59
A196: 05330060000 | B196: 4019238558791 | C196: PN CON 445/45R19.5 160 K HTW2 SCAN | D196: 44545195HTW2SK160 | E196: POIDS LOURDS | F196: CO HTW2 SCANDI | G196: 445 | H196: 45 | I196: R | J196: 19.5 | K196: 160 | L196: J | M196: C | N196: C | O196: B | P196: 73 | Q196: 1129 | R196: 801.59
A197: 05330110000 | B197: 4019238088113 | C197: PN CON 385/55R22.5 161K CONTI SCANDINAV | D197: 38555225CONTISCA161K | E197: POIDS LOURDS | F197: CO SCAN HT4 | G197: 385 | H197: 55 | I197: R | J197: 22.5 | K197: 161 | L197: K | M197: D | N197: B | O197: B | P197: 74 | Q197: 1029 | R197: 730.59
A198: 05330120000 | B198: 4019238088120 | C198: PN CON 385/65R22.5 164K SCHT3 | D198: 38565225SCHT3164K2 | E198: POIDS LOURDS | F198: CO SCAND HT3 | G198: 385 | H198: 65 | I198: R | J198: 22.5 | K198: 164 | L198: K | M198: C | N198: B | O198: B | P198: 74 | Q198: 953 | R198: 676.63
A199: 05350190000 | B199: 4019238630794 | C199: PN CON 445/65R22.5 169 K HTC1 EU LR | D199: 44565225HTC1EK169 | E199: POIDS LOURDS | F199: CO HTC1 | G199: 445 | H199: 65 | I199: R | J199: 22.5 | K199: 169 | L199: K | M199: C | N199: C | O199: B | P199: 74 | Q199: 1436 | R199: 1019.56
A200: 05350400000 | B200: 4019238011265 | C200: PN CON 425/65R22.5 165K HTC | D200: 42565225HTC16165K | E200: POIDS LOURDS | F200: CO HTC | G200: 425 | H200: 65 | I200: R | J200: 22.5 | K200: 165 | L200: K | M200: C | N200: C | O200: B | P200: 74 | Q200: 1331 | R200: 945.01
A201: 05350480000 | B201: 4019238045932 | C201: PN CON 275/70R22.5 148/145J HTC FRT | D201: 27570225HTCFR148J | E201: POIDS LOURDS | F201: CO HTC | G201: 275 | H201: 70 | I201: R | J201: 22.5 | K201: 148 | L201: J | M201: E | N201: C | O201: B | P201: 76 | Q201: 806 | R201: 572.26
A202: 05350540000 | B202: 4019238090840 | C202: PN CON 385/65R22.5 160K/158L HT3 CROSSTR | D202: 38565225HT3CROTT160K | E202: POIDS LOURDS | F202: CO HT3 CROSSTRAC | G202: 385 | H202: 65 | I202: R | J202: 22.5 | K202: 160 | L202: K | M202: C | N202: A | O202: B | P202: 72 | Q202: 935 | R202: =Q202*(1-$D$3) -> 663.85
A203: 05650040000 | B203: 4019238807226 | C203: PN CON IT 315/80R22.5 156/150L HYB HS3 | D203: 31580225HS3XL156L | E203: POIDS LOURDS | F203: CO CONT HYBRID HS3 | G203: 315 | H203: 80 | I203: R | J203: 22.5 | K203: 156 | L203: L | M203: C | N203: B | O203: A | P203: 69 | Q203: 957 | R203: 679.47
... 60 more rows

Sheet DUN
D2: Remise
D3: =Remises!J10 -> 0.285
A5: Actualisation au 04/04/2024
A7: REFERENCES PNEUMATIQUES | Q7: TARIFS
A8: CAI | B8: EAN | C8: Désignation | D8: Appellation | E8: Catégorie | F8: Profil | G8: Largeur | H8: Hauteur | I8: Structure | J8: Diamètre | K8: IC | L8: IV | M8: Conso. | N8: Frein. | O8: Bruit. | P8: Décibels. | Q8: Prix BF | R8: Prix Remisé
A9: 560532 | B9: 4038526256737 | C9: PN DUN 13R22.5 154/150 K SP 382 | D9: 13225SP382K154150 | E9: POIDS LOURDS | F9: DU SP382 | G9: 13 | I9: R | J9: 22.5 | K9: 156 | L9: G | M9: D | N9: B | O9: A | P9: 68 | Q9: 840 | R9: =Q9*(1-$D$3) -> 600.6
A10: 560670 | B10: 4038526260000 | C10: PN DUN 315/80R22.5 156/150 K SP 382 | D10: 31580225SP382K156150 | E10: POIDS LOURDS | F10: DU SP382 | G10: 315 | H10: 80 | I10: R | J10: 22.5 | K10: 156/150 | L10: K | M10: C | N10: B | O10: A | P10: 69 | Q10: 840 | R10: =Q10*(1-$D$3) -> 600.6
A11: 567633 | B11: 5452000432988 | C11: PN DUN 275/70R22.5 148 J SP 472* CITY | D11: 27570225SP472J148 | E11: POIDS LOURDS | F11: DU SP472 | G11: 275 | H11: 70 | I11: R | J11: 22.5 | K11: 152 | L11: E | M11: E | N11: B | O11: A | P11: 71 | Q11: 696 | R11: 497.64
A12: 568188 | B12: 5452000453570 | C12: PN DUN 315/80R22.5 156 L SP462 | D12: 31580225SP462L156DU | E12: POIDS LOURDS | F12: DU SP462 | G12: 315 | H12: 80 | I12: R | J12: 22.5 | K12: 156 | L12: L | M12: D | N12: B | O12: B | P12: 75 | Q12: 830 | R12: 593.45
A13: 568210 | B13: 5452000453594 | C13: PN DUN 295/80R22.5 152 L SP362 | D13: 29580225SP362L152 | E13: POIDS LOURDS | F13: DU SP362 | G13: 295 | H13: 80 | I13: R | J13: 22.5 | K13: 152/148 | L13: L | M13: D | N13: B | O13: B | P13: 72 | Q13: 788 | R13: 563.42
A14: 568212 | B14: 5452000453617 | C14: PN DUN 315/70R22.5 154 K SP362 | D14: 31570225SP362K154 | E14: POIDS LOURDS | F14: DU SP362 | G14: 315 | H14: 70 | I14: R | J14: 22.5 | K14: 154 | L14: K | M14: C | N14: C | O14: B | P14: 72 | Q14: 816 | R14: 583.44
A15: 568216 | B15: 5452000453631 | C15: PN DUN 315/80R22.5 156 K SP362 | D15: 31580225SP362K156 | E15: POIDS LOURDS | F15: DU SP362 | G15: 315 | H15: 80 | I15: R | J15: 22.5 | K15: 156 | L15: K | M15: C | N15: B | O15: B | P15: 73 | Q15: 830 | R15: 593.45
A16: 568882 | B16: 5452000540867 | C16: PN DUN 295/60R22.5 150K149L SP346 | D16: 29560225SP346150K | E16: POIDS LOURDS | F16: DU SP346 | G16: 295 | H16: 60 | I16: R | J16: 22.5 | K16: 150 | L16: K | M16: C | N16: C | O16: B | P16: 72 | Q16: 784 | R16: 560.56
A17: 568884 | B17: 5452000540881 | C17: PN DUN 295/80R22.5 154/149M SP346 3PSF | D17: 29580225SP346154M | E17: POIDS LOURDS | F17: DU SP346 | G17: 295 | H17: 80 | I17: R | J17: 22.5 | K17: 154/149 | L17: M | M17: C | N17: B | O17: A | P17: 71 | Q17: 772 | R17: 551.98
A18: 568900 | B18: 5452000540942 | C18: PN DUN 315/80R22.5 156L/154M SP346 3PSF | D18: 31580225SP346156L | E18: POIDS LOURDS | F18: DU SP346 | G18: 315 | H18: 80 | I18: R | J18: 22.5 | K18: 156 | L18: L | M18: C | N18: B | O18: B | P18: 73 | Q18: 814 | R18: 582.01
A19: 568902 | B19: 5452000540966 | C19: PN DUN 385/55R22.5 160K158L SP346 | D19: 38555225SP346160K | E19: POIDS LOURDS | F19: DU SP346 | G19: 385 | H19: 55 | I19: R | J19: 22.5 | K19: 160 | L19: K | M19: B | N19: B | O19: A | P19: 70 | Q19: 870 | R19: 622.05
A20: 568905 | B20: 5452000424860 | C20: PN DUN 385/65R22.5 160K/158L SP346 3PSF | D20: 38565225SP346160K | E20: POIDS LOURDS | F20: DU SP346 | G20: 385 | H20: 65 | I20: R | J20: 22.5 | K20: 160 | L20: K | M20: B | N20: B | O20: B | P20: 73 | Q20: 824 | R20: 589.16
A21: 568909 | B21: 5452000424884 | C21: PN DUN 295/80R22.5 152/148M SP446 3PSF | D21: 29580225SP446152M | E21: POIDS LOURDS | F21: DU SP446 | G21: 295 | H21: 80 | I21: R | J21: 22.5 | K21: 152/148 | L21: M | M21: D | N21: C | O21: A | P21: 72 | Q21: 772 | R21: 551.98
A22: 568911 | B22: 5452000424907 | C22: PN DUN 315/60R22.5 152/148L SP446 | D22: 31560225SP446152L | E22: POIDS LOURDS | F22: DU SP446 | G22: 315 | H22: 60 | I22: R | J22: 22.5 | K22: 152/148 | L22: L | M22: C | N22: B | O22: A | P22: 71 | Q22: 836 | R22: 597.74
A23: 568913 | B23: 5452000541000 | C23: PN DUN 315/70R22.5 154L/152M SP446 3PSF | D23: 31570225SP446154L | E23: POIDS LOURDS | F23: DU SP446 | G23: 315 | H23: 70 | I23: R | J23: 22.5 | K23: 154 | L23: L | M23: C | N23: C | O23: A | P23: 71 | Q23: 798 | R23: 570.57
A24: 568915 | B24: 5452000541024 | C24: PN DUN 315/80R22.5 156L/154M SP446 3PSF | D24: 31580225SP446156L | E24: POIDS LOURDS | F24: DU SP446 | G24: 315 | H24: 80 | I24: R | J24: 22.5 | K24: 156 | L24: L | M24: C | N24: C | O24: A | P24: 72 | Q24: 814 | R24: 582.01
A25: 568972 | B25: 5452000541642 | C25: PN DUN 275/70R22.5 148 J SP 372 CITY | D25: 27570225SP372J148 | E25: POIDS LOURDS | F25: DU SP372C | G25: 275 | H25: 70 | I25: R | J25: 22.5 | K25: 152 | L25: E | M25: D | N25: C | O25: A | P25: 71 | Q25: 718 | R25: 513.37
A26: 569031 | B26: 5452000544445 | C26: PN DUN 205/75R17.5 124/122M SP346 | D26: 20575175SP346124M | E26: POIDS LOURDS | F26: DU SP346 | G26: 205 | H26: 75 | I26: R | J26: 17.5 | K26: 124/122 | L26: M | M26: E | N26: C | O26: A | P26: 71 | Q26: 332 | R26: 237.38
A27: 569033 | B27: 5452000544469 | C27: PN DUN 235/75R17.5 132/130M SP346 | D27: 23575175SP346132M | E27: POIDS LOURDS | F27: DU SP346 | G27: 235 | H27: 75 | I27: R | J27: 17.5 | K27: 132/130 | L27: M | M27: E | N27: B | O27: A | P27: 71 | Q27: 410 | R27: 293.15
A28: 569039 | B28: 5452000546326 | C28: PN DUN 215/75R17.5 126/124M SP346 | D28: 21575175SP346126M | E28: POIDS LOURDS | F28: DU SP346 | G28: 215 | H28: 75 | I28: R | J28: 17.5 | K28: 126/124 | L28: M | M28: E | N28: C | O28: A | P28: 71 | Q28: 304 | R28: 217.36
A29: 569045 | B29: 5452000546388 | C29: PN DUN 305/70R19.5 148/145M SP346 3PSF | D29: 30570195SP346148M | E29: POIDS LOURDS | F29: DU SP346 | G29: 305 | H29: 70 | I29: R | J29: 19.5 | K29: 148/145 | L29: M | M29: C | N29: C | O29: B | P29: 72 | Q29: 680 | R29: 486.2
A30: 569049 | B30: 5452000546425 | C30: PN DUN 225/75R17.5 129/127M SP346 | D30: 22575175SP346129M | E30: POIDS LOURDS | F30: DU SP346 | G30: 225 | H30: 75 | I30: R | J30: 17.5 | K30: 129/127 | L30: M | M30: E | N30: C | O30: A | P30: 71 | Q30: 368 | R30: 263.12
A31: 569051 | B31: 5452000546449 | C31: PN DUN 205/75R17.5 124M/126G SP446 | D31: 20575175SP446124M | E31: POIDS LOURDS | F31: DU SP446 | G31: 205 | H31: 75 | I31: R | J31: 17.5 | K31: 126 | L31: G | M31: D | N31: C | O31: A | P31: 71 | Q31: 332 | R31: 237.38
A32: 569053 | B32: 5452000546463 | C32: PN DUN 215/75R17.5 126/124M SP446 | D32: 21575175SP446126M | E32: POIDS LOURDS | F32: DU SP446 | G32: 215 | H32: 75 | I32: R | J32: 17.5 | K32: 126/124 | L32: M | M32: E | N32: C | O32: A | P32: 72 | Q32: 304 | R32: 217.36
A33: 569055 | B33: 5452000546487 | C33: PN DUN 225/75R17.5 129/127M SP446 3PSF | D33: 22575175SP446129M | E33: POIDS LOURDS | F33: DU SP446 | G33: 225 | H33: 75 | I33: R | J33: 17.5 | K33: 129/127 | L33: M | M33: D | N33: C | O33: A | P33: 71 | Q33: 368 | R33: 263.12
A34: 569057 | B34: 5452000546500 | C34: PN DUN 235/75R17.5 132/130M SP446 | D34: 23575175SP446132M | E34: POIDS LOURDS | F34: DU SP446 | G34: 235 | H34: 75 | I34: R | J34: 17.5 | K34: 132/130 | L34: M | M34: D | N34: C | O34: A | P34: 72 | Q34: 410 | R34: 293.15
A35: 569059 | B35: 5452000546524 | C35: PN DUN 245/70R17.5 136/134M SP446 3PSF | D35: 24570175SP446136M | E35: POIDS LOURDS | F35: DU SP446 | G35: 245 | H35: 70 | I35: R | J35: 17.5 | K35: 136/134 | L35: M | M35: D | N35: C | O35: A | P35: 72 | Q35: 430 | R35: 307.45
A36: 569061 | B36: 5452000546548 | C36: PN DUN 245/70R19.5 136/134M SP446 | D36: 24570195SP446136M | E36: POIDS LOURDS | F36: DU SP446 | G36: 245 | H36: 70 | I36: R | J36: 19.5 | K36: 136/134 | L36: M | M36: D | N36: C | O36: A | P36: 72 | Q36: 462 | R36: 330.33
A37: 569069 | B37: 5452000546623 | C37: PN DUN 305/70R19.5 148/145M SP446 | D37: 30570195SP446148M | E37: POIDS LOURDS | F37: DU SP446 | G37: 305 | H37: 70 | I37: R | J37: 19.5 | K37: 148/145 | L37: M | M37: C | N37: C | O37: A | P37: 72 | Q37: 680 | R37: 486.2
A38: 569141 | B38: 5452000453655 | C38: PN DUN 385/65R22.5 160K/158L SP362 | D38: 38565225SP362160K | E38: POIDS LOURDS | F38: DU SP362 | G38: 385 | H38: 65 | I38: R | J38: 22.5 | K38: 160 | L38: K | M38: C | N38: B | O38: B | P38: 73 | Q38: 840 | R38: 600.6
A39: 569372 | B39: 5452000558435 | C39: PN DUN 275/70R22.5 148J152E SP372 CITY* | D39: 27570225SP37216148J | E39: POIDS LOURDS | F39: DU SP372 CITY * | G39: 275 | H39: 70 | I39: R | J39: 22.5 | K39: 152 | L39: E | M39: D | N39: C | O39: A | P39: 70 | Q39: 708 | R39: 506.22
A40: 569391 | B40: 5452000556608 | C40: PN DUN 275/70R22.5 152 E SP372 CITY | D40: 27570225SP372E152 | E40: POIDS LOURDS | F40: DU SP372C | G40: 275 | H40: 70 | I40: R | J40: 22.5 | K40: 152 | L40: E | M40: E | N40: C | O40: A | P40: 71 | Q40: 696 | R40: 497.64
A41: 572074 | B41: 5452000707246 | C41: PN DUN 245/70R19.5 141/140J SP246 | D41: 24570195SP2461141J | E41: POIDS LOURDS | F41: DU SP246 | G41: 245 | H41: 70 | I41: R | J41: 19.5 | K41: 141/140 | L41: J | M41: C | N41: B | O41: A | P41: 70 | Q41: 500 | R41: 357.5
A42: 572075 | B42: 5452000707857 | C42: PN DUN 265/70R19.5 143/141J SP246 3PSF | D42: 26570195SP246143J | E42: POIDS LOURDS | F42: DU SP246 | G42: 265 | H42: 70 | I42: R | J42: 19.5 | K42: 143/141 | L42: J | M42: C | N42: B | O42: A | P42: 70 | Q42: 500 | R42: 357.5
A43: 572077 | B43: 5452000707871 | C43: PN DUN 235/75R17.5 143/141J SP246 | D43: 23575175SP246143J | E43: POIDS LOURDS | F43: DU SP246 | G43: 235 | H43: 75 | I43: R | J43: 17.5 | K43: 144 | L43: F | M43: C | N43: B | O43: A | P43: 69 | Q43: 436 | R43: 311.74
A44: 572078 | B44: 5452000707888 | C44: PN DUN 245/70R17.5 143J146F SP246 | D44: 24570175SP246143J | E44: POIDS LOURDS | F44: DU SP246 | G44: 245 | H44: 70 | I44: R | J44: 17.5 | K44: 146 | L44: F | M44: C | N44: B | O44: A | P44: 68 | Q44: 472 | R44: 337.48
A45: 572201 | B45: 5452000711939 | C45: PN DUN 385/55R22.5 160K/158L SP247 | D45: 38555225SP247160K | E45: POIDS LOURDS | F45: DU SP247 | G45: 385 | H45: 55 | I45: R | J45: 22.5 | K45: 160 | L45: K | M45: B | N45: B | O45: A | P45: 71 | Q45: 844 | R45: 603.46
A46: 572202 | B46: 5452000711946 | C46: PN DUN 385/65R22.5 164K/158L SP247 | D46: 38565225SP247164K | E46: POIDS LOURDS | F46: DU SP247 | G46: 385 | H46: 65 | I46: R | J46: 22.5 | K46: 164 | L46: K | M46: C | N46: B | O46: B | P46: 72 | Q46: 798 | R46: 570.57
A47: 572203 | B47: 5452000712455 | C47: PN DUN 435/50R19.5 160 SP247 | D47: 43550195JSP247160 | E47: POIDS LOURDS | F47: DU SP247 | G47: 435 | H47: 50 | I47: R | J47: 19.5 | K47: 160 | L47: J | M47: B | N47: B | O47: B | P47: 72 | Q47: 886 | R47: 633.49
A48: 573132 | B48: 5452000745910 | C48: PN DUN 315/60R22.5 152/148J SP372 CITY | D48: 31560225SP372C152J | E48: POIDS LOURDS | F48: DU SP372C | G48: 315 | H48: 60 | I48: R | J48: 22.5 | K48: 152/148 | L48: J | M48: D | N48: C | O48: A | P48: 71 | Q48: 836 | R48: 597.74
A49: 573244 | B49: 5452000749758 | C49: PN DUN 315/80R22.5 156/150K SP482 3PSF | D49: 31580225SP482156KDU | E49: POIDS LOURDS | F49: DU SP482 | G49: 315 | H49: 80 | I49: R | J49: 22.5 | K49: 156/150 | L49: K | M49: D | N49: B | O49: B | P49: 76 | Q49: 840 | R49: 600.6
A50: 573248 | B50: 5452000749796 | C50: PN DUN 13 R22.5 156G154K SP482 3PSF | D50: 13225SP482156G3PSF | E50: POIDS LOURDS | F50: DU SP482 | G50: 13 | I50: R | J50: 22.5 | K50: 156 | L50: G | M50: D | N50: B | O50: B | P50: 76 | Q50: 840 | R50: 600.6
A51: 573562 | B51: 5452000813879 | C51: PN DUN 425/55R19.5 160J SP241 M+S | D51: 42555195SP241160J | E51: POIDS LOURDS | F51: DU SP241 | G51: 425 | H51: 55 | I51: R | J51: 19.5 | K51: 160 | L51: J | M51: C | N51: C | O51: B | P51: 71 | Q51: 1020 | R51: 729.3
A52: 573900 | B52: 5452000819314 | C52: PN DUN 385/65R22.5 160K158L SP382 | D52: 38565225SP382160L | E52: POIDS LOURDS | F52: DU SP382 | G52: 385 | H52: 65 | I52: R | J52: 22.5 | K52: 160 | L52: K | M52: C | N52: B | O52: A | P52: 70 | Q52: 850 | R52: 607.75
A53: 581326 | B53: 4038526073747 | C53: PN DUN 315/60R22.5 154/148L SP346+ | D53: 31560225SP346+154L | E53: POIDS LOURDS | F53: DU SP346+ | G53: 315 | H53: 60 | I53: R | J53: 22.5 | K53: 154/148 | L53: L | M53: B | N53: B | O53: B | P53: 74 | Q53: 836 | R53: 597.74
A54: 581328 | B54: 4038526073761 | C54: PN DUN 315/70R22.5 156/150L SP346+ HL | D54: 31570225SP346+HL156L | E54: POIDS LOURDS | F54: DU SP346+ | G54: 315 | H54: 70 | I54: R | J54: 22.5 | K54: 156/150 | L54: L | M54: C | N54: B | O54: B | P54: 74 | Q54: 798 | R54: 570.57
A55: 582642 | B55: 4038526088833 | C55: PN DUN 385/65R22.5 160J/158K SP282 | D55: 38565225SP282160J | E55: POIDS LOURDS | F55: DU SP282 | G55: 385 | H55: 65 | I55: R | J55: 22.5 | K55: 160 | L55: J | M55: C | N55: B | O55: B | P55: 72 | Q55: 820 | R55: 586.3
A56: 582974 | B56: 4038526096456 | C56: PN DUN 215/75R17.5 136/134J SP246 | D56: 21575175SP246136J | E56: POIDS LOURDS | F56: DU SP246 | G56: 215 | H56: 75 | I56: R | J56: 17.5 | K56: 136/134 | L56: J | M56: C | N56: B | O56: A | P56: 66 | Q56: 374 | R56: 267.41
A57: 594494 | B57: 4038526400475 | C57: PN DUN 265/70R17.5 139/136M SP446 | D57: 26570175SP446139M2 | E57: POIDS LOURDS | F57: DU SP446 | G57: 265 | H57: 70 | I57: R | J57: 17.5 | K57: 139/136 | L57: M | M57: D | N57: C | O57: A | P57: 72 | Q57: 486 | R57: 347.49
A58: 594495 | B58: 4038526400482 | C58: PN DUN 265/70R17.5 139/136M SP346 | D58: 26570175SP346139M2 | E58: POIDS LOURDS | F58: DU SP346 | G58: 265 | H58: 70 | I58: R | J58: 17.5 | K58: 139/136 | L58: M | M58: C | N58: C | O58: B | P58: 73 | Q58: 486 | R58: 347.49
A59: 595771 | B59: 4038526411716 | C59: PN DUN 295/60R22.5 150K/149L SP446+ | D59: 29560225SP446+150K | E59: POIDS LOURDS | F59: DU SP446+ | G59: 295 | H59: 60 | I59: R | J59: 22.5 | K59: 150 | L59: K | M59: D | N59: B | O59: A | P59: 73 | Q59: 784 | R59: 560.56
A60: 595808 | B60: 4038526414687 | C60: PN DUN 245/70R17.5 136/134M SP346 | D60: 24570175SP346136M1 | E60: POIDS LOURDS | F60: DU SP346 | G60: 245 | H60: 70 | I60: R | J60: 17.5 | K60: 136/134 | L60: M | M60: D | N60: C | O60: B | P60: 73 | Q60: 430 | R60: 307.45
A61: 595809 | B61: 4038526414694 | C61: PN DUN 265/70R19.5 140/138M SP346 | D61: 26570195SP346140M2 | E61: POIDS LOURDS | F61: DU SP346 | G61: 265 | H61: 70 | I61: R | J61: 19.5 | K61: 140/138 | L61: M | M61: D | N61: C | P61: 72 | Q61: 450 | R61: 321.75
A62: 595992 | B62: 4038526414052 | C62: PN DUN 265/70R19.5 140/138M SP446 | D62: 26570195SP446140M2 | E62: POIDS LOURDS | F62: DU SP446 | G62: 265 | H62: 70 | I62: R | J62: 19.5 | K62: 140/138 | L62: M | M62: D | N62: C | O62: A | P62: 72 | Q62: 450 | R62: 321.75
A63: 595993 | B63: 4038526414069 | C63: PN DUN 245/70R19.5 136/134M SP346 | D63: 24570195SP346136M2 | E63: POIDS LOURDS | F63: DU SP346 | G63: 245 | H63: 70 | I63: R | J63: 19.5 | K63: 136/134 | L63: M | M63: D | N63: C | O63: B | P63: 72 | Q63: 462 | R63: 330.33
A64: 596404 | B64: 4038526420725 | C64: PN DUN 285/70R19.5 146L/144M SP446 N | D64: 28570195SP446146L1 | E64: POIDS LOURDS | F64: DU SP446 | G64: 285 | H64: 70 | I64: R | J64: 19.5 | K64: 146 | L64: L | M64: D | N64: C | O64: A | P64: 73 | Q64: 552 | R64: 394.68
A65: 596412 | B65: 4038526421203 | C65: PN DUN 285/70R19.5 146L/144M SP346 N | D65: 28570195SP346146L1 | E65: POIDS LOURDS | F65: DU SP346 | G65: 285 | H65: 70 | I65: R | J65: 19.5 | K65: 146 | L65: L | M65: D | N65: C | O65: B | P65: 72 | Q65: 552 | R65: 394.68
A66: 788979 | B66: 5452000747341 | C66: RC DUN 385/65R22.5 164K SP246 11.75 MF | D66: 38565225SP24616412RC | E66: POIDS LOURDS | F66: DU SP246 | G66: 385 | H66: 65 | I66: R | J66: 22.5 | K66: 164/158 | L66: K | M66: C | N66: B | O66: 1 | P66: 68 | Q66: 430 | R66: 307.45
A67: 790205 | B67: 5452000811417 | C67: RC DUN 385/55R22.5 160K SP246 11.75 MF | D67: 38555225SP24616012RC | E67: POIDS LOURDS | F67: DU SP246 | G67: 385 | H67: 55 | I67: R | J67: 22.5 | K67: 160/158 | L67: K | M67: B | N67: B | O67: 1 | P67: 70 | Q67: 450 | R67: 321.75
A68: 790669 | B68: 5452000817761 | C68: RC DUN 385/65R22.5 SP246 HL 11.75 MF 0/1 | D68: 38565225SP246HLMFKRC | E68: POIDS LOURDS | F68: DU SP246 | G68: 385 | H68: 65 | I68: R | J68: 22.5 | K68: 164/158 | L68: K | M68: C | N68: B | O68: 1 | P68: 68 | Q68: 455 | R68: 325.325

Sheet FIR
D2: Remise
D3: =Remises!E12 -> 0.32
A5: Actualisation au 04/04/2024
A7: REFERENCES PNEUMATIQUES | Q7: TARIFS
A8: CAI | B8: EAN | C8: Désignation | D8: Appellation | E8: Catégorie | F8: Profil | G8: Largeur | H8: Hauteur | I8: Structure | J8: Diamètre | K8: IC | L8: IV | M8: Conso. | N8: Frein. | O8: Bruit. | P8: Décibels. | Q8: Prix BF | R8: Prix Remisé
A9: 11000 | B9: 3286341100013 | C9: PN FIR 215/75R17.5 126/124M FS411 | D9: 21575175FS411126M | E9: POIDS LOURDS | F9: FI FS411 | G9: 215 | H9: 75 | I9: R | J9: 17.5 | K9: 126/124 | L9: M | M9: C | N9: B | O9: B | P9: 72 | Q9: 413 | R9: =Q9*(1-$D$3) -> 280.84
A10: 11082 | B10: 3286341108217 | C10: PN FIR 265/70R19.5 140/138M FS411 | D10: 26570195FS411140M | E10: POIDS LOURDS | F10: FI FS411 | G10: 265 | H10: 70 | I10: R | J10: 19.5 | K10: 140/138 | L10: M | M10: C | N10: B | O10: A | P10: 71 | Q10: 576 | R10: =Q10*(1-$D$3) -> 391.68
A11: 11083 | B11: 3286341108316 | C11: PN FIR 215/75R17.5 128/126M FD611 | D11: 21575175FD611126M | E11: POIDS LOURDS | F11: FI FD611 | G11: 215 | H11: 75 | I11: R | J11: 17.5 | K11: 126/124 | L11: M | M11: C | N11: B | O11: A | P11: 72 | Q11: 413 | R11: 280.84
A12: 11084 | B12: 3286341108415 | C12: PN FIR 265/70R19.5 140/138M FD611 | D12: 26570195FD611140M | E12: POIDS LOURDS | F12: FI FD611 | G12: 265 | H12: 70 | I12: R | J12: 19.5 | K12: 140/138 | L12: M | M12: C | N12: B | O12: A | P12: 72 | Q12: 576 | R12: 391.68
A13: 13454 | B13: 3286341345414 | C13: PN FIR 385/65R22.5 160K FT833 | D13: 38565225FT833160K | E13: POIDS LOURDS | F13: FI FT833 | G13: 385 | H13: 65 | I13: R | J13: 22.5 | K13: 160 | L13: K | M13: C | N13: B | O13: B | P13: 71 | Q13: 890 | R13: 605.2
A14: 13455 | B14: 3286341345513 | C14: PN FIR 13 R22.5 156/150K FD833 | D14: 13225FD833156K | E14: POIDS LOURDS | F14: FI FD833 | G14: 13 | I14: R | J14: 22.5 | K14: 156/150 | L14: K | M14: D | N14: B | O14: B | P14: 75 | Q14: 939 | R14: 638.52
A15: 13456 | B15: 3286341345612 | C15: PN FIR 315/80R22.5 156/150K FD833 | D15: 31580225FD833156K | E15: POIDS LOURDS | F15: FI FD833 | G15: 315 | H15: 80 | I15: R | J15: 22.5 | K15: 156/150 | L15: K | M15: D | N15: B | O15: B | P15: 75 | Q15: 917 | R15: 623.56
A16: 13457 | B16: 3286341345711 | C16: PN FIR 13 R22.5 156/150K FS833 | D16: 13225FS833156K | E16: POIDS LOURDS | F16: FI FS833 | G16: 13 | I16: R | J16: 22.5 | K16: 156/150 | L16: K | M16: C | N16: B | O16: A | P16: 70 | Q16: 939 | R16: 638.52
A17: 13458 | B17: 3286341345810 | C17: PN FIR 315/80R22.5 156/150K FS833 | D17: 31580225FS833156K | E17: POIDS LOURDS | F17: FI FS833 | G17: 315 | H17: 80 | I17: R | J17: 22.5 | K17: 156/150 | L17: K | M17: C | N17: B | O17: A | P17: 70 | Q17: 917 | R17: 623.56
A18: 13480 | B18: 3286341348019 | C18: PN FIR 245/70R19.5 136/134M FD611 | D18: 24570195FD611136M | E18: POIDS LOURDS | F18: FI FD611 | G18: 245 | H18: 70 | I18: R | J18: 19.5 | K18: 136/134 | L18: M | M18: D | N18: B | O18: B | P18: 75 | Q18: 562 | R18: 382.16
A19: 13481 | B19: 3286341348118 | C19: PN FIR 225/75R17.5 129/127M FD611 | D19: 22575175FD611129M | E19: POIDS LOURDS | F19: FI FD611 | G19: 225 | H19: 75 | I19: R | J19: 17.5 | K19: 129/127 | L19: M | M19: C | N19: B | O19: A | P19: 72 | Q19: 449 | R19: 305.32
A20: 13482 | B20: 3286341348217 | C20: PN FIR 205/75R17.5 124/122M FS411 | D20: 20575175FS411124M | E20: POIDS LOURDS | F20: FI FS411 | G20: 205 | H20: 75 | I20: R | J20: 17.5 | K20: 124/122 | L20: M | M20: C | N20: B | O20: B | P20: 72 | Q20: 395 | R20: 268.6
A21: 13484 | B21: 3286341348415 | C21: PN FIR 285/70R19.5 145M146L FS411 | D21: 28570195FS411145M | E21: POIDS LOURDS | F21: FI FS411 | G21: 285 | H21: 70 | I21: R | J21: 19.5 | K21: 145/143 | L21: M | M21: C | N21: B | O21: B | P21: 72 | Q21: 664 | R21: 451.52
A22: 13485 | B22: 3286341348514 | C22: PN FIR 225/75R17.5 129/127M FS411 | D22: 22575175FS411129M | E22: POIDS LOURDS | F22: FI FS411 | G22: 225 | H22: 75 | I22: R | J22: 17.5 | K22: 129/127 | L22: M | M22: C | N22: B | O22: A | P22: 70 | Q22: 449 | R22: 305.32
A23: 13488 | B23: 3286341348811 | C23: PN FIR 245/70R19.5 136/134M FS411 | D23: 24570195FS411136M | E23: POIDS LOURDS | F23: FI FS411 | G23: 245 | H23: 70 | I23: R | J23: 19.5 | K23: 136/134 | L23: M | M23: C | N23: B | O23: B | P23: 72 | Q23: 562 | R23: 382.16
A24: 13490 | B24: 3286341349016 | C24: PN FIR 285/70R19.5 145M146L FD611 | D24: 28570195FD611145M | E24: POIDS LOURDS | F24: FI FD611 | G24: 285 | H24: 70 | I24: R | J24: 19.5 | K24: 145/143 | L24: M | M24: C | N24: B | O24: B | P24: 75 | Q24: 664 | R24: 451.52
A25: 13491 | B25: 3286341349115 | C25: PN FIR 205/75R17.5 124/122M FD611 | D25: 20575175FD611124M | E25: POIDS LOURDS | F25: FI FD611 | G25: 205 | H25: 75 | I25: R | J25: 17.5 | K25: 124/122 | L25: M | M25: D | N25: C | O25: A | P25: 73 | Q25: 395 | R25: 268.6
A26: 13494 | B26: 3286341349412 | C26: PN FIR 385/65R22.5 160K FS422+ | D26: 38565225FS422+160K | E26: POIDS LOURDS | F26: FI FS422+ | G26: 385 | H26: 65 | I26: R | J26: 22.5 | K26: 160 | L26: K | M26: C | N26: B | O26: A | P26: 71 | Q26: 900 | R26: 612
A27: 17049 | B27: 3286341704914 | C27: PN FIR 385/65R22.5 160K/158L FT524 | D27: 38565225FT524160K | E27: POIDS LOURDS | F27: FI FT524 | G27: 385 | H27: 65 | I27: R | J27: 22.5 | K27: 160 | L27: K | M27: B | N27: B | O27: A | P27: 69 | Q27: 900 | R27: 612
A28: 17050 | B28: 3286341705010 | C28: PN FIR 385/55R22.5 160K/158L FT524 | D28: 38555225FT524160K | E28: POIDS LOURDS | F28: FI FT524 | G28: 385 | H28: 55 | I28: R | J28: 22.5 | K28: 160 | L28: K | M28: B | N28: B | O28: A | P28: 70 | Q28: 926 | R28: 629.68
A29: 19351 | B29: 3286341935110 | C29: PN FIR 9.5 R17.5 129/127M FS400 | D29: 95175FS400129M | E29: POIDS LOURDS | F29: FI FS400 | G29: 9.5 | I29: R | J29: 17.5 | K29: 129/127 | L29: M | M29: E | N29: B | O29: B | P29: 74 | Q29: 506 | R29: 344.08
A30: 19353 | B30: 3286341935318 | C30: PN FIR 385/55R22.5 160K/158L FS422+ | D30: 38555225FS422+160K | E30: POIDS LOURDS | F30: FI FS422+ | G30: 385 | H30: 55 | I30: R | J30: 22.5 | K30: 160 | L30: K | M30: B | N30: B | O30: B | P30: 72 | Q30: 927 | R30: 630.36
A31: 19728 | B31: 3286341972818 | C31: PN FIR 295/80R22.5 152/148M FS424 | D31: 29580225FS424152M | E31: POIDS LOURDS | F31: FI FS424 | G31: 295 | H31: 80 | I31: R | J31: 22.5 | K31: 152/148 | L31: M | P31: 0 | Q31: 838 | R31: 569.84
A32: 19731 | B32: 3286341973112 | C32: PN FIR 315/80R22.5 156/150L FS424 | D32: 31580225FS424156L | E32: POIDS LOURDS | F32: FI FS424 | G32: 315 | H32: 80 | I32: R | J32: 22.5 | K32: 156/150 | L32: L | M32: C | N32: B | O32: A | P32: 69 | Q32: 898 | R32: 610.64
A33: 19732 | B33: 3286341973211 | C33: PN FIR 315/70R22.5 154/150L FS424 | D33: 31570225FS424154L | E33: POIDS LOURDS | F33: FI FS424 | G33: 315 | H33: 70 | I33: R | J33: 22.5 | K33: 154/150 | L33: L | M33: B | N33: B | O33: A | P33: 71 | Q33: 868 | R33: 590.24
A34: 19736 | B34: 3286341973617 | C34: PN FIR 315/80R22.5 156/150L FD624 | D34: 31580225FD624156L | E34: POIDS LOURDS | F34: FI FD624 | G34: 315 | H34: 80 | I34: R | J34: 22.5 | K34: 156/150 | L34: L | M34: C | N34: C | O34: B | P34: 74 | Q34: 937 | R34: 637.16
A35: 19737 | B35: 3286341973716 | C35: PN FIR 315/70R22.5 154L/152M FD624 | D35: 31570225FD624154L | E35: POIDS LOURDS | F35: FI FD624 | G35: 315 | H35: 70 | I35: R | J35: 22.5 | K35: 154 | L35: L | M35: C | N35: C | P35: 74 | Q35: 915 | R35: 622.2
A36: 19738 | B36: 3286341973815 | C36: PN FIR 295/80R22.5 152/148M FD624 | D36: 29580225FD624152M | E36: POIDS LOURDS | F36: FI FD624 | G36: 295 | H36: 80 | I36: R | J36: 22.5 | K36: 152/148 | L36: M | M36: C | N36: C | P36: 72 | Q36: 875 | R36: 595
A37: 21733 | B37: 3286342173313 | C37: PN FIR 285/70R19.5 150/148J TSP3000 | D37: 28570195TSP3000150J | E37: POIDS LOURDS | F37: FI TSP3000 | G37: 285 | H37: 70 | I37: R | J37: 19.5 | K37: 150/148 | L37: J | M37: D | N37: C | O37: A | P37: 70 | Q37: 767 | R37: 521.56
A38: 21735 | B38: 3286342173511 | C38: PN FIR 9.5 R17.5 143/141J TSP3000 | D38: 95175TSP3000143J | E38: POIDS LOURDS | F38: FI TSP3000 | G38: 9.5 | I38: R | J38: 17.5 | K38: 143/141 | L38: J | M38: D | N38: D | O38: B | P38: 72 | Q38: 518 | R38: 352.24
A39: 22966 | B39: 3286342296616 | C39: PN FIR 295/80R22.5 152/148M FS422+ | D39: 29580225FS422+152M2 | E39: POIDS LOURDS | F39: FI FS422+ | G39: 295 | H39: 80 | I39: R | J39: 22.5 | K39: 152/148 | L39: M | M39: C | N39: B | O39: A | P39: 71 | Q39: 806 | R39: 548.08
A40: 22968 | B40: 3286342296814 | C40: PN FIR 315/80R22.5 156L/154M FS422+ | D40: 31580225FS422+156L2 | E40: POIDS LOURDS | F40: FI FS422+ | G40: 315 | H40: 80 | I40: R | J40: 22.5 | K40: 156 | L40: L | M40: C | N40: B | O40: A | P40: 70 | Q40: 864 | R40: 587.52
A41: 22969 | B41: 3286342296913 | C41: PN FIR 295/80R22.5 152/148M FD622+ | D41: 29580225FD622+152M2 | E41: POIDS LOURDS | F41: FI FD622+ | G41: 295 | H41: 80 | I41: R | J41: 22.5 | K41: 152/148 | L41: M | M41: D | N41: C | O41: A | P41: 73 | Q41: 841 | R41: 571.88
A42: 23255 | B42: 3286342325514 | C42: PN FIR 265/70R19.5 143/141J TMP3000 | D42: 26570195TMP3000143J | E42: POIDS LOURDS | F42: FI TMP3000 | G42: 265 | H42: 70 | I42: R | J42: 19.5 | K42: 143/141 | L42: J | M42: E | N42: C | O42: B | P42: 73 | Q42: 589 | R42: 400.52
A43: 23256 | B43: 3286342325613 | C43: PN FIR 275/70R22.5 148/145K TMP3000 | D43: 27570225TMP3000148K | E43: POIDS LOURDS | F43: FI TMP3000 | G43: 275 | H43: 70 | I43: R | J43: 22.5 | K43: 148/145 | L43: K | M43: D | N43: D | O43: A | P43: 71 | Q43: 756 | R43: 514.08
A44: 23435 | B44: 3286342343518 | C44: PN FIR 315/70R22.5 156L/150L FS424 EVO | D44: 31570225FS424EVO156L | E44: POIDS LOURDS | F44: FI FS424 EVO | G44: 315 | H44: 70 | I44: R | J44: 22.5 | K44: 156 | L44: L | M44: C | N44: B | O44: A | P44: 70 | Q44: 911 | R44: 619.48
A45: 23724 | B45: 3286342372419 | C45: PN FIR 295/80R22.5 154/149M FS422+ EVO | D45: 29580225FS422+EV154M | E45: POIDS LOURDS | F45: FI FS422+ EVO | G45: 295 | H45: 80 | I45: R | J45: 22.5 | K45: 154/149 | L45: M | M45: C | N45: B | O45: A | P45: 68 | Q45: 843 | R45: 573.24
A46: 25565 | B46: 3286342556512 | C46: PN FIR 12 R22.5 152/148K UT3000 | D46: 12225UT3000152K | E46: POIDS LOURDS | F46: FI UT3000 | G46: 12 | I46: R | J46: 22.5 | K46: 152/148 | L46: K | M46: D | N46: C | O46: B | P46: 72 | Q46: 831 | R46: 565.08
A47: 25566 | B47: 3286342556611 | C47: PN FIR 295/80R22.5 152/148K UT3000 | D47: 29580225UT3000152K | E47: POIDS LOURDS | F47: FI UT3000 | G47: 295 | H47: 80 | I47: R | J47: 22.5 | K47: 152/148 | L47: K | M47: D | N47: C | O47: B | P47: 71 | Q47: 871 | R47: 592.28
A48: 25597 | B48: 3286342559711 | C48: PN FIR 11R22.5 148/145K UT3000 | D48: 11225UT3000148K | E48: POIDS LOURDS | F48: FI UT3000 | G48: 11 | I48: R | J48: 22.5 | K48: 148/145 | L48: K | M48: E | N48: C | O48: A | P48: 70 | Q48: 648 | R48: 440.64
A49: 25950 | B49: 3286342595016 | C49: PN FIR 425/65R22.5 165K TSP3000 | D49: 42565225TSP3000165K | E49: POIDS LOURDS | F49: FI TSP3000 | G49: 425 | H49: 65 | I49: R | J49: 22.5 | K49: 165 | L49: K | M49: C | N49: D | O49: A | P49: 70 | Q49: 1161 | R49: 789.48
A50: 27828 | B50: 3286342782812 | C50: PN FIR 215/75R17.5 135/133K TSP3000 | D50: 21575175TSP3000135K | E50: POIDS LOURDS | F50: FI TSP3000 | G50: 215 | H50: 75 | I50: R | J50: 17.5 | K50: 135/133 | L50: K | M50: D | N50: C | O50: A | P50: 71 | Q50: 493 | R50: 335.24
A51: 27829 | B51: 3286342782911 | C51: PN FIR 235/75R17.5 143J/144F TSP3000 | D51: 23575175TSP3000143J2 | E51: POIDS LOURDS | F51: FI TSP3000 | G51: 235 | H51: 75 | I51: R | J51: 17.5 | K51: 144 | L51: F | M51: C | N51: B | O51: A | P51: 70 | Q51: 518 | R51: 352.24
A52: 27830 | B52: 3286342783017 | C52: PN FIR 245/70R17.5 143J/146F TSP3000 | D52: 24570175TSP3000143J2 | E52: POIDS LOURDS | F52: FI TSP3000 | G52: 245 | H52: 70 | I52: R | J52: 17.5 | K52: 146 | L52: F | M52: D | N52: B | O52: A | P52: 70 | Q52: 553 | R52: 376.04
A53: 27833 | B53: 3286342783314 | C53: PN FIR 265/70R19.5 143/141K TSP3000 | D53: 26570195TSP3000143K | E53: POIDS LOURDS | F53: FI TSP3000 | G53: 265 | H53: 70 | I53: R | J53: 19.5 | K53: 143/141 | L53: K | M53: D | N53: B | O53: A | P53: 70 | Q53: 631 | R53: 429.08
A54: 28619 | B54: 3286342861913 | C54: PN BRI 12 R22.5 152/148L FS400 | D54: 12225FS400152L2 | E54: POIDS LOURDS | F54: FI FS400 | G54: 12 | I54: R | J54: 22.5 | K54: 152/148 | L54: L | M54: C | N54: C | O54: B | P54: 73 | Q54: 763 | R54: 518.84
A55: 28620 | B55: 3286342862019 | C55: PN FIR 275/70R22.5 148/145M FS400 | D55: 27570225FS400148M2 | E55: POIDS LOURDS | F55: FI FS400 | G55: 275 | H55: 70 | I55: R | J55: 22.5 | K55: 148/145 | L55: M | M55: C | N55: C | O55: B | P55: 74 | Q55: 748 | R55: 508.64
A56: 30599 | B56: 3286343059913 | C56: PN FIR 275/70R22.5 152J/150K FS492 | D56: 27570225FS492152J | E56: POIDS LOURDS | F56: FI FS492 | G56: 275 | H56: 70 | I56: R | J56: 22.5 | K56: 152 | L56: J | M56: D | N56: C | O56: A | P56: 71 | Q56: 737 | R56: 501.16
A57: 31114 | B57: 3286343111413 | C57: PN FIR 235/75R17.5 132/130M FD611 | D57: 23575175FD611132M2 | E57: POIDS LOURDS | F57: FI FD611 | G57: 235 | H57: 75 | I57: R | J57: 17.5 | K57: 132/130 | L57: M | M57: D | N57: B | O57: A | P57: 72 | Q57: 493 | R57: 335.24
A58: 31117 | B58: 3286343111710 | C58: PN FIR 235/75R17.5 132M/130M FS411 | D58: 23575175FS411132M2 | E58: POIDS LOURDS | F58: FI FS411 | G58: 235 | H58: 75 | I58: R | J58: 17.5 | K58: 132 | L58: M | M58: C | N58: B | O58: A | P58: 71 | Q58: 493 | R58: 335.24
A59: 31118 | B59: 3286343111819 | C59: PN FIR 245/70R17.5 136M/134M FD611 | D59: 24570175FD611136M2 | E59: POIDS LOURDS | F59: FI FD611 | G59: 245 | H59: 70 | I59: R | J59: 17.5 | K59: 136 | L59: M | M59: C | N59: B | O59: B | P59: 74 | Q59: 534 | R59: 363.12
A60: 31119 | B60: 3286343111918 | C60: PN FIR 245/70R17.5 136M/134M FS411 | D60: 24570175FS411136M2 | E60: POIDS LOURDS | F60: FI FS411 | G60: 245 | H60: 70 | I60: R | J60: 17.5 | K60: 136 | L60: M | M60: C | N60: B | O60: B | P60: 72 | Q60: 534 | R60: 363.12
A61: 50284 | B61: 3286345028412 | C61: PN FIR 445/65R22.5 169 K TMP 3000 | D61: 44565225TMP3000K169 | E61: POIDS LOURDS | F61: FI TMP3000 | G61: 445 | H61: 65 | I61: R | J61: 22.5 | K61: 169 | L61: K | M61: D | N61: C | O61: B | P61: 72 | Q61: 1236 | R61: 840.48

Sheet GY
D2: Remise
D3: =Remises!J12 -> 0.29
A5: Actualisation au 04/04/2024
A7: REFERENCES PNEUMATIQUES | Q7: TARIFS
A8: CAI | B8: EAN | C8: Désignation | D8: Appellation | E8: Catégorie | F8: Profil | G8: Largeur | H8: Hauteur | I8: Structure | J8: Diamètre | K8: IC | L8: IV | M8: Conso. | N8: Frein. | O8: Bruit. | P8: Décibels. | Q8: Prix BF | R8: Prix Remisé
A9: 558924 | B9: 5452000975201 | C9: PN G.Y 11R22.5 148/145 J LHT MARATHON | D9: 11225LHTMAJ148145 | E9: POIDS LOURDS | F9: GY LHT MARATHON | G9: 11 | I9: R | J9: 22.5 | K9: 148 | L9: J | M9: C | N9: B | O9: A | P9: 68 | Q9: 630 | R9: =Q9*(1-$D$3) -> 447.3
A10: 559432 | B10: 5452000986535 | C10: PN G.Y 11R22.5 148/145 K MSS OMNITRAC | D10: 11225MSSOMK148145 | E10: POIDS LOURDS | F10: GY MSS OMNITRAC | G10: 11 | I10: R | J10: 22.5 | K10: 148/145 | L10: K | M10: D | N10: B | O10: A | P10: 70 | Q10: 708 | R10: =Q10*(1-$D$3) -> 502.68
A11: 560482 | B11: 5452000760210 | C11: PN G.Y 385/65 R22.5 160K UN MAR LHT E GH | D11: 38565225LHTEK1160 | E11: POIDS LOURDS | F11: GY LHT E MARATHON | G11: 385 | H11: 65 | I11: R | J11: 22.5 | K11: 160 | L11: K | M11: C | N11: B | O11: A | P11: 70 | Q11: 1326 | R11: 941.46
A12: 561851 | B12: 5452000790224 | C12: PN G.Y 11X22.5R148/145 L RHS II | D12: 11225RHSIIL148145 | E12: POIDS LOURDS | F12: GY RHS II | G12: 11 | I12: R | J12: 22.5 | K12: 148 | L12: L | M12: C | N12: B | O12: B | P12: 71 | Q12: 686 | R12: 487.06
A13: 566751 | B13: 5452000392756 | C13: PN G.Y 275/70R22.5 148/145 K MSS II OM | D13: 27570225MSSIIK148145 | E13: POIDS LOURDS | F13: GY MSS II OMNITRAC | G13: 275 | H13: 70 | I13: R | J13: 22.5 | K13: 148/145 | L13: K | M13: D | N13: B | O13: B | P13: 72 | Q13: 798 | R13: 566.58
A14: 566821 | B14: 5452000393630 | C14: PN G.Y 1200R20 154K MSS II OMNITRAC TT | D14: 120020MSSIITTK154 | E14: POIDS LOURDS | F14: GY MSS II OMNITRAC | G14: 12 | I14: R | J14: 20 | K14: 154/150 | L14: K | M14: C | N14: B | O14: B | P14: 71 | Q14: 862 | R14: 612.02
A15: 567112 | B15: 5452000648198 | C15: PN G.Y 315/80R22.5 158/150 L RHS II RE | D15: 31580225RHSIIL158150 | E15: POIDS LOURDS | F15: GY RHS II REG. | G15: 315 | H15: 80 | I15: R | J15: 22.5 | K15: 158/150 | L15: L | M15: C | N15: B | O15: A | P15: 70 | Q15: 932 | R15: 661.72
A16: 567180 | B16: 5452000650573 | C16: PN G.Y 445/65R22.5 169 K MST II | D16: 44565225MSTIIK169 | E16: POIDS LOURDS | F16: GY MST2 | G16: 445 | H16: 65 | I16: R | J16: 22.5 | K16: 169 | L16: K | M16: B | N16: B | O16: B | P16: 71 | Q16: 1274 | R16: 904.54
A17: 567354 | B17: 5452000659033 | C17: PN G.Y 295/80R22.5 154/149 M UG COACH | D17: 29580225UGCOAM154149 | E17: POIDS LOURDS | F17: GY UG COACH | G17: 295 | H17: 80 | I17: R | J17: 22.5 | K17: 154/149 | L17: M | M17: D | N17: C | O17: A | P17: 72 | Q17: 882 | R17: 626.22
A18: 567356 | B18: 5452000659057 | C18: PN G.Y 315/80R22.5 156 L UG COACH | D18: 31580225UGCOAL156 | E18: POIDS LOURDS | F18: GY UGCOACH | G18: 315 | H18: 80 | I18: R | J18: 22.5 | K18: 156 | L18: L | M18: D | N18: C | O18: A | P18: 73 | Q18: 932 | R18: 661.72
A19: 567453 | B19: 5452000662583 | C19: PN G.Y 355/50R22.5 156 K KMAX S | D19: 35550225KMAXSK156 | E19: POIDS LOURDS | F19: GY KMAX S | G19: 355 | H19: 50 | I19: R | J19: 22.5 | K19: 156 | L19: K | M19: C | N19: B | O19: A | P19: 71 | Q19: 936 | R19: 664.56
A20: 567631 | B20: 5452000432834 | C20: PN G.Y 285/70R19.5 146L/144M KMAX D | D20: 28570195KMAXD146L | E20: POIDS LOURDS | F20: GY KMAX D | G20: 285 | H20: 70 | I20: R | J20: 19.5 | K20: 146 | L20: L | M20: D | N20: C | O20: A | P20: 71 | Q20: 612 | R20: 434.52
A21: 567636 | B21: 5452000433015 | C21: PN G.Y 285/70R19.5 146L144M KMAX S | D21: 28570195KMAXS146L | E21: POIDS LOURDS | F21: GY KMAX S | G21: 285 | H21: 70 | I21: R | J21: 19.5 | K21: 146 | L21: L | M21: D | N21: C | O21: A | P21: 71 | Q21: 612 | R21: 434.52
A22: 567638 | B22: 5452000433039 | C22: PN G.Y 245/70R17.5 136/134M KMAX S | D22: 24570175KMAXS136M | E22: POIDS LOURDS | F22: GY KMAX S | G22: 245 | H22: 70 | I22: R | J22: 17.5 | K22: 136/134 | L22: M | M22: D | N22: B | O22: A | P22: 70 | Q22: 476 | R22: 337.96
A23: 567650 | B23: 5452000433053 | C23: PN G.Y 245/70R17.5 136/134M KMAX D | D23: 24570175KMAXD136M | E23: POIDS LOURDS | F23: GY KMAX D | G23: 245 | H23: 70 | I23: R | J23: 17.5 | K23: 136/134 | L23: M | M23: D | N23: B | O23: A | P23: 71 | Q23: 476 | R23: 337.96
A24: 567750 | B24: 5452000437839 | C24: PN G.Y 275/70R22.5 148 J MCD | D24: 27570225MCDJ148GY | E24: POIDS LOURDS | F24: GY MCD | G24: 275 | H24: 70 | I24: R | J24: 22.5 | K24: 152 | L24: E | M24: E | N24: C | O24: A | P24: 72 | Q24: 774 | R24: 549.54
A25: 568090 | B25: 5452000450548 | C25: PN G.Y 315/80R22.5 156 L UG MAX S | D25: 31580225UGMAXL156GY | E25: POIDS LOURDS | F25: GY UG MAX S | G25: 315 | H25: 80 | I25: R | J25: 22.5 | K25: 156 | L25: L | M25: C | N25: B | O25: B | P25: 72 | Q25: 922 | R25: 654.62
A26: 568092 | B26: 5452000450562 | C26: PN G.Y 315/80R22.5 156 L UG MAX D | D26: 31580225UGMAXL156 | E26: POIDS LOURDS | F26: GY UG MAX D | G26: 315 | H26: 80 | I26: R | J26: 22.5 | K26: 156 | L26: L | M26: E | N26: B | O26: B | P26: 74 | Q26: 922 | R26: 654.62
A27: 568221 | B27: 5452000453730 | C27: PN G.Y 275/70R22.5 148 J WTD CITY | D27: 27570225WTDJ148 | E27: POIDS LOURDS | F27: GY WTD | G27: 275 | H27: 70 | I27: R | J27: 22.5 | K27: 152 | L27: E | M27: E | N27: C | O27: A | P27: 73 | Q27: 774 | R27: 549.54
A28: 568243 | B28: 5452000453846 | C28: PN G.Y 265/70R19.5 143 J WTT | D28: 26570195WTTJ143 | E28: POIDS LOURDS | F28: GY WTT | G28: 265 | H28: 70 | I28: R | J28: 19.5 | K28: 143/141 | L28: J | M28: D | N28: B | O28: B | P28: 72 | Q28: 556 | R28: 394.76
A29: 568245 | B29: 5452000453860 | C29: PN G.Y 275/70R22.5 148 J WTS CITY | D29: 27570225WTSJ148 | E29: POIDS LOURDS | F29: GY WTS | G29: 275 | H29: 70 | I29: R | J29: 22.5 | K29: 152 | L29: E | M29: E | N29: C | O29: B | P29: 74 | Q29: 774 | R29: 549.54
A30: 568263 | B30: 5452000454041 | C30: PN G.Y 355/50R22.5 154 K WTS | D30: 35550225WTSK154 | E30: POIDS LOURDS | F30: GY WTS | G30: 355 | H30: 50 | I30: R | J30: 22.5 | K30: 154 | L30: K | M30: D | N30: B | O30: B | P30: 74 | Q30: 1060 | R30: 752.6
A31: 568373 | B31: 5452000459879 | C31: PN G.Y 375/45R22.5 156 L KMAX S | D31: 37545225KMAXSL156 | E31: POIDS LOURDS | F31: GY KMAX S | G31: 375 | H31: 45 | I31: R | J31: 22.5 | K31: 156 | L31: L | M31: B | N31: B | O31: B | P31: 73 | Q31: 1172 | R31: 832.12
A32: 568806 | B32: 5452000538871 | C32: PN G.Y 305/70R19.5 148/145M KMAX D | D32: 30570195KMAXD148M | E32: POIDS LOURDS | F32: GY KMAX D | G32: 305 | H32: 70 | I32: R | J32: 19.5 | K32: 148/145 | L32: M | M32: C | N32: C | O32: A | P32: 72 | Q32: 754 | R32: 535.34
A33: 568828 | B33: 5452000539182 | C33: PN G.Y 305/70R19.5 148/145M KMAX S | D33: 30570195KMAXS148M | E33: POIDS LOURDS | F33: GY KMAX S | G33: 305 | H33: 70 | I33: R | J33: 19.5 | K33: 148/145 | L33: M | M33: C | N33: C | O33: A | P33: 71 | Q33: 754 | R33: 535.34
A34: 568860 | B34: 5452000539816 | C34: PN G.Y 295/60R22.5 150K/149L UGMAXS | D34: 29560225UGMAXS150K | E34: POIDS LOURDS | F34: GY UG MAX S | G34: 295 | H34: 60 | I34: R | J34: 22.5 | K34: 150 | L34: K | M34: C | N34: B | O34: B | P34: 72 | Q34: 888 | R34: 630.48
A35: 568863 | B35: 5452000539830 | C35: PN G.Y 295/80R22.5 154/149 L UG MAX S | D35: 29580225UGMAXL154149 | E35: POIDS LOURDS | F35: GY UG MAX S | G35: 295 | H35: 80 | I35: R | J35: 22.5 | K35: 154/149 | L35: L | M35: D | N35: B | O35: B | P35: 72 | Q35: 874 | R35: 620.54
A36: 568865 | B36: 5452000539854 | C36: PN G.Y 315/60R22.5 152/148J UGMAXS HL | D36: 31560225UGMAXS152J | E36: POIDS LOURDS | F36: GY UG MAX S | G36: 315 | H36: 60 | I36: R | J36: 22.5 | K36: 154/148 | L36: L | M36: C | N36: C | O36: B | P36: 73 | Q36: 948 | R36: 673.08
A37: 568867 | B37: 5452000539878 | C37: PN G.Y 315/70R22.5 156/150 L UG MAX S HL | D37: 31570225UGMAXL156150 | E37: POIDS LOURDS | F37: GY UG MAX S | G37: 315 | H37: 70 | I37: R | J37: 22.5 | K37: 156/150 | L37: L | M37: C | N37: B | O37: B | P37: 73 | Q37: 904 | R37: 641.84
A38: 568869 | B38: 5452000539908 | C38: PN G.Y 385/55R22.5 160K/158L UGMAXS | D38: 38555225UGMAXS160K | E38: POIDS LOURDS | F38: GY UG MAX S | G38: 385 | H38: 55 | I38: R | J38: 22.5 | K38: 160 | L38: K | M38: C | N38: B | O38: B | P38: 74 | Q38: 986 | R38: 700.06
A39: 568873 | B39: 5452000539946 | C39: PN G.Y 295/60R22.5 150K149L UG MAX D | D39: 29560225UGMAXD150K | E39: POIDS LOURDS | F39: GY UG MAX D | G39: 295 | H39: 60 | I39: R | J39: 22.5 | K39: 150 | L39: K | M39: D | N39: C | O39: A | P39: 73 | Q39: 888 | R39: 630.48
A40: 568875 | B40: 5452000539960 | C40: PN G.Y 295/80R22.5 152/148 M UG MAX D | D40: 29580225UGMAXM152148 | E40: POIDS LOURDS | F40: GY UG MAX D | G40: 295 | H40: 80 | I40: R | J40: 22.5 | K40: 152/148 | L40: M | M40: E | N40: C | O40: A | P40: 73 | Q40: 874 | R40: 620.54
A41: 568877 | B41: 5452000539984 | C41: PN G.Y 315/60R22.5 152/148L UGMAXD | D41: 31560225UGMAXD152L | E41: POIDS LOURDS | F41: GY UG MAX D | G41: 315 | H41: 60 | I41: R | J41: 22.5 | K41: 152/148 | L41: L | M41: D | N41: C | O41: B | P41: 74 | Q41: 948 | R41: 673.08
A42: 568880 | B42: 5452000540003 | C42: PN G.Y 315/70R22.5 154 L UG MAX D | D42: 31570225UGMAXL154 | E42: POIDS LOURDS | F42: GY UG MAX D | G42: 315 | H42: 70 | I42: R | J42: 22.5 | K42: 154 | L42: L | M42: E | N42: C | O42: B | P42: 74 | Q42: 904 | R42: 641.84
A43: 568892 | B43: 5452000540379 | C43: PN G.Y 205/75R17.5 124/122M KMAX S | D43: 20575175KMAXS124M | E43: POIDS LOURDS | F43: GY KMAX S | G43: 205 | H43: 75 | I43: R | J43: 17.5 | K43: 124/122 | L43: M | M43: D | N43: B | O43: A | P43: 69 | Q43: 368 | R43: 261.28
A44: 568896 | B44: 5452000541314 | C44: PN G.Y 225/75R17.5 129/127M KMAX S 3PSF | D44: 22575175KMAXS129M | E44: POIDS LOURDS | F44: GY KMAX S | G44: 225 | H44: 75 | I44: R | J44: 17.5 | K44: 129/127 | L44: M | M44: D | N44: B | O44: A | P44: 69 | Q44: 408 | R44: 289.68
A45: 568898 | B45: 5452000541345 | C45: PN G.Y 235/75R17.5 132/130M KMAX S 3PSF | D45: 23575175KMAXS132M | E45: POIDS LOURDS | F45: GY KMAX S | G45: 235 | H45: 75 | I45: R | J45: 17.5 | K45: 132/130 | L45: M | M45: D | N45: B | O45: A | P45: 69 | Q45: 454 | R45: 322.34
A46: 568921 | B46: 5452000541079 | C46: PN G.Y 205/75R17.5 124M126G KMAX D | D46: 20575175KMAXD124M | E46: POIDS LOURDS | F46: GY KMAX D | G46: 205 | H46: 75 | I46: R | J46: 17.5 | K46: 126 | L46: G | M46: D | N46: C | O46: B | P46: 74 | Q46: 368 | R46: 261.28
A47: 568923 | B47: 5452000541093 | C47: PN G.Y 215/75R17.5 126/124M KMAX D | D47: 21575175KMAXD126M | E47: POIDS LOURDS | F47: GY KMAX D | G47: 215 | H47: 75 | I47: R | J47: 17.5 | K47: 126/124 | L47: M | M47: D | N47: C | O47: A | P47: 71 | Q47: 336 | R47: 238.56
A48: 568930 | B48: 5452000540171 | C48: PN G.Y 225/75R17.5 129/127M KMAX D | D48: 22575175KMAXD129M | E48: POIDS LOURDS | F48: GY KMAX D | G48: 225 | H48: 75 | I48: R | J48: 17.5 | K48: 129/127 | L48: M | M48: D | N48: C | O48: A | P48: 73 | Q48: 408 | R48: 289.68
A49: 568932 | B49: 5452000540195 | C49: PN G.Y 235/75R17.5 132/130M KMAX D | D49: 23575175KMAXD132M | E49: POIDS LOURDS | F49: GY KMAX D | G49: 235 | H49: 75 | I49: R | J49: 17.5 | K49: 132/130 | L49: M | M49: D | N49: B | O49: A | P49: 71 | Q49: 454 | R49: 322.34
A50: 569376 | B50: 5452000558473 | C50: PN G.Y 275/70R22.5 148 J URBMAX MCA | D50: 27570225URBMAXJ148 | E50: POIDS LOURDS | F50: GY URB MCA | G50: 275 | H50: 70 | I50: R | J50: 22.5 | K50: 152 | L50: E | M50: E | N50: C | O50: A | P50: 71 | Q50: 774 | R50: 549.54
A51: 569503 | B51: 5452000560742 | C51: PN G.Y 13 R22.5 156/150K OMNITRAC D HD | D51: 13225OMNDHD156K | E51: POIDS LOURDS | F51: GY OMNITRAC D | G51: 13 | I51: R | J51: 22.5 | K51: 156/150 | L51: K | M51: D | N51: B | O51: B | P51: 75 | Q51: 950 | R51: 674.5
A52: 569505 | B52: 5452000560766 | C52: PN G.Y 315/80R22.5 156/150K OMN D HD | D52: 31580225OMNCDHE156K | E52: POIDS LOURDS | F52: GY OMNITRAC D HEAV | G52: 315 | H52: 80 | I52: R | J52: 22.5 | K52: 156/150 | L52: K | M52: D | N52: B | O52: B | P52: 75 | Q52: 948 | R52: 673.08
A53: 569507 | B53: 5452000560780 | C53: PN G.Y 325/95R24 162/160K OMN D HEAVY D | D53: 3259524OMNDHD162K | E53: POIDS LOURDS | F53: GY OMNITRAC D HEAV | G53: 325 | H53: 95 | I53: R | J53: 24 | K53: 162/160 | L53: K | M53: D | N53: B | O53: B | P53: 76 | Q53: 1158 | R53: 822.18
A54: 569509 | B54: 5452000560803 | C54: PN G.Y 12 R22.5 152/148K OMNITRAC D HD | D54: 12225OMNDHD152K | E54: POIDS LOURDS | F54: GY OMNITRAC D HEAV | G54: 12 | I54: R | J54: 22.5 | K54: 152/148 | L54: K | M54: D | N54: B | O54: B | P54: 74 | Q54: 892 | R54: 633.32
A55: 569513 | B55: 5452000560261 | C55: PN G.Y 315/80R22.5 156/150K OMN S | D55: 31580225OMNS156K | E55: POIDS LOURDS | F55: GY OMN S | G55: 315 | H55: 80 | I55: R | J55: 22.5 | K55: 156/150 | L55: K | M55: D | N55: B | O55: B | P55: 73 | Q55: 932 | R55: 661.72
A56: 569519 | B56: 5452000560308 | C56: PN G.Y 12 R22.5 152/148K OMNITRAC S HD | D56: 12225OMNITRACSHE152K | E56: POIDS LOURDS | F56: GY OMNITRAC S HEAV | G56: 12 | I56: R | J56: 22.5 | K56: 152/148 | L56: K | M56: C | N56: B | O56: A | P56: 71 | Q56: 892 | R56: 633.32
A57: 569541 | B57: 5452000560421 | C57: PN G.Y 13 R22.5 156/150K OMN S | D57: 13225OMNS156K | E57: POIDS LOURDS | F57: GY OMN S | G57: 13 | I57: R | J57: 22.5 | K57: 156/150 | L57: K | M57: C | N57: B | O57: A | P57: 71 | Q57: 932 | R57: 661.72
A58: 569543 | B58: 5452000560445 | C58: PN G.Y 295/80R22.5 152/148K OMNITRAC S | D58: 29580225OMNS152K | E58: POIDS LOURDS | F58: GY OMN S | G58: 295 | H58: 80 | I58: R | J58: 22.5 | K58: 152/148 | L58: K | M58: D | N58: B | O58: A | P58: 71 | Q58: 882 | R58: 626.22
A59: 569549 | B59: 5452000560506 | C59: PN G.Y 13 R22.5 156/150K OMNITRAC S HD | D59: 13225OMNSHD156K | E59: POIDS LOURDS | F59: GY OMNITRAC S | G59: 13 | I59: R | J59: 22.5 | K59: 156/150 | L59: K | M59: C | N59: B | O59: B | P59: 72 | Q59: 950 | R59: 674.5
A60: 569551 | B60: 5452000560520 | C60: PN G.Y 315/80R22.5 156/150K OMN S HD | D60: 31580225OMNSHEA156K | E60: POIDS LOURDS | F60: GY OMNITRAC S HEAV | G60: 315 | H60: 80 | I60: R | J60: 22.5 | K60: 156/150 | L60: K | M60: C | N60: B | O60: B | P60: 73 | Q60: 948 | R60: 673.08
A61: 569553 | B61: 5452000560544 | C61: PN G.Y 325/95R24 162/160K OMNITRAC S HEA | D61: 3259524OMNITRA20162K | E61: POIDS LOURDS | F61: GY OMNITRAC S HEAV | G61: 325 | H61: 95 | I61: R | J61: 24 | K61: 162/160 | L61: K | M61: C | N61: B | O61: A | P61: 71 | Q61: 1158 | R61: 822.18
A62: 569561 | B62: 5452000560827 | C62: PN G.Y 13 R22.5 156/150K OMN D | D62: 13225OMND156K | E62: POIDS LOURDS | F62: GY OMN D | G62: 13 | I62: R | J62: 22.5 | K62: 156/150 | L62: K | M62: D | N62: B | O62: B | P62: 75 | Q62: 932 | R62: 661.72
A63: 569563 | B63: 5452000560841 | C63: PN G.Y 295/80R22.5 152/148K OMNITRAC D | D63: 29580225OMND152K | E63: POIDS LOURDS | F63: GY OMN D | G63: 295 | H63: 80 | I63: R | J63: 22.5 | K63: 152/148 | L63: K | M63: D | N63: B | O63: B | P63: 75 | Q63: 882 | R63: 626.22
A64: 569565 | B64: 5452000560865 | C64: PN G.Y 315/80R22.5 156/150K OMN D | D64: 31580225OMND156K | E64: POIDS LOURDS | F64: GY OMN D | G64: 315 | H64: 80 | I64: R | J64: 22.5 | K64: 156/150 | L64: K | M64: D | N64: B | O64: B | P64: 75 | Q64: 932 | R64: 661.72
A65: 570286 | B65: 5452000577597 | C65: PN G.Y 385/55R22.5 160 K UG MAX T | D65: 38555225UGMAXK160 | E65: POIDS LOURDS | F65: GY UG MAX T | G65: 385 | H65: 55 | I65: R | J65: 22.5 | K65: 160 | L65: K | M65: C | N65: B | O65: B | P65: 73 | Q65: 936 | R65: 664.56
A66: 570295 | B66: 5452000577177 | C66: PN G.Y 245/70R19.5 141/140J KMAX T | D66: 24570195KMAXT141J | E66: POIDS LOURDS | F66: GY KMAX T | G66: 245 | H66: 70 | I66: R | J66: 19.5 | K66: 141/140 | L66: J | M66: C | N66: B | O66: A | P66: 69 | Q66: 556 | R66: 394.76
A67: 570296 | B67: 5452000577184 | C67: PN G.Y 265/70R19.5 143/141J KMAX T | D67: 26570195KMAXT143J | E67: POIDS LOURDS | F67: GY KMAX T | G67: 265 | H67: 70 | I67: R | J67: 19.5 | K67: 143/141 | L67: J | M67: C | N67: B | O67: A | P67: 70 | Q67: 556 | R67: 394.76
A68: 570333 | B68: 5452000577764 | C68: PN G.Y 455/45R22.5 166J URBAN MCD TRAC | D68: 45545225URBMCD166J | E68: POIDS LOURDS | F68: GY URBAN MCD | G68: 455 | H68: 45 | I68: R | J68: 22.5 | K68: 166 | L68: J | M68: C | N68: B | O68: B | P68: 75 | Q68: 1628 | R68: 1155.88
A69: 570799 | B69: 5452000584021 | C69: PN G.Y 325/95R24 162/160K OMNITRAC S | D69: 3259524OMNITRACS162K | E69: POIDS LOURDS | F69: GY OMNITRAC S | G69: 325 | H69: 95 | I69: R | J69: 24 | K69: 162/160 | L69: K | M69: C | N69: B | O69: B | P69: 72 | Q69: 1134 | R69: 805.14
A70: 570850 | B70: 5452000584649 | C70: PN G.Y 9.5R17.5 143/141 J REG.RHTII | D70: 95175REGRHJ143141 | E70: POIDS LOURDS | F70: GY REG RHT II | G70: 9.5 | I70: R | J70: 17.5 | K70: 143/141 | L70: J | M70: C | N70: B | O70: A | P70: 69 | Q70: 494 | R70: 350.74
A71: 571234 | B71: 5452000664846 | C71: PN G.Y 445/45R19.5 160J KMAX T GEN-2 | D71: 44545195KMAXTG22160J | E71: POIDS LOURDS | F71: GY KMAX T GEN-2 | G71: 445 | H71: 45 | I71: R | J71: 19.5 | K71: 160 | L71: J | M71: C | N71: B | O71: B | P71: 72 | Q71: 1026 | R71: 728.46
A72: 571494 | B72: 5452000673824 | C72: PN G.Y 385/55R22.5 160K158L FUELMAX T MS | D72: 38555225FMAXT160KMS | E72: POIDS LOURDS | F72: GY FMAXT | G72: 385 | H72: 55 | I72: R | J72: 22.5 | K72: 160 | L72: K | M72: A | N72: C | O72: A | P72: 70 | Q72: 936 | R72: 664.56
A73: 571507 | B73: 5452000673756 | C73: PN G.Y 435/50R19.5 160J FUELMAX T MS | D73: 43550195FMAXT160J | E73: POIDS LOURDS | F73: GY FMAXT | G73: 435 | H73: 50 | I73: R | J73: 19.5 | K73: 160 | L73: J | M73: A | N73: C | O73: B | P73: 73 | Q73: 984 | R73: 698.64
A74: 571543 | B74: 5452000674029 | C74: PN G.Y 315/60R22.5 154/148L FMAX S HL | D74: 31560225FMAXS154LM | E74: POIDS LOURDS | F74: GY FUELMAX S | G74: 315 | H74: 60 | I74: R | J74: 22.5 | K74: 154/148 | L74: L | M74: B | N74: B | O74: B | P74: 71 | Q74: 928 | R74: =Q74*(1-$D$3) -> 658.88
A75: 571706 | B75: 5452000679727 | C75: PN G.Y 275/70R22.5 148/145M KMAX D M+S | D75: 27570225KMAXD148M | E75: POIDS LOURDS | F75: GY KMAXD | G75: 275 | H75: 70 | I75: R | J75: 22.5 | K75: 148/145 | L75: M | M75: D | N75: C | O75: A | P75: 73 | Q75: 774 | R75: 549.54
A76: 571711 | B76: 5452000679604 | C76: PN G.Y 275/70R22.5 148/145M KMAX S | D76: 27570225KMAXS148M | E76: POIDS LOURDS | F76: GY KMAXS | G76: 275 | H76: 70 | I76: R | J76: 22.5 | K76: 148/145 | L76: M | M76: C | N76: B | O76: B | P76: 72 | Q76: 774 | R76: 549.54
A77: 571721 | B77: 5452000679918 | C77: PN G.Y 305/70R22.5 153L150M KMAX D | D77: 30570225KMAXD153L | E77: POIDS LOURDS | F77: GY KMAXD | G77: 305 | H77: 70 | I77: R | J77: 22.5 | K77: 153 | L77: L | M77: D | N77: C | O77: A | P77: 71 | Q77: 844 | R77: 599.24
A78: 572090 | B78: 5452000705037 | C78: PN G.Y 385/65R22.5 164K FUELMAX T HL | D78: 38565225FUELMT164K | E78: POIDS LOURDS | F78: GY FMAXT | G78: 385 | H78: 65 | I78: R | J78: 22.5 | K78: 164 | L78: K | M78: A | N78: C | O78: A | P78: 70 | Q78: 884 | R78: 627.64
A79: 572188 | B79: 5452000711953 | C79: PN G.Y 315/70R22.5 156/150L FMAX S PERF | D79: 31570225FMAXSPE156L | E79: POIDS LOURDS | F79: GY FUELMAX S | G79: 315 | H79: 70 | I79: R | J79: 22.5 | K79: 156/150 | L79: L | M79: A | N79: B | O79: A | P79: 71 | Q79: 904 | R79: 641.84
A80: 572211 | B80: 5452000711984 | C80: PN G.Y 385/55R22.5 160K/158L FMAX S PERF | D80: 38555225FMAXSPE160K | E80: POIDS LOURDS | F80: GY FUELMAX S | G80: 385 | H80: 55 | I80: R | J80: 22.5 | K80: 160 | L80: K | M80: A | N80: B | O80: A | P80: 71 | Q80: 986 | R80: 700.06
A81: 572212 | B81: 5452000712035 | C81: PN G.Y 315/70R22.5 154L/152M FMAX D PERF | D81: 31570225FMAXDPE154L | E81: POIDS LOURDS | F81: GY FUELMAX D | G81: 315 | H81: 70 | I81: R | J81: 22.5 | K81: 154 | L81: L | M81: A | N81: C | O81: A | P81: 73 | Q81: 904 | R81: 641.84
A82: 572251 | B82: 5452000712264 | C82: PN G.Y 265/55R19.5 141/142J KMAX T | D82: 26555195KMAXT141J | E82: POIDS LOURDS | F82: GY KMAX T | G82: 265 | H82: 55 | I82: R | J82: 19.5 | K82: 142 | L82: G | M82: C | N82: B | O82: A | P82: 71 | Q82: 690 | R82: 489.9
A83: 572483 | B83: 5452000726162 | C83: PN G.Y 13 R22.5 156G154J OFFORD ORD | D83: 13225OFORD156G | E83: POIDS LOURDS | F83: GY OFFORD | G83: 13 | I83: R | J83: 22.5 | K83: 156 | L83: G | P83: 0 | Q83: 950 | R83: 674.5
A84: 572521 | B84: 5452000725080 | C84: PN G.Y 325/95R24 162/160G OFFORD ORD | D84: 3259524OFORD162G | E84: POIDS LOURDS | F84: GY OFFORD | G84: 325 | H84: 95 | I84: R | J84: 24 | K84: 162/160 | L84: G | P84: 0 | Q84: 1158 | R84: 822.18
A85: 572606 | B85: 5452000730459 | C85: PN G.Y 12.00 R20 154/150K OMN MSD II | D85: 120020OMNMSD2154K | E85: POIDS LOURDS | F85: GY OMN MSD2 | G85: 12 | I85: R | J85: 20 | K85: 154/150 | L85: K | M85: E | N85: B | O85: A | P85: 73 | Q85: 862 | R85: 612.02
A86: 572631 | B86: 5452000728463 | C86: PN G.Y 355/50R22.5 156K FUELMAX S ENDUR | D86: 35550225FUELMAX156NK | E86: POIDS LOURDS | F86: GY FUELMAX S ENDUR | G86: 355 | H86: 50 | I86: R | J86: 22.5 | K86: 156 | L86: K | M86: B | N86: B | O86: A | P86: 71 | Q86: 1082 | R86: 768.22
A87: 572647 | B87: 5452000730305 | C87: PN G.Y 9.5R17.5 129/127 M RHS II REG. | D87: 95175RHS23P114129M | E87: POIDS LOURDS | F87: GY REG RHS II | G87: 9.5 | I87: R | J87: 17.5 | K87: 129/127 | L87: M | M87: D | N87: C | O87: A | P87: 71 | Q87: 478 | R87: 339.38
A88: 572721 | B88: 5452000730848 | C88: PN G.Y 315/80R22.5 156L/154M KMAX D G2 | D88: 31580225KMAXDG2156L | E88: POIDS LOURDS | F88: GY KMAX D | G88: 315 | H88: 80 | I88: R | J88: 22.5 | K88: 156 | L88: L | M88: D | N88: C | O88: A | P88: 72 | Q88: 904 | R88: 641.84
A89: 572782 | B89: 5452000735379 | C89: PN G.Y 295/55R22.5 147/145K KMAX D G2 | D89: 29555225KMAXDG2147K | E89: POIDS LOURDS | F89: GY KMAX D GEN-2 | G89: 295 | H89: 55 | I89: R | J89: 22.5 | K89: 147/145 | L89: K | M89: C | N89: B | O89: A | P89: 72 | Q89: 1056 | R89: 749.76
A90: 572788 | B90: 5452000735430 | C90: PN G.Y 315/45R22.5 147/145L KMAX D G2 | D90: 31545225KMAXDGEN147L | E90: POIDS LOURDS | F90: GY KMAX D GEN-2 | G90: 315 | H90: 45 | I90: R | J90: 22.5 | K90: 147/145 | L90: L | M90: D | N90: C | O90: A | P90: 73 | Q90: 1066 | R90: 756.86
A91: 572792 | B91: 5452000734839 | C91: PN G.Y 295/60R22.5 150K/149L KMAX S G2 | D91: 29560225KMAXSG2150K | E91: POIDS LOURDS | F91: GY KMAX S | G91: 295 | H91: 60 | I91: R | J91: 22.5 | K91: 150 | L91: K | M91: C | N91: B | O91: A | P91: 71 | Q91: 870 | R91: 617.7
A92: 572794 | B92: 5452000735850 | C92: PN G.Y 295/80R22.5 154/149M KMAX S G2 | D92: 29580225KMAXSG2154M | E92: POIDS LOURDS | F92: GY KMAX S GEN-2 | G92: 295 | H92: 80 | I92: R | J92: 22.5 | K92: 154/149 | L92: M | M92: C | N92: B | O92: B | P92: 74 | Q92: 856 | R92: 607.76
A93: 572796 | B93: 5452000735874 | C93: PN G.Y 315/60R22.5 154/148L KMAX S GEN-2 | D93: 31560225KMAXSG2HL154 | E93: POIDS LOURDS | F93: GY KMAX S GEN-2 | G93: 315 | H93: 60 | I93: R | J93: 22.5 | K93: 154/148 | L93: L | M93: C | N93: C | O93: B | P93: 74 | Q93: 928 | R93: 658.88
A94: 572798 | B94: 5452000735898 | C94: PN G.Y 315/70R22.5 156/150L KMAX S G2 | D94: 31570225KMAXSG2156L | E94: POIDS LOURDS | F94: GY KMAX S | G94: 315 | H94: 70 | I94: R | J94: 22.5 | K94: 156/150 | L94: L | M94: C | N94: B | O94: B | P94: 72 | Q94: 886 | R94: 629.06
A95: 572810 | B95: 5452000735751 | C95: PN G.Y 315/60R22.5 152/148L KMAX D G2 | D95: 31560225KMAXDG2152L | E95: POIDS LOURDS | F95: GY KMAX D GEN-2 | G95: 315 | H95: 60 | I95: R | J95: 22.5 | K95: 152/148 | L95: L | M95: D | N95: B | O95: A | P95: 73 | Q95: 928 | R95: 658.88
A96: 572812 | B96: 5452000735775 | C96: PN G.Y 315/70R22.5 154L/152M KMAX D G2 | D96: 31570225KMAXDG2154L | E96: POIDS LOURDS | F96: GY KMAX D | G96: 315 | H96: 70 | I96: R | J96: 22.5 | K96: 154 | L96: L | M96: C | N96: B | O96: A | P96: 72 | Q96: 886 | R96: 629.06
A97: 572818 | B97: 5452000735812 | C97: PN G.Y 315/60R22.5 152/148L FUELMAX D G2 | D97: 31560225FMAXDG2152L | E97: POIDS LOURDS | F97: GY FUELMAX D GEN-2 | G97: 315 | H97: 60 | I97: R | J97: 22.5 | K97: 152/148 | L97: L | M97: B | N97: C | O97: A | P97: 73 | Q97: 928 | R97: 658.88
A98: 572840 | B98: 5452000735911 | C98: PN G.Y 315/80R22.5 156L/154M KMAX S G2 | D98: 31580225KMAXSG2156L | E98: POIDS LOURDS | F98: GY KMAX S | G98: 315 | H98: 80 | I98: R | J98: 22.5 | K98: 156 | L98: L | M98: C | N98: B | O98: A | P98: 71 | Q98: 904 | R98: 641.84
A99: 572844 | B99: 5452000735959 | C99: PN G.Y 355/50R22.5 156K KMAX S G2 | D99: 35550225KMAXSGEN156K | E99: POIDS LOURDS | F99: GY KMAX S GEN-2 | G99: 355 | H99: 50 | I99: R | J99: 22.5 | K99: 156 | L99: K | M99: C | N99: B | O99: A | P99: 71 | Q99: 1060 | R99: 752.6
A100: 572848 | B100: 5452000735997 | C100: PN G.Y 385/55R22.5 160K/158L KMAX S G2 | D100: 38555225KMAXSG2160K | E100: POIDS LOURDS | F100: GY KMAX S | G100: 385 | H100: 55 | I100: R | J100: 22.5 | K100: 160 | L100: K | M100: B | N100: B | O100: A | P100: 71 | Q100: 966 | R100: 685.86
A101: 572850 | B101: 5452000736017 | C101: PN G.Y 385/65R22.5 160K/158L KMAX S G2 | D101: 38565225KMAXSG2160K | E101: POIDS LOURDS | F101: GY KMAX S | G101: 385 | H101: 65 | I101: R | J101: 22.5 | K101: 160 | L101: K | M101: B | N101: B | O101: A | P101: 70 | Q101: 914 | R101: 648.94
A102: 572912 | B102: 5452000738073 | C102: PN G.Y 235/75R17.5 143J144F KMAX T | D102: 23575175KMAXT143JF | E102: POIDS LOURDS | F102: GY KMAX T | G102: 235 | H102: 75 | I102: R | J102: 17.5 | K102: 144 | L102: F | M102: C | N102: B | O102: A | P102: 69 | Q102: 484 | R102: 343.64
A103: 572913 | B103: 5452000738080 | C103: PN G.Y 245/70R17.5 143J146F KMAX T | D103: 24570175KMAXT143JF | E103: POIDS LOURDS | F103: GY KMAX T | G103: 245 | H103: 70 | I103: R | J103: 17.5 | K103: 146 | L103: F | M103: B | N103: B | O103: A | P103: 70 | Q103: 524 | R103: 372.04
A104: 572970 | B104: 5452000739964 | C104: PN G.Y 435/50R19.5 164J FUELMAX T M+S | D104: 43550195FMAXTMS164J | E104: POIDS LOURDS | F104: GY FMAXT | G104: 435 | H104: 50 | I104: R | J104: 19.5 | K104: 164 | L104: J | M104: A | N104: C | O104: A | P104: 70 | Q104: 1014 | R104: 719.94
A105: 573041 | B105: 5452000741653 | C105: PN G.Y 315/70R22.5 156/150K OMNI S HL | D105: 31570225OMNS1156K | E105: POIDS LOURDS | F105: GY OMNI HL | G105: 315 | H105: 70 | I105: R | J105: 22.5 | K105: 156/150 | L105: K | M105: D | N105: B | O105: B | P105: 73 | Q105: 914 | R105: 648.94
A106: 573043 | B106: 5452000741677 | C106: PN G.Y 315/70R22.5 154K152M OMNI D | D106: 31570225OMND154K | E106: POIDS LOURDS | F106: GY OMNI D | G106: 315 | H106: 70 | I106: R | J106: 22.5 | K106: 154/150 | L106: K | M106: D | N106: C | O106: B | P106: 76 | Q106: 914 | R106: 648.94
A107: 573071 | B107: 5452000743077 | C107: PN G.Y 315/60R22.5 152/148J URB MAX MCA | D107: 31560225URBMCA152J | E107: POIDS LOURDS | F107: GY URB MCA | G107: 315 | H107: 60 | I107: R | J107: 22.5 | K107: 152/148 | L107: J | M107: C | N107: C | O107: B | P107: 72 | Q107: 928 | R107: 658.88
A108: 573100 | B108: 5452000743206 | C108: PN G.Y 385/65R22.5 164K/158L UG MAX T HL | D108: 38565225UGMAXTHL164K | E108: POIDS LOURDS | F108: GY ULTRA GRIP MAX | G108: 385 | H108: 65 | I108: R | J108: 22.5 | K108: 164 | L108: K | M108: C | N108: B | O108: B | P108: 73 | Q108: 884 | R108: 627.64
A109: 573160 | B109: 5452000745989 | C109: PN G.Y 295/80R22.5 154/149M MAR.COACH HL | D109: 29580225MARCOACH154M | E109: POIDS LOURDS | F109: GY MARCOACH | G109: 295 | H109: 80 | I109: R | J109: 22.5 | K109: 154/149 | L109: M | M109: C | N109: B | O109: A | P109: 71 | Q109: 882 | R109: 626.22
A110: 573162 | B110: 5452000746009 | C110: PN G.Y 315/80R22.5 156L154M MAR.COACH HL | D110: 31580225MARCOACH156L | E110: POIDS LOURDS | F110: GY MARCOACH | G110: 315 | H110: 80 | I110: R | J110: 22.5 | K110: 156 | L110: L | M110: B | N110: B | O110: A | P110: 71 | Q110: 932 | R110: 661.72
A111: 573214 | B111: 5452000748652 | C111: PN G.Y 295/80R22.5 152/148M FUELMAX D G2 | D111: 29580225FMAXDG2152M | E111: POIDS LOURDS | F111: GY FUELMAX D | G111: 295 | H111: 80 | I111: R | J111: 22.5 | K111: 152/148 | L111: M | M111: C | N111: B | O111: A | P111: 73 | Q111: 856 | R111: 607.76
A112: 573567 | B112: 5452000814876 | C112: PN G.Y 275/70R22.5 152/148J MARAT LHT II | D112: 27570225MARATHM+152J | E112: POIDS LOURDS | F112: GY MARATHON LHT II | G112: 275 | H112: 70 | I112: R | J112: 22.5 | K112: 152 | L112: J | M112: C | N112: B | O112: A | P112: 70 | Q112: 772 | R112: 548.12
A113: 573568 | B113: 5452000814883 | C113: PN G.Y 455/40R22.5 160J UN MAR LHT+ | D113: 45540225UNMLHT+160J | E113: POIDS LOURDS | F113: GY MARATHON LHT+ | G113: 455 | H113: 40 | I113: R | J113: 22.5 | K113: 160 | L113: J | M113: C | N113: C | O113: B | P113: 71 | Q113: 1030 | R113: 731.3
A114: 573569 | B114: 5452000814890 | C114: PN G.Y 435/50R22.5 164J MARAT LHT | D114: 43550225LHT164J | E114: POIDS LOURDS | F114: GY MARAT LHT | G114: 435 | H114: 50 | I114: R | J114: 22.5 | K114: 164 | L114: J | M114: B | N114: C | O114: A | P114: 70 | Q114: 1122 | R114: 796.62
A115: 573573 | B115: 5452000812896 | C115: PN G.Y 265/70R19.5 140/138L URB MCA | D115: 26570195URBMCA140L | E115: POIDS LOURDS | F115: GY URB MCA | G115: 265 | H115: 70 | I115: R | J115: 19.5 | K115: 140/138 | L115: L | M115: D | N115: C | O115: A | P115: 70 | Q115: 498 | R115: 353.58
A116: 573583 | B116: 5452000813558 | C116: PN G.Y 375/90R22.5 164G OFFROAD | D116: 37590225GOFFROAD164 | E116: POIDS LOURDS | F116: GY OFFROAD | G116: 375 | H116: 90 | I116: R | J116: 22.5 | K116: 164 | L116: G | P116: 0 | Q116: 1408 | R116: 999.68
A117: 573611 | B117: 5452000813350 | C117: PN G.Y 14.00 R20 164/161K/166G OFFROAD | D117: 140020KOFFROAD164 | E117: POIDS LOURDS | F117: GY OFFROAD | G117: 14 | I117: R | J117: 20 | K117: 166 | L117: G | P117: 0 | Q117: 1648 | R117: 1170.08
A118: 573660 | B118: 5452000811608 | C118: PN G.Y 215/75R17.5 128/126M KMAX S | D118: 21575175KMAXS14128M | E118: POIDS LOURDS | F118: GY KMAX S | G118: 215 | H118: 75 | I118: R | J118: 17.5 | K118: 128/126 | L118: M | M118: D | N118: B | O118: A | P118: 70 | Q118: 336 | R118: 238.56
A119: 573954 | B119: 5452000820808 | C119: PN G.Y 295/80R22.5 154/149M FMAX S G2 HL | D119: 29580225FMAXSG2154M | E119: POIDS LOURDS | F119: GY FUELMAX S | G119: 295 | H119: 80 | I119: R | J119: 22.5 | K119: 154/149 | L119: M | M119: B | N119: C | O119: A | P119: 70 | Q119: 856 | R119: 607.76
A120: 574108 | B120: 5452000828477 | C120: PN G.Y 295/80R22.5 156L URBMAXCOM | D120: 29580225URBMAXCO156L | E120: POIDS LOURDS | F120: GY URBMAXCOM | G120: 295 | H120: 80 | I120: R | J120: 22.5 | K120: 156 | L120: L | M120: C | N120: C | P120: 74 | Q120: 856 | R120: 607.76
A121: 574192 | B121: 5452000828934 | C121: PN G.Y 295/60R22.5 150K149L FUELMAX S G2 | D121: 29560225FMAXSG2150GY | E121: POIDS LOURDS | F121: GY FUELMAX S | G121: 295 | H121: 60 | I121: R | J121: 22.5 | K121: 150 | L121: K | M121: B | N121: C | O121: A | P121: 71 | Q121: 870 | R121: 617.7
A122: 576224 | B122: 4038526023384 | C122: PN G.Y 385/65R22.5 160K158L OMNI S | D122: 38565225OMNS1160KGY | E122: POIDS LOURDS | F122: GY OMNI S | G122: 385 | H122: 65 | I122: R | J122: 22.5 | K122: 160 | L122: K | M122: C | N122: B | O122: B | P122: 73 | Q122: 944 | R122: 670.24
A123: 576598 | B123: 4038526026118 | C123: PN G.Y 365/85R20 18P164J OFFORD | D123: 3658520OFFORD18164J | E123: POIDS LOURDS | F123: GY OFFROAD ORD | G123: 365 | H123: 85 | I123: R | J123: 20 | K123: 164 | L123: J | P123: 0 | Q123: 1648 | R123: 1170.08
A124: 577500 | B124: 4038526034816 | C124: PN G.Y 385/65R22.5 164K158L OMNITR T HL | D124: 38565225OMNIT164K | E124: POIDS LOURDS | F124: GY OMNITRAC T | G124: 385 | H124: 65 | I124: R | J124: 22.5 | K124: 164 | L124: K | M124: C | N124: B | O124: B | P124: 72 | Q124: 912 | R124: 647.52
A125: 577627 | B125: 4038526036445 | C125: PN GY 385/65R22.5 164K/158L KMAX T G2 HL | D125: 38565225KMAXTG2164KG | E125: POIDS LOURDS | F125: GY KMAX T GEN-2 | G125: 385 | H125: 65 | I125: R | J125: 22.5 | K125: 164 | L125: K | M125: C | N125: B | O125: B | P125: 72 | Q125: 884 | R125: 627.64
A126: 577628 | B126: 4038526036490 | C126: PN G.Y 425/65R22.5 20P165K KMAX T | D126: 42565225KMAXT20165K | E126: POIDS LOURDS | F126: GY KMAX T GEN-2 | G126: 425 | H126: 65 | I126: R | J126: 22.5 | K126: 165 | L126: K | M126: C | N126: B | O126: A | P126: 71 | Q126: 1168 | R126: 829.28
A127: 577629 | B127: 4038526036629 | C127: PN G.Y 435/50R19.5 20P160J KMAX T GEN-2 | D127: 43550195KMAXT20160J | E127: POIDS LOURDS | F127: GY KMAX T GEN-2 | G127: 435 | H127: 50 | I127: R | J127: 19.5 | K127: 160 | L127: J | M127: B | N127: B | O127: B | P127: 72 | Q127: 984 | R127: 698.64
A128: 579004 | B128: 5452000735416 | C128: PN G.Y 295/80R22.5 152/148M KMAX D G2 | D128: 29580225KMAXDG2152M2 | E128: POIDS LOURDS | F128: GY KMAX D GEN-2 | G128: 295 | H128: 80 | I128: R | J128: 22.5 | K128: 152/148 | L128: M | M128: D | N128: C | O128: A | P128: 72 | Q128: 856 | R128: 607.76
A129: 579339 | B129: 4038526054470 | C129: PN G.Y 495/45R22.5 169K MARATH LHD | D129: 49545225MARLHD169K | E129: POIDS LOURDS | F129: GY MARATH LHD | G129: 495 | H129: 45 | I129: R | J129: 22.5 | K129: 169 | L129: K | M129: C | N129: C | O129: B | P129: 73 | Q129: 1786 | R129: 1268.06
A130: 580184 | B130: 4038526059895 | C130: PN G.Y 385/65R22.5 20P164K/158L KMAX S G | D130: 38565225KMAXSG20164K | E130: POIDS LOURDS | F130: GY KMAX S GEN-2 | G130: 385 | H130: 65 | I130: R | J130: 22.5 | K130: 164 | L130: K | M130: B | N130: A | O130: A | P130: 71 | Q130: 944 | R130: 670.24
A131: 580300 | B131: 4038526061317 | C131: PN G.Y 295/55R22.5 147/145K FUELMAX D G2 | D131: 29555225FMAXDG2147K | E131: POIDS LOURDS | F131: GY FUELMAX D G2 | G131: 295 | H131: 55 | I131: R | J131: 22.5 | K131: 147/145 | L131: K | M131: B | N131: B | O131: B | P131: 74 | Q131: 1056 | R131: 749.76
A132: 580341 | B132: 4038526066619 | C132: PN G.Y 375/50R22.5C 156K MARATHON LHS II | D132: 37550225KMARATHON156 | E132: POIDS LOURDS | F132: GY MARATHON LHS II | G132: 375 | H132: 50 | I132: R | J132: 22.5 | K132: 156 | L132: K | M132: B | N132: B | O132: A | P132: 71 | Q132: 1122 | R132: 796.62
A133: 580350 | B133: 4038526062611 | C133: PN G.Y 385/55R22.5 160K/158L KMAX T G-2 | D133: 38555225KMAXTGEN160K | E133: POIDS LOURDS | F133: GY KMAX T GEN-2 | G133: 385 | H133: 55 | I133: R | J133: 22.5 | K133: 160 | L133: K | M133: B | N133: B | O133: A | P133: 71 | Q133: 936 | R133: 664.56
A134: 580354 | B134: 4038526062659 | C134: PN GY 385/55R22.5 20P160K OMN MSD 2 | D134: 38555225OMNMSD20160K | E134: POIDS LOURDS | F134: GY OMNITRAC MSD II | G134: 385 | H134: 55 | I134: R | J134: 22.5 | K134: 160 | L134: K | M134: C | N134: B | O134: B | P134: 73 | Q134: 996 | R134: 707.16
A135: 580356 | B135: 4038526062673 | C135: PN G.Y 495/45R22.5 169K OMN MSD II | D135: 49545225OMNMSD2169K | E135: POIDS LOURDS | F135: GY OMNITRAC MSD II | G135: 495 | H135: 45 | I135: R | J135: 22.5 | K135: 169 | L135: K | M135: C | N135: C | O135: B | P135: 76 | Q135: 1840 | R135: 1306.4
A136: 580501 | B136: 4038526064523 | C136: PN G.Y 245/70R19.5 136M KMAX S | D136: 24570195KMAXS136M2 | E136: POIDS LOURDS | F136: GY KMAX S | G136: 245 | H136: 70 | I136: R | J136: 19.5 | K136: 136/134 | L136: M | M136: D | N136: C | O136: A | P136: 71 | Q136: 512 | R136: 363.52
A137: 580602 | B137: 4038526066770 | C137: PN G.Y 295/60R22.5 18P150/147K/149L FUEL | D137: 29560225FUELMA18150K | E137: POIDS LOURDS | F137: GY FUELMAX D A | G137: 295 | H137: 60 | I137: R | J137: 22.5 | K137: 150 | L137: K | M137: C | N137: B | O137: A | P137: 73 | Q137: 870 | R137: 617.7
A138: 581003 | B138: 4038526070968 | C138: PN GY 295/60R22.5 150K/149L KMAX D A | D138: 29560225KMAXDA150K | E138: POIDS LOURDS | F138: GY KMAX D A | G138: 295 | H138: 60 | I138: R | J138: 22.5 | K138: 150 | L138: K | M138: D | N138: B | O138: A | P138: 73 | Q138: 870 | R138: =Q138*(1-$D$3) -> 617.7
A139: 581369 | B139: 4038526073891 | C139: PN G.Y 445/65R22.5 20P169K KMAX T GEN-2 | D139: 44565225KMAXTG20169K | E139: POIDS LOURDS | F139: GY KMAX T GEN-2 | G139: 445 | H139: 65 | I139: R | J139: 22.5 | K139: 169 | L139: K | M139: C | N139: C | O139: B | P139: 72 | Q139: 1236 | R139: 877.56
A140: 581443 | B140: 4038526074072 | C140: PN G.Y 315/70R22.5 156L FUELMAX S ENDUR | D140: 31570225FUELMA20156L | E140: POIDS LOURDS | F140: GY FUELMAX S ENDUR | G140: 315 | H140: 70 | I140: R | J140: 22.5 | K140: 156/150 | L140: L | M140: B | N140: B | O140: A | P140: 71 | Q140: 904 | R140: 641.84
A141: 581445 | B141: 4038526074096 | C141: PN G.Y 385/55R22.5 160K/158L FUELMAX END | D141: 38555225FUELMA20160K | E141: POIDS LOURDS | F141: GY FUELMAX S ENDUR | G141: 385 | H141: 55 | I141: R | J141: 22.5 | K141: 160 | L141: K | M141: B | N141: B | O141: A | P141: 71 | Q141: 986 | R141: 700.06
A142: 581447 | B142: 4038526074218 | C142: PN G.Y 315/70R22.5 154L/152M FUEL MAX EN | D142: 31570225FUELMA20154L | E142: POIDS LOURDS | F142: GY FUELMAX D ENDUR | G142: 315 | H142: 70 | I142: R | J142: 22.5 | K142: 154 | L142: L | M142: B | N142: B | O142: B | P142: 74 | Q142: 904 | R142: 641.84
A143: 582344 | B143: 4038526084231 | C143: PN G.Y 275/70R22.5 18P150/148J/152E URB | D143: 27570225URBMCA18150J | E143: POIDS LOURDS | F143: GY URB MCA | G143: 275 | H143: 70 | I143: R | J143: 22.5 | K143: 152 | L143: E | M143: D | N143: C | O143: A | P143: 71 | Q143: 798 | R143: 566.58
A144: 582854 | B144: 4038526090744 | C144: PN G.Y 275/70R22.5 152/149J URB MCA HL+ | D144: 27570225URBMCA152J | E144: POIDS LOURDS | F144: GY URB MCA | G144: 275 | H144: 70 | I144: R | J144: 22.5 | K144: 152/149 | L144: J | M144: C | N144: B | O144: A | P144: 71 | Q144: 798 | R144: 566.58
A145: 582973 | B145: 4038526096449 | C145: PN GY 215/75R17.5 136/134J KMAX T | D145: 21575175KMAXT136J | E145: POIDS LOURDS | F145: GY KMAX T | G145: 215 | H145: 75 | I145: R | J145: 17.5 | K145: 136/134 | L145: J | M145: C | N145: B | O145: A | P145: 67 | Q145: 414 | R145: 293.94
A146: 583064 | B146: 4038526096678 | C146: PN GY 265/70R19.5 143J/140L OMN MS II | D146: 26570195OMNMSS2143J | E146: POIDS LOURDS | F146: GY OMNITRAC MSS II | G146: 265 | H146: 70 | I146: R | J146: 19.5 | K146: 143 | L146: J | M146: D | N146: B | O146: A | P146: 71 | Q146: 514 | R146: 364.94
A147: 583085 | B147: 4038526097538 | C147: PN GY 305/70R22.5 153L/150M KMAX S | D147: 30570225KMAXS153PSL | E147: POIDS LOURDS | F147: GY KMAX S | G147: 305 | H147: 70 | I147: R | J147: 22.5 | K147: 153 | L147: L | M147: C | N147: B | O147: A | P147: 71 | Q147: 844 | R147: 599.24
A148: 583605 | B148: 4038526099617 | C148: PN G.Y 445/75R22.5 170J MSS | D148: 44575225MSS170J | E148: POIDS LOURDS | F148: GY MSS | G148: 445 | H148: 75 | I148: R | J148: 22.5 | K148: 170 | L148: J | M148: C | N148: B | O148: B | P148: 72 | Q148: 1580 | R148: 1121.8
A149: 583640 | B149: 4038526099259 | C149: PN G.Y 375/90R22.5 164G MSS | D149: 37590225MSS164G | E149: POIDS LOURDS | F149: GY MSS | G149: 375 | H149: 90 | I149: R | J149: 22.5 | K149: 164 | L149: G | M149: C | N149: B | O149: A | P149: 71 | Q149: 1382 | R149: 981.22
A150: 585159 | B150: 4038526333124 | C150: PN G.Y 9.5 R17.5 129/127M RHD2 N | D150: 175RHD214129NM | E150: POIDS LOURDS | F150: GY REGIONAL RHD II | G150: 9.5 | I150: R | J150: 17.5 | K150: 129/127 | L150: M | M150: E | N150: B | O150: A | P150: 73 | Q150: 478 | R150: 339.38
A151: 585201 | B151: 4038526333216 | C151: PN G.Y 315/80R22.5 156/150L/154M FUELMAX | D151: 31580225FUELMAXS156L | E151: POIDS LOURDS | F151: GY FUELMAX S ENDUR | G151: 315 | H151: 80 | I151: R | J151: 22.5 | K151: 156 | L151: L | M151: B | N151: B | O151: A | P151: 71 | Q151: 922 | R151: 654.62
A152: 585203 | B152: 4038526333230 | C152: PN G.Y 385/65R22.5 160K/158L FUELMAX S E | D152: 38565225FUELMAXS160K | E152: POIDS LOURDS | F152: GY FUELMAX S ENDUR | G152: 385 | H152: 65 | I152: R | J152: 22.5 | K152: 160 | L152: K | M152: B | N152: B | O152: A | P152: 71 | Q152: 934 | R152: 663.14
A153: 585205 | B153: 4038526333254 | C153: PN G.Y 315/80R22.5 156/150L/154M FUELMAX | D153: 31580225FUELMAXD156L | E153: POIDS LOURDS | F153: GY FUELMAX D ENDUR | G153: 315 | H153: 80 | I153: R | J153: 22.5 | K153: 156 | L153: L | M153: B | N153: B | O153: A | P153: 73 | Q153: 922 | R153: 654.62
A154: 586087 | B154: 4038526337443 | C154: PN G.Y 385/65R22.5 164K/158L OMNITRAC S | D154: 38565225OMNITRAC164K | E154: POIDS LOURDS | F154: GY OMNITRAC S | G154: 385 | H154: 65 | I154: R | J154: 22.5 | K154: 164 | L154: K | M154: C | N154: B | O154: B | P154: 73 | Q154: 944 | R154: 670.24
A155: 586089 | B155: 4038526337467 | C155: PN G.Y 385/65R22.5 164K/158L UG MAX S | D155: 38565225UGMAXS164K | E155: POIDS LOURDS | F155: GY ULTRA GRIP MAX | G155: 385 | H155: 65 | I155: R | J155: 22.5 | K155: 164 | L155: K | M155: C | N155: B | O155: B | P155: 74 | Q155: 934 | R155: 663.14
A156: 587148 | B156: 4038526343734 | C156: PN G.Y 285/70R19.5 150/148J KMAX T | D156: 28570195KMAXT150J2 | E156: POIDS LOURDS | F156: GY KMAX T | G156: 285 | H156: 70 | I156: R | J156: 19.5 | K156: 150/148 | L156: J | M156: B | N156: B | O156: A | P156: 70 | Q156: 670 | R156: 475.7
A157: 587165 | B157: 4038526344328 | C157: PN G.Y 265/70R17.5 139/136M KMAX S | D157: 26570175KMAXS139M1 | E157: POIDS LOURDS | F157: GY KMAX S | G157: 265 | H157: 70 | I157: R | J157: 17.5 | K157: 139/136 | L157: M | M157: C | N157: B | O157: A | P157: 71 | Q157: 540 | R157: 383.4
A158: 587167 | B158: 4038526344342 | C158: PN G.Y 265/70R17.5 139/136M KMAXD | D158: 26570175KMAXD139M1 | E158: POIDS LOURDS | F158: GY KMAX D | G158: 265 | H158: 70 | I158: R | J158: 17.5 | K158: 139/136 | L158: M | M158: D | N158: B | O158: A | P158: 72 | Q158: 540 | R158: 383.4
A159: 587345 | B159: 4038526345776 | C159: PN G.Y 325/95R24 162/160K OMN MSD 2 | D159: 3259524OMNMSD2162K | E159: POIDS LOURDS | F159: GY OMNITRAC MSD II | G159: 325 | H159: 95 | I159: R | J159: 24 | K159: 162/160 | L159: K | M159: D | N159: B | O159: B | P159: 74 | Q159: 1134 | R159: 805.14
A160: 587732 | B160: 4038526347923 | C160: PN G.Y 215/75R17.5 128/126M KMAX D GEN-2 | D160: 21575175KMAXDGEN128M | E160: POIDS LOURDS | F160: GY KMAX D GEN-2 | G160: 215 | H160: 75 | I160: R | J160: 17.5 | K160: 128/126 | L160: M | M160: C | N160: C | P160: 71 | Q160: 348 | R160: 247.08
A161: 587734 | B161: 4038526347947 | C161: PN G.Y 245/70R17.5 136/134M KMAX D GEN-2 | D161: 24570175KMAXDGEN136M | E161: POIDS LOURDS | F161: GY KMAX D GEN-2 | G161: 245 | H161: 70 | I161: R | J161: 17.5 | K161: 136/134 | L161: M | M161: C | N161: C | P161: 72 | Q161: 492 | R161: 349.32
A162: 587736 | B162: 4038526347961 | C162: PN G.Y 285/70R19.5 146L/144M KMAX D GEN- | D162: 28570195KMAXDGEN146L | E162: POIDS LOURDS | F162: GY KMAX D GEN-2 | G162: 285 | H162: 70 | I162: R | J162: 19.5 | K162: 146 | L162: L | M162: C | N162: C | P162: 72 | Q162: 630 | R162: 447.3
A163: 587738 | B163: 4038526347985 | C163: PN G.Y 215/75R17.5 128/126M KMAX S GEN-2 | D163: 21575175KMAXSGEN128M | E163: POIDS LOURDS | F163: GY KMAX S GEN-2 | G163: 215 | H163: 75 | I163: R | J163: 17.5 | K163: 128/126 | L163: M | M163: C | N163: C | P163: 71 | Q163: 348 | R163: 247.08
A164: 587740 | B164: 4038526348005 | C164: PN G.Y 245/70R17.5 136/134M KMAX S GEN-2 | D164: 24570175KMAXSGEN136M | E164: POIDS LOURDS | F164: GY KMAX S GEN-2 | G164: 245 | H164: 70 | I164: R | J164: 17.5 | K164: 136/134 | L164: M | M164: C | N164: C | P164: 71 | Q164: 492 | R164: 349.32
A165: 587742 | B165: 4038526348029 | C165: PN G.Y 285/70R19.5 146L/144M KMAX S GEN- | D165: 28570195KMAXSGEN146L | E165: POIDS LOURDS | F165: GY KMAX S GEN-2 | G165: 285 | H165: 70 | I165: R | J165: 19.5 | K165: 146 | L165: L | M165: C | N165: C | P165: 71 | Q165: 630 | R165: 447.3
A166: 588167 | B166: 4038526353214 | C166: PN G.Y 205/65R17.5 132/130J/133G KMAX T | D166: 20565175KMAXT132J | E166: POIDS LOURDS | F166: GY KMAX T | G166: 205 | H166: 65 | I166: R | J166: 17.5 | K166: 133 | L166: G | M166: C | N166: C | O166: A | P166: 70 | Q166: 430 | R166: 305.3
A167: 588561 | B167: 4038526357816 | C167: PN G.Y 315/60R22.5 154/148L FUELMAX S EN | D167: 31560225FUELMAXS154L | E167: POIDS LOURDS | F167: GY FUELMAX S ENDUR | G167: 315 | H167: 60 | I167: R | J167: 22.5 | K167: 154/148 | L167: L | M167: B | N167: B | O167: B | P167: 72 | Q167: 948 | R167: 673.08
A168: 588563 | B168: 4038526357830 | C168: PN G.Y 315/60R22.5 152/148L FUELMAX D EN | D168: 31560225FUELMAX152NL | E168: POIDS LOURDS | F168: GY FUELMAX D ENDUR | G168: 315 | H168: 60 | I168: R | J168: 22.5 | K168: 152/148 | L168: L | M168: B | N168: B | O168: B | P168: 75 | Q168: 948 | R168: 673.08
A169: 594492 | B169: 4038526400451 | C169: PN G.Y 375/50R22.5 158K FUELMAX S ENDUR | D169: 37550225FUELMAXS158K | E169: POIDS LOURDS | F169: GY FUELMAX S ENDUR | G169: 375 | H169: 50 | I169: R | J169: 22.5 | K169: 158 | L169: K | M169: B | N169: B | O169: B | P169: 72 | Q169: 1146 | R169: 813.66
A170: 594765 | B170: 4038526404770 | C170: PN G.Y 265/70R19.5 140/138M KMAX S GEN-2 | D170: 26570195KMAXSGEN140M | E170: POIDS LOURDS | F170: GY KMAX S GEN-2 | G170: 265 | H170: 70 | I170: R | J170: 19.5 | K170: 140/138 | L170: M | M170: C | N170: C | O170: A | P170: 71 | Q170: 514 | R170: 364.94
A171: 594767 | B171: 4038526404794 | C171: PN G.Y 265/70R19.5 140/138M KMAX D GEN-2 | D171: 26570195KMAXDGEN140M | E171: POIDS LOURDS | F171: GY KMAX D GEN-2 | G171: 265 | H171: 70 | I171: R | J171: 19.5 | K171: 140/138 | L171: M | M171: C | N171: C | O171: A | P171: 72 | Q171: 514 | R171: 364.94
A172: 594769 | B172: 4038526404817 | C172: PN G.Y 295/55R22.5 147/145K FUELMAX D EN | D172: 29555225FUELMAXD147K | E172: POIDS LOURDS | F172: GY FUELMAX D ENDUR | G172: 295 | H172: 55 | I172: R | J172: 22.5 | K172: 147/145 | L172: K | M172: B | N172: C | P172: 73 | Q172: 1078 | R172: 765.38
A173: 595935 | B173: 4038526414922 | C173: PN G.Y 245/70R19.5 136/134M KMAXD | D173: 24570195KMAXD136M2 | E173: POIDS LOURDS | F173: GY KMAX D | G173: 245 | H173: 70 | I173: R | J173: 19.5 | K173: 136/134 | L173: M | M173: D | N173: C | O173: A | P173: 72 | Q173: 512 | R173: 363.52
A174: 595937 | B174: 4038526414946 | C174: PN G.Y 265/70R19.5 140/138M KMAX S | D174: 26570195KMAXS140M2 | E174: POIDS LOURDS | F174: GY KMAX S | G174: 265 | H174: 70 | I174: R | J174: 19.5 | K174: 140/138 | L174: M | M174: D | N174: C | O174: A | P174: 71 | Q174: 498 | R174: 353.58
A175: 595939 | B175: 4038526414977 | C175: PN G.Y 305/70R22.5 153J/154E URBAN MCS * | D175: 30570225URBAMC*153J | E175: POIDS LOURDS | F175: GY URBAN MCS | G175: 305 | H175: 70 | I175: R | J175: 22.5 | K175: 154 | L175: E | M175: D | N175: C | O175: B | P175: 72 | Q175: 844 | R175: 599.24
A176: 595960 | B176: 4038526414809 | C176: PN G.Y 265/70R19.5 140/138M KMAXD | D176: 26570195KMAXD140M2 | E176: POIDS LOURDS | F176: GY KMAX D | G176: 265 | H176: 70 | I176: R | J176: 19.5 | K176: 140/138 | L176: M | M176: D | N176: C | P176: 72 | Q176: 498 | R176: 353.58
A177: 720030 | B177: 4038526443540 | C177: PN G.Y 265/70R17.5 139/136M KMAXD | D177: 26570175KMAXD139M | E177: POIDS LOURDS | F177: GY KMAX D | G177: 265 | H177: 70 | I177: R | J177: 17.5 | K177: 139/136 | L177: M | M177: D | N177: B | O177: A | P177: 72 | Q177: 540 | R177: 383.4
A178: 720043 | B178: 4038526443571 | C178: PN G.Y 265/70R17.5 139/136M KMAX S | D178: 26570175KMAXS139M | E178: POIDS LOURDS | F178: GY KMAX S | G178: 265 | H178: 70 | I178: R | J178: 17.5 | K178: 139/136 | L178: M | M178: C | N178: B | O178: A | P178: 71 | Q178: 540 | R178: 383.4
A179: 720765 | B179: 4038526453914 | C179: PN G.Y 9.5 R17.5 129/127M RHS2 | D179: 95175RHS2129M | E179: POIDS LOURDS | F179: GY REGIONAL RHS II | G179: 9.5 | I179: R | J179: 17.5 | K179: 129/127 | L179: M | M179: D | N179: C | O179: A | P179: 71 | Q179: 478 | R179: 339.38
A180: 720766 | B180: 4038526453921 | C180: PN G.Y 9.5 R17.5 129/127M RHD2 | D180: 95175RHD2129M | E180: POIDS LOURDS | F180: GY REGIONAL RHD II | G180: 9.5 | I180: R | J180: 17.5 | K180: 129/127 | L180: M | M180: E | N180: B | O180: A | P180: 73 | Q180: 478 | R180: 339.38
A181: 720767 | B181: 4038526453938 | C181: PN G.Y 235/75R17.5 132/130M KMAX S | D181: 23575175KMAXS132M2 | E181: POIDS LOURDS | F181: GY KMAX S | G181: 235 | H181: 75 | I181: R | J181: 17.5 | K181: 132/130 | L181: M | M181: D | N181: B | O181: A | P181: 69 | Q181: 454 | R181: 322.34
A182: 720772 | B182: 4038526454133 | C182: PN G.Y 315/70R22.5 152L TRUCK RACING | D182: 31570225TRUCKRAC152L | E182: POIDS LOURDS | F182: GY TRUCK RACING | G182: 315 | H182: 70 | I182: R | J182: 22.5 | K182: 152 | L182: L | M182: B | N182: A | O182: B | P182: 71 | Q182: 1064 | R182: 755.44
A183: 769540 | B183: 5452000868749 | C183: R/C G.Y 455/40R22.5 LHT+ 15.00 ET0/10/ | D183: 45540225LHT1500ET0 | E183: POIDS LOURDS | F183: GY LHT+ | G183: 455 | H183: 40 | I183: R | J183: 22.5 | K183: 160 | L183: J | M183: C | N183: C | O183: 2 | P183: 72 | Q183: 525 | R183: 372.75
A184: 772973 | B184: 5452000421913 | C184: RC G.Y 265/55R19.5 MARA LHT 8.25 147/10/ | D184: 26555195LHT825102JRC | E184: POIDS LOURDS | F184: GY MARA LHT | G184: 265 | H184: 55 | I184: R | J184: 19.5 | K184: 141/140 | L184: J | M184: C | N184: C | O184: 2 | P184: 73 | Q184: 365 | R184: 259.15
A185: 775693 | B185: 5452000640147 | C185: RC G.Y 265/55R19.5 MARA LHT 8.25 140/8/B | D185: 26555195LHT82581JRC | E185: POIDS LOURDS | F185: GY MARA LHT | G185: 265 | H185: 55 | I185: R | J185: 19.5 | K185: 141/140 | L185: J | M185: C | N185: C | O185: 2 | P185: 73 | Q185: 365 | R185: 259.15
A186: 775850 | B186: 5452000642349 | C186: RC G.Y 455/40R22.5 MARA LHT+ 15.00X22.5 | D186: 45540225LHT+1500JRC | E186: POIDS LOURDS | F186: GY MARA LHT+ | G186: 455 | H186: 40 | I186: R | J186: 22.5 | K186: 160 | L186: J | M186: C | N186: C | O186: 2 | P186: 72 | Q186: 525 | R186: 372.75
A187: 781807 | B187: 5452000592132 | C187: RC G.Y 435/50R19.5 KMAX T 14.00X19.5 120 | D187: 43550195KMAXT141JRC | E187: POIDS LOURDS | F187: GY KMAX T | G187: 435 | H187: 50 | I187: R | J187: 19.5 | K187: 160 | L187: J | M187: B | N187: C | O187: 2 | P187: 73 | Q187: 515 | R187: 365.65
A188: 781809 | B188: 5452000592156 | C188: RC G.Y 435/50R19.5 KMAX T RFID 14X19.5 0 | D188: 43550195KMAXTRFIDJRC | E188: POIDS LOURDS | F188: GY KMAX T | G188: 435 | H188: 50 | I188: R | J188: 19.5 | K188: 160 | L188: J | M188: B | N188: C | O188: 2 | P188: 73 | Q188: 515 | R188: 365.65
A189: 781812 | B189: 5452000592187 | C189: RC G.Y 435/50R19.5 KMAX T 14.00X19.5 ET0 | D189: 43550195KMAXT142JRC | E189: POIDS LOURDS | F189: GY KMAX T | G189: 435 | H189: 50 | I189: R | J189: 19.5 | K189: 160 | L189: J | M189: B | N189: C | O189: 2 | P189: 73 | Q189: 515 | R189: 365.65
A190: 781967 | B190: 5452000595232 | C190: RC G.Y 445/65R22.5 KMAX T 13.00X22.5 ET0 | D190: 44565225KMAXT1300KRC | E190: POIDS LOURDS | F190: GY KMAX T | G190: 445 | H190: 65 | I190: R | J190: 22.5 | K190: 169 | L190: K | M190: B | N190: B | O190: 2 | P190: 72 | Q190: 645 | R190: 457.95
A191: 781970 | B191: 5452000595263 | C191: RC G.Y 445/65R22.5 KMAX T 14X22.5 ET0/10 | D191: 44565225KMAXT14ETKRC | E191: POIDS LOURDS | F191: GY KMAX T | G191: 445 | H191: 65 | I191: R | J191: 22.5 | K191: 169 | L191: K | M191: B | N191: B | O191: 2 | P191: 72 | Q191: 645 | R191: 457.95
A192: 782780 | B192: 5452000684455 | C192: RC G.Y 385/55R22.5 160K KMAX T 11.75X22. | D192: 38555225KMAXT160KRC | E192: POIDS LOURDS | F192: GY KMAX T | G192: 385 | H192: 55 | I192: R | J192: 22.5 | K192: 160/158 | L192: K | M192: B | N192: B | O192: 2 | P192: 71 | Q192: 475 | R192: 337.25
A193: 786846 | B193: 5452000711168 | C193: RC G.Y 385/55R22.5 FMAXT 11.75X22.5 120/ | D193: 38555225FMAXT11KRC | E193: POIDS LOURDS | F193: GY FMAXT | G193: 385 | H193: 55 | I193: R | J193: 22.5 | K193: 160/158 | L193: K | M193: A | N193: C | O193: 1 | P193: 70 | Q193: 475 | R193: 337.25
A194: 786965 | B194: 5452000712769 | C194: RC G.Y 435/50R19.5 FMAXT 14X19.5 ET120/1 | D194: 43550195FMAXT14EJ4RC | E194: POIDS LOURDS | F194: GY FMAXT | G194: 435 | H194: 50 | I194: R | J194: 19.5 | K194: 160 | L194: J | M194: A | N194: C | O194: 2 | P194: 73 | Q194: 515 | R194: 365.65
A195: 786966 | B195: 5452000712776 | C195: RC G.Y 435/50R19.5 FMAXT 14X19.5 ET0/8/M | D195: 43550195FMAXT14EJ3RC | E195: POIDS LOURDS | F195: GY FMAXT | G195: 435 | H195: 50 | I195: R | J195: 19.5 | K195: 160 | L195: J | M195: A | N195: C | O195: 2 | P195: 73 | Q195: 515 | R195: 365.65
A196: 786969 | B196: 5452000712806 | C196: RC G.Y 435/50R19.5 FMAXT 14X19.5 ET0/10/ | D196: 43550195FMAXT14EJ1RC | E196: POIDS LOURDS | F196: GY FMAXT | G196: 435 | H196: 50 | I196: R | J196: 19.5 | K196: 160 | L196: J | M196: A | N196: C | O196: 2 | P196: 73 | Q196: 515 | R196: 365.65
A197: 787072 | B197: 5452000714589 | C197: RC G.Y 385/65R22.5 FMAXT 11.75X22.5 120/ | D197: 38565225FMAXT11752RC | E197: POIDS LOURDS | F197: GY FMAXT | G197: 385 | H197: 65 | I197: R | J197: 22.5 | K197: 164/158 | L197: K | M197: A | N197: C | O197: 1 | P197: 69 | Q197: 455 | R197: 323.05
A198: 788285 | B198: 5452000734464 | C198: RC G.Y 215/75R17.5 KMAX T 6.00 120/10/BM | D198: 21575175KMAXT600RC | E198: POIDS LOURDS | F198: GY KMAX T | G198: 215 | H198: 75 | I198: R | J198: 17.5 | K198: 135 | L198: J | M198: C | N198: B | O198: 1 | P198: 67 | Q198: 210 | R198: 149.1
A199: 788288 | B199: 5452000734495 | C199: RC G.Y 215/75R17.5 KMAX T 6.75 129/10/BM | D199: 21575175KMAXT6751JRC | E199: POIDS LOURDS | F199: GY KMAX T | G199: 215 | H199: 75 | I199: R | J199: 17.5 | K199: 135 | L199: J | M199: C | N199: B | O199: 1 | P199: 67 | Q199: 210 | R199: 149.1
A200: 788305 | B200: 5452000735065 | C200: RC G.Y 265/70R19.5 143J WTT 144/8/BM22 | D200: 26570195WTT750144RC | E200: POIDS LOURDS | F200: GY WTT | G200: 265 | H200: 70 | I200: R | J200: 19.5 | K200: 143 | L200: J | M200: D | N200: B | O200: 2 | P200: 72 | Q200: 285 | R200: 202.35
A201: 788310 | B201: 5452000735119 | C201: RC G.Y 265/70R19.5 UG WTT 7.5 MF139/10/B | D201: 26570195WTT75MFJRC | E201: POIDS LOURDS | F201: GY UG WTT | G201: 265 | H201: 70 | I201: R | J201: 19.5 | K201: 143 | L201: J | M201: D | N201: B | O201: 2 | P201: 72 | Q201: 285 | R201: 202.35
A202: 788487 | B202: 5452000739292 | C202: RC G.Y 275/70R22.5 MARA LHT II 7.50 MF 1 | D202: 27570225LHT2750MFJRC | E202: POIDS LOURDS | F202: GY MARA LHT II | G202: 275 | H202: 70 | I202: R | J202: 22.5 | K202: 152/148 | L202: J | M202: C | N202: C | O202: 1 | P202: 70 | Q202: 405 | R202: =Q202*(1-$D$3) -> 287.55
A203: 788566 | B203: 5452000742179 | C203: RC G.Y 445/65R22.5 OMN MST II 14.00 ET0/ | D203: 44565225MST214EKRC | E203: POIDS LOURDS | F203: GY OMN MST II | G203: 445 | H203: 65 | I203: R | J203: 22.5 | K203: 169 | L203: K | M203: B | N203: B | O203: 2 | P203: 71 | Q203: 625 | R203: 443.75
... 23 more rows

Sheet HAN
D2: Remise
D3: =Remises!E14 -> 0.43
A5: Actualisation au 04/04/2024
A7: REFERENCES PNEUMATIQUES | Q7: TARIFS
A8: CAI | B8: EAN | C8: Désignation | D8: Appellation | E8: Catégorie | F8: Profil | G8: Largeur | H8: Hauteur | I8: Structure | J8: Diamètre | K8: IC | L8: IV | M8: Conso. | N8: Frein. | O8: Bruit. | P8: Décibels. | Q8: Prix BF | R8: Prix Remisé
A9: 3000140 | B9: 8808563170824 | C9: PN HAN 11R22.5 148/145G DM04 | D9: 11225DM04M+148G | E9: POIDS LOURDS | F9: HN DM04 | G9: 11 | I9: R | J9: 22.5 | K9: 148/145 | L9: G | P9: 0 | Q9: 851 | R9: =Q9*(1-$D$3) -> 485.07
A10: 3000143 | B10: 8808563132136 | C10: PN HAN 13R22.5 154 K DM04 18 PLYS | D10: 13225DM0418PLYSK154 | E10: POIDS LOURDS | F10: HN DM04 | G10: 13 | I10: R | J10: 22.5 | K10: 154/150 | L10: K | P10: 0 | Q10: 1057 | R10: =Q10*(1-$D$3) -> 602.49
A11: 3000144 | B11: 8808563168715 | C11: PN HAN 12.00 R24 156/153G DM04 M+S | D11: 1224DM04M+156G | E11: POIDS LOURDS | F11: HN DM04 | G11: 12 | I11: R | J11: 24 | K11: 156/153 | L11: G | P11: 0 | Q11: 1235 | R11: 703.95
A12: 3001490 | B12: 8808563285610 | C12: PN HAN 315/70R22.5 154/150L DW06 | D12: 31570225DW06L154150 | E12: POIDS LOURDS | F12: HN DW06 | G12: 315 | H12: 70 | I12: R | J12: 22.5 | K12: 154/150 | L12: L | M12: D | N12: C | O12: B | P12: 76 | Q12: 1053 | R12: 600.21
A13: 3001552 | B13: 8808563293783 | C13: PN HAN 295/80R22.5 152/148M DL10 MO | D13: 29580225DL1016PR | E13: POIDS LOURDS | F13: HN DL10 | G13: 295 | H13: 80 | I13: R | J13: 22.5 | K13: 152/148 | L13: M | M13: C | N13: C | O13: A | P13: 72 | Q13: 965 | R13: 550.05
A14: 3001806 | B14: 8808563328621 | C14: PN HAN 12R22.5 152/148L AL10 | D14: 12225AL10L152148 | E14: POIDS LOURDS | F14: HN AL10 | G14: 12 | I14: R | J14: 22.5 | K14: 152/148 | L14: L | M14: C | N14: C | O14: A | P14: 68 | Q14: 882 | R14: 502.74
A15: 3001864 | B15: 8808563332222 | C15: PN HAN 315/80R22.5 156/150L DW06 | D15: 31580225DW06L156150 | E15: POIDS LOURDS | F15: HN DW06 | G15: 315 | H15: 80 | I15: R | J15: 22.5 | K15: 156/150 | L15: L | M15: D | N15: C | O15: 2 | P15: 76 | Q15: 1068 | R15: 608.76
A16: 3001882 | B16: 8808563333410 | C16: PN HAN 315/70R22.5 154/150L DH31 MO | D16: 31570225DH31L154150 | E16: POIDS LOURDS | F16: HN DH31 | G16: 315 | H16: 70 | I16: R | J16: 22.5 | K16: 154/150 | L16: L | M16: D | N16: C | O16: A | P16: 73 | Q16: 1014 | R16: 577.98
A17: 3001903 | B17: 8808563336947 | C17: PN HAN 275/70R22.5 148/145M AL10 | D17: 27570225AL10M148145 | E17: POIDS LOURDS | F17: HN AL10 | G17: 275 | H17: 70 | I17: R | J17: 22.5 | K17: 148/145 | L17: M | M17: C | N17: C | O17: A | P17: 70 | Q17: 862 | R17: 491.34
A18: 3001906 | B18: 8808563336978 | C18: PN HAN 13R22.5 156/150K DM09 | D18: 13225DM09A156K | E18: POIDS LOURDS | F18: HN DM09 | G18: 13 | I18: R | J18: 22.5 | K18: 156/150 | L18: K | M18: D | N18: C | O18: B | P18: 75 | Q18: 1039 | R18: 592.23
A19: 3001930 | B19: 8808563339139 | C19: PN HAN 385/55R22.5 160K AW02 | D19: 38555225AW02K160HN | E19: POIDS LOURDS | F19: HN AW02 | G19: 385 | H19: 55 | I19: R | J19: 22.5 | K19: 160 | L19: K | M19: C | N19: C | O19: A | P19: 70 | Q19: 1179 | R19: 672.03
A20: 3001934 | B20: 8808563339559 | C20: PN HAN 425/65R22.5 165K AM15 | D20: 42565225AM15K165 | E20: POIDS LOURDS | F20: HN AM15 | G20: 425 | H20: 65 | I20: R | J20: 22.5 | K20: 165 | L20: K | M20: C | N20: B | O20: B | P20: 75 | Q20: 1526 | R20: 869.82
A21: 3002060 | B21: 8808563349503 | C21: PN HAN 315/80R22.5 156/150L AH31 MO | D21: 31580225AH31L156150 | E21: POIDS LOURDS | F21: HN AH31 | G21: 315 | H21: 80 | I21: R | J21: 22.5 | K21: 156/150 | L21: L | M21: C | N21: B | O21: A | P21: 73 | Q21: 1027 | R21: 585.39
A22: 3002061 | B22: 8808563349510 | C22: PN HAN 315/80R22.5 156/150L DH31 MO | D22: 31580225DH31L156150 | E22: POIDS LOURDS | F22: HN DH31 | G22: 315 | H22: 80 | I22: R | J22: 22.5 | K22: 156/150 | L22: L | M22: D | N22: C | O22: A | P22: 73 | Q22: 1027 | R22: 585.39
A23: 3002160 | B23: 8808563353807 | C23: PN HAN 445/65R22.5 169K AM15 | D23: 44565225AM15K169 | E23: POIDS LOURDS | F23: HN AM15 | G23: 445 | H23: 65 | I23: R | J23: 22.5 | K23: 169 | L23: K | M23: C | N23: B | O23: B | P23: 75 | Q23: 1444 | R23: 823.08
A24: 3002179 | B24: 8808563354811 | C24: PN HAN 275/70R22.5 148/145 K AM15 | D24: 27570225AM15K148145 | E24: POIDS LOURDS | F24: HN AM15 | G24: 275 | H24: 70 | I24: R | J24: 22.5 | K24: 148/145 | L24: K | M24: D | N24: B | O24: B | P24: 73 | Q24: 880 | R24: 501.6
A25: 3002185 | B25: 8808563355009 | C25: PN HAN 265/70R19.5 143/141J AM15 | D25: 26570195AM15J143141 | E25: POIDS LOURDS | F25: HN AM15 | G25: 265 | H25: 70 | I25: R | J25: 19.5 | K25: 143/141 | L25: J | M25: D | N25: B | O25: B | P25: 73 | Q25: 647 | R25: 368.79
A26: 3002200 | B26: 8808563356990 | C26: PN HAN 315/80R22.5 156/150L AW02 | D26: 31580225AW02L156150 | E26: POIDS LOURDS | F26: HN AW02 | G26: 315 | H26: 80 | I26: R | J26: 22.5 | K26: 156/150 | L26: L | M26: D | N26: C | O26: A | P26: 70 | Q26: 1068 | R26: 608.76
A27: 3002204 | B27: 8808563357874 | C27: PN HAN 315/70R22.5 154/150L DW07 | D27: 31570225DW07154L | E27: POIDS LOURDS | F27: HN DW07 | G27: 315 | H27: 70 | I27: R | J27: 22.5 | K27: 154/150 | L27: L | M27: D | N27: C | O27: A | P27: 72 | Q27: 1053 | R27: 600.21
A28: 3002240 | B28: 8808563361352 | C28: PN HAN 215/75R17.5 126/124M DH35 | D28: 21575175DH35KR126M | E28: POIDS LOURDS | F28: HN DH35 | G28: 215 | H28: 75 | I28: R | J28: 17.5 | K28: 126/124 | L28: M | M28: D | N28: C | O28: A | P28: 66 | Q28: 433 | R28: 246.81
A29: 3002259 | B29: 8808563363240 | C29: PN HAN 11R22.5 148/145K DM09 | D29: 11225DM09KR148K | E29: POIDS LOURDS | F29: HN DM09 | G29: 11 | I29: R | J29: 22.5 | K29: 148/145 | L29: K | M29: E | N29: C | O29: A | P29: 70 | Q29: 851 | R29: 485.07
A30: 3002325 | B30: 8808563369792 | C30: PN HAN 295/80R22.5 152/148K DM09 | D30: 29580225DM09152K | E30: POIDS LOURDS | F30: HN DM09 | G30: 295 | H30: 80 | I30: R | J30: 22.5 | K30: 152/148 | L30: K | M30: E | N30: C | O30: A | P30: 70 | Q30: 983 | R30: 560.31
A31: 3002369 | B31: 8808563372815 | C31: PN HAN 11 R22.5 148/145J AU04 | D31: 11225AU04148J | E31: POIDS LOURDS | F31: HN AU04 | G31: 11 | I31: R | J31: 22.5 | K31: 148/145 | L31: J | M31: D | N31: B | O31: A | P31: 70 | Q31: 810 | R31: 461.7
A32: 3002380 | B32: 8808563375380 | C32: PN HAN 385/55R22.5 160K TL20 | D32: 38555225TL20K160 | E32: POIDS LOURDS | F32: HN TL20 | G32: 385 | H32: 55 | I32: R | J32: 22.5 | K32: 160 | L32: K | M32: A | N32: C | O32: A | P32: 66 | Q32: 1090 | R32: 621.3
A33: 3002382 | B33: 8808563375403 | C33: PN HAN 315/80R22.5 156/150L AL22 | D33: 31580225AL22KR156L | E33: POIDS LOURDS | F33: HN AL22 | G33: 315 | H33: 80 | I33: R | J33: 22.5 | K33: 156/150 | L33: L | M33: C | N33: B | O33: A | P33: 69 | Q33: 1027 | R33: 585.39
A34: 3002384 | B34: 8808563375427 | C34: PN HAN 315/70R22.5 156/150L AH31 | D34: 31570225AH31L156150 | E34: POIDS LOURDS | F34: HN AH31 | G34: 315 | H34: 70 | I34: R | J34: 22.5 | K34: 156/150 | L34: L | M34: C | N34: B | O34: A | P34: 73 | Q34: 1014 | R34: 577.98
A35: 3002429 | B35: 8808563377773 | C35: PN HAN 295/80R22.5 152/148L DW07 | D35: 29580225DW07152L | E35: POIDS LOURDS | F35: HN DW07 | G35: 295 | H35: 80 | I35: R | J35: 22.5 | K35: 152/148 | L35: L | M35: D | N35: C | O35: A | P35: 72 | Q35: 982 | R35: 559.74
A36: 3002430 | B36: 8808563377780 | C36: PN HAN 315/80R22.5 156/150L DW07 | D36: 31580225DW07156L | E36: POIDS LOURDS | F36: HN DW07 | G36: 315 | H36: 80 | I36: R | J36: 22.5 | K36: 156/150 | L36: L | M36: D | N36: C | O36: A | P36: 72 | Q36: 1068 | R36: 608.76
A37: 3002433 | B37: 8808563377810 | C37: PN HAN 315/80R22.5 156/150K AM09 | D37: 31580225AM09KR156K | E37: POIDS LOURDS | F37: HN AM09 | G37: 315 | H37: 80 | I37: R | J37: 22.5 | K37: 156/150 | L37: K | M37: D | N37: B | O37: A | P37: 67 | Q37: 1039 | R37: 592.23
A38: 3002443 | B38: 8808563380315 | C38: PN HAN 12 R22.5 152/149L DH33+ | D38: 12225DH33+152L | E38: POIDS LOURDS | F38: HN DH33+ | G38: 12 | I38: R | J38: 22.5 | K38: 152/149 | L38: L | M38: E | N38: C | O38: A | P38: 70 | Q38: 882 | R38: 502.74
A39: 3002453 | B39: 8808563380568 | C39: PN HAN 295/60R22.5 150/147K DH31 | D39: 29560225DH31150K | E39: POIDS LOURDS | F39: HN DH31 | G39: 295 | H39: 60 | I39: R | J39: 22.5 | K39: 150/147 | L39: K | M39: D | N39: C | O39: A | P39: 73 | Q39: 985 | R39: 561.45
A40: 3002454 | B40: 8808563380575 | C40: PN HAN 315/60R22.5 152/148L DH31 | D40: 31560225DH3116152L | E40: POIDS LOURDS | F40: HN DH31 | G40: 315 | H40: 60 | I40: R | J40: 22.5 | K40: 152/148 | L40: L | M40: D | N40: C | O40: A | P40: 73 | Q40: 1115 | R40: 635.55
A41: 3002486 | B41: 8808563382173 | C41: PN HAN 385/55R22.5 160K AH31 | D41: 38555225AH3118160K | E41: POIDS LOURDS | F41: HN AH31 | G41: 385 | H41: 55 | I41: R | J41: 22.5 | K41: 160 | L41: K | M41: C | N41: B | O41: A | P41: 69 | Q41: 1115 | R41: 635.55
A42: 3002503 | B42: 8808563386386 | C42: PN HAN 385/65R22.5 160K AH31 | D42: 38565225AH3120160K | E42: POIDS LOURDS | F42: HN AH31 | G42: 385 | H42: 65 | I42: R | J42: 22.5 | K42: 160 | L42: K | M42: C | N42: B | O42: A | P42: 69 | Q42: 1066 | R42: 607.62
A43: 3002504 | B43: 8808563386409 | C43: PN HAN 385/65R22.5 164K AH31 | D43: 38565225AH31CH164K | E43: POIDS LOURDS | F43: HN AH31 | G43: 385 | H43: 65 | I43: R | J43: 22.5 | K43: 164 | L43: K | M43: C | N43: B | O43: A | P43: 69 | Q43: 1099 | R43: 626.43
A44: 3002528 | B44: 8808563389912 | C44: PN HAN 13R22.5 156/150K AM09 | D44: 13225AM09CH156K | E44: POIDS LOURDS | F44: HN AM09 | G44: 13 | I44: R | J44: 22.5 | K44: 156/150 | L44: K | M44: D | N44: C | O44: A | P44: 68 | Q44: 1039 | R44: 592.23
A45: 3002543 | B45: 8808563391106 | C45: PN HAN 295/80R22.5 154/149M AW02 | D45: 29580225AW02M154149 | E45: POIDS LOURDS | F45: HN AW02 | G45: 295 | H45: 80 | I45: R | J45: 22.5 | K45: 154/149 | L45: M | M45: D | N45: C | O45: A | P45: 70 | Q45: 1002 | R45: 571.14
A46: 3002555 | B46: 8808563391717 | C46: PN HAN 11 R22.5 148/145K AM09 CH | D46: 11225AM09CH148K | E46: POIDS LOURDS | F46: HN AM09 | G46: 11 | I46: R | J46: 22.5 | K46: 148/145 | L46: K | M46: D | N46: B | O46: A | P46: 67 | Q46: 810 | R46: 461.7
A47: 3002568 | B47: 8808563394534 | C47: PN HAN 295/80R22.5 152/148M DH31 | D47: 29580225DH31TLM15214 | E47: POIDS LOURDS | F47: HN DH31 | G47: 295 | H47: 80 | I47: R | J47: 22.5 | K47: 152/148 | L47: M | M47: D | N47: B | O47: A | P47: 73 | Q47: 965 | R47: 550.05
A48: 3002577 | B48: 8808563395043 | C48: PN HAN 10R22.5 144/142L AM09 CH | D48: 10225AM09CH144L | E48: POIDS LOURDS | F48: HN AM09 | G48: 10 | I48: R | J48: 22.5 | K48: 144/142 | L48: L | M48: D | N48: B | O48: A | P48: 67 | Q48: 909 | R48: 518.13
A49: 3002580 | B49: 8808563397436 | C49: PN HAN 205/75R17.5 124/122M AH35 CH | D49: 20575175AH35CH124M | E49: POIDS LOURDS | F49: HN AH35 | G49: 205 | H49: 75 | I49: R | J49: 17.5 | K49: 124/122 | L49: M | M49: D | N49: C | O49: A | P49: 65 | Q49: 446 | R49: 254.22
A50: 3002584 | B50: 8808563397474 | C50: PN HAN 245/70R17.5 136/134M AH35 | D50: 24570175AH3514136M | E50: POIDS LOURDS | F50: HN AH35 | G50: 245 | H50: 70 | I50: R | J50: 17.5 | K50: 136/134 | L50: M | M50: C | N50: C | O50: A | P50: 67 | Q50: 598 | R50: 340.86
A51: 3002585 | B51: 8808563397481 | C51: PN HAN 385/65R22.5 160K AL10+ | D51: 38565225AL10+20160K | E51: POIDS LOURDS | F51: HN AL10+ | G51: 385 | H51: 65 | I51: R | J51: 22.5 | K51: 160 | L51: K | M51: B | N51: B | O51: A | P51: 70 | Q51: 1079 | R51: 615.03
A52: 3002586 | B52: 8808563397498 | C52: PN HAN 385/65R22.5 160K TM15 | D52: 38565225TM1520160K | E52: POIDS LOURDS | F52: HN TM15 | G52: 385 | H52: 65 | I52: R | J52: 22.5 | K52: 160 | L52: K | M52: D | N52: B | O52: A | P52: 69 | Q52: 1022 | R52: 582.54
A53: 3002587 | B53: 8808563397504 | C53: PN HAN 12 R22.5 152/149K AM09 | D53: 12225AM09152K | E53: POIDS LOURDS | F53: HN AM09 | G53: 12 | I53: R | J53: 22.5 | K53: 152/149 | L53: K | M53: D | N53: B | O53: A | P53: 69 | Q53: 913 | R53: 520.41
A54: 3002609 | B54: 8808563398754 | C54: PN HAN 215/75R17.5 128/126M AH35 | D54: 21575175AH35128MKR | E54: POIDS LOURDS | F54: HN AH35 | G54: 215 | H54: 75 | I54: R | J54: 17.5 | K54: 128/126 | L54: M | M54: D | N54: C | O54: A | P54: 65 | Q54: 433 | R54: 246.81
A55: 3002623 | B55: 8808563399843 | C55: PN HAN 245/70R19.5 133/132M AH35 | D55: 24570195AH35133M | E55: POIDS LOURDS | F55: HN AH35 | G55: 245 | H55: 70 | I55: R | J55: 19.5 | K55: 133/132 | L55: M | M55: C | N55: C | O55: A | P55: 67 | Q55: 616 | R55: 351.12
A56: 3002624 | B56: 8808563399850 | C56: PN HAN 245/70R19.5 136/134M AH35 CH | D56: 24570195AH35CH136M | E56: POIDS LOURDS | F56: HN AH35 | G56: 245 | H56: 70 | I56: R | J56: 19.5 | K56: 136/134 | L56: M | M56: C | N56: C | O56: A | P56: 67 | Q56: 644 | R56: 367.08
A57: 3002633 | B57: 8808563399942 | C57: PN HAN 285/70R19.5 146/144M AH35 | D57: 28570195AH3516146M | E57: POIDS LOURDS | F57: HN AH35 | G57: 285 | H57: 70 | I57: R | J57: 19.5 | K57: 146/144 | L57: M | M57: C | N57: C | O57: A | P57: 67 | Q57: 755 | R57: 430.35
A58: 3002634 | B58: 8808563399959 | C58: PN HAN 295/80R22.5 152/148M DH16 | D58: 29580225DH16152M | E58: POIDS LOURDS | F58: HN DH16 | G58: 295 | H58: 80 | I58: R | J58: 22.5 | K58: 152/148 | L58: M | M58: D | N58: B | O58: A | P58: 70 | Q58: 965 | R58: 550.05
A59: 3002635 | B59: 8808563399966 | C59: PN HAN 265/70R19.5 140/138M AH35 | D59: 26570195AH3514140M | E59: POIDS LOURDS | F59: HN AH35 | G59: 265 | H59: 70 | I59: R | J59: 19.5 | K59: 140/138 | L59: M | M59: C | N59: C | O59: A | P59: 67 | Q59: 635 | R59: 361.95
A60: 3002642 | B60: 8808563400600 | C60: PN HAN 295/80R22.5 152/148K AM09 | D60: 29580225AM09KR152K | E60: POIDS LOURDS | F60: HN AM09 | G60: 295 | H60: 80 | I60: R | J60: 22.5 | K60: 152/148 | L60: K | M60: D | N60: B | O60: A | P60: 67 | Q60: 983 | R60: 560.31
A61: 3002651 | B61: 8808563401188 | C61: PN HAN 225/75R17.5 129/127M AH35 | D61: 22575175AH35129M | E61: POIDS LOURDS | F61: HN AH35 | G61: 225 | H61: 75 | I61: R | J61: 17.5 | K61: 129/127 | L61: M | M61: C | N61: C | O61: A | P61: 67 | Q61: 486 | R61: 277.02
A62: 3002656 | B62: 8808563401300 | C62: PN HAN 8.5 R17.5 121/120L AH35 | D62: 85175AH3512121L | E62: POIDS LOURDS | F62: HN AH35 | G62: 8.5 | I62: R | J62: 17.5 | K62: 121/120 | L62: L | M62: D | N62: C | O62: A | P62: 67 | Q62: 417 | R62: 237.69
A63: 3002657 | B63: 8808563401317 | C63: PN HAN 9.5 R17.5 131/129L AH35 CH | D63: 95175AH35CH131L | E63: POIDS LOURDS | F63: HN AH35 | G63: 9.5 | I63: R | J63: 17.5 | K63: 129/127 | L63: L | M63: D | N63: C | O63: A | P63: 67 | Q63: 584 | R63: 332.88
A64: 3002658 | B64: 8808563401324 | C64: PN HAN 305/70R19.5 148/145M AH35 CH | D64: 30570195AH35CH148M | E64: POIDS LOURDS | F64: HN AH35 | G64: 305 | H64: 70 | I64: R | J64: 19.5 | K64: 148/145 | L64: M | M64: C | N64: C | O64: A | P64: 71 | Q64: 921 | R64: 524.97
A65: 3002672 | B65: 8808563403137 | C65: PN HAN 295/55R22.5 147/145K DL10+ KR | D65: 29555225DL10+KR147K | E65: POIDS LOURDS | F65: HN DL10+ | G65: 295 | H65: 55 | I65: R | J65: 22.5 | K65: 147/145 | L65: K | M65: C | N65: C | O65: B | P65: 74 | Q65: 1301 | R65: 741.57
A66: 3002673 | B66: 8808563403144 | C66: PN HAN 295/80R22.5 154/149M DL22 | D66: 29580225DL22154M | E66: POIDS LOURDS | F66: HN DL22 | G66: 295 | H66: 80 | I66: R | J66: 22.5 | K66: 154/149 | L66: M | M66: C | N66: B | O66: A | P66: 72 | Q66: 965 | R66: 550.05
A67: 3002691 | B67: 8808563404776 | C67: PN HAN 205/75R17.5 124/122M DH35 CH | D67: 20575175DH35CH124M | E67: POIDS LOURDS | F67: HN DH35 | G67: 205 | H67: 75 | I67: R | J67: 17.5 | K67: 124/122 | L67: M | M67: D | N67: C | O67: A | P67: 66 | Q67: 446 | R67: 254.22
A68: 3002692 | B68: 8808563404783 | C68: PN HAN 225/75R17.5 129/127M DH35 CH | D68: 22575175DH35CH129M | E68: POIDS LOURDS | F68: HN DH35 | G68: 225 | H68: 75 | I68: R | J68: 17.5 | K68: 129/127 | L68: M | M68: D | N68: C | O68: A | P68: 73 | Q68: 486 | R68: 277.02
A69: 3002694 | B69: 8808563404806 | C69: PN HAN 245/70R17.5 136/134M DH35 CH | D69: 24570175DH35CH136M | E69: POIDS LOURDS | F69: HN DH35 | G69: 245 | H69: 70 | I69: R | J69: 17.5 | K69: 136/134 | L69: M | M69: D | N69: C | O69: A | P69: 73 | Q69: 598 | R69: 340.86
A70: 3002696 | B70: 8808563405506 | C70: PN HAN 385/65R22.5 158L AM15+ | D70: 38565225AM15+KR160L | E70: POIDS LOURDS | F70: HN AM15+ | G70: 385 | H70: 65 | I70: R | J70: 22.5 | K70: 158 | L70: L | M70: C | N70: B | O70: B | P70: 73 | Q70: 1068 | R70: 608.76
A71: 3002699 | B71: 8808563405797 | C71: PN HAN 245/70R19.5 136/134M DH35 CH | D71: 24570195DH35CH136M | E71: POIDS LOURDS | F71: HN DH35 | G71: 245 | H71: 70 | I71: R | J71: 19.5 | K71: 136/134 | L71: M | M71: D | N71: C | O71: A | P71: 73 | Q71: 644 | R71: 367.08
A72: 3002700 | B72: 8808563405803 | C72: PN HAN 265/70R19.5 140/138M DH35 | D72: 26570195DH35KR140M | E72: POIDS LOURDS | F72: HN DH35 | G72: 265 | H72: 70 | I72: R | J72: 19.5 | K72: 140/138 | L72: M | M72: D | N72: C | O72: A | P72: 73 | Q72: 635 | R72: 361.95
A73: 3002701 | B73: 8808563405810 | C73: PN HAN 285/70R19.5 146/144M DH35 CH | D73: 28570195DH35CH146M | E73: POIDS LOURDS | F73: HN DH35 | G73: 285 | H73: 70 | I73: R | J73: 19.5 | K73: 146/144 | L73: M | M73: D | N73: C | O73: A | P73: 73 | Q73: 755 | R73: 430.35
A74: 3002702 | B74: 8808563405827 | C74: PN HAN 305/70R19.5 148/145M DH35 | D74: 30570195DH35KR148M | E74: POIDS LOURDS | F74: HN DH35 | G74: 305 | H74: 70 | I74: R | J74: 19.5 | K74: 148/145 | L74: M | M74: D | N74: C | O74: A | P74: 73 | Q74: 921 | R74: =Q74*(1-$D$3) -> 524.97
A75: 3002705 | B75: 8808563405865 | C75: PN HAN 295/80R22.5 152/148J AU04 | D75: 29580225AU04152J | E75: POIDS LOURDS | F75: HN AU04 | G75: 295 | H75: 80 | I75: R | J75: 22.5 | K75: 152/148 | L75: J | M75: D | N75: B | O75: A | P75: 67 | Q75: 983 | R75: 560.31
A76: 3002706 | B76: 8808563406039 | C76: PN HAN 12 R22.5 152/149L AH31 | D76: 12225AH31152L | E76: POIDS LOURDS | F76: HN AH31 | G76: 12 | I76: R | J76: 22.5 | K76: 152/149 | L76: L | M76: C | N76: B | O76: A | P76: 71 | Q76: 882 | R76: 502.74
A77: 3002707 | B77: 8808563406046 | C77: PN HAN 305/70R22.5 153/150K AU04 | D77: 30570225AU04153K | E77: POIDS LOURDS | F77: HN AU04 | G77: 305 | H77: 70 | I77: R | J77: 22.5 | K77: 153/150 | L77: K | M77: C | N77: B | O77: A | P77: 67 | Q77: 996 | R77: 567.72
A78: 3002727 | B78: 8808563406831 | C78: PN HAN 8.5 R17.5 121/120L DH35 CH | D78: 85175DH35CH121L | E78: POIDS LOURDS | F78: HN DH35 | G78: 8.5 | I78: R | J78: 17.5 | K78: 121/120 | L78: L | M78: D | N78: C | O78: A | P78: 73 | Q78: 417 | R78: 237.69
A79: 3002729 | B79: 8808563406855 | C79: PN HAN 9.5 R17.5 131/129L DH35 CH | D79: 95175DH35CH131L | E79: POIDS LOURDS | F79: HN DH35 | G79: 9.5 | I79: R | J79: 17.5 | K79: 129/127 | L79: L | M79: D | N79: C | O79: A | P79: 73 | Q79: 584 | R79: 332.88
A80: 3002731 | B80: 8808563406879 | C80: PN HAN 265/70R17.5 140/138M AH35 | D80: 26570175AH35140M | E80: POIDS LOURDS | F80: HN AH35 | G80: 265 | H80: 70 | I80: R | J80: 17.5 | K80: 140/138 | L80: M | M80: C | N80: C | O80: A | P80: 67 | Q80: 718 | R80: 409.26
A81: 3002734 | B81: 8808563407180 | C81: PN HAN 8 R17.5 117/116L DH35 | D81: 8175DH35117L | E81: POIDS LOURDS | F81: HN DH35 | G81: 8 | I81: R | J81: 17.5 | K81: 117/116 | L81: L | M81: D | N81: C | O81: A | P81: 73 | Q81: 482 | R81: 274.74
A82: 3002792 | B82: 8808563414447 | C82: PN HAN 385/65R22.5 160K TL20 | D82: 38565225TL20CH160K | E82: POIDS LOURDS | F82: HN TL20 | G82: 385 | H82: 65 | I82: R | J82: 22.5 | K82: 160 | L82: K | M82: A | N82: C | O82: A | P82: 66 | Q82: 993 | R82: 566.01
A83: 3002801 | B83: 8808563414669 | C83: PN HAN 315/80R22.5 156/150K DM09 M+S | D83: 31580225DM09M+156K | E83: POIDS LOURDS | F83: HN DM09 | G83: 315 | H83: 80 | I83: R | J83: 22.5 | K83: 156/150 | L83: K | M83: D | N83: C | O83: A | P83: 70 | Q83: 1039 | R83: 592.23
A84: 3002802 | B84: 8808563414676 | C84: PN HAN 295/80R22.5 154M/149 AH31+ | D84: 29580225AH31+154M2 | E84: POIDS LOURDS | F84: HN AH31+ | G84: 295 | H84: 80 | I84: R | J84: 22.5 | K84: 154/149 | L84: M | M84: C | N84: B | O84: A | P84: 73 | Q84: 965 | R84: 550.05
A85: 3002904 | B85: 8808563420622 | C85: PN HAN 385/55R22.5 160K TW01 | D85: 38555225TW01160K | E85: POIDS LOURDS | F85: HN TW01 | G85: 385 | H85: 55 | I85: R | J85: 22.5 | K85: 160 | L85: K | M85: C | N85: C | O85: A | P85: 69 | Q85: 1179 | R85: 672.03
A86: 3002950 | B86: 8808563424729 | C86: PN HAN 275/70R22.5 150/145J AW02 | D86: 27570225AW02150JKR | E86: POIDS LOURDS | F86: HN AW02 | G86: 275 | H86: 70 | I86: R | J86: 22.5 | K86: 150/145 | L86: J | M86: D | N86: B | O86: A | P86: 70 | Q86: 897 | R86: 511.29
A87: 3002953 | B87: 8808563424781 | C87: PN HAN 445/45R19.5 160J TW01 | D87: 44545195TW01160J | E87: POIDS LOURDS | F87: HN TW01 | G87: 445 | H87: 45 | I87: R | J87: 19.5 | K87: 160 | L87: J | M87: C | N87: C | O87: B | P87: 75 | Q87: 1256 | R87: 715.92
A88: 3002959 | B88: 8808563425931 | C88: PN HAN 435/50R19.5 160J TH31 M+S | D88: 43550195TH31M+160J | E88: POIDS LOURDS | F88: HN TH31 | G88: 435 | H88: 50 | I88: R | J88: 19.5 | K88: 160 | L88: J | M88: B | N88: B | O88: A | P88: 69 | Q88: 1079 | R88: 615.03
A89: 3003087 | B89: 8808563431345 | C89: PN HAN 355/50R22.5 156K AH31 | D89: 35550225AH31156K | E89: POIDS LOURDS | F89: HN AH31 | G89: 355 | H89: 50 | I89: R | J89: 22.5 | K89: 156 | L89: K | M89: C | N89: B | O89: A | P89: 69 | Q89: 1291 | R89: 735.87
A90: 3003106 | B90: 8808563432830 | C90: PN HAN 265/70R17.5 139/136M DH35 | D90: 26570175DH35139M | E90: POIDS LOURDS | F90: HN DH35 | G90: 265 | H90: 70 | I90: R | J90: 17.5 | K90: 140/138 | L90: M | M90: D | N90: C | O90: A | P90: 73 | Q90: 718 | R90: 409.26
A91: 3003119 | B91: 8808563436425 | C91: PN HAN 455/45R22.5 160J TH31 | D91: 45545225TH31160J | E91: POIDS LOURDS | F91: HN TH31 | G91: 455 | H91: 45 | I91: R | J91: 22.5 | K91: 160 | L91: J | M91: C | N91: B | O91: A | P91: 69 | Q91: 1560 | R91: 889.2
A92: 3003149 | B92: 8808563439532 | C92: PN HAN 315/80R22.5 156/150K AM11 | D92: 31580225AM11156K | E92: POIDS LOURDS | F92: HN AM11 | G92: 315 | H92: 80 | I92: R | J92: 22.5 | K92: 156/150 | L92: K | M92: C | N92: B | O92: B | P92: 73 | Q92: 1057 | R92: 602.49
A93: 3003150 | B93: 8808563439549 | C93: PN HAN 315/80R22.5 156/150K DM11 | D93: 31580225DM11156K | E93: POIDS LOURDS | F93: HN DM11 | G93: 315 | H93: 80 | I93: R | J93: 22.5 | K93: 156/150 | L93: K | M93: C | N93: B | O93: B | P93: 74 | Q93: 1057 | R93: 602.49
A94: 3003153 | B94: 8808563439570 | C94: PN HAN 455/40R22.5 160J TH31 | D94: 45540225TH31160J | E94: POIDS LOURDS | F94: HN TH31 | G94: 455 | H94: 40 | I94: R | J94: 22.5 | K94: 160 | L94: J | M94: B | N94: B | O94: B | P94: 70 | Q94: 1313 | R94: 748.41
A95: 3003191 | B95: 8808563441894 | C95: PN HAN 11 R22.5 148/145L AH31 | D95: 11225AH31148LSF | E95: POIDS LOURDS | F95: HN AH31 | G95: 11 | I95: R | J95: 22.5 | K95: 148/145 | L95: L | M95: D | N95: B | O95: B | P95: 72 | Q95: 810 | R95: 461.7
A96: 3003248 | B96: 8808563446448 | C96: PN HAN 275/70R22.5 148/145M AH31 | D96: 27570225AH31148M | E96: POIDS LOURDS | F96: HN AH31 | G96: 275 | H96: 70 | I96: R | J96: 22.5 | K96: 148/145 | L96: M | M96: C | N96: C | O96: A | P96: 73 | Q96: 862 | R96: 491.34
A97: 3003251 | B97: 8808563446516 | C97: PN HAN 315/60R22.5 154/148J AU04+ | D97: 31560225AU04+ | E97: POIDS LOURDS | F97: HN AU04+ | G97: 315 | H97: 60 | I97: R | J97: 22.5 | K97: 154/148 | L97: J | M97: C | N97: B | O97: A | P97: 73 | Q97: 1115 | R97: 635.55
A98: 3003268 | B98: 8808563448541 | C98: PN HAN 235/75R17.5 132/130M AH35 | D98: 23575175AH35132MKR | E98: POIDS LOURDS | F98: HN AH35 | G98: 235 | H98: 75 | I98: R | J98: 17.5 | K98: 132/130 | L98: M | M98: C | N98: C | O98: A | P98: 67 | Q98: 553 | R98: 315.21
A99: 3003270 | B99: 8808563448565 | C99: PN HAN 235/75R17.5 132/130M DH35 | D99: 23575175DH35132MKR | E99: POIDS LOURDS | F99: HN DH35 | G99: 235 | H99: 75 | I99: R | J99: 17.5 | K99: 132/130 | L99: M | M99: D | N99: C | O99: A | P99: 73 | Q99: 553 | R99: 315.21
A100: 3003293 | B100: 8808563452425 | C100: PN HAN 255/60R19.5 143/141J TH31 | D100: 25560195TH31143J | E100: POIDS LOURDS | F100: HN TH31 | G100: 255 | H100: 60 | I100: R | J100: 19.5 | K100: 143/141 | L100: J | M100: C | N100: C | P100: 69 | Q100: 935 | R100: 532.95
A101: 3003303 | B101: 8808563453347 | C101: PN HAN 385/65R22.5 160K TM11 | D101: 38565225TM11160K | E101: POIDS LOURDS | F101: HN TM11 | G101: 385 | H101: 65 | I101: R | J101: 22.5 | K101: 160 | L101: K | M101: C | N101: B | O101: B | P101: 73 | Q101: 1022 | R101: 582.54
A102: 3003309 | B102: 8808563454221 | C102: PN HAN 385/65R22.5 164K TH31 | D102: 38565225TH31164K | E102: POIDS LOURDS | F102: HN TH31 | G102: 385 | H102: 65 | I102: R | J102: 22.5 | K102: 164 | L102: K | M102: B | N102: B | O102: A | P102: 69 | Q102: 1007 | R102: 573.99
A103: 3003368 | B103: 8808563454757 | C103: PN HAN 275/70R22.5 150/145J DW07 | D103: 27570225JDW07150 | E103: POIDS LOURDS | F103: HN DW07 | G103: 275 | H103: 70 | I103: R | J103: 22.5 | K103: 150/145 | L103: J | M103: D | N103: C | O103: A | P103: 72 | Q103: 897 | R103: 511.29
A104: 3003378 | B104: 8808563454832 | C104: PN HAN 275/70R22.5 148/145M DH31 | D104: 27570225DH31148M | E104: POIDS LOURDS | F104: HN DH31 | G104: 275 | H104: 70 | I104: R | J104: 22.5 | K104: 148/145 | L104: M | M104: D | N104: C | O104: A | P104: 73 | Q104: 862 | R104: 491.34
A105: 3003380 | B105: 8808563454856 | C105: PN HAN 275/70R22.5 152/148J TH31 | D105: 27570225TH31152J | E105: POIDS LOURDS | F105: HN TH31 | G105: 275 | H105: 70 | I105: R | J105: 22.5 | K105: 152/148 | L105: J | M105: C | N105: C | O105: A | P105: 69 | Q105: 870 | R105: 495.9
A106: 3003401 | B106: 8808563455037 | C106: PN HAN 275/70R22.5 150/148J AU04+ | D106: 27570225AU04+150JKR | E106: POIDS LOURDS | F106: HN AU04+ | G106: 275 | H106: 70 | I106: R | J106: 22.5 | K106: 150/148 | L106: J | M106: D | N106: B | O106: 1 | P106: 67 | Q106: 862 | R106: 491.34
A107: 3003409 | B107: 8808563456225 | C107: PN HAN 11 R22.5 148/145L TH31 | D107: 11225TH31148L | E107: POIDS LOURDS | F107: HN TH31 | G107: 11 | I107: R | J107: 22.5 | K107: 148/145 | L107: L | M107: C | N107: C | O107: A | P107: 70 | Q107: 770 | R107: 438.9
A108: 3003412 | B108: 8808563457642 | C108: PN HAN 445/45R19.5 160K TL20 | D108: 44545195TL20160K | E108: POIDS LOURDS | F108: HN TL20 | G108: 445 | H108: 45 | I108: R | J108: 19.5 | K108: 160 | L108: K | M108: A | N108: C | O108: A | P108: 70 | Q108: 1211 | R108: 690.27
A109: 3003413 | B109: 8808563457659 | C109: PN HAN 435/50R19.5 160J TL20 | D109: 43550195TL20160J | E109: POIDS LOURDS | F109: HN TL20 | G109: 435 | H109: 50 | I109: R | J109: 19.5 | K109: 160 | L109: J | M109: A | N109: C | O109: A | P109: 70 | Q109: 1079 | R109: 615.03
A110: 3003421 | B110: 8808563459554 | C110: PN HAN 315/70R22.5 156/150L AH51 | D110: 31570225AH51156L | E110: POIDS LOURDS | F110: HN AH51 | G110: 315 | H110: 70 | I110: R | J110: 22.5 | K110: 156/150 | L110: L | M110: C | N110: B | O110: A | P110: 72 | Q110: 1064 | R110: 606.48
A111: 3003423 | B111: 8808563459578 | C111: PN HAN 315/70R22.5 154/150L DH51 | D111: 31570225DH51154L | E111: POIDS LOURDS | F111: HN DH51 | G111: 315 | H111: 70 | I111: R | J111: 22.5 | K111: 154/150 | L111: L | M111: D | N111: B | O111: B | P111: 76 | Q111: 1064 | R111: 606.48
A112: 3003439 | B112: 8808563460864 | C112: PN HAN 385/55R19.5 156J TH31 | D112: 38555195TH31156J | E112: POIDS LOURDS | F112: HN TH31 | G112: 385 | H112: 55 | I112: R | J112: 19.5 | K112: 156 | L112: J | M112: B | N112: B | O112: A | P112: 70 | Q112: 1168 | R112: 665.76
A113: 3003442 | B113: 8808563460987 | C113: PN HAN 425/65R22.5 165K TH31 | D113: 42565225TH31165K | E113: POIDS LOURDS | F113: HN TH31 | G113: 425 | H113: 65 | I113: R | J113: 22.5 | K113: 165 | L113: K | M113: C | N113: B | O113: A | P113: 69 | Q113: 1450 | R113: 826.5
A114: 3003446 | B114: 8808563461021 | C114: PN HAN 385/55R22.5 160K TH31 | D114: 38555225TH31160KKR | E114: POIDS LOURDS | F114: HN TH31 | G114: 385 | H114: 55 | I114: R | J114: 22.5 | K114: 160 | L114: K | M114: B | N114: B | O114: A | P114: 70 | Q114: 1050 | R114: 598.5
A115: 3003450 | B115: 8808563461335 | C115: PN HAN 315/70R22.5 156/150L AL20W | D115: 31570225AL20W156L | E115: POIDS LOURDS | F115: HN AL20W | G115: 315 | H115: 70 | I115: R | J115: 22.5 | K115: 156/150 | L115: L | M115: B | N115: C | O115: A | P115: 71 | Q115: 1014 | R115: 577.98
A116: 3003451 | B116: 8808563463179 | C116: PN HAN 295/60R22.5 150/147K TH31 | D116: 29560225TH31150K | E116: POIDS LOURDS | F116: HN TH31 | G116: 295 | H116: 60 | I116: R | J116: 22.5 | K116: 150/147 | L116: K | M116: C | N116: C | O116: A | P116: 70 | Q116: 935 | R116: 532.95
A117: 3003475 | B117: 8808563465388 | C117: PN HAN 255/70R22.5 140/137M AL26 | D117: 25570225AL26140M | E117: POIDS LOURDS | F117: HN AL26 | G117: 255 | H117: 70 | I117: R | J117: 22.5 | K117: 140/137 | L117: M | M117: C | N117: C | O117: A | P117: 70 | Q117: 872 | R117: 497.04
A118: 3003479 | B118: 8808563466149 | C118: PN HAN 275/80R22.5 149/146J AU04 | D118: 27580225AU04149J | E118: POIDS LOURDS | F118: HN AU04 | G118: 275 | H118: 80 | I118: R | J118: 22.5 | K118: 149/146 | L118: J | M118: D | N118: C | O118: B | P118: 71 | Q118: 944 | R118: 538.08
A119: 3003492 | B119: 8808563468167 | C119: PN HAN 355/50R22.5 156L AL20W | D119: 35550225AL20W156L | E119: POIDS LOURDS | F119: HN AL20W | G119: 355 | H119: 50 | I119: R | J119: 22.5 | K119: 156 | L119: L | M119: B | N119: C | O119: A | P119: 72 | Q119: 1235 | R119: 703.95
A120: 3003529 | B120: 8808563472263 | C120: PN HAN 275/80R22.5 149/146L AH31 | D120: 27580225AH31149L | E120: POIDS LOURDS | F120: HN AH31 | G120: 275 | H120: 80 | I120: R | J120: 22.5 | K120: 149/146 | L120: L | M120: C | N120: C | O120: A | P120: 70 | Q120: 945 | R120: 538.65
A121: 3003554 | B121: 8808563473703 | C121: PN HAN 8 R17.5 117/116L AH35 | D121: 8175AH35117L | E121: POIDS LOURDS | F121: HN AH35 | G121: 8 | I121: R | J121: 17.5 | K121: 117/116 | L121: L | M121: D | N121: C | O121: A | P121: 71 | Q121: 482 | R121: 274.74
A122: 3003564 | B122: 8808563475110 | C122: PN HAN 445/65R22.5 169K TH31 | D122: 44565225TH31169K | E122: POIDS LOURDS | F122: HN TH31 | G122: 445 | H122: 65 | I122: R | J122: 22.5 | K122: 169 | L122: K | M122: B | N122: B | O122: A | P122: 69 | Q122: 1346 | R122: 767.22
A123: 3003565 | B123: 8808563475127 | C123: PN HAN 445/45R19.5 160J TH31 | D123: 44545195TH31160J | E123: POIDS LOURDS | F123: HN TH31 | G123: 445 | H123: 45 | I123: R | J123: 19.5 | K123: 160 | L123: J | M123: B | N123: B | O123: A | P123: 69 | Q123: 1211 | R123: 690.27
A124: 3003583 | B124: 8808563476629 | C124: PN HAN 315/70R22.5 156/150L AW02 SM.CONT | D124: 31570225AW02156L | E124: POIDS LOURDS | F124: HN AW02 | G124: 315 | H124: 70 | I124: R | J124: 22.5 | K124: 156/150 | L124: L | M124: D | N124: C | O124: A | P124: 70 | Q124: 1053 | R124: 600.21
A125: 3003599 | B125: 8808563505541 | C125: PN HAN 13 R22.5 156/150K AM11 | D125: 13225AM11156K | E125: POIDS LOURDS | F125: HN AM11 | G125: 13 | I125: R | J125: 22.5 | K125: 156/150 | L125: K | M125: C | N125: B | O125: A | P125: 71 | Q125: 1057 | R125: 602.49
A126: 3003600 | B126: 8808563505558 | C126: PN HAN 13 R22.5 156/150K DM11 | D126: 13225DM11156K | E126: POIDS LOURDS | F126: HN DM11 | G126: 13 | I126: R | J126: 22.5 | K126: 156/150 | L126: K | M126: C | N126: B | O126: A | P126: 73 | Q126: 1057 | R126: 602.49
A127: 3003602 | B127: 8808563505572 | C127: PN HAN 295/80R22.5 152/148K DM11 | D127: 29580225DM11152K | E127: POIDS LOURDS | F127: HN DM11 | G127: 295 | H127: 80 | I127: R | J127: 22.5 | K127: 152/148 | L127: K | M127: D | N127: C | O127: A | P127: 73 | Q127: 983 | R127: 560.31
A128: 3003603 | B128: 8808563505589 | C128: PN HAN 315/70R22.5 154/150L DM11 | D128: 31570225DM11154L | E128: POIDS LOURDS | F128: HN DM11 | G128: 315 | H128: 70 | I128: R | J128: 22.5 | K128: 154/150 | L128: L | M128: D | N128: B | O128: A | P128: 73 | Q128: 1027 | R128: 585.39
A129: 3003604 | B129: 8808563505756 | C129: PN HAN 295/80R22.5 154/149M AL22 | D129: 29580225AL22154M | E129: POIDS LOURDS | F129: HN AL22 | G129: 295 | H129: 80 | I129: R | J129: 22.5 | K129: 154/149 | L129: M | M129: C | N129: B | O129: A | P129: 69 | Q129: 966 | R129: 550.62
A130: 3003621 | B130: 8808563509228 | C130: PN HAN 305/70R22.5 152/150L AL26 | D130: 30570225AL26152L | E130: POIDS LOURDS | F130: HN AL26 | G130: 305 | H130: 70 | I130: R | J130: 22.5 | K130: 152/150 | L130: L | M130: C | N130: C | O130: A | P130: 70 | Q130: 996 | R130: 567.72
A131: 3003707 | B131: 8808563521503 | C131: PN HAN 315/70R22.50 156/150L AL51 | D131: 315702250AL51156L | E131: POIDS LOURDS | F131: HN AL51 | G131: 315 | H131: 70 | I131: R | J131: 22.5 | K131: 156/150 | L131: L | M131: B | N131: B | O131: A | P131: 72 | Q131: 1064 | R131: 606.48
A132: 3003708 | B132: 8808563521510 | C132: PN HAN 315/70R22.50 154/150L DL51 | D132: 315702250DL51154L | E132: POIDS LOURDS | F132: HN DL51 | G132: 315 | H132: 70 | I132: R | J132: 22.5 | K132: 154/150 | L132: L | M132: C | N132: B | O132: A | P132: 73 | Q132: 1064 | R132: 606.48
A133: 3003740 | B133: 8808563529912 | C133: PN HAN 315/70R22.5 154/150L DL20W | D133: 31570225DL20W154L | E133: POIDS LOURDS | F133: HN DL20W | G133: 315 | H133: 70 | I133: R | J133: 22.5 | K133: 154/150 | L133: L | M133: B | N133: C | O133: A | P133: 72 | Q133: 1014 | R133: 577.98
A134: 3003742 | B134: 8808563531151 | C134: PN HAN 315/80R22.5 156/150L DL20W | D134: 31580225DL20W156LKR | E134: POIDS LOURDS | F134: HN DL20W | G134: 315 | H134: 80 | I134: R | J134: 22.5 | K134: 156/150 | L134: L | M134: B | N134: C | O134: A | P134: 72 | Q134: 1027 | R134: 585.39
A135: 3003745 | B135: 8808563531250 | C135: PN HAN 235/75R17.5 143/141K TH31 | D135: 23575175TH31143K | E135: POIDS LOURDS | F135: HN TH31 | G135: 235 | H135: 75 | I135: R | J135: 17.5 | K135: 143/141 | L135: K | M135: C | N135: B | O135: A | P135: 70 | Q135: 570 | R135: 324.9
A136: 3003746 | B136: 8808563531267 | C136: PN HAN 245/70R17.5 143/141K TH31 | D136: 24570175TH31143K | E136: POIDS LOURDS | F136: HN TH31 | G136: 245 | H136: 70 | I136: R | J136: 17.5 | K136: 143/141 | L136: K | M136: C | N136: B | O136: A | P136: 70 | Q136: 626 | R136: 356.82
A137: 3003748 | B137: 8808563531281 | C137: PN HAN 315/60R22.5 154/148L AH31 | D137: 31560225AH31154KR | E137: POIDS LOURDS | F137: HN AH31 | G137: 315 | H137: 60 | I137: R | J137: 22.5 | K137: 154/148 | L137: L | M137: C | N137: B | O137: A | P137: 71 | Q137: 1094 | R137: 623.58
A138: 3003759 | B138: 8808563532134 | C138: PN HAN 305/70R19.5 148/145M TH31 | D138: 30570195TH31148M | E138: POIDS LOURDS | F138: HN TH31 | G138: 305 | H138: 70 | I138: R | J138: 19.5 | K138: 148/145 | L138: M | M138: C | N138: C | O138: A | P138: 69 | Q138: 921 | R138: =Q138*(1-$D$3) -> 524.97
A139: 3003762 | B139: 8808563532516 | C139: PN HAN 245/70R19.5 141/140J TH31 | D139: 24570195TH31141J | E139: POIDS LOURDS | F139: HN TH31 | G139: 245 | H139: 70 | I139: R | J139: 19.5 | K139: 141/140 | L139: J | M139: C | N139: C | O139: A | P139: 69 | Q139: 676 | R139: 385.32
A140: 3003763 | B140: 8808563532523 | C140: PN HAN 265/70R19.5 143/141J TH31 | D140: 26570195TH31143J | E140: POIDS LOURDS | F140: HN TH31 | G140: 265 | H140: 70 | I140: R | J140: 19.5 | K140: 143/141 | L140: J | M140: C | N140: C | O140: A | P140: 69 | Q140: 654 | R140: 372.78
A141: 3003765 | B141: 8808563532547 | C141: PN HAN 285/70R19.5 150/148J TH31 | D141: 28570195TH31150J | E141: POIDS LOURDS | F141: HN TH31 | G141: 285 | H141: 70 | I141: R | J141: 19.5 | K141: 150/148 | L141: J | M141: C | N141: B | O141: A | P141: 70 | Q141: 798 | R141: 454.86
A142: 3003768 | B142: 8808563532578 | C142: PN HAN 9.5 R17.5 143/141J TH31 | D142: 95175TH31143J | E142: POIDS LOURDS | F142: HN TH31 | G142: 9.5 | I142: R | J142: 17.5 | K142: 143/141 | L142: J | M142: C | N142: B | O142: A | P142: 69 | Q142: 604 | R142: 344.28
A143: 3003827 | B143: 8808563538495 | C143: PN HAN 12 R22.5 152/149K DM09 | D143: 12225DM09152K | E143: POIDS LOURDS | F143: HN DM09 | G143: 12 | I143: R | J143: 22.5 | K143: 152/149 | L143: K | M143: E | N143: C | O143: A | P143: 70 | Q143: 913 | R143: 520.41
A144: 3003830 | B144: 8808563539157 | C144: PN HAN 315/80R22.5 156/150L AL20W | D144: 31580225AL20W156L | E144: POIDS LOURDS | F144: HN AL20W | G144: 315 | H144: 80 | I144: R | J144: 22.5 | K144: 156/150 | L144: L | M144: B | N144: B | O144: A | P144: 70 | Q144: 1027 | R144: 585.39
A145: 3003831 | B145: 8808563539164 | C145: PN HAN 215/75R17.5 135/133J TH31 | D145: 21575175TH31135J2 | E145: POIDS LOURDS | F145: HN TH31 | G145: 215 | H145: 75 | I145: R | J145: 17.5 | K145: 135/133 | L145: J | M145: C | N145: B | O145: A | P145: 69 | Q145: 451 | R145: 257.07
A146: 3003834 | B146: 8808563540481 | C146: PN HAN 315/80R22.5 156/150L DH51 | D146: 31580225DH51156L | E146: POIDS LOURDS | F146: HN DH51 | G146: 315 | H146: 80 | I146: R | J146: 22.5 | K146: 156/150 | L146: L | M146: D | N146: B | P146: 76 | Q146: 1078 | R146: 614.46
A147: 3003835 | B147: 8808563540498 | C147: PN HAN 315/80R22.5 156/150L AH51 | D147: 31580225AH51156L | E147: POIDS LOURDS | F147: HN AH51 | G147: 315 | H147: 80 | I147: R | J147: 22.5 | K147: 156/150 | L147: L | M147: C | N147: B | O147: A | P147: 72 | Q147: 1078 | R147: 614.46
A148: 3003836 | B148: 8808563540504 | C148: PN HAN 385/65R22.5 160K AH51 | D148: 38565225AH51160K | E148: POIDS LOURDS | F148: HN AH51 | G148: 385 | H148: 65 | I148: R | J148: 22.5 | K148: 160 | L148: K | M148: B | N148: B | O148: A | P148: 70 | Q148: 1119 | R148: 637.83
A149: 3003837 | B149: 8808563540511 | C149: PN HAN 385/65R22.5 164K AH51 | D149: 38565225AH51164K | E149: POIDS LOURDS | F149: HN AH51 | G149: 385 | H149: 65 | I149: R | J149: 22.5 | K149: 164 | L149: K | M149: B | N149: B | O149: A | P149: 70 | Q149: 1153 | R149: 657.21
A150: 3003861 | B150: 8808563547442 | C150: PN HAN 295/80R22.5 154/149M AH31 | D150: 29580225AH31154M2 | E150: POIDS LOURDS | F150: HN AH31 | G150: 295 | H150: 80 | I150: R | J150: 22.5 | K150: 154/149 | L150: M | M150: C | N150: B | O150: A | P150: 73 | Q150: 965 | R150: 550.05
A151: 3003875 | B151: 8808563551784 | C151: PN HAN 295/80R22.5 152/148M DH51 | D151: 29580225DH51152M | E151: POIDS LOURDS | F151: HN DH51 | G151: 295 | H151: 80 | I151: R | J151: 22.5 | K151: 152/148 | L151: M | M151: D | N151: B | P151: 76 | Q151: 1013 | R151: 577.41
A152: 3003876 | B152: 8808563551791 | C152: PN HAN 295/60R22.5 150/147K DH51 | D152: 29560225DH51150K | E152: POIDS LOURDS | F152: HN DH51 | G152: 295 | H152: 60 | I152: R | J152: 22.5 | K152: 150/147 | L152: K | M152: C | N152: B | P152: 76 | Q152: 1034 | R152: 589.38
A153: 3003877 | B153: 8808563551807 | C153: PN HAN 295/80R22.5 154/149M AH51 | D153: 29580225AH51154M | E153: POIDS LOURDS | F153: HN AH51 | G153: 295 | H153: 80 | I153: R | J153: 22.5 | K153: 154/149 | L153: M | M153: C | N153: B | P153: 72 | Q153: 1013 | R153: 577.41
A154: 3003878 | B154: 8808563551814 | C154: PN HAN 385/55R22.5 160K AH51 | D154: 38555225AH51160K | E154: POIDS LOURDS | F154: HN AH51 | G154: 385 | H154: 55 | I154: R | J154: 22.5 | K154: 160 | L154: K | M154: B | N154: B | P154: 70 | Q154: 1171 | R154: 667.47
A155: 3003879 | B155: 8808563551821 | C155: PN HAN 315/60R22.5 154/148L AH51 | D155: 31560225AH51154L | E155: POIDS LOURDS | F155: HN AH51 | G155: 315 | H155: 60 | I155: R | J155: 22.5 | K155: 154/148 | L155: L | M155: C | N155: B | P155: 72 | Q155: 1149 | R155: 654.93
A156: 3003882 | B156: 8808563553153 | C156: PN HAN 385/65R22.50 160K TL20 | D156: 385652250TL20160K | E156: POIDS LOURDS | F156: HN TL20 | G156: 385 | H156: 65 | I156: R | J156: 22.5 | K156: 160 | L156: K | M156: A | N156: C | O156: A | P156: 66 | Q156: 993 | R156: 566.01
A157: 3003886 | B157: 8808563553184 | C157: PN HAN 315/80R22.5 156/150K DM09 | D157: 31580225DM09156K | E157: POIDS LOURDS | F157: HN DM09 | G157: 315 | H157: 80 | I157: R | J157: 22.5 | K157: 156/150 | L157: K | M157: D | N157: C | O157: A | P157: 70 | Q157: 1039 | R157: 592.23
A158: 3003895 | B158: 8808563554983 | C158: PN HAN 245/70R19.5 143/141K AU06 | D158: 24570195AU06143K | E158: POIDS LOURDS | F158: HN AU06 | G158: 245 | H158: 70 | I158: R | J158: 19.5 | K158: 143/141 | L158: K | M158: C | N158: C | O158: A | P158: 71 | Q158: 616 | R158: 351.12
A159: 3003896 | B159: 8808563554990 | C159: PN HAN 265/70R19.5 143/141K AU06 | D159: 26570195AU06143K | E159: POIDS LOURDS | F159: HN AU06 | G159: 265 | H159: 70 | I159: R | J159: 19.5 | K159: 143/141 | L159: K | M159: C | N159: C | O159: A | P159: 71 | Q159: 635 | R159: 361.95
A160: 3003897 | B160: 8808563555973 | C160: PN HAN 295/55R22.5 DH51 | D160: 29555225DH51 | E160: POIDS LOURDS | F160: HN DH51 | G160: 295 | H160: 55 | I160: R | J160: 22.5 | M160: C | N160: B | P160: 76 | Q160: 1367 | R160: 779.19
A161: 3003900 | B161: 8808563558837 | C161: PN HAN 215/75R17.5 135/133J TH31 | D161: 21575175TH31135J3 | E161: POIDS LOURDS | F161: HN TH31 | G161: 215 | H161: 75 | I161: R | J161: 17.5 | K161: 135/133 | L161: J | M161: C | N161: B | O161: A | P161: 69 | Q161: 451 | R161: 257.07
A162: 3003912 | B162: 8808563560588 | C162: PN HAN 385/65R22.5 164K AH51 | D162: 38565225AH51164K2 | E162: POIDS LOURDS | F162: HN AH51 | G162: 385 | H162: 65 | I162: R | J162: 22.5 | K162: 164 | L162: K | P162: 0 | Q162: 1058 | R162: 603.06
A163: 3003942 | B163: 8808563572659 | C163: PN HAN 315/70R22.50 156/150L AL50 | D163: 315702250AL50156L | E163: POIDS LOURDS | F163: HN AL50 | G163: 315 | H163: 70 | I163: R | J163: 22.5 | K163: 156/150 | L163: L | M163: A | N163: B | O163: A | P163: 71 | Q163: 1064 | R163: 606.48
A164: 3003953 | B164: 8808563577951 | C164: PN HAN 385/55R22.50 160K AL50 | D164: 385552250AL50160K | E164: POIDS LOURDS | F164: HN AL50 | G164: 385 | H164: 55 | I164: R | J164: 22.5 | K164: 160 | L164: K | M164: A | N164: B | O164: A | P164: 70 | Q164: 1171 | R164: 667.47
A165: 3003954 | B165: 8808563577968 | C165: PN HAN 315/60R22.50 154/148L AL50 | D165: 315602250AL50154L | E165: POIDS LOURDS | F165: HN AL50 | G165: 315 | H165: 60 | I165: R | J165: 22.5 | K165: 154/148 | L165: L | M165: B | N165: B | O165: A | P165: 70 | Q165: 1149 | R165: 654.93
A166: 3003955 | B166: 8808563577975 | C166: PN HAN 295/60R22.50 150/147L AL50 | D166: 295602250AL50150L | E166: POIDS LOURDS | F166: HN AL50 | G166: 295 | H166: 60 | I166: R | J166: 22.5 | K166: 150/147 | L166: L | M166: B | N166: B | O166: A | P166: 70 | Q166: 985 | R166: 561.45
A167: 3003956 | B167: 8808563577982 | C167: PN HAN 315/80R22.50 156/150L AL50 | D167: 315802250AL50156L | E167: POIDS LOURDS | F167: HN AL50 | G167: 315 | H167: 80 | I167: R | J167: 22.5 | K167: 156/150 | L167: L | M167: B | N167: B | O167: A | P167: 70 | Q167: 1078 | R167: 614.46
A168: 3003957 | B168: 8808563577999 | C168: PN HAN 315/60R22.50 152/148L DL50 | D168: 315602250DL50152L | E168: POIDS LOURDS | F168: HN DL50 | G168: 315 | H168: 60 | I168: R | J168: 22.5 | K168: 152/148 | L168: L | M168: B | N168: C | O168: A | P168: 72 | Q168: 1171 | R168: 667.47
A169: 3003958 | B169: 8808563578002 | C169: PN HAN 295/60R22.50 150/147L DL50 | D169: 295602250DL50150L | E169: POIDS LOURDS | F169: HN DL50 | G169: 295 | H169: 60 | I169: R | J169: 22.5 | K169: 150/147 | L169: L | M169: B | N169: C | O169: A | P169: 72 | Q169: 1034 | R169: 589.38
A170: 3003959 | B170: 8808563578019 | C170: PN HAN 315/80R22.50 156/150L DL50 | D170: 315802250DL50156L | E170: POIDS LOURDS | F170: HN DL50 | G170: 315 | H170: 80 | I170: R | J170: 22.5 | K170: 156/150 | L170: L | M170: B | N170: C | O170: A | P170: 72 | Q170: 1027 | R170: 585.39
A171: 3003960 | B171: 8808563578026 | C171: PN HAN 355/50R19.5 156L AL50 | D171: 35550195AL50156L | E171: POIDS LOURDS | F171: HN AL50 | G171: 355 | H171: 50 | I171: R | J171: 19.5 | K171: 156 | L171: L | M171: A | N171: B | O171: A | P171: 72 | Q171: 1355 | R171: 772.35
A172: 3003976 | B172: 8808563585055 | C172: PN HAN 295/80R22.5 154/149M DL51 | D172: 29580225DL51154M | E172: POIDS LOURDS | F172: HN DL51 | G172: 295 | H172: 80 | I172: R | J172: 22.5 | K172: 154/149 | L172: M | M172: C | N172: C | O172: A | P172: 73 | Q172: 1013 | R172: 577.41
A173: 3003977 | B173: 8808563585062 | C173: PN HAN 315/80R22.5 156/150L DL51 | D173: 31580225DL51156L | E173: POIDS LOURDS | F173: HN DL51 | G173: 315 | H173: 80 | I173: R | J173: 22.5 | K173: 156/150 | L173: L | M173: C | N173: B | O173: A | P173: 73 | Q173: 1078 | R173: 614.46
A174: 3003978 | B174: 8808563586830 | C174: PN HAN 295/80R22.5 154/149M AL51 | D174: 29580225AL51154M | E174: POIDS LOURDS | F174: HN AL51 | G174: 295 | H174: 80 | I174: R | J174: 22.5 | K174: 154/149 | L174: M | M174: B | N174: C | P174: 70 | Q174: 1013 | R174: 577.41
A175: 3003982 | B175: 8808563587523 | C175: PN HAN 385/65R22.5 164K AW02+ | D175: 38565225AW02+164K | E175: POIDS LOURDS | F175: HN AW02+ | G175: 385 | H175: 65 | I175: R | J175: 22.5 | K175: 164 | L175: K | M175: C | N175: C | O175: A | P175: 70 | Q175: 1140 | R175: 649.8
A176: 3003994 | B176: 8808563598260 | C176: PN HAN 205/65R17.5 132/130J TH31 | D176: 20565175TH31132J | E176: POIDS LOURDS | F176: HN TH31 | G176: 205 | H176: 65 | I176: R | J176: 17.5 | K176: 132/130 | L176: J | M176: C | N176: B | O176: A | P176: 70 | Q176: 523 | R176: 298.11
A177: 3004000 | B177: 8808563603179 | C177: PN HAN 385/65R22.5 164K SMART FLEX TH31 | D177: 38565225SMARTFLE164K | E177: POIDS LOURDS | F177: HN SMART FLEX TH31 | G177: 385 | H177: 65 | I177: R | J177: 22.5 | K177: 164 | L177: K | M177: B | N177: B | O177: A | P177: 69 | Q177: 1007 | R177: 573.99

Sheet MIC
D2: Remise
D3: =Remises!J14 -> 0.415
A5: Actualisation au 04/04/2024
A7: REFERENCES PNEUMATIQUES | Q7: TARIFS
A8: CAI | B8: EAN | C8: Désignation | D8: Appellation | E8: Catégorie | F8: Profil | G8: Largeur | H8: Hauteur | I8: Structure | J8: Diamètre | K8: IC | L8: IV | M8: Conso. | N8: Frein. | O8: Bruit. | P8: Décibels. | Q8: Prix BF | R8: Prix Remisé
A9: 025215 | B9: 3528700252156 | C9: PN MIC 275/70R22.5 148/145 J XTY2 | D9: 27570225XTY2J148145 | E9: POIDS LOURDS | F9: MI XTY2 | G9: 275 | H9: 70 | I9: R | J9: 22.5 | K9: 148/145 | L9: J | M9: D | N9: B | O9: A | P9: 70 | Q9: 1047 | R9: =Q9*(1-$D$3) -> 612.495
A10: 032054 | B10: 3528700320541 | C10: PN MIC 295/80R22.5 152/148 L X MUL 3D | D10: 29580225XMULL152148 | E10: POIDS LOURDS | F10: MI MW3DXDE | G10: 295 | H10: 80 | I10: R | J10: 22.5 | K10: 152/148 | L10: L | M10: D | N10: C | O10: B | P10: 75 | Q10: 1205 | R10: =Q10*(1-$D$3) -> 704.925
A11: 032072 | B11: 3528700320725 | C11: PN MIC 225/70R19.5 128/126N AGI HD Z VC | D11: 22570195AGIHDZVC128N | E11: POIDS LOURDS | F11: MI AGILIS HD Z | G11: 225 | H11: 70 | I11: R | J11: 19.5 | K11: 128/126 | L11: N | M11: D | N11: C | O11: B | P11: 70 | Q11: 531 | R11: 310.635
A12: 059976 | B12: 3528700599763 | C12: PN MIC 315/70R22.5 152 M XDW ICE GRIP | D12: 31570225XDWICM152 | E12: POIDS LOURDS | F12: MI XDW ICE GRIP | G12: 315 | H12: 70 | I12: R | J12: 22.5 | K12: 154/150 | L12: L | M12: D | N12: C | O12: A | P12: 72 | Q12: 1291 | R12: 755.235
A13: 078266 | B13: 3528700782660 | C13: PN MIC 11 R22.5 148/145L X MULTI Z 2 | D13: 11225XMULTIZ2148L | E13: POIDS LOURDS | F13: MI X MULTI Z 2 | G13: 11 | I13: R | J13: 22.5 | K13: 148 | L13: L | M13: C | N13: C | O13: A | P13: 71 | Q13: 974 | R13: 569.79
A14: 109093 | B14: 3528701090931 | C14: PN MIC 14.00R20 153 G XML | D14: 140020XMLG153 | E14: POIDS LOURDS | F14: MI XML | G14: 14 | I14: R | J14: 20 | K14: 153 | L14: G | P14: 0 | Q14: 3491 | R14: 2042.235
A15: 109142 | B15: 3528701091426 | C15: PN MIC 11.00R16 135 K XZL TT | D15: 110016XZLTTK135 | E15: POIDS LOURDS | F15: MI XZL | G15: 11 | I15: R | J15: 16 | K15: 135 | L15: K | P15: 0 | Q15: 2086 | R15: 1220.31
A16: 109374 | B16: 3528701093741 | C16: PN MIC 365/85R20 164 G XZL | D16: 3658520XZLG164 | E16: POIDS LOURDS | F16: MI XZL | G16: 365 | H16: 85 | I16: R | J16: 20 | K16: 164 | L16: G | P16: 0 | Q16: 2433 | R16: 1423.305
A17: 109421 | B17: 3528701094212 | C17: PN MIC 525/65R20.5 173 F XS | D17: 52565205XSF173 | E17: POIDS LOURDS | F17: MI XS | G17: 525 | H17: 65 | I17: R | J17: 20.5 | K17: 173 | L17: F | P17: 0 | Q17: 4063 | R17: 2376.855
A18: 109668 | B18: 3528701096681 | C18: PN MIC 13R22.5 154 K XZL | D18: 13225XZLK154 | E18: POIDS LOURDS | F18: MI XZL | G18: 13 | I18: R | J18: 22.5 | K18: 154/150 | L18: K | P18: 0 | Q18: 1740 | R18: 1017.9
A19: 109683 | B19: 3528701096834 | C19: PN MIC 325/85R16 137 J XML | D19: 3258516XMLJ137 | E19: POIDS LOURDS | F19: MI XML | G19: 325 | H19: 85 | I19: R | J19: 16 | K19: 137 | L19: J | P19: 0 | Q19: 2960 | R19: 1731.6
A20: 109723 | B20: 3528701097237 | C20: PN MIC 475/80R20 XML TL | D20: 4758020XMLTL | E20: POIDS LOURDS | F20: MI XML | G20: 475 | H20: 80 | I20: R | J20: 20 | K20: 166 | L20: G | P20: 0 | Q20: 5223 | R20: 3055.455
A21: 109890 | B21: 3528701098906 | C21: PN MIC 9.5R17.5 129 L XZY | D21: 95175XZYL129 | E21: POIDS LOURDS | F21: MI XZY | G21: 9.5 | I21: R | J21: 17.5 | K21: 129/127 | L21: L | M21: D | N21: C | O21: B | P21: 72 | Q21: 793 | R21: 463.905
A22: 110013 | B22: 3528701100135 | C22: PN MIC 395/85R20 168 G XZL | D22: 3958520XZLG168 | E22: POIDS LOURDS | F22: MI XZL | G22: 395 | H22: 85 | I22: R | J22: 20 | K22: 168 | L22: G | P22: 0 | Q22: 2614 | R22: 1529.19
A23: 110062 | B23: 3528701100623 | C23: PN MIC 11.00R20 150 K XZL (E 20) | D23: 110020XZLE20K150 | E23: POIDS LOURDS | F23: MI XZL | G23: 11 | I23: R | J23: 20 | K23: 150/146 | L23: K | P23: 0 | Q23: 1988 | R23: 1162.98
A24: 110081 | B24: 3528701100814 | C24: PN MIC 365/80R20 152 K XZL MPT | D24: 3658020XZLMPTK152 | E24: POIDS LOURDS | F24: MI XZL | G24: 365 | H24: 80 | I24: R | J24: 20 | K24: 152 | L24: K | P24: 0 | Q24: 1674 | R24: 979.29
A25: 110132 | B25: 3528701101323 | C25: PN MIC 12.00R20 154 K XZL TL | D25: 120020XZLTLK154 | E25: POIDS LOURDS | F25: MI XZL | G25: 12 | I25: R | J25: 20 | K25: 154/149 | L25: K | P25: 0 | Q25: 1914 | R25: 1119.69
A26: 110142 | B26: 3528701101422 | C26: PN MIC 445/65R22.5 168 G XZL | D26: 44565225XZLG168 | E26: POIDS LOURDS | F26: MI XZL | G26: 445 | H26: 65 | I26: R | J26: 22.5 | K26: 168 | L26: G | P26: 0 | Q26: 2614 | R26: 1529.19
A27: 110148 | B27: 3528701101484 | C27: PN MIC 10.00R20 146 K XZL TT | D27: 100020XZLTTK146 | E27: POIDS LOURDS | F27: MI XZL | G27: 10 | I27: R | J27: 20 | K27: 146/143 | L27: K | P27: 0 | Q27: 1674 | R27: 979.29
A28: 110234 | B28: 3528701102344 | C28: PN MIC 6.00R9 109 F XTA TT | D28: 6009XTATTF109 | E28: POIDS LOURDS | F28: MI XTA | G28: 6 | I28: R | J28: 9 | K28: 109/108 | L28: F | P28: 0 | Q28: 791 | R28: 462.735
A29: 110249 | B29: 3528701102498 | C29: PN MIC 10R22.5 144 K XZY | D29: 10225XZYK144 | E29: POIDS LOURDS | F29: MI XZY | G29: 10 | I29: R | J29: 22.5 | K29: 144/142 | L29: K | M29: D | N29: B | O29: A | P29: 69 | Q29: 1084 | R29: 634.14
A30: 110257 | B30: 3528701102573 | C30: PN MIC 24R21 178 G XZL | D30: 2421XZLG178 | E30: POIDS LOURDS | F30: MI XZL | G30: 24 | I30: R | J30: 21 | K30: 176 | L30: G | P30: 0 | Q30: 5435 | R30: 3179.475
A31: 110259 | B31: 3528701102597 | C31: PN MIC 1200R20 149 J XML | D31: 120020XMLJ149 | E31: POIDS LOURDS | F31: MI XML | G31: 12 | I31: R | J31: 20 | K31: 149/146 | L31: J | P31: 0 | Q31: 2786 | R31: 1629.81
A32: 110510 | B32: 3528701105109 | C32: PN MIC 395/85R20 161 G XML | D32: 3958520XMLG161 | E32: POIDS LOURDS | F32: MI XML | G32: 395 | H32: 85 | I32: R | J32: 20 | K32: 161 | L32: G | P32: 0 | Q32: 2684 | R32: 1570.14
A33: 110558 | B33: 3528701105581 | C33: PN MIC 315/80R22.5 154/150M XTA | D33: 31580225XTA154M | E33: POIDS LOURDS | F33: MI XTA | G33: 315 | H33: 80 | I33: R | J33: 22.5 | K33: 154/150 | L33: M | M33: C | N33: B | O33: A | P33: 69 | Q33: 1074 | R33: 628.29
A34: 110576 | B34: 3528701105765 | C34: PN MIC 275/70R22.5 148 M XDW ICE GRIP | D34: 27570225XDWICM148 | E34: POIDS LOURDS | F34: MI XDW ICE GRIP | G34: 275 | H34: 70 | I34: R | J34: 22.5 | K34: 148/145 | L34: L | M34: E | N34: C | O34: A | P34: 72 | Q34: 1156 | R34: 676.26
A35: 110650 | B35: 3528701106502 | C35: PN MIC 255/100R16 126 K XZL | D35: 25516XZLK126 | E35: POIDS LOURDS | F35: MI XZL | G35: 255 | I35: R | J35: 16 | K35: 126 | L35: K | P35: 0 | Q35: 1323 | R35: 773.955
A36: 110939 | B36: 3528701109398 | C36: PN MIC 9.5R17.5 143 J XTE2 | D36: 95175XTE2J143 | E36: POIDS LOURDS | F36: MI XTE2 | G36: 9.5 | I36: R | J36: 17.5 | K36: 143/141 | L36: J | M36: C | N36: B | O36: A | P36: 67 | Q36: 709 | R36: 414.765
A37: 110973 | B37: 3528701109732 | C37: PN MIC 295/80R22.5 152 M XZA2 ENERGY | D37: 29580225XZA2ENERGYM1 | E37: POIDS LOURDS | F37: MI XZA2 ENERGY | G37: 295 | H37: 80 | I37: R | J37: 22.5 | K37: 152/148 | L37: M | M37: C | N37: C | O37: A | P37: 67 | Q37: 1205 | R37: 704.925
A38: 110985 | B38: 3528701109855 | C38: PN MIC 455/45R22.5 166 J X ONE XDU | D38: 45545225XONEJ166 | E38: POIDS LOURDS | F38: MI X ONE XDU | G38: 455 | H38: 45 | I38: R | J38: 22.5 | K38: 166 | L38: J | M38: D | N38: C | O38: B | P38: 73 | Q38: 2381 | R38: 1392.885
A39: 111548 | B39: 3528701115481 | C39: PN MIC 315/80R22.5 156 L XDW ICE GRIP | D39: 31580225XDWICEGRIPL1 | E39: POIDS LOURDS | F39: MI XDW ICE GRIP | G39: 315 | H39: 80 | I39: R | J39: 22.5 | K39: 156/150 | L39: L | M39: E | N39: C | O39: A | P39: 72 | Q39: 1291 | R39: 755.235
A40: 112513 | B40: 3528701125138 | C40: PN MIC 385/65R22.5 160K X MULTI T VM | D40: 38565225XMULT160K | E40: POIDS LOURDS | F40: MI X MULTI T | G40: 385 | H40: 65 | I40: R | J40: 22.5 | K40: 160 | L40: K | M40: B | N40: B | O40: A | P40: 69 | Q40: 1181 | R40: 690.885
A41: 123357 | B41: 3528701233574 | C41: PN MIC 16.00R20 L XZL LRM | D41: 160020XZLLRML | E41: POIDS LOURDS | F41: MI XZL | G41: 16 | I41: R | J41: 20 | K41: 173 | L41: G | P41: 0 | Q41: 5123 | R41: 2996.955
A42: 124164 | B42: 3528701241647 | C42: PN MIC 355/50R22.5 156K X MULTI Z | D42: 35550225XMULZ156K | E42: POIDS LOURDS | F42: MI X MULTI Z | G42: 355 | H42: 50 | I42: R | J42: 22.5 | K42: 156 | L42: K | M42: C | N42: C | O42: A | P42: 73 | Q42: 1426 | R42: 834.21
A43: 130553 | B43: 3528701305530 | C43: PN MIC 385/65R22.5 160 K X LINE EN F | D43: 38565225XLINEFK160 | E43: POIDS LOURDS | F43: MI X LINE ENERGY F | G43: 385 | H43: 65 | I43: R | J43: 22.5 | K43: 160 | L43: K | M43: B | N43: B | O43: A | P43: 69 | Q43: 1314 | R43: 768.69
A44: 132299 | B44: 3528701322995 | C44: PN MIC 325/95R24 162K X WORKS D2 | D44: 3259524XWORKD2162K | E44: POIDS LOURDS | F44: MI X WORKS D2 | G44: 325 | H44: 95 | I44: R | J44: 24 | K44: 162 | L44: K | M44: D | N44: C | O44: B | P44: 76 | Q44: 1502 | R44: 878.67
A45: 139877 | B45: 3528701398778 | C45: PN MIC 315/80R22.5 158/150L X MUL E Z VM | D45: 31580225XMULEZVM158L | E45: POIDS LOURDS | F45: MI X MUL E Z | G45: 315 | H45: 80 | I45: R | J45: 22.5 | K45: 158/150 | L45: L | M45: B | N45: C | O45: B | P45: 75 | Q45: 1381 | R45: 807.885
A46: 139900 | B46: 3528701399003 | C46: PN MIC 385/55R22.5 160K XLINET VQ | D46: 38555225XLINETVQ160K | E46: POIDS LOURDS | F46: MI X LINE ENERGY T | G46: 385 | H46: 55 | I46: R | J46: 22.5 | K46: 160 | L46: K | M46: A | N46: C | P46: 71 | Q46: 1240 | R46: 725.4
A47: 143659 | B47: 3528701436593 | C47: PN MIC 16.00 R20 174/171J XFORZL VM | D47: 160020XFORZL174J | E47: POIDS LOURDS | F47: MI X FORCE ZL | G47: 16 | I47: R | J47: 20 | K47: 174/171 | L47: J | P47: 0 | Q47: 5191 | R47: 3036.735
A48: 162527 | B48: 3528701625270 | C48: PN MIC 385/65R22.5 160J XTE3 VG | D48: 38565225XTE3VG160J | E48: POIDS LOURDS | F48: MI XTE3 | G48: 385 | H48: 65 | I48: R | J48: 22.5 | K48: 160 | L48: J | M48: C | N48: B | O48: B | P48: 71 | Q48: 1123 | R48: 656.955
A49: 165338 | B49: 3528701653389 | C49: PN MIC 315/80R22.5 156/150 L X LINE D | D49: 31580225XLINEL15615M | E49: POIDS LOURDS | F49: MI XLINED | G49: 315 | H49: 80 | I49: R | J49: 22.5 | K49: 156 | L49: L | M49: B | N49: C | O49: A | P49: 69 | Q49: 1228 | R49: 718.38
A50: 174552 | B50: 3528701745527 | C50: PN MIC 305/70R22.5 154/150L X MULTI HL Z | D50: 30570225MULTZHVM154L | E50: POIDS LOURDS | F50: MI X MULTI HL Z | G50: 305 | H50: 70 | I50: R | J50: 22.5 | K50: 154/152 | L50: L | M50: C | N50: C | O50: A | P50: 72 | Q50: 1305 | R50: 763.425
A51: 175857 | B51: 3528701758572 | C51: PN MIC 13R22.5 156/150K X WORKS D VG | D51: 13225XWORDVG156K | E51: POIDS LOURDS | F51: MI X WORKS D | G51: 13 | I51: R | J51: 22.5 | K51: 156/150 | L51: K | M51: C | N51: B | O51: B | P51: 74 | Q51: 1277 | R51: 747.045
A52: 178616 | B52: 3528701786162 | C52: PN MIC 265/70R19.5 143 J XTE2 VG | D52: 26570195XTE2J143VG | E52: POIDS LOURDS | F52: MI XTE2 | G52: 265 | H52: 70 | I52: R | J52: 19.5 | K52: 143/141 | L52: J | M52: D | N52: B | O52: A | P52: 68 | Q52: 779 | R52: 455.715
A53: 179999 | B53: 3528701799995 | C53: PN MIC 275/70R22.5 148/145J X INCITY XZU | D53: 27570225XINCITYX148J | E53: POIDS LOURDS | F53: MI X INCITY XZU | G53: 275 | H53: 70 | I53: R | J53: 22.5 | K53: 148/145 | L53: J | P53: 0 | Q53: 1153 | R53: 674.505
A54: 183553 | B54: 3528701835532 | C54: PN MIC 275/70R22.5 148/145 L X MULTI Z | D54: 27570225XMULTLZ48145 | E54: POIDS LOURDS | F54: MI X MUL E Z | G54: 275 | H54: 70 | I54: R | J54: 22.5 | K54: 148/145 | L54: L | M54: D | N54: B | O54: A | P54: 69 | Q54: 1102 | R54: 644.67
A55: 183637 | B55: 3528701836379 | C55: PN MIC 265/70R17.5 140/138 M X MULTI D | D55: 26570175XMULTM140138 | E55: POIDS LOURDS | F55: MI X MULTI D | G55: 265 | H55: 70 | I55: R | J55: 17.5 | K55: 140/138 | L55: M | M55: D | N55: C | O55: A | P55: 72 | Q55: 872 | R55: 510.12
A56: 183666 | B56: 3528701836669 | C56: PN MIC 295/60R22.5 150/147L X MULTI D VG | D56: 29560225XMULD150L | E56: POIDS LOURDS | F56: MI X MULTI D | G56: 295 | H56: 60 | I56: R | J56: 22.5 | K56: 150/147 | L56: L | M56: D | N56: C | O56: B | P56: 74 | Q56: 1228 | R56: 718.38
A57: 184294 | B57: 3528701842943 | C57: PN MIC 385/55R22.5 160K X MUL GRIP Z AS | D57: 38555225XMULGZAS160K | E57: POIDS LOURDS | F57: MI X MULTI GRIP Z | G57: 385 | H57: 55 | I57: R | J57: 22.5 | K57: 160 | L57: K | M57: C | N57: B | O57: A | P57: 73 | Q57: 1419 | R57: 830.115
A58: 188448 | B58: 3528701884486 | C58: PN MIC 215/75R17.5 126/124 M X MULTI Z | D58: 21575175XMULTM1261MI | E58: POIDS LOURDS | F58: MI X MUL E Z | G58: 215 | H58: 75 | I58: R | J58: 17.5 | K58: 126/124 | L58: M | M58: D | N58: B | O58: A | P58: 68 | Q58: 535 | R58: 312.975
A59: 188461 | B59: 3528701884615 | C59: PN MIC 245/70R17.5 143/141J X MUL T2 VM | D59: 24570175XMULT2VM143J | E59: POIDS LOURDS | F59: MI X MULTI T2 | G59: 245 | H59: 70 | I59: R | J59: 17.5 | K59: 143/141 | L59: J | M59: C | N59: C | O59: A | P59: 68 | Q59: 791 | R59: 462.735
A60: 195307 | B60: 3528701953076 | C60: PN MIC 315/60R22.5 154/148L X MULTI Z VG | D60: 31560225MULTZVG154L | E60: POIDS LOURDS | F60: MI X MULTI Z | G60: 315 | H60: 60 | I60: R | J60: 22.5 | K60: 154/148 | L60: L | M60: C | N60: B | O60: A | P60: 72 | Q60: 1314 | R60: 768.69
A61: 200533 | B61: 3528702005330 | C61: PN MIC 235/75R17.5 132/130 M X MULTI D | D61: 23575175XMULTM132130 | E61: POIDS LOURDS | F61: MI X MULTI D | G61: 235 | H61: 75 | I61: R | J61: 17.5 | K61: 132/130 | L61: M | M61: D | N61: C | O61: A | P61: 69 | Q61: 702 | R61: 410.67
A62: 203153 | B62: 3528702031537 | C62: PN MIC 285/70R19.5 150/148 M XTA2 ENE | D62: 28570195XTA2EM150148 | E62: POIDS LOURDS | F62: MI XTE2 | G62: 285 | H62: 70 | I62: R | J62: 19.5 | K62: 150/148 | L62: J | M62: C | N62: B | O62: A | P62: 69 | Q62: 981 | R62: 573.885
A63: 204405 | B63: 3528702044056 | C63: PN MIC 305/70R22.5 154/150L X MULTI D VG | D63: 30570225MULD154L | E63: POIDS LOURDS | F63: MI X MULTI D | G63: 305 | H63: 70 | I63: R | J63: 22.5 | K63: 154/150 | L63: L | M63: D | N63: C | O63: A | P63: 73 | Q63: 1265 | R63: 740.025
A64: 229101 | B64: 3528702291016 | C64: PN MIC 365/85R20 164K XFORZL | D64: 3658520XFORZL164K | E64: POIDS LOURDS | F64: MI X FORCE ZL | G64: 365 | H64: 85 | I64: R | J64: 20 | K64: 164 | L64: K | P64: 0 | Q64: 2130 | R64: 1246.05
A65: 231405 | B65: 3528702314050 | C65: PN MIC 275/70R22.5 148/145 L X MULTI D | D65: 27570225XMULTL148145 | E65: POIDS LOURDS | F65: MI X MULTI D | G65: 275 | H65: 70 | I65: R | J65: 22.5 | K65: 148/145 | L65: L | M65: D | N65: C | O65: A | P65: 72 | Q65: 1102 | R65: 644.67
A66: 231590 | B66: 3528702315903 | C66: PN MIC 11R22.5 XZY3 | D66: 11225XZY3 | E66: POIDS LOURDS | F66: MI XZY 3 | G66: 11 | I66: R | J66: 22.5 | K66: 148/145 | L66: K | M66: D | N66: B | O66: A | P66: 69 | Q66: 1023 | R66: 598.455
